Workbook

Sheet Como Usar
B3: A Sua Planilha de Controle financeiro!
B4: Ao iniciar á utilização da planilha, leia as intruções abaixo:
B6: 1. Preencha a aba Informações, ela é importante para preenchimento automatico de outros campos.
B7: 2. A planilha possui abas de lançamentos, que servirão de base para o seu controle financeiro.
B8: 3. Preencha os lançamentos com as informações solicitadas, pois são fundamentais para a Análise Financeira.
B9: 4. Distribua as receitas e despesas nas "CATEGORIAS" já cadastradas, estas foram analisadas por nossos contadores.
B10: 5. No campo "Data de pagamento/recebimento", inserir a data exata de entrada ou saída de valores das contas bancárias.
B11: 6. Vá até a aba "DRE Analítico" ou "DRE Sintético" para acompanhar o desempenho da sua EMPRESA!
B13: IMPORTANTE: Com os "LANÇAMENTOS" em dia, é possível garantir um controle eficaz da sua empresa!! Precisando, pode contar conosco!!!
B15: Autor: Solvção Contabilidade e Sistemas. TODOS OS DIREITOS RESERVADOS Nos termos da Lei n° 9.610, de 19 de fevereiro de 1998, que regula os direitos autorais, é proibida a reprodução total ou parcial deste material, exceto para uso pessoal, por qualquer forma, sem permissão por escrito, dos Autores. A reprodução não autorizada, além das sanções civis (apreensão e indenização), está sujeita as penalidades que trata artigo 184 do Código Penal.
B26: SUM de VALOR2
B35: ddddddddd

Sheet Informações
A2: Nome da Empresa : | C2: CMTO Clinica
B4: para o controle dos seus Bancos | F4: para o controle dos seus fornecedores
B5: Cadastro de Bancos | F5: Cadastro de Fornecedor
B6: Data do Inicio | C6: Banco | D6: Saldo Inicial | F6: Nome | G6: CNPJ / CPF
B7: 2022-12-25 | C7: Caixinha | D7: 1114.73 | F7: Correios | G7: 23.456.7890/0001-23
B8: 2021-01-01 | C8: Inter | D8: 1000 | F8: Mercado Livre | G8: 34.456.789/0001-90
B9: 2021-02-11 | C9: Bradesco | D9: 1000
B10: 2022-07-15 | C10: Itau | D10: 2200

Sheet Lanc_BC1
A2: Resultado | B2: Saldo Inicial | C2: Entradas | D2: Saídas | E2: Saldo
A3: =C3+D3 -> 9338.71 | B3: =IF(Calc!Q2=1,Calc!R2,IFERROR(VLOOKUP(Calc!Q2,Calc!O2:R32,4,FALSE),0)) -> 5314.73 | C3: =SUMPRODUCT(SUBTOTAL(9,OFFSET(K5,ROW(Tabela2[Valor Original])-ROW(K5),0)),(Tabela2[Valor Original]>=0)+0) -> 29849.39 | D3: =SUMPRODUCT(SUBTOTAL(9,OFFSET(K5,ROW(Tabela2[Valor Original])-ROW(K5),0)),(Tabela2[Valor Original]<0)+0) -> -20510.68 | E3: =A3+B3 -> 14653.44
A4: Data Pgto Recbto | B4: Fornecedor Cliente | C4: CNPJ/CPF | D4: Nº Doc | E4: Descrição | F4: Categoria | G4: Banco | H4: Valor Pago Recebido | I4: Valor Juros | J4: Valor Desconto | K4: Valor Original | L4: Saldo
A5: 2021-08-09 | B5: Mercado Livre | C5: =IF(B5="","",IFERROR(VLOOKUP(B5,Informações!$F$7:$G$1048576,2,0),"Verificar Se Há Cadastro")) -> 34.456.789/0001-90 | E5: Pagto. Mercado Livre | F5: Marketing e publicidade | G5: Caixinha | H5: 9948.47 | I5: 0 | J5: 0 | K5: =IF(H5="","-",H5-I5+J5) -> 9948.47 | L5: =IF(K5="-","-",K5+L4) -> 
A6: 2021-08-09 | B6: Imovelweb | C6: =IF(B6="","",IFERROR(VLOOKUP(B6,Informações!$F$7:$G$1048576,2,0),"Verificar Se Há Cadastro")) -> Verificar Se Há Cadastro | E6: Pagto. Imovelweb | F6: Marketing e publicidade | G6: Caixinha | H6: -308 | I6: 0 | J6: 0 | K6: =IF(H6="","-",H6-I6+J6) -> -308 | L6: =IF(K6="-","-",K6+L5) -> 
A7: 2021-08-09 | B7: Pricila ( Nazaré casa 2 ) | C7: =IF(B7="","",IFERROR(VLOOKUP(B7,Informações!$F$7:$G$1048576,2,0),"Verificar Se Há Cadastro")) -> Verificar Se Há Cadastro | E7: aluguel casa 2 Nazaré | F7: Repasses | G7: Caixinha | H7: -596.9 | I7: 0 | J7: 0 | K7: =IF(H7="","-",H7-I7+J7) -> -596.9 | L7: =IF(K7="-","-",K7+L6) -> 
A8: 2021-08-09 | B8: Solvção | C8: =IF(B8="","",IFERROR(VLOOKUP(B8,Informações!$F$7:$G$1048576,2,0),"Verificar Se Há Cadastro")) -> Verificar Se Há Cadastro | E8: Pagto. Solvção | F8: Contabilidade | G8: Caixinha | H8: -1246 | I8: 0 | J8: 0 | K8: =IF(H8="","-",H8-I8+J8) -> -1246 | L8: =IF(K8="-","-",K8+L7) -> 
A9: 2021-08-11 | B9: Edisson Luiz Stella | C9: =IF(B9="","",IFERROR(VLOOKUP(B9,Informações!$F$7:$G$1048576,2,0),"Verificar Se Há Cadastro")) -> Verificar Se Há Cadastro | E9: Repasse aluguel 07.2021 R. Nazaré E. Santo,7 | F9: Repasses | G9: Caixinha | H9: -1246 | I9: 0 | J9: 0 | K9: =IF(H9="","-",H9-I9+J9) -> -1246 | L9: =IF(K9="-","-",K9+L8) -> 
A10: 2021-08-11 | B10: Sandra | C10: =IF(B10="","",IFERROR(VLOOKUP(B10,Informações!$F$7:$G$1048576,2,0),"Verificar Se Há Cadastro")) -> Verificar Se Há Cadastro | E10: ADM Comissão sandra | F10: Prestação de Serviço | G10: Caixinha | H10: -1246 | I10: 0 | J10: 0 | K10: =IF(H10="","-",H10-I10+J10) -> -1246 | L10: =IF(K10="-","-",K10+L9) -> 
A11: 2021-08-11 | C11: =IF(B11="","",IFERROR(VLOOKUP(B11,Informações!$F$7:$G$1048576,2,0),"Verificar Se Há Cadastro")) ->  | E11: Gratificação sindico Golden park | F11: Premiação e gratificações | G11: Caixinha | H11: -9 | I11: 0 | J11: 0 | K11: =IF(H11="","-",H11-I11+J11) -> -9 | L11: =IF(K11="-","-",K11+L10) -> 
A12: 2021-09-06 | B12: Claro | C12: =IF(B12="","",IFERROR(VLOOKUP(B12,Informações!$F$7:$G$1048576,2,0),"Verificar Se Há Cadastro")) -> Verificar Se Há Cadastro | E12: Recarga celular Batelli | F12: Telefone | G12: Caixinha | H12: -9 | I12: 0 | J12: 0 | K12: =IF(H12="","-",H12-I12+J12) -> -9 | L12: =IF(K12="-","-",K12+L11) -> 
A13: 2021-09-06 | B13: Mercado Livre | C13: =IF(B13="","",IFERROR(VLOOKUP(B13,Informações!$F$7:$G$1048576,2,0),"Verificar Se Há Cadastro")) -> 34.456.789/0001-90 | E13: Mercado livre venc. 06/09 | F13: Marketing e publicidade | G13: Caixinha | H13: -308 | I13: 0 | J13: 0 | K13: =IF(H13="","-",H13-I13+J13) -> -308 | L13: =IF(K13="-","-",K13+L12) -> 
A14: 2022-01-03 | B14: Enio Broges da Rocha | C14: =IF(B14="","",IFERROR(VLOOKUP(B14,Informações!$F$7:$G$1048576,2,0),"Verificar Se Há Cadastro")) -> Verificar Se Há Cadastro | E14: Recebimento de aluguel do apto. da R. Floresto Bandecchi, 479, apto. 142 BL. A - Sr. Osvaldo. | F14: Vendas | G14: Inter | H14: -308 | I14: 0 | J14: 0 | K14: =IF(H14="","-",H14-I14+J14) -> -308 | L14: =IF(K14="-","-",K14+L13) -> 
A15: 2022-01-04 | B15: Osvaldo Simon | C15: =IF(B15="","",IFERROR(VLOOKUP(B15,Informações!$F$7:$G$1048576,2,0),"Verificar Se Há Cadastro")) -> Verificar Se Há Cadastro | E15: Repasse de aluguel apto. R. Floresto bandecchi, 479 Bl A - Sr. Osvaldo | F15: Repasses | G15: Inter | H15: -596.9 | I15: 0 | J15: 0 | K15: =IF(H15="","-",H15-I15+J15) -> -596.9 | L15: =IF(K15="-","-",K15+L14) -> 
A16: 2022-01-04 | B16: cond. Nazaré | C16: =IF(B16="","",IFERROR(VLOOKUP(B16,Informações!$F$7:$G$1048576,2,0),"Verificar Se Há Cadastro")) -> Verificar Se Há Cadastro | E16: pagto. Sabesp casa 1 - R. Nazaré do Espirito Santo | F16: Repasses | G16: Inter | H16: -1246 | I16: 0 | J16: 0 | K16: =IF(H16="","-",H16-I16+J16) -> -1246 | L16: =IF(K16="-","-",K16+L15) -> 
A17: 2022-01-04 | B17: Anderson Fco. Dos Santos | C17: =IF(B17="","",IFERROR(VLOOKUP(B17,Informações!$F$7:$G$1048576,2,0),"Verificar Se Há Cadastro")) -> Verificar Se Há Cadastro | E17: Recebimento de aluguel/IPTU Pde. Caresia, 189 - Cs 1 | F17: Locação | G17: Inter | H17: -1246 | I17: 0 | J17: 0 | K17: =IF(H17="","-",H17-I17+J17) -> -1246 | L17: =IF(K17="-","-",K17+L16) -> 
A18: 2022-01-04 | B18: Adilson Gomes da Silva | C18: =IF(B18="","",IFERROR(VLOOKUP(B18,Informações!$F$7:$G$1048576,2,0),"Verificar Se Há Cadastro")) -> Verificar Se Há Cadastro | E18: Recebimento de aluguel box 4 CCF | F18: Locação | G18: Inter | H18: -1246 | I18: 0 | J18: 0 | K18: =IF(H18="","-",H18-I18+J18) -> -1246 | L18: =IF(K18="-","-",K18+L17) -> 
A19: 2022-01-05 | B19: Edisson Luiz Stella | C19: =IF(B19="","",IFERROR(VLOOKUP(B19,Informações!$F$7:$G$1048576,2,0),"Verificar Se Há Cadastro")) -> Verificar Se Há Cadastro | E19: Repasse aluguel de 12.2021 R. Nazaré E. Santo,7 | F19: Repasses | G19: Inter | H19: -9 | I19: 0 | J19: 0 | K19: =IF(H19="","-",H19-I19+J19) -> -9 | L19: =IF(K19="-","-",K19+L18) -> 
A20: 2022-01-05 | B20: Mercado livre | C20: =IF(B20="","",IFERROR(VLOOKUP(B20,Informações!$F$7:$G$1048576,2,0),"Verificar Se Há Cadastro")) -> 34.456.789/0001-90 | E20: Pagamento mercado livre | F20: Marketing e publicidade | G20: Inter | H20: -9 | I20: 0 | J20: 0 | K20: =IF(H20="","-",H20-I20+J20) -> -9 | L20: =IF(K20="-","-",K20+L19) -> 
A21: 2022-01-06 | B21: RKG - CCF | C21: =IF(B21="","",IFERROR(VLOOKUP(B21,Informações!$F$7:$G$1048576,2,0),"Verificar Se Há Cadastro")) -> Verificar Se Há Cadastro | E21: Repasse de aluguel do box 4 CCF | F21: Repasses | G21: Inter | H21: -308 | I21: 0 | J21: 0 | K21: =IF(H21="","-",H21-I21+J21) -> -308 | L21: =IF(K21="-","-",K21+L20) -> 
A22: 2022-01-06 | B22: Givanilda Aires | C22: =IF(B22="","",IFERROR(VLOOKUP(B22,Informações!$F$7:$G$1048576,2,0),"Verificar Se Há Cadastro")) -> Verificar Se Há Cadastro | E22: Repasse aluguel/IPTU R. Pde Caresia | F22: Repasses | G22: Inter | H22: -1246 | I22: 0 | J22: 0 | K22: =IF(H22="","-",H22-I22+J22) -> -1246 | L22: =IF(K22="-","-",K22+L21) -> 
A23: 2022-01-06 | B23: Jose Américo Molina Rodrigues | C23: =IF(B23="","",IFERROR(VLOOKUP(B23,Informações!$F$7:$G$1048576,2,0),"Verificar Se Há Cadastro")) -> Verificar Se Há Cadastro | E23: Repasse de aluguel casa 10, Estrada da Lagoa, 1.041 | F23: Repasses | G23: Inter | H23: -1246 | I23: 0 | J23: 0 | K23: =IF(H23="","-",H23-I23+J23) -> -1246 | L23: =IF(K23="-","-",K23+L22) -> 
A24: 2022-01-06 | B24: Sandra | C24: =IF(B24="","",IFERROR(VLOOKUP(B24,Informações!$F$7:$G$1048576,2,0),"Verificar Se Há Cadastro")) -> Verificar Se Há Cadastro | E24: Pagamento comissão Sandra dez.2021 | F24: Serviços | G24: Inter | H24: -308 | I24: 0 | J24: 0 | K24: =IF(H24="","-",H24-I24+J24) -> -308 | L24: =IF(K24="-","-",K24+L23) -> 
A25: 2022-01-10 | B25: Solvção contabilidade | C25: =IF(B25="","",IFERROR(VLOOKUP(B25,Informações!$F$7:$G$1048576,2,0),"Verificar Se Há Cadastro")) -> Verificar Se Há Cadastro | E25: Honorários contabilidade | F25: Contabilidade | G25: Inter | H25: -1.99 | I25: 0 | J25: 0 | K25: =IF(H25="","-",H25-I25+J25) -> -1.99 | L25: =IF(K25="-","-",K25+L24) -> 
A26: 2022-01-10 | B26: Cartório | C26: =IF(B26="","",IFERROR(VLOOKUP(B26,Informações!$F$7:$G$1048576,2,0),"Verificar Se Há Cadastro")) -> Verificar Se Há Cadastro | E26: Certidões Sr. Claudio e Neusa ( Processo Cond. Sunset) | F26: Custo de serviços | G26: Inter | H26: 1.99 | I26: 0 | J26: 0 | K26: =IF(H26="","-",H26-I26+J26) -> 1.99 | L26: =IF(K26="-","-",K26+L25) -> 
A27: 2022-01-26 | B27: Hoga construções | C27: =IF(B27="","",IFERROR(VLOOKUP(B27,Informações!$F$7:$G$1048576,2,0),"Verificar Se Há Cadastro")) -> Verificar Se Há Cadastro | E27: Recebimento de comissão nota fiscal 002 | F27: Serviços | G27: Inter | H27: 9948.47 | I27: 0 | J27: 0 | K27: =IF(H27="","-",H27-I27+J27) -> 9948.47 | L27: =IF(K27="-","-",K27+L26) -> 
A28: 2022-02-03 | B28: Fernando Barrozo da S. Cardoso | C28: =IF(B28="","",IFERROR(VLOOKUP(B28,Informações!$F$7:$G$1048576,2,0),"Verificar Se Há Cadastro")) -> Verificar Se Há Cadastro | E28: Recebimento de aluguel casa 10 da Estrada da Lagoa, 1.041 | F28: Vendas | G28: Inter | H28: 9948.47 | I28: 0 | J28: 0 | K28: =IF(H28="","-",H28-I28+J28) -> 9948.47 | L28: =IF(K28="","-",C24+K28) -> 
A29: 2022-02-18 | B29: Receita Federal | C29: =IF(B29="","",IFERROR(VLOOKUP(B29,Informações!$F$7:$G$1048576,2,0),"Verificar Se Há Cadastro")) -> Verificar Se Há Cadastro | E29: Pagamento de guia de DCTF | G29: Bradesco | H29: -308 | I29: 0 | J29: 0 | K29: =IF(H29="","-",H29-I29+J29) -> -308 | L29: =IF(K29="-","-",K29+L28) -> 
A30: 2022-02-18 | C30: =IF(B30="","",IFERROR(VLOOKUP(B30,Informações!$F$7:$G$1048576,2,0),"Verificar Se Há Cadastro")) ->  | E30: Pagamento de DAS | F30: DAS | G30: bradesco | H30: -596.9 | I30: 0 | J30: 0 | K30: =IF(H30="","-",H30-I30+J30) -> -596.9 | L30: =IF(K30="-","-",K30+L29) -> 
A31: 2022-02-18 | B31: Gervasio B. de Queiroz Filho | C31: =IF(B31="","",IFERROR(VLOOKUP(B31,Informações!$F$7:$G$1048576,2,0),"Verificar Se Há Cadastro")) -> Verificar Se Há Cadastro | E31: Pagamento de pro labore Gervasio | F31: Pro-labore | G31: Bradesco | H31: -1246 | I31: 0 | J31: 0 | K31: =IF(H31="","-",H31-I31+J31) -> -1246 | L31: =IF(K31="-","-",K31+L30) -> 
A32: 2022-02-18 | B32: Tanos Luís M. Batelli | C32: =IF(B32="","",IFERROR(VLOOKUP(B32,Informações!$F$7:$G$1048576,2,0),"Verificar Se Há Cadastro")) -> Verificar Se Há Cadastro | E32: Pagamento de por labore Tanos | F32: Pro-labore | G32: bradesco | H32: -1246 | I32: 0 | J32: 0 | K32: =IF(H32="","-",H32-I32+J32) -> -1246 | L32: =IF(K32="-","-",K32+L31) -> 
A33: 2022-03-07 | B33: Tanos Luis Batelli Mugaiar | C33: =IF(B33="","",IFERROR(VLOOKUP(B33,Informações!$F$7:$G$1048576,2,0),"Verificar Se Há Cadastro")) -> Verificar Se Há Cadastro | E33: Pagamento de pro labore | F33: Pro-labore | G33: bradesco | H33: -1246 | I33: 0 | J33: 0 | K33: =IF(H33="","-",H33-I33+J33) -> -1246 | L33: =IF(K33="-","-",K33+L32) -> 
A34: 2022-03-07 | B34: Gervasio B. de Queiroz Filho | C34: =IF(B34="","",IFERROR(VLOOKUP(B34,Informações!$F$7:$G$1048576,2,0),"Verificar Se Há Cadastro")) -> Verificar Se Há Cadastro | E34: Pagamento de pro labore | F34: Pro-labore | G34: bradesco | H34: -9 | I34: 0 | J34: 0 | K34: =IF(H34="","-",H34-I34+J34) -> -9 | L34: =IF(K34="-","-",K34+L33) -> 
A35: 2022-03-09 | B35: Bradesco | C35: =IF(B35="","",IFERROR(VLOOKUP(B35,Informações!$F$7:$G$1048576,2,0),"Verificar Se Há Cadastro")) -> Verificar Se Há Cadastro | E35: Taxa de pix | F35: Despesas bancárias | G35: bradesco | H35: -9 | I35: 0 | J35: 0 | K35: =IF(H35="","-",H35-I35+J35) -> -9 | L35: =IF(K35="-","-",K35+L34) -> 
A36: 2022-03-09 | B36: Bradesco | C36: =IF(B36="","",IFERROR(VLOOKUP(B36,Informações!$F$7:$G$1048576,2,0),"Verificar Se Há Cadastro")) -> Verificar Se Há Cadastro | E36: Taxa de pix | F36: Despesas bancárias | G36: Bradesco | H36: -308 | I36: 0 | J36: 0 | K36: =IF(H36="","-",H36-I36+J36) -> -308 | L36: =IF(K36="-","-",K36+L35) -> 
A37: 2022-03-10 | B37: Receita Federal | C37: =IF(B37="","",IFERROR(VLOOKUP(B37,Informações!$F$7:$G$1048576,2,0),"Verificar Se Há Cadastro")) -> Verificar Se Há Cadastro | E37: Pagamento de DAS | F37: DAS | G37: bradesco | H37: -1246 | I37: 0 | J37: 0 | K37: =IF(H37="","-",H37-I37+J37) -> -1246 | L37: =IF(K37="-","-",K37+L36) -> 
A38: 2022-04-06 | B38: Gervasio B. de Queiroz Filho | C38: =IF(B38="","",IFERROR(VLOOKUP(B38,Informações!$F$7:$G$1048576,2,0),"Verificar Se Há Cadastro")) -> Verificar Se Há Cadastro | E38: Pagamento de Pro labore gervasio | F38: Pro-labore | G38: bradesco | H38: -1246 | I38: 0 | J38: 0 | K38: =IF(H38="","-",H38-I38+J38) -> -1246 | L38: =IF(K38="-","-",K38+L37) -> 
A39: 2022-04-06 | B39: Tanos Luis Batelli Mugaiar | C39: =IF(B39="","",IFERROR(VLOOKUP(B39,Informações!$F$7:$G$1048576,2,0),"Verificar Se Há Cadastro")) -> Verificar Se Há Cadastro | E39: Pagamento de Pro labore Tanos | F39: Pro-labore | G39: Bradesco | H39: -308 | I39: 0 | J39: 0 | K39: =IF(H39="","-",H39-I39+J39) -> -308 | L39: =IF(K39="-","-",K39+L38) -> 
A40: 2022-04-13 | B40: Receita Federal | C40: =IF(B40="","",IFERROR(VLOOKUP(B40,Informações!$F$7:$G$1048576,2,0),"Verificar Se Há Cadastro")) -> Verificar Se Há Cadastro | E40: Pagamento de DAS | F40: DAS | G40: bradesco | H40: -1.99 | I40: 0 | J40: 0 | K40: =IF(H40="","-",H40-I40+J40) -> -1.99 | L40: =IF(K40="-","-",K40+L39) -> 
A41: 2022-04-29 | B41: bradesco | C41: =IF(B41="","",IFERROR(VLOOKUP(B41,Informações!$F$7:$G$1048576,2,0),"Verificar Se Há Cadastro")) -> Verificar Se Há Cadastro | E41: Tarifa de emissão de boleto | F41: Despesas bancárias | G41: bradesco | H41: 1.99 | I41: 0 | J41: 0 | K41: =IF(H41="","-",H41-I41+J41) -> 1.99 | L41: =IF(K41="-","-",K41+L40) -> 
C42: =IF(B42="","",IFERROR(VLOOKUP(B42,Informações!$F$7:$G$1048576,2,0),"Verificar Se Há Cadastro")) ->  | K42: =IF(H42="","-",H42-I42+J42) -> - | L42: =IF(K42="-","-",K42+L41) -> -
C43: =IF(B43="","",IFERROR(VLOOKUP(B43,Informações!$F$7:$G$1048576,2,0),"Verificar Se Há Cadastro")) ->  | K43: =IF(H43="","-",H43-I43+J43) -> - | L43: =IF(K43="-","-",K43+L42) -> -
C44: =IF(B44="","",IFERROR(VLOOKUP(B44,Informações!$F$7:$G$1048576,2,0),"Verificar Se Há Cadastro")) ->  | K44: =IF(H44="","-",H44-I44+J44) -> - | L44: =IF(K44="-","-",K44+L43) -> -

Sheet Calc
H1: =SUM(H2:H59) -> 3114.73 | R1: =COUNTA(P:P) -> 5 | AB1: Lista categoria | AC1: Todos
B2: Inter | D2: =COUNTA(B:B) -> 37 | G2: Inter | H2: =IFERROR(VLOOKUP(G2,Informações!$C$7:$D$20,2,FALSE()),0) -> 1000 | I2: =COUNTA(G:G) -> 3 | O2: =O1+1 -> 1 | P2: Total | Q2: 1 | R2: =SUM(R3:R30) -> 5314.73 | AB2: Todos
B3: Inter | G3: Caixinha | H3: =IFERROR(VLOOKUP(G3,Informações!$C$7:$D$20,2,FALSE()),0) -> 1114.73 | O3: =O2+1 -> 2 | P3: Caixinha | Q3: =VLOOKUP(Q2,O2:P25,2,FALSE) -> Total | R3: =IFERROR(VLOOKUP(P3,Informações!$C$7:$D$20,2,FALSE),0) -> 1114.73 | AB3: Contabilidade
B4: Inter | G4: Bradesco | H4: =IFERROR(VLOOKUP(G4,Informações!$C$7:$D$20,2,FALSE()),0) -> 1000 | O4: 3 | P4: Inter | R4: =IFERROR(VLOOKUP(P4,Informações!$C$7:$D$20,2,FALSE),0) -> 1000 | AB4: Custo de serviços
B5: Inter | O5: 4 | P5: Bradesco | R5: =IFERROR(VLOOKUP(P5,Informações!$C$7:$D$20,2,FALSE),0) -> 1000 | AB5: DAS
B6: Inter | O6: 5 | P6: Itau | R6: =IFERROR(VLOOKUP(P6,Informações!$C$7:$D$20,2,FALSE),0) -> 2200 | AB6: Despesas bancárias
B7: Inter | R7: =IFERROR(VLOOKUP(P7,Informações!$C$7:$D$20,2,FALSE),0) -> 0 | AB7: Locação
B8: Inter | R8: =IFERROR(VLOOKUP(P8,Informações!$C$7:$D$20,2,FALSE),0) -> 0 | AB8: Marketing e publicidade
B9: Inter | R9: =IFERROR(VLOOKUP(P9,Informações!$C$7:$D$20,2,FALSE),0) -> 0 | AB9: Premiação e gratificações
B10: Inter | R10: =IFERROR(VLOOKUP(P10,Informações!$C$7:$D$20,2,FALSE),0) -> 0 | AB10: Prestação de Serviço
B11: Inter | R11: =IFERROR(VLOOKUP(P11,Informações!$C$7:$D$20,2,FALSE),0) -> 0 | AB11: Pro-labore
B12: Inter | R12: =IFERROR(VLOOKUP(P12,Informações!$C$7:$D$20,2,FALSE),0) -> 0 | AB12: Repasses
B13: Inter | R13: =IFERROR(VLOOKUP(P13,Informações!$C$7:$D$20,2,FALSE),0) -> 0 | AB13: Serviços
B14: Inter | R14: =IFERROR(VLOOKUP(P14,Informações!$C$7:$D$20,2,FALSE),0) -> 0 | AB14: Telefone
B15: Inter | R15: =IFERROR(VLOOKUP(P15,Informações!$C$7:$D$20,2,FALSE),0) -> 0 | AB15: Todos
B16: Caixinha | R16: =IFERROR(VLOOKUP(P16,Informações!$C$7:$D$20,2,FALSE),0) -> 0 | AB16: Vendas
B17: Caixinha | R17: =IFERROR(VLOOKUP(P17,Informações!$C$7:$D$20,2,FALSE),0) -> 0
B18: Caixinha | R18: =IFERROR(VLOOKUP(P18,Informações!$C$7:$D$20,2,FALSE),0) -> 0
B19: Caixinha
B20: Caixinha
B21: Caixinha
B22: Caixinha
B23: Caixinha
B24: Caixinha
B25: Inter
B26: Bradesco
B27: bradesco
B28: Bradesco
B29: bradesco
B30: bradesco
B31: bradesco
B32: bradesco
B33: Bradesco
B34: bradesco
B35: bradesco
B36: Bradesco
B37: bradesco
B38: bradesco

Sheet DRE Sintetico
A2: =Informações!C2 -> CMTO Clinica
E3: Resumo do ano | H3: 2022
B4: 1 | C4: 2 | D4: 3 | E4: 4 | F4: 5 | G4: 6 | H4: 7 | I4: 8 | J4: 9 | K4: 10 | L4: 11 | M4: 12
B5: =DATE($H$3,B4,1) -> 2022-01-01 | C5: =DATE($H$3,C4,1) -> 2022-02-01 | D5: 2022-03-01 | E5: 2022-04-01 | F5: 2022-05-01 | G5: 2022-06-01 | H5: 2022-07-01 | I5: 2022-08-01 | J5: 2022-09-01 | K5: 2022-10-01 | L5: 2022-11-01 | M5: 2022-12-01
A7: RESUMO
A8: Receitas | B8: =SUMIFS(Tabela2[Valor Original],Tabela2[Data Pgto Recbto],">="&'DRE Sintetico'!B5,Tabela2[Data Pgto Recbto],"<="&EOMONTH('DRE Sintetico'!B5,0),Tabela2[Valor Original],">=0") -> 9950.46 | C8: =SUMIFS(Tabela2[Valor Original],Tabela2[Data Pgto Recbto],">="&'DRE Sintetico'!C5,Tabela2[Data Pgto Recbto],"<="&EOMONTH('DRE Sintetico'!C5,0),Tabela2[Valor Original],">=0") -> 9948.47 | D8: =SUMIFS(Tabela2[Valor Original],Tabela2[Data Pgto Recbto],">="&'DRE Sintetico'!D5,Tabela2[Data Pgto Recbto],"<="&EOMONTH('DRE Sintetico'!D5,0),Tabela2[Valor Original],">=0") -> 0 | E8: =SUMIFS(Tabela2[Valor Original],Tabela2[Data Pgto Recbto],">="&'DRE Sintetico'!E5,Tabela2[Data Pgto Recbto],"<="&EOMONTH('DRE Sintetico'!E5,0),Tabela2[Valor Original],">=0") -> 1.99 | F8: =SUMIFS(Tabela2[Valor Original],Tabela2[Data Pgto Recbto],">="&'DRE Sintetico'!F5,Tabela2[Data Pgto Recbto],"<="&EOMONTH('DRE Sintetico'!F5,0),Tabela2[Valor Original],">=0") -> 0 | G8: =SUMIFS(Tabela2[Valor Original],Tabela2[Data Pgto Recbto],">="&'DRE Sintetico'!G5,Tabela2[Data Pgto Recbto],"<="&EOMONTH('DRE Sintetico'!G5,0),Tabela2[Valor Original],">=0") -> 0 | H8: =SUMIFS(Tabela2[Valor Original],Tabela2[Data Pgto Recbto],">="&'DRE Sintetico'!H5,Tabela2[Data Pgto Recbto],"<="&EOMONTH('DRE Sintetico'!H5,0),Tabela2[Valor Original],">=0") -> 0 | I8: =SUMIFS(Tabela2[Valor Original],Tabela2[Data Pgto Recbto],">="&'DRE Sintetico'!I5,Tabela2[Data Pgto Recbto],"<="&EOMONTH('DRE Sintetico'!I5,0),Tabela2[Valor Original],">=0") -> 0 | J8: =SUMIFS(Tabela2[Valor Original],Tabela2[Data Pgto Recbto],">="&'DRE Sintetico'!J5,Tabela2[Data Pgto Recbto],"<="&EOMONTH('DRE Sintetico'!J5,0),Tabela2[Valor Original],">=0") -> 0 | K8: =SUMIFS(Tabela2[Valor Original],Tabela2[Data Pgto Recbto],">="&'DRE Sintetico'!K5,Tabela2[Data Pgto Recbto],"<="&EOMONTH('DRE Sintetico'!K5,0),Tabela2[Valor Original],">=0") -> 0 | L8: =SUMIFS(Tabela2[Valor Original],Tabela2[Data Pgto Recbto],">="&'DRE Sintetico'!L5,Tabela2[Data Pgto Recbto],"<="&EOMONTH('DRE Sintetico'!L5,0),Tabela2[Valor Original],">=0") -> 0 | M8: =SUMIFS(Tabela2[Valor Original],Tabela2[Data Pgto Recbto],">="&'DRE Sintetico'!M5,Tabela2[Data Pgto Recbto],"<="&EOMONTH('DRE Sintetico'!M5,0),Tabela2[Valor Original],">=0") -> 0
A9: Despesas | B9: =SUMIFS(Tabela2[Valor Original],Tabela2[Data Pgto Recbto],">="&'DRE Sintetico'!B5,Tabela2[Data Pgto Recbto],"<="&EOMONTH('DRE Sintetico'!B5,0),Tabela2[Valor Original],"<=0") -> -7770.89 | C9: =SUMIFS(Tabela2[Valor Original],Tabela2[Data Pgto Recbto],">="&'DRE Sintetico'!C5,Tabela2[Data Pgto Recbto],"<="&EOMONTH('DRE Sintetico'!C5,0),Tabela2[Valor Original],"<=0") -> -3396.9 | D9: =SUMIFS(Tabela2[Valor Original],Tabela2[Data Pgto Recbto],">="&'DRE Sintetico'!D5,Tabela2[Data Pgto Recbto],"<="&EOMONTH('DRE Sintetico'!D5,0),Tabela2[Valor Original],"<=0") -> -2818 | E9: =SUMIFS(Tabela2[Valor Original],Tabela2[Data Pgto Recbto],">="&'DRE Sintetico'!E5,Tabela2[Data Pgto Recbto],"<="&EOMONTH('DRE Sintetico'!E5,0),Tabela2[Valor Original],"<=0") -> -1555.99 | F9: =SUMIFS(Tabela2[Valor Original],Tabela2[Data Pgto Recbto],">="&'DRE Sintetico'!F5,Tabela2[Data Pgto Recbto],"<="&EOMONTH('DRE Sintetico'!F5,0),Tabela2[Valor Original],"<=0") -> 0 | G9: =SUMIFS(Tabela2[Valor Original],Tabela2[Data Pgto Recbto],">="&'DRE Sintetico'!G5,Tabela2[Data Pgto Recbto],"<="&EOMONTH('DRE Sintetico'!G5,0),Tabela2[Valor Original],"<=0") -> 0 | H9: =SUMIFS(Tabela2[Valor Original],Tabela2[Data Pgto Recbto],">="&'DRE Sintetico'!H5,Tabela2[Data Pgto Recbto],"<="&EOMONTH('DRE Sintetico'!H5,0),Tabela2[Valor Original],"<=0") -> 0 | I9: =SUMIFS(Tabela2[Valor Original],Tabela2[Data Pgto Recbto],">="&'DRE Sintetico'!I5,Tabela2[Data Pgto Recbto],"<="&EOMONTH('DRE Sintetico'!I5,0),Tabela2[Valor Original],"<=0") -> 0 | J9: =SUMIFS(Tabela2[Valor Original],Tabela2[Data Pgto Recbto],">="&'DRE Sintetico'!J5,Tabela2[Data Pgto Recbto],"<="&EOMONTH('DRE Sintetico'!J5,0),Tabela2[Valor Original],"<=0") -> 0 | K9: =SUMIFS(Tabela2[Valor Original],Tabela2[Data Pgto Recbto],">="&'DRE Sintetico'!K5,Tabela2[Data Pgto Recbto],"<="&EOMONTH('DRE Sintetico'!K5,0),Tabela2[Valor Original],"<=0") -> 0 | L9: =SUMIFS(Tabela2[Valor Original],Tabela2[Data Pgto Recbto],">="&'DRE Sintetico'!L5,Tabela2[Data Pgto Recbto],"<="&EOMONTH('DRE Sintetico'!L5,0),Tabela2[Valor Original],"<=0") -> 0 | M9: =SUMIFS(Tabela2[Valor Original],Tabela2[Data Pgto Recbto],">="&'DRE Sintetico'!M5,Tabela2[Data Pgto Recbto],"<="&EOMONTH('DRE Sintetico'!M5,0),Tabela2[Valor Original],"<=0") -> 0
A10: Rendimentos | B10: =SUM(B8:B9) -> 2179.57 | C10: =SUM(C8:C9) -> 6551.57 | D10: -2818 | E10: -1554 | F10: 0 | G10: 0 | H10: 0 | I10: 0 | J10: 0 | K10: 0 | L10: =SUM(L8:L9) -> 0 | M10: =SUM(M8:M9) -> 0
A12: Total geral | B12: =SUM(B10:M10) -> 4359.14
A14: Resultado Acum.
A16: =COUNTA(Informações!C7:C20) -> 4
A17: Saldo de Banco
A18: =OFFSET(Informações!C7,0,0,'DRE Sintetico'!A16,1) -> Caixinha | B18: =SUMIFS(Tabela2[Valor Original],Tabela2[Data Pgto Recbto],">="&'DRE Sintetico'!B5,Tabela2[Data Pgto Recbto],"<="&EOMONTH('DRE Sintetico'!B5,0),Tabela2[Banco],"="&'DRE Sintetico'!A18) -> 0 | C18: =SUMIFS(Tabela2[Valor Original],Tabela2[Data Pgto Recbto],">="&'DRE Sintetico'!$C$5,Tabela2[Data Pgto Recbto],"<="&EOMONTH('DRE Sintetico'!$C$5,0),Tabela2[Banco],"="&'DRE Sintetico'!A18) -> 0 | D18: =SUMIFS(Tabela2[Valor Original],Tabela2[Data Pgto Recbto],">="&'DRE Sintetico'!$D$5,Tabela2[Data Pgto Recbto],"<="&EOMONTH('DRE Sintetico'!$D$5,0),Tabela2[Banco],"="&'DRE Sintetico'!A18) -> 0 | E18: =SUMIFS(Tabela2[Valor Original],Tabela2[Data Pgto Recbto],">="&'DRE Sintetico'!$E$5,Tabela2[Data Pgto Recbto],"<="&EOMONTH('DRE Sintetico'!$E$5,0),Tabela2[Banco],"="&'DRE Sintetico'!A18) -> 0 | F18: =SUMIFS(Tabela2[Valor Original],Tabela2[Data Pgto Recbto],">="&'DRE Sintetico'!$F$5,Tabela2[Data Pgto Recbto],"<="&EOMONTH('DRE Sintetico'!$F$5,0),Tabela2[Banco],"="&'DRE Sintetico'!A18) -> 0 | G18: =SUMIFS(Tabela2[Valor Original],Tabela2[Data Pgto Recbto],">="&'DRE Sintetico'!$G$5,Tabela2[Data Pgto Recbto],"<="&EOMONTH('DRE Sintetico'!$G$5,0),Tabela2[Banco],"="&'DRE Sintetico'!A18) -> 0 | H18: =SUMIFS(Tabela2[Valor Original],Tabela2[Data Pgto Recbto],">="&'DRE Sintetico'!$H$5,Tabela2[Data Pgto Recbto],"<="&EOMONTH('DRE Sintetico'!$H$5,0),Tabela2[Banco],"="&'DRE Sintetico'!A18) -> 0 | I18: =SUMIFS(Tabela2[Valor Original],Tabela2[Data Pgto Recbto],">="&'DRE Sintetico'!$I$5,Tabela2[Data Pgto Recbto],"<="&EOMONTH('DRE Sintetico'!$I$5,0),Tabela2[Banco],"="&'DRE Sintetico'!A18) -> 0 | J18: =SUMIFS(Tabela2[Valor Original],Tabela2[Data Pgto Recbto],">="&'DRE Sintetico'!$J$5,Tabela2[Data Pgto Recbto],"<="&EOMONTH('DRE Sintetico'!$J$5,0),Tabela2[Banco],"="&'DRE Sintetico'!A18) -> 0 | K18: =SUMIFS(Tabela2[Valor Original],Tabela2[Data Pgto Recbto],">="&'DRE Sintetico'!$K$5,Tabela2[Data Pgto Recbto],"<="&EOMONTH('DRE Sintetico'!$K$5,0),Tabela2[Banco],"="&'DRE Sintetico'!A18) -> 0 | L18: =SUMIFS(Tabela2[Valor Original],Tabela2[Data Pgto Recbto],">="&'DRE Sintetico'!$L$5,Tabela2[Data Pgto Recbto],"<="&EOMONTH('DRE Sintetico'!$L$5,0),Tabela2[Banco],"="&'DRE Sintetico'!A18) -> 0 | M18: =SUMIFS(Tabela2[Valor Original],Tabela2[Data Pgto Recbto],">="&'DRE Sintetico'!$M$5,Tabela2[Data Pgto Recbto],"<="&EOMONTH('DRE Sintetico'!$M$5,0),Tabela2[Banco],"="&'DRE Sintetico'!A18) -> 0
A19: Inter | B19: =SUMIFS(Tabela2[Valor Original],Tabela2[Data Pgto Recbto],">="&'DRE Sintetico'!B5,Tabela2[Data Pgto Recbto],"<="&EOMONTH('DRE Sintetico'!B5,0),Tabela2[Banco],"="&'DRE Sintetico'!A19) -> 2179.57 | C19: =SUMIFS(Tabela2[Valor Original],Tabela2[Data Pgto Recbto],">="&'DRE Sintetico'!$C$5,Tabela2[Data Pgto Recbto],"<="&EOMONTH('DRE Sintetico'!$C$5,0),Tabela2[Banco],"="&'DRE Sintetico'!A19) -> 9948.47 | D19: =SUMIFS(Tabela2[Valor Original],Tabela2[Data Pgto Recbto],">="&'DRE Sintetico'!$D$5,Tabela2[Data Pgto Recbto],"<="&EOMONTH('DRE Sintetico'!$D$5,0),Tabela2[Banco],"="&'DRE Sintetico'!A19) -> 0 | E19: =SUMIFS(Tabela2[Valor Original],Tabela2[Data Pgto Recbto],">="&'DRE Sintetico'!$E$5,Tabela2[Data Pgto Recbto],"<="&EOMONTH('DRE Sintetico'!$E$5,0),Tabela2[Banco],"="&'DRE Sintetico'!A19) -> 0 | F19: =SUMIFS(Tabela2[Valor Original],Tabela2[Data Pgto Recbto],">="&'DRE Sintetico'!$F$5,Tabela2[Data Pgto Recbto],"<="&EOMONTH('DRE Sintetico'!$F$5,0),Tabela2[Banco],"="&'DRE Sintetico'!A19) -> 0 | G19: =SUMIFS(Tabela2[Valor Original],Tabela2[Data Pgto Recbto],">="&'DRE Sintetico'!$G$5,Tabela2[Data Pgto Recbto],"<="&EOMONTH('DRE Sintetico'!$G$5,0),Tabela2[Banco],"="&'DRE Sintetico'!A19) -> 0 | H19: =SUMIFS(Tabela2[Valor Original],Tabela2[Data Pgto Recbto],">="&'DRE Sintetico'!$H$5,Tabela2[Data Pgto Recbto],"<="&EOMONTH('DRE Sintetico'!$H$5,0),Tabela2[Banco],"="&'DRE Sintetico'!A19) -> 0 | I19: =SUMIFS(Tabela2[Valor Original],Tabela2[Data Pgto Recbto],">="&'DRE Sintetico'!$I$5,Tabela2[Data Pgto Recbto],"<="&EOMONTH('DRE Sintetico'!$I$5,0),Tabela2[Banco],"="&'DRE Sintetico'!A19) -> 0 | J19: =SUMIFS(Tabela2[Valor Original],Tabela2[Data Pgto Recbto],">="&'DRE Sintetico'!$J$5,Tabela2[Data Pgto Recbto],"<="&EOMONTH('DRE Sintetico'!$J$5,0),Tabela2[Banco],"="&'DRE Sintetico'!A19) -> 0 | K19: =SUMIFS(Tabela2[Valor Original],Tabela2[Data Pgto Recbto],">="&'DRE Sintetico'!$K$5,Tabela2[Data Pgto Recbto],"<="&EOMONTH('DRE Sintetico'!$K$5,0),Tabela2[Banco],"="&'DRE Sintetico'!A19) -> 0 | L19: =SUMIFS(Tabela2[Valor Original],Tabela2[Data Pgto Recbto],">="&'DRE Sintetico'!$L$5,Tabela2[Data Pgto Recbto],"<="&EOMONTH('DRE Sintetico'!$L$5,0),Tabela2[Banco],"="&'DRE Sintetico'!A19) -> 0 | M19: =SUMIFS(Tabela2[Valor Original],Tabela2[Data Pgto Recbto],">="&'DRE Sintetico'!$M$5,Tabela2[Data Pgto Recbto],"<="&EOMONTH('DRE Sintetico'!$M$5,0),Tabela2[Banco],"="&'DRE Sintetico'!A19) -> 0
A20: Bradesco | B20: =SUMIFS(Tabela2[Valor Original],Tabela2[Data Pgto Recbto],">="&'DRE Sintetico'!B5,Tabela2[Data Pgto Recbto],"<="&EOMONTH('DRE Sintetico'!B5,0),Tabela2[Banco],"="&'DRE Sintetico'!A20) -> 0 | C20: =SUMIFS(Tabela2[Valor Original],Tabela2[Data Pgto Recbto],">="&'DRE Sintetico'!$C$5,Tabela2[Data Pgto Recbto],"<="&EOMONTH('DRE Sintetico'!$C$5,0),Tabela2[Banco],"="&'DRE Sintetico'!A20) -> -3396.9 | D20: =SUMIFS(Tabela2[Valor Original],Tabela2[Data Pgto Recbto],">="&'DRE Sintetico'!$D$5,Tabela2[Data Pgto Recbto],"<="&EOMONTH('DRE Sintetico'!$D$5,0),Tabela2[Banco],"="&'DRE Sintetico'!A20) -> -2818 | E20: =SUMIFS(Tabela2[Valor Original],Tabela2[Data Pgto Recbto],">="&'DRE Sintetico'!$E$5,Tabela2[Data Pgto Recbto],"<="&EOMONTH('DRE Sintetico'!$E$5,0),Tabela2[Banco],"="&'DRE Sintetico'!A20) -> -1554 | F20: =SUMIFS(Tabela2[Valor Original],Tabela2[Data Pgto Recbto],">="&'DRE Sintetico'!$F$5,Tabela2[Data Pgto Recbto],"<="&EOMONTH('DRE Sintetico'!$F$5,0),Tabela2[Banco],"="&'DRE Sintetico'!A20) -> 0 | G20: =SUMIFS(Tabela2[Valor Original],Tabela2[Data Pgto Recbto],">="&'DRE Sintetico'!$G$5,Tabela2[Data Pgto Recbto],"<="&EOMONTH('DRE Sintetico'!$G$5,0),Tabela2[Banco],"="&'DRE Sintetico'!A20) -> 0 | H20: =SUMIFS(Tabela2[Valor Original],Tabela2[Data Pgto Recbto],">="&'DRE Sintetico'!$H$5,Tabela2[Data Pgto Recbto],"<="&EOMONTH('DRE Sintetico'!$H$5,0),Tabela2[Banco],"="&'DRE Sintetico'!A20) -> 0 | I20: =SUMIFS(Tabela2[Valor Original],Tabela2[Data Pgto Recbto],">="&'DRE Sintetico'!$I$5,Tabela2[Data Pgto Recbto],"<="&EOMONTH('DRE Sintetico'!$I$5,0),Tabela2[Banco],"="&'DRE Sintetico'!A20) -> 0 | J20: =SUMIFS(Tabela2[Valor Original],Tabela2[Data Pgto Recbto],">="&'DRE Sintetico'!$J$5,Tabela2[Data Pgto Recbto],"<="&EOMONTH('DRE Sintetico'!$J$5,0),Tabela2[Banco],"="&'DRE Sintetico'!A20) -> 0 | K20: =SUMIFS(Tabela2[Valor Original],Tabela2[Data Pgto Recbto],">="&'DRE Sintetico'!$K$5,Tabela2[Data Pgto Recbto],"<="&EOMONTH('DRE Sintetico'!$K$5,0),Tabela2[Banco],"="&'DRE Sintetico'!A20) -> 0 | L20: =SUMIFS(Tabela2[Valor Original],Tabela2[Data Pgto Recbto],">="&'DRE Sintetico'!$L$5,Tabela2[Data Pgto Recbto],"<="&EOMONTH('DRE Sintetico'!$L$5,0),Tabela2[Banco],"="&'DRE Sintetico'!A20) -> 0 | M20: =SUMIFS(Tabela2[Valor Original],Tabela2[Data Pgto Recbto],">="&'DRE Sintetico'!$M$5,Tabela2[Data Pgto Recbto],"<="&EOMONTH('DRE Sintetico'!$M$5,0),Tabela2[Banco],"="&'DRE Sintetico'!A20) -> 0
A21: Itau | B21: =SUMIFS(Tabela2[Valor Original],Tabela2[Data Pgto Recbto],">="&'DRE Sintetico'!B6,Tabela2[Data Pgto Recbto],"<="&EOMONTH('DRE Sintetico'!B6,0),Tabela2[Banco],"="&'DRE Sintetico'!A21) -> 0 | C21: =SUMIFS(Tabela2[Valor Original],Tabela2[Data Pgto Recbto],">="&'DRE Sintetico'!$C$5,Tabela2[Data Pgto Recbto],"<="&EOMONTH('DRE Sintetico'!$C$5,0),Tabela2[Banco],"="&'DRE Sintetico'!A21) -> 0 | D21: =SUMIFS(Tabela2[Valor Original],Tabela2[Data Pgto Recbto],">="&'DRE Sintetico'!$D$5,Tabela2[Data Pgto Recbto],"<="&EOMONTH('DRE Sintetico'!$D$5,0),Tabela2[Banco],"="&'DRE Sintetico'!A21) -> 0 | E21: =SUMIFS(Tabela2[Valor Original],Tabela2[Data Pgto Recbto],">="&'DRE Sintetico'!$E$5,Tabela2[Data Pgto Recbto],"<="&EOMONTH('DRE Sintetico'!$E$5,0),Tabela2[Banco],"="&'DRE Sintetico'!A21) -> 0 | F21: =SUMIFS(Tabela2[Valor Original],Tabela2[Data Pgto Recbto],">="&'DRE Sintetico'!$F$5,Tabela2[Data Pgto Recbto],"<="&EOMONTH('DRE Sintetico'!$F$5,0),Tabela2[Banco],"="&'DRE Sintetico'!A21) -> 0 | G21: =SUMIFS(Tabela2[Valor Original],Tabela2[Data Pgto Recbto],">="&'DRE Sintetico'!$G$5,Tabela2[Data Pgto Recbto],"<="&EOMONTH('DRE Sintetico'!$G$5,0),Tabela2[Banco],"="&'DRE Sintetico'!A21) -> 0 | H21: =SUMIFS(Tabela2[Valor Original],Tabela2[Data Pgto Recbto],">="&'DRE Sintetico'!$H$5,Tabela2[Data Pgto Recbto],"<="&EOMONTH('DRE Sintetico'!$H$5,0),Tabela2[Banco],"="&'DRE Sintetico'!A21) -> 0 | I21: =SUMIFS(Tabela2[Valor Original],Tabela2[Data Pgto Recbto],">="&'DRE Sintetico'!$I$5,Tabela2[Data Pgto Recbto],"<="&EOMONTH('DRE Sintetico'!$I$5,0),Tabela2[Banco],"="&'DRE Sintetico'!A21) -> 0 | J21: =SUMIFS(Tabela2[Valor Original],Tabela2[Data Pgto Recbto],">="&'DRE Sintetico'!$J$5,Tabela2[Data Pgto Recbto],"<="&EOMONTH('DRE Sintetico'!$J$5,0),Tabela2[Banco],"="&'DRE Sintetico'!A21) -> 0 | K21: =SUMIFS(Tabela2[Valor Original],Tabela2[Data Pgto Recbto],">="&'DRE Sintetico'!$K$5,Tabela2[Data Pgto Recbto],"<="&EOMONTH('DRE Sintetico'!$K$5,0),Tabela2[Banco],"="&'DRE Sintetico'!A21) -> 0 | L21: =SUMIFS(Tabela2[Valor Original],Tabela2[Data Pgto Recbto],">="&'DRE Sintetico'!$L$5,Tabela2[Data Pgto Recbto],"<="&EOMONTH('DRE Sintetico'!$L$5,0),Tabela2[Banco],"="&'DRE Sintetico'!A21) -> 0 | M21: =SUMIFS(Tabela2[Valor Original],Tabela2[Data Pgto Recbto],">="&'DRE Sintetico'!$M$5,Tabela2[Data Pgto Recbto],"<="&EOMONTH('DRE Sintetico'!$M$5,0),Tabela2[Banco],"="&'DRE Sintetico'!A21) -> 0
B22: =SUMIFS(Tabela2[Valor Original],Tabela2[Data Pgto Recbto],">="&'DRE Sintetico'!B7,Tabela2[Data Pgto Recbto],"<="&EOMONTH('DRE Sintetico'!B7,0),Tabela2[Banco],"="&'DRE Sintetico'!A22) -> 0 | C22: =SUMIFS(Tabela2[Valor Original],Tabela2[Data Pgto Recbto],">="&'DRE Sintetico'!$C$5,Tabela2[Data Pgto Recbto],"<="&EOMONTH('DRE Sintetico'!$C$5,0),Tabela2[Banco],"="&'DRE Sintetico'!A22) -> 0 | D22: =SUMIFS(Tabela2[Valor Original],Tabela2[Data Pgto Recbto],">="&'DRE Sintetico'!$D$5,Tabela2[Data Pgto Recbto],"<="&EOMONTH('DRE Sintetico'!$D$5,0),Tabela2[Banco],"="&'DRE Sintetico'!A22) -> 0 | E22: =SUMIFS(Tabela2[Valor Original],Tabela2[Data Pgto Recbto],">="&'DRE Sintetico'!$E$5,Tabela2[Data Pgto Recbto],"<="&EOMONTH('DRE Sintetico'!$E$5,0),Tabela2[Banco],"="&'DRE Sintetico'!A22) -> 0 | F22: =SUMIFS(Tabela2[Valor Original],Tabela2[Data Pgto Recbto],">="&'DRE Sintetico'!$F$5,Tabela2[Data Pgto Recbto],"<="&EOMONTH('DRE Sintetico'!$F$5,0),Tabela2[Banco],"="&'DRE Sintetico'!A22) -> 0 | G22: =SUMIFS(Tabela2[Valor Original],Tabela2[Data Pgto Recbto],">="&'DRE Sintetico'!$G$5,Tabela2[Data Pgto Recbto],"<="&EOMONTH('DRE Sintetico'!$G$5,0),Tabela2[Banco],"="&'DRE Sintetico'!A22) -> 0 | H22: =SUMIFS(Tabela2[Valor Original],Tabela2[Data Pgto Recbto],">="&'DRE Sintetico'!$H$5,Tabela2[Data Pgto Recbto],"<="&EOMONTH('DRE Sintetico'!$H$5,0),Tabela2[Banco],"="&'DRE Sintetico'!A22) -> 0 | I22: =SUMIFS(Tabela2[Valor Original],Tabela2[Data Pgto Recbto],">="&'DRE Sintetico'!$I$5,Tabela2[Data Pgto Recbto],"<="&EOMONTH('DRE Sintetico'!$I$5,0),Tabela2[Banco],"="&'DRE Sintetico'!A22) -> 0 | J22: =SUMIFS(Tabela2[Valor Original],Tabela2[Data Pgto Recbto],">="&'DRE Sintetico'!$J$5,Tabela2[Data Pgto Recbto],"<="&EOMONTH('DRE Sintetico'!$J$5,0),Tabela2[Banco],"="&'DRE Sintetico'!A22) -> 0 | K22: =SUMIFS(Tabela2[Valor Original],Tabela2[Data Pgto Recbto],">="&'DRE Sintetico'!$K$5,Tabela2[Data Pgto Recbto],"<="&EOMONTH('DRE Sintetico'!$K$5,0),Tabela2[Banco],"="&'DRE Sintetico'!A22) -> 0 | L22: =SUMIFS(Tabela2[Valor Original],Tabela2[Data Pgto Recbto],">="&'DRE Sintetico'!$L$5,Tabela2[Data Pgto Recbto],"<="&EOMONTH('DRE Sintetico'!$L$5,0),Tabela2[Banco],"="&'DRE Sintetico'!A22) -> 0 | M22: =SUMIFS(Tabela2[Valor Original],Tabela2[Data Pgto Recbto],">="&'DRE Sintetico'!$M$5,Tabela2[Data Pgto Recbto],"<="&EOMONTH('DRE Sintetico'!$M$5,0),Tabela2[Banco],"="&'DRE Sintetico'!A22) -> 0
B23: =SUMIFS(Tabela2[Valor Original],Tabela2[Data Pgto Recbto],">="&'DRE Sintetico'!B8,Tabela2[Data Pgto Recbto],"<="&EOMONTH('DRE Sintetico'!B8,0),Tabela2[Banco],"="&'DRE Sintetico'!A23) -> 0 | C23: =SUMIFS(Tabela2[Valor Original],Tabela2[Data Pgto Recbto],">="&'DRE Sintetico'!$C$5,Tabela2[Data Pgto Recbto],"<="&EOMONTH('DRE Sintetico'!$C$5,0),Tabela2[Banco],"="&'DRE Sintetico'!A23) -> 0 | D23: =SUMIFS(Tabela2[Valor Original],Tabela2[Data Pgto Recbto],">="&'DRE Sintetico'!$D$5,Tabela2[Data Pgto Recbto],"<="&EOMONTH('DRE Sintetico'!$D$5,0),Tabela2[Banco],"="&'DRE Sintetico'!A23) -> 0 | E23: =SUMIFS(Tabela2[Valor Original],Tabela2[Data Pgto Recbto],">="&'DRE Sintetico'!$E$5,Tabela2[Data Pgto Recbto],"<="&EOMONTH('DRE Sintetico'!$E$5,0),Tabela2[Banco],"="&'DRE Sintetico'!A23) -> 0 | F23: =SUMIFS(Tabela2[Valor Original],Tabela2[Data Pgto Recbto],">="&'DRE Sintetico'!$F$5,Tabela2[Data Pgto Recbto],"<="&EOMONTH('DRE Sintetico'!$F$5,0),Tabela2[Banco],"="&'DRE Sintetico'!A23) -> 0 | G23: =SUMIFS(Tabela2[Valor Original],Tabela2[Data Pgto Recbto],">="&'DRE Sintetico'!$G$5,Tabela2[Data Pgto Recbto],"<="&EOMONTH('DRE Sintetico'!$G$5,0),Tabela2[Banco],"="&'DRE Sintetico'!A23) -> 0 | H23: =SUMIFS(Tabela2[Valor Original],Tabela2[Data Pgto Recbto],">="&'DRE Sintetico'!$H$5,Tabela2[Data Pgto Recbto],"<="&EOMONTH('DRE Sintetico'!$H$5,0),Tabela2[Banco],"="&'DRE Sintetico'!A23) -> 0 | I23: =SUMIFS(Tabela2[Valor Original],Tabela2[Data Pgto Recbto],">="&'DRE Sintetico'!$I$5,Tabela2[Data Pgto Recbto],"<="&EOMONTH('DRE Sintetico'!$I$5,0),Tabela2[Banco],"="&'DRE Sintetico'!A23) -> 0 | J23: =SUMIFS(Tabela2[Valor Original],Tabela2[Data Pgto Recbto],">="&'DRE Sintetico'!$J$5,Tabela2[Data Pgto Recbto],"<="&EOMONTH('DRE Sintetico'!$J$5,0),Tabela2[Banco],"="&'DRE Sintetico'!A23) -> 0 | K23: =SUMIFS(Tabela2[Valor Original],Tabela2[Data Pgto Recbto],">="&'DRE Sintetico'!$K$5,Tabela2[Data Pgto Recbto],"<="&EOMONTH('DRE Sintetico'!$K$5,0),Tabela2[Banco],"="&'DRE Sintetico'!A23) -> 0 | L23: =SUMIFS(Tabela2[Valor Original],Tabela2[Data Pgto Recbto],">="&'DRE Sintetico'!$L$5,Tabela2[Data Pgto Recbto],"<="&EOMONTH('DRE Sintetico'!$L$5,0),Tabela2[Banco],"="&'DRE Sintetico'!A23) -> 0 | M23: =SUMIFS(Tabela2[Valor Original],Tabela2[Data Pgto Recbto],">="&'DRE Sintetico'!$M$5,Tabela2[Data Pgto Recbto],"<="&EOMONTH('DRE Sintetico'!$M$5,0),Tabela2[Banco],"="&'DRE Sintetico'!A23) -> 0
B24: =SUMIFS(Tabela2[Valor Original],Tabela2[Data Pgto Recbto],">="&'DRE Sintetico'!B9,Tabela2[Data Pgto Recbto],"<="&EOMONTH('DRE Sintetico'!B9,0),Tabela2[Banco],"="&'DRE Sintetico'!A24) -> 0 | C24: =SUMIFS(Tabela2[Valor Original],Tabela2[Data Pgto Recbto],">="&'DRE Sintetico'!$C$5,Tabela2[Data Pgto Recbto],"<="&EOMONTH('DRE Sintetico'!$C$5,0),Tabela2[Banco],"="&'DRE Sintetico'!A24) -> 0 | D24: =SUMIFS(Tabela2[Valor Original],Tabela2[Data Pgto Recbto],">="&'DRE Sintetico'!$D$5,Tabela2[Data Pgto Recbto],"<="&EOMONTH('DRE Sintetico'!$D$5,0),Tabela2[Banco],"="&'DRE Sintetico'!A24) -> 0 | E24: =SUMIFS(Tabela2[Valor Original],Tabela2[Data Pgto Recbto],">="&'DRE Sintetico'!$E$5,Tabela2[Data Pgto Recbto],"<="&EOMONTH('DRE Sintetico'!$E$5,0),Tabela2[Banco],"="&'DRE Sintetico'!A24) -> 0 | F24: =SUMIFS(Tabela2[Valor Original],Tabela2[Data Pgto Recbto],">="&'DRE Sintetico'!$F$5,Tabela2[Data Pgto Recbto],"<="&EOMONTH('DRE Sintetico'!$F$5,0),Tabela2[Banco],"="&'DRE Sintetico'!A24) -> 0 | G24: =SUMIFS(Tabela2[Valor Original],Tabela2[Data Pgto Recbto],">="&'DRE Sintetico'!$G$5,Tabela2[Data Pgto Recbto],"<="&EOMONTH('DRE Sintetico'!$G$5,0),Tabela2[Banco],"="&'DRE Sintetico'!A24) -> 0 | H24: =SUMIFS(Tabela2[Valor Original],Tabela2[Data Pgto Recbto],">="&'DRE Sintetico'!$H$5,Tabela2[Data Pgto Recbto],"<="&EOMONTH('DRE Sintetico'!$H$5,0),Tabela2[Banco],"="&'DRE Sintetico'!A24) -> 0 | I24: =SUMIFS(Tabela2[Valor Original],Tabela2[Data Pgto Recbto],">="&'DRE Sintetico'!$I$5,Tabela2[Data Pgto Recbto],"<="&EOMONTH('DRE Sintetico'!$I$5,0),Tabela2[Banco],"="&'DRE Sintetico'!A24) -> 0 | J24: =SUMIFS(Tabela2[Valor Original],Tabela2[Data Pgto Recbto],">="&'DRE Sintetico'!$J$5,Tabela2[Data Pgto Recbto],"<="&EOMONTH('DRE Sintetico'!$J$5,0),Tabela2[Banco],"="&'DRE Sintetico'!A24) -> 0 | K24: =SUMIFS(Tabela2[Valor Original],Tabela2[Data Pgto Recbto],">="&'DRE Sintetico'!$K$5,Tabela2[Data Pgto Recbto],"<="&EOMONTH('DRE Sintetico'!$K$5,0),Tabela2[Banco],"="&'DRE Sintetico'!A24) -> 0 | L24: =SUMIFS(Tabela2[Valor Original],Tabela2[Data Pgto Recbto],">="&'DRE Sintetico'!$L$5,Tabela2[Data Pgto Recbto],"<="&EOMONTH('DRE Sintetico'!$L$5,0),Tabela2[Banco],"="&'DRE Sintetico'!A24) -> 0 | M24: =SUMIFS(Tabela2[Valor Original],Tabela2[Data Pgto Recbto],">="&'DRE Sintetico'!$M$5,Tabela2[Data Pgto Recbto],"<="&EOMONTH('DRE Sintetico'!$M$5,0),Tabela2[Banco],"="&'DRE Sintetico'!A24) -> 0
B25: =SUMIFS(Tabela2[Valor Original],Tabela2[Data Pgto Recbto],">="&'DRE Sintetico'!B9,Tabela2[Data Pgto Recbto],"<="&EOMONTH('DRE Sintetico'!B9,0),Tabela2[Banco],"="&'DRE Sintetico'!A25) -> 0 | C25: =SUMIFS(Tabela2[Valor Original],Tabela2[Data Pgto Recbto],">="&'DRE Sintetico'!$C$5,Tabela2[Data Pgto Recbto],"<="&EOMONTH('DRE Sintetico'!$C$5,0),Tabela2[Banco],"="&'DRE Sintetico'!A25) -> 0 | D25: =SUMIFS(Tabela2[Valor Original],Tabela2[Data Pgto Recbto],">="&'DRE Sintetico'!$D$5,Tabela2[Data Pgto Recbto],"<="&EOMONTH('DRE Sintetico'!$D$5,0),Tabela2[Banco],"="&'DRE Sintetico'!A25) -> 0 | E25: =SUMIFS(Tabela2[Valor Original],Tabela2[Data Pgto Recbto],">="&'DRE Sintetico'!$E$5,Tabela2[Data Pgto Recbto],"<="&EOMONTH('DRE Sintetico'!$E$5,0),Tabela2[Banco],"="&'DRE Sintetico'!A25) -> 0 | F25: =SUMIFS(Tabela2[Valor Original],Tabela2[Data Pgto Recbto],">="&'DRE Sintetico'!$F$5,Tabela2[Data Pgto Recbto],"<="&EOMONTH('DRE Sintetico'!$F$5,0),Tabela2[Banco],"="&'DRE Sintetico'!A25) -> 0 | G25: =SUMIFS(Tabela2[Valor Original],Tabela2[Data Pgto Recbto],">="&'DRE Sintetico'!$G$5,Tabela2[Data Pgto Recbto],"<="&EOMONTH('DRE Sintetico'!$G$5,0),Tabela2[Banco],"="&'DRE Sintetico'!A25) -> 0 | H25: =SUMIFS(Tabela2[Valor Original],Tabela2[Data Pgto Recbto],">="&'DRE Sintetico'!$H$5,Tabela2[Data Pgto Recbto],"<="&EOMONTH('DRE Sintetico'!$H$5,0),Tabela2[Banco],"="&'DRE Sintetico'!A25) -> 0 | I25: =SUMIFS(Tabela2[Valor Original],Tabela2[Data Pgto Recbto],">="&'DRE Sintetico'!$I$5,Tabela2[Data Pgto Recbto],"<="&EOMONTH('DRE Sintetico'!$I$5,0),Tabela2[Banco],"="&'DRE Sintetico'!A25) -> 0 | J25: =SUMIFS(Tabela2[Valor Original],Tabela2[Data Pgto Recbto],">="&'DRE Sintetico'!$J$5,Tabela2[Data Pgto Recbto],"<="&EOMONTH('DRE Sintetico'!$J$5,0),Tabela2[Banco],"="&'DRE Sintetico'!A25) -> 0 | K25: =SUMIFS(Tabela2[Valor Original],Tabela2[Data Pgto Recbto],">="&'DRE Sintetico'!$K$5,Tabela2[Data Pgto Recbto],"<="&EOMONTH('DRE Sintetico'!$K$5,0),Tabela2[Banco],"="&'DRE Sintetico'!A25) -> 0 | L25: =SUMIFS(Tabela2[Valor Original],Tabela2[Data Pgto Recbto],">="&'DRE Sintetico'!$L$5,Tabela2[Data Pgto Recbto],"<="&EOMONTH('DRE Sintetico'!$L$5,0),Tabela2[Banco],"="&'DRE Sintetico'!A25) -> 0 | M25: =SUMIFS(Tabela2[Valor Original],Tabela2[Data Pgto Recbto],">="&'DRE Sintetico'!$M$5,Tabela2[Data Pgto Recbto],"<="&EOMONTH('DRE Sintetico'!$M$5,0),Tabela2[Banco],"="&'DRE Sintetico'!A25) -> 0
B26: =SUMIFS(Tabela2[Valor Original],Tabela2[Data Pgto Recbto],">="&'DRE Sintetico'!B10,Tabela2[Data Pgto Recbto],"<="&EOMONTH('DRE Sintetico'!B10,0),Tabela2[Banco],"="&'DRE Sintetico'!A26) -> 0 | C26: =SUMIFS(Tabela2[Valor Original],Tabela2[Data Pgto Recbto],">="&'DRE Sintetico'!$C$5,Tabela2[Data Pgto Recbto],"<="&EOMONTH('DRE Sintetico'!$C$5,0),Tabela2[Banco],"="&'DRE Sintetico'!A26) -> 0 | D26: =SUMIFS(Tabela2[Valor Original],Tabela2[Data Pgto Recbto],">="&'DRE Sintetico'!$D$5,Tabela2[Data Pgto Recbto],"<="&EOMONTH('DRE Sintetico'!$D$5,0),Tabela2[Banco],"="&'DRE Sintetico'!A26) -> 0 | E26: =SUMIFS(Tabela2[Valor Original],Tabela2[Data Pgto Recbto],">="&'DRE Sintetico'!$E$5,Tabela2[Data Pgto Recbto],"<="&EOMONTH('DRE Sintetico'!$E$5,0),Tabela2[Banco],"="&'DRE Sintetico'!A26) -> 0 | F26: =SUMIFS(Tabela2[Valor Original],Tabela2[Data Pgto Recbto],">="&'DRE Sintetico'!$F$5,Tabela2[Data Pgto Recbto],"<="&EOMONTH('DRE Sintetico'!$F$5,0),Tabela2[Banco],"="&'DRE Sintetico'!A26) -> 0 | G26: =SUMIFS(Tabela2[Valor Original],Tabela2[Data Pgto Recbto],">="&'DRE Sintetico'!$G$5,Tabela2[Data Pgto Recbto],"<="&EOMONTH('DRE Sintetico'!$G$5,0),Tabela2[Banco],"="&'DRE Sintetico'!A26) -> 0 | H26: =SUMIFS(Tabela2[Valor Original],Tabela2[Data Pgto Recbto],">="&'DRE Sintetico'!$H$5,Tabela2[Data Pgto Recbto],"<="&EOMONTH('DRE Sintetico'!$H$5,0),Tabela2[Banco],"="&'DRE Sintetico'!A26) -> 0 | I26: =SUMIFS(Tabela2[Valor Original],Tabela2[Data Pgto Recbto],">="&'DRE Sintetico'!$I$5,Tabela2[Data Pgto Recbto],"<="&EOMONTH('DRE Sintetico'!$I$5,0),Tabela2[Banco],"="&'DRE Sintetico'!A26) -> 0 | J26: =SUMIFS(Tabela2[Valor Original],Tabela2[Data Pgto Recbto],">="&'DRE Sintetico'!$J$5,Tabela2[Data Pgto Recbto],"<="&EOMONTH('DRE Sintetico'!$J$5,0),Tabela2[Banco],"="&'DRE Sintetico'!A26) -> 0 | K26: =SUMIFS(Tabela2[Valor Original],Tabela2[Data Pgto Recbto],">="&'DRE Sintetico'!$K$5,Tabela2[Data Pgto Recbto],"<="&EOMONTH('DRE Sintetico'!$K$5,0),Tabela2[Banco],"="&'DRE Sintetico'!A26) -> 0 | L26: =SUMIFS(Tabela2[Valor Original],Tabela2[Data Pgto Recbto],">="&'DRE Sintetico'!$L$5,Tabela2[Data Pgto Recbto],"<="&EOMONTH('DRE Sintetico'!$L$5,0),Tabela2[Banco],"="&'DRE Sintetico'!A26) -> 0 | M26: =SUMIFS(Tabela2[Valor Original],Tabela2[Data Pgto Recbto],">="&'DRE Sintetico'!$M$5,Tabela2[Data Pgto Recbto],"<="&EOMONTH('DRE Sintetico'!$M$5,0),Tabela2[Banco],"="&'DRE Sintetico'!A26) -> 0
A27: Total geral | B27: =SUM(B18:M20) -> 4359.14
A30: Valor do Estoque
A31: Estoque Final
A32: Total geral | B32: 24999
A36: (Os dados serão preenchidos automaticamente conforme você preencher as páginas mensais)

Sheet DRE Analitico
A2: =Informações!C2 -> CMTO Clinica
C3: DEMOSTRATIVO DE RESULTADO DO EXERCICIO | I3: 2022
C4: 1 | D4: 2 | E4: 3 | F4: 4 | G4: 5 | H4: 6 | I4: 7 | J4: 8 | K4: 9 | L4: 10 | M4: 11 | N4: 12
C5: =DATE($I$3,C4,1) -> 2022-01-01 | D5: =DATE($I$3,D4,1) -> 2022-02-01 | E5: 2022-03-01 | F5: 2022-04-01 | G5: 2022-05-01 | H5: 2022-06-01 | I5: 2022-07-01 | J5: 2022-08-01 | K5: 2022-09-01 | L5: 2022-10-01 | M5: 2022-11-01 | N5: 2022-12-01 | O5: 2022-01-01 | P5: Total
A7: RECEBIMENTOS | C7: =SUM(C8:C10) -> 6840.47 | D7: 9948.47 | E7: 0 | F7: 0 | G7: 0 | H7: 0 | I7: 0 | J7: 0 | K7: 0 | L7: 0 | M7: 0 | N7: 0 | P7: =SUM(P8:P10) -> 16788.94
A8: =IF(P8<>0,P8,"") -> 9640.47 | B8: Vendas | C8: =SUMIFS(Lanc_BC1!$H:$H,Lanc_BC1!$A:$A,">="&C$5,Lanc_BC1!$A:$A,"<"&D$5,Lanc_BC1!$F:$F,"="&$B8) -> -308 | D8: =SUMIFS(Lanc_BC1!$H:$H,Lanc_BC1!$A:$A,">="&D$5,Lanc_BC1!$A:$A,"<"&E$5,Lanc_BC1!$F:$F,"="&$B8) -> 9948.47 | E8: =SUMIFS(Lanc_BC1!$H:$H,Lanc_BC1!$A:$A,">="&E$5,Lanc_BC1!$A:$A,"<"&F$5,Lanc_BC1!$F:$F,"="&$B8) -> 0 | F8: =SUMIFS(Lanc_BC1!$H:$H,Lanc_BC1!$A:$A,">="&F$5,Lanc_BC1!$A:$A,"<"&G$5,Lanc_BC1!$F:$F,"="&$B8) -> 0 | G8: =SUMIFS(Lanc_BC1!$H:$H,Lanc_BC1!$A:$A,">="&G$5,Lanc_BC1!$A:$A,"<"&H$5,Lanc_BC1!$F:$F,"="&$B8) -> 0 | H8: =SUMIFS(Lanc_BC1!$H:$H,Lanc_BC1!$A:$A,">="&H$5,Lanc_BC1!$A:$A,"<"&I$5,Lanc_BC1!$F:$F,"="&$B8) -> 0 | I8: =SUMIFS(Lanc_BC1!$H:$H,Lanc_BC1!$A:$A,">="&I$5,Lanc_BC1!$A:$A,"<"&J$5,Lanc_BC1!$F:$F,"="&$B8) -> 0 | J8: =SUMIFS(Lanc_BC1!$H:$H,Lanc_BC1!$A:$A,">="&J$5,Lanc_BC1!$A:$A,"<"&K$5,Lanc_BC1!$F:$F,"="&$B8) -> 0 | K8: =SUMIFS(Lanc_BC1!$H:$H,Lanc_BC1!$A:$A,">="&K$5,Lanc_BC1!$A:$A,"<"&L$5,Lanc_BC1!$F:$F,"="&$B8) -> 0 | L8: =SUMIFS(Lanc_BC1!$H:$H,Lanc_BC1!$A:$A,">="&L$5,Lanc_BC1!$A:$A,"<"&M$5,Lanc_BC1!$F:$F,"="&$B8) -> 0 | M8: =SUMIFS(Lanc_BC1!$H:$H,Lanc_BC1!$A:$A,">="&M$5,Lanc_BC1!$A:$A,"<"&N$5,Lanc_BC1!$F:$F,"="&$B8) -> 0 | N8: =SUMIFS(Lanc_BC1!$H:$H,Lanc_BC1!$A:$A,">="&N$5,Lanc_BC1!$A:$A,"<"&O$5,Lanc_BC1!$F:$F,"="&$B8) -> 0 | O8: =SUMIFS(#REF!,#REF!,">="&O$5,#REF!,"<"&P$5,#REF!,"="&$B8) ->  | P8: =SUM(C8:N8) -> 9640.47
A9: =IF(P9<>0,P9,"") -> 9640.47 | B9: Serviços | C9: =SUMIFS(Lanc_BC1!$H:$H,Lanc_BC1!$A:$A,">="&C$5,Lanc_BC1!$A:$A,"<"&D$5,Lanc_BC1!$F:$F,"="&$B9) -> 9640.47 | D9: =SUMIFS(Lanc_BC1!$H:$H,Lanc_BC1!$A:$A,">="&D$5,Lanc_BC1!$A:$A,"<"&E$5,Lanc_BC1!$F:$F,"="&$B9) -> 0 | E9: =SUMIFS(Lanc_BC1!$H:$H,Lanc_BC1!$A:$A,">="&E$5,Lanc_BC1!$A:$A,"<"&F$5,Lanc_BC1!$F:$F,"="&$B9) -> 0 | F9: =SUMIFS(Lanc_BC1!$H:$H,Lanc_BC1!$A:$A,">="&F$5,Lanc_BC1!$A:$A,"<"&G$5,Lanc_BC1!$F:$F,"="&$B9) -> 0 | G9: =SUMIFS(Lanc_BC1!$H:$H,Lanc_BC1!$A:$A,">="&G$5,Lanc_BC1!$A:$A,"<"&H$5,Lanc_BC1!$F:$F,"="&$B9) -> 0 | H9: =SUMIFS(Lanc_BC1!$H:$H,Lanc_BC1!$A:$A,">="&H$5,Lanc_BC1!$A:$A,"<"&I$5,Lanc_BC1!$F:$F,"="&$B9) -> 0 | I9: =SUMIFS(Lanc_BC1!$H:$H,Lanc_BC1!$A:$A,">="&I$5,Lanc_BC1!$A:$A,"<"&J$5,Lanc_BC1!$F:$F,"="&$B9) -> 0 | J9: =SUMIFS(Lanc_BC1!$H:$H,Lanc_BC1!$A:$A,">="&J$5,Lanc_BC1!$A:$A,"<"&K$5,Lanc_BC1!$F:$F,"="&$B9) -> 0 | K9: =SUMIFS(Lanc_BC1!$H:$H,Lanc_BC1!$A:$A,">="&K$5,Lanc_BC1!$A:$A,"<"&L$5,Lanc_BC1!$F:$F,"="&$B9) -> 0 | L9: =SUMIFS(Lanc_BC1!$H:$H,Lanc_BC1!$A:$A,">="&L$5,Lanc_BC1!$A:$A,"<"&M$5,Lanc_BC1!$F:$F,"="&$B9) -> 0 | M9: =SUMIFS(Lanc_BC1!$H:$H,Lanc_BC1!$A:$A,">="&M$5,Lanc_BC1!$A:$A,"<"&N$5,Lanc_BC1!$F:$F,"="&$B9) -> 0 | N9: =SUMIFS(Lanc_BC1!$H:$H,Lanc_BC1!$A:$A,">="&N$5,Lanc_BC1!$A:$A,"<"&O$5,Lanc_BC1!$F:$F,"="&$B9) -> 0 | O9: =SUMIFS(#REF!,#REF!,">="&O$5,#REF!,"<"&P$5,#REF!,"="&$B9) ->  | P9: =SUM(C9:N9) -> 9640.47
A10: -2492 | B10: Locação | C10: =SUMIFS(Lanc_BC1!$H:$H,Lanc_BC1!$A:$A,">="&C$5,Lanc_BC1!$A:$A,"<"&D$5,Lanc_BC1!$F:$F,"="&$B10) -> -2492 | D10: =SUMIFS(Lanc_BC1!$H:$H,Lanc_BC1!$A:$A,">="&D$5,Lanc_BC1!$A:$A,"<"&E$5,Lanc_BC1!$F:$F,"="&$B10) -> 0 | E10: =SUMIFS(Lanc_BC1!$H:$H,Lanc_BC1!$A:$A,">="&E$5,Lanc_BC1!$A:$A,"<"&F$5,Lanc_BC1!$F:$F,"="&$B10) -> 0 | F10: =SUMIFS(Lanc_BC1!$H:$H,Lanc_BC1!$A:$A,">="&F$5,Lanc_BC1!$A:$A,"<"&G$5,Lanc_BC1!$F:$F,"="&$B10) -> 0 | G10: =SUMIFS(Lanc_BC1!$H:$H,Lanc_BC1!$A:$A,">="&G$5,Lanc_BC1!$A:$A,"<"&H$5,Lanc_BC1!$F:$F,"="&$B10) -> 0 | H10: =SUMIFS(Lanc_BC1!$H:$H,Lanc_BC1!$A:$A,">="&H$5,Lanc_BC1!$A:$A,"<"&I$5,Lanc_BC1!$F:$F,"="&$B10) -> 0 | I10: =SUMIFS(Lanc_BC1!$H:$H,Lanc_BC1!$A:$A,">="&I$5,Lanc_BC1!$A:$A,"<"&J$5,Lanc_BC1!$F:$F,"="&$B10) -> 0 | J10: =SUMIFS(Lanc_BC1!$H:$H,Lanc_BC1!$A:$A,">="&J$5,Lanc_BC1!$A:$A,"<"&K$5,Lanc_BC1!$F:$F,"="&$B10) -> 0 | K10: =SUMIFS(Lanc_BC1!$H:$H,Lanc_BC1!$A:$A,">="&K$5,Lanc_BC1!$A:$A,"<"&L$5,Lanc_BC1!$F:$F,"="&$B10) -> 0 | L10: =SUMIFS(Lanc_BC1!$H:$H,Lanc_BC1!$A:$A,">="&L$5,Lanc_BC1!$A:$A,"<"&M$5,Lanc_BC1!$F:$F,"="&$B10) -> 0 | M10: =SUMIFS(Lanc_BC1!$H:$H,Lanc_BC1!$A:$A,">="&M$5,Lanc_BC1!$A:$A,"<"&N$5,Lanc_BC1!$F:$F,"="&$B10) -> 0 | N10: =SUMIFS(Lanc_BC1!$H:$H,Lanc_BC1!$A:$A,">="&N$5,Lanc_BC1!$A:$A,"<"&O$5,Lanc_BC1!$F:$F,"="&$B10) -> 0 | O10: =SUMIFS(#REF!,#REF!,">="&O$5,#REF!,"<"&P$5,#REF!,"="&$B10) ->  | P10: -2492
A11: X
A12: IMPOSTOS | C12: =SUM(C13:C19) -> 0 | D12: -596.9 | E12: -1246 | F12: -1.99 | G12: 0 | H12: 0 | I12: 0 | J12: 0 | K12: 0 | L12: 0 | M12: 0 | N12: 0 | P12: =SUM(P13:P19) -> -1844.89
A13: =IF(P13<>0,P13,"") ->  | B13: COFINS | C13: =SUMIFS(Lanc_BC1!$H:$H,Lanc_BC1!$A:$A,">="&C$5,Lanc_BC1!$A:$A,"<"&D$5,Lanc_BC1!$F:$F,"="&$B13) -> 0 | D13: =SUMIFS(Lanc_BC1!$H:$H,Lanc_BC1!$A:$A,">="&D$5,Lanc_BC1!$A:$A,"<"&E$5,Lanc_BC1!$F:$F,"="&$B13) -> 0 | E13: =SUMIFS(Lanc_BC1!$H:$H,Lanc_BC1!$A:$A,">="&E$5,Lanc_BC1!$A:$A,"<"&F$5,Lanc_BC1!$F:$F,"="&$B13) -> 0 | F13: =SUMIFS(Lanc_BC1!$H:$H,Lanc_BC1!$A:$A,">="&F$5,Lanc_BC1!$A:$A,"<"&G$5,Lanc_BC1!$F:$F,"="&$B13) -> 0 | G13: =SUMIFS(Lanc_BC1!$H:$H,Lanc_BC1!$A:$A,">="&G$5,Lanc_BC1!$A:$A,"<"&H$5,Lanc_BC1!$F:$F,"="&$B13) -> 0 | H13: =SUMIFS(Lanc_BC1!$H:$H,Lanc_BC1!$A:$A,">="&H$5,Lanc_BC1!$A:$A,"<"&I$5,Lanc_BC1!$F:$F,"="&$B13) -> 0 | I13: =SUMIFS(Lanc_BC1!$H:$H,Lanc_BC1!$A:$A,">="&I$5,Lanc_BC1!$A:$A,"<"&J$5,Lanc_BC1!$F:$F,"="&$B13) -> 0 | J13: =SUMIFS(Lanc_BC1!$H:$H,Lanc_BC1!$A:$A,">="&J$5,Lanc_BC1!$A:$A,"<"&K$5,Lanc_BC1!$F:$F,"="&$B13) -> 0 | K13: =SUMIFS(Lanc_BC1!$H:$H,Lanc_BC1!$A:$A,">="&K$5,Lanc_BC1!$A:$A,"<"&L$5,Lanc_BC1!$F:$F,"="&$B13) -> 0 | L13: =SUMIFS(Lanc_BC1!$H:$H,Lanc_BC1!$A:$A,">="&L$5,Lanc_BC1!$A:$A,"<"&M$5,Lanc_BC1!$F:$F,"="&$B13) -> 0 | M13: =SUMIFS(Lanc_BC1!$H:$H,Lanc_BC1!$A:$A,">="&M$5,Lanc_BC1!$A:$A,"<"&N$5,Lanc_BC1!$F:$F,"="&$B13) -> 0 | N13: =SUMIFS(Lanc_BC1!$H:$H,Lanc_BC1!$A:$A,">="&N$5,Lanc_BC1!$A:$A,"<"&O$5,Lanc_BC1!$F:$F,"="&$B13) -> 0 | O13: =SUMIFS(#REF!,#REF!,">="&O$5,#REF!,"<"&P$5,#REF!,"="&$B13) ->  | P13: =SUM(C13:N13) -> 0
A14: -1844.89 | B14: DAS | C14: =SUMIFS(Lanc_BC1!$H:$H,Lanc_BC1!$A:$A,">="&C$5,Lanc_BC1!$A:$A,"<"&D$5,Lanc_BC1!$F:$F,"="&$B14) -> 0 | D14: =SUMIFS(Lanc_BC1!$H:$H,Lanc_BC1!$A:$A,">="&D$5,Lanc_BC1!$A:$A,"<"&E$5,Lanc_BC1!$F:$F,"="&$B14) -> -596.9 | E14: =SUMIFS(Lanc_BC1!$H:$H,Lanc_BC1!$A:$A,">="&E$5,Lanc_BC1!$A:$A,"<"&F$5,Lanc_BC1!$F:$F,"="&$B14) -> -1246 | F14: =SUMIFS(Lanc_BC1!$H:$H,Lanc_BC1!$A:$A,">="&F$5,Lanc_BC1!$A:$A,"<"&G$5,Lanc_BC1!$F:$F,"="&$B14) -> -1.99 | G14: =SUMIFS(Lanc_BC1!$H:$H,Lanc_BC1!$A:$A,">="&G$5,Lanc_BC1!$A:$A,"<"&H$5,Lanc_BC1!$F:$F,"="&$B14) -> 0 | H14: =SUMIFS(Lanc_BC1!$H:$H,Lanc_BC1!$A:$A,">="&H$5,Lanc_BC1!$A:$A,"<"&I$5,Lanc_BC1!$F:$F,"="&$B14) -> 0 | I14: =SUMIFS(Lanc_BC1!$H:$H,Lanc_BC1!$A:$A,">="&I$5,Lanc_BC1!$A:$A,"<"&J$5,Lanc_BC1!$F:$F,"="&$B14) -> 0 | J14: =SUMIFS(Lanc_BC1!$H:$H,Lanc_BC1!$A:$A,">="&J$5,Lanc_BC1!$A:$A,"<"&K$5,Lanc_BC1!$F:$F,"="&$B14) -> 0 | K14: =SUMIFS(Lanc_BC1!$H:$H,Lanc_BC1!$A:$A,">="&K$5,Lanc_BC1!$A:$A,"<"&L$5,Lanc_BC1!$F:$F,"="&$B14) -> 0 | L14: =SUMIFS(Lanc_BC1!$H:$H,Lanc_BC1!$A:$A,">="&L$5,Lanc_BC1!$A:$A,"<"&M$5,Lanc_BC1!$F:$F,"="&$B14) -> 0 | M14: =SUMIFS(Lanc_BC1!$H:$H,Lanc_BC1!$A:$A,">="&M$5,Lanc_BC1!$A:$A,"<"&N$5,Lanc_BC1!$F:$F,"="&$B14) -> 0 | N14: =SUMIFS(Lanc_BC1!$H:$H,Lanc_BC1!$A:$A,">="&N$5,Lanc_BC1!$A:$A,"<"&O$5,Lanc_BC1!$F:$F,"="&$B14) -> 0 | O14: =SUMIFS(#REF!,#REF!,">="&O$5,#REF!,"<"&P$5,#REF!,"="&$B14) ->  | P14: =SUM(C14:N14) -> -1844.89
B15: ICMS | C15: =SUMIFS(Lanc_BC1!$H:$H,Lanc_BC1!$A:$A,">="&C$5,Lanc_BC1!$A:$A,"<"&D$5,Lanc_BC1!$F:$F,"="&$B15) -> 0 | D15: =SUMIFS(Lanc_BC1!$H:$H,Lanc_BC1!$A:$A,">="&D$5,Lanc_BC1!$A:$A,"<"&E$5,Lanc_BC1!$F:$F,"="&$B15) -> 0 | E15: =SUMIFS(Lanc_BC1!$H:$H,Lanc_BC1!$A:$A,">="&E$5,Lanc_BC1!$A:$A,"<"&F$5,Lanc_BC1!$F:$F,"="&$B15) -> 0 | F15: =SUMIFS(Lanc_BC1!$H:$H,Lanc_BC1!$A:$A,">="&F$5,Lanc_BC1!$A:$A,"<"&G$5,Lanc_BC1!$F:$F,"="&$B15) -> 0 | G15: =SUMIFS(Lanc_BC1!$H:$H,Lanc_BC1!$A:$A,">="&G$5,Lanc_BC1!$A:$A,"<"&H$5,Lanc_BC1!$F:$F,"="&$B15) -> 0 | H15: =SUMIFS(Lanc_BC1!$H:$H,Lanc_BC1!$A:$A,">="&H$5,Lanc_BC1!$A:$A,"<"&I$5,Lanc_BC1!$F:$F,"="&$B15) -> 0 | I15: =SUMIFS(Lanc_BC1!$H:$H,Lanc_BC1!$A:$A,">="&I$5,Lanc_BC1!$A:$A,"<"&J$5,Lanc_BC1!$F:$F,"="&$B15) -> 0 | J15: =SUMIFS(Lanc_BC1!$H:$H,Lanc_BC1!$A:$A,">="&J$5,Lanc_BC1!$A:$A,"<"&K$5,Lanc_BC1!$F:$F,"="&$B15) -> 0 | K15: =SUMIFS(Lanc_BC1!$H:$H,Lanc_BC1!$A:$A,">="&K$5,Lanc_BC1!$A:$A,"<"&L$5,Lanc_BC1!$F:$F,"="&$B15) -> 0 | L15: =SUMIFS(Lanc_BC1!$H:$H,Lanc_BC1!$A:$A,">="&L$5,Lanc_BC1!$A:$A,"<"&M$5,Lanc_BC1!$F:$F,"="&$B15) -> 0 | M15: =SUMIFS(Lanc_BC1!$H:$H,Lanc_BC1!$A:$A,">="&M$5,Lanc_BC1!$A:$A,"<"&N$5,Lanc_BC1!$F:$F,"="&$B15) -> 0 | N15: =SUMIFS(Lanc_BC1!$H:$H,Lanc_BC1!$A:$A,">="&N$5,Lanc_BC1!$A:$A,"<"&O$5,Lanc_BC1!$F:$F,"="&$B15) -> 0 | O15: =SUMIFS(#REF!,#REF!,">="&O$5,#REF!,"<"&P$5,#REF!,"="&$B15) ->  | P15: 0
B16: IPI | C16: =SUMIFS(Lanc_BC1!$H:$H,Lanc_BC1!$A:$A,">="&C$5,Lanc_BC1!$A:$A,"<"&D$5,Lanc_BC1!$F:$F,"="&$B16) -> 0 | D16: =SUMIFS(Lanc_BC1!$H:$H,Lanc_BC1!$A:$A,">="&D$5,Lanc_BC1!$A:$A,"<"&E$5,Lanc_BC1!$F:$F,"="&$B16) -> 0 | E16: =SUMIFS(Lanc_BC1!$H:$H,Lanc_BC1!$A:$A,">="&E$5,Lanc_BC1!$A:$A,"<"&F$5,Lanc_BC1!$F:$F,"="&$B16) -> 0 | F16: =SUMIFS(Lanc_BC1!$H:$H,Lanc_BC1!$A:$A,">="&F$5,Lanc_BC1!$A:$A,"<"&G$5,Lanc_BC1!$F:$F,"="&$B16) -> 0 | G16: =SUMIFS(Lanc_BC1!$H:$H,Lanc_BC1!$A:$A,">="&G$5,Lanc_BC1!$A:$A,"<"&H$5,Lanc_BC1!$F:$F,"="&$B16) -> 0 | H16: =SUMIFS(Lanc_BC1!$H:$H,Lanc_BC1!$A:$A,">="&H$5,Lanc_BC1!$A:$A,"<"&I$5,Lanc_BC1!$F:$F,"="&$B16) -> 0 | I16: =SUMIFS(Lanc_BC1!$H:$H,Lanc_BC1!$A:$A,">="&I$5,Lanc_BC1!$A:$A,"<"&J$5,Lanc_BC1!$F:$F,"="&$B16) -> 0 | J16: =SUMIFS(Lanc_BC1!$H:$H,Lanc_BC1!$A:$A,">="&J$5,Lanc_BC1!$A:$A,"<"&K$5,Lanc_BC1!$F:$F,"="&$B16) -> 0 | K16: =SUMIFS(Lanc_BC1!$H:$H,Lanc_BC1!$A:$A,">="&K$5,Lanc_BC1!$A:$A,"<"&L$5,Lanc_BC1!$F:$F,"="&$B16) -> 0 | L16: =SUMIFS(Lanc_BC1!$H:$H,Lanc_BC1!$A:$A,">="&L$5,Lanc_BC1!$A:$A,"<"&M$5,Lanc_BC1!$F:$F,"="&$B16) -> 0 | M16: =SUMIFS(Lanc_BC1!$H:$H,Lanc_BC1!$A:$A,">="&M$5,Lanc_BC1!$A:$A,"<"&N$5,Lanc_BC1!$F:$F,"="&$B16) -> 0 | N16: =SUMIFS(Lanc_BC1!$H:$H,Lanc_BC1!$A:$A,">="&N$5,Lanc_BC1!$A:$A,"<"&O$5,Lanc_BC1!$F:$F,"="&$B16) -> 0 | O16: =SUMIFS(#REF!,#REF!,">="&O$5,#REF!,"<"&P$5,#REF!,"="&$B16) ->  | P16: 0
B17: ISS | C17: =SUMIFS(Lanc_BC1!$H:$H,Lanc_BC1!$A:$A,">="&C$5,Lanc_BC1!$A:$A,"<"&D$5,Lanc_BC1!$F:$F,"="&$B17) -> 0 | D17: =SUMIFS(Lanc_BC1!$H:$H,Lanc_BC1!$A:$A,">="&D$5,Lanc_BC1!$A:$A,"<"&E$5,Lanc_BC1!$F:$F,"="&$B17) -> 0 | E17: =SUMIFS(Lanc_BC1!$H:$H,Lanc_BC1!$A:$A,">="&E$5,Lanc_BC1!$A:$A,"<"&F$5,Lanc_BC1!$F:$F,"="&$B17) -> 0 | F17: =SUMIFS(Lanc_BC1!$H:$H,Lanc_BC1!$A:$A,">="&F$5,Lanc_BC1!$A:$A,"<"&G$5,Lanc_BC1!$F:$F,"="&$B17) -> 0 | G17: =SUMIFS(Lanc_BC1!$H:$H,Lanc_BC1!$A:$A,">="&G$5,Lanc_BC1!$A:$A,"<"&H$5,Lanc_BC1!$F:$F,"="&$B17) -> 0 | H17: =SUMIFS(Lanc_BC1!$H:$H,Lanc_BC1!$A:$A,">="&H$5,Lanc_BC1!$A:$A,"<"&I$5,Lanc_BC1!$F:$F,"="&$B17) -> 0 | I17: =SUMIFS(Lanc_BC1!$H:$H,Lanc_BC1!$A:$A,">="&I$5,Lanc_BC1!$A:$A,"<"&J$5,Lanc_BC1!$F:$F,"="&$B17) -> 0 | J17: =SUMIFS(Lanc_BC1!$H:$H,Lanc_BC1!$A:$A,">="&J$5,Lanc_BC1!$A:$A,"<"&K$5,Lanc_BC1!$F:$F,"="&$B17) -> 0 | K17: =SUMIFS(Lanc_BC1!$H:$H,Lanc_BC1!$A:$A,">="&K$5,Lanc_BC1!$A:$A,"<"&L$5,Lanc_BC1!$F:$F,"="&$B17) -> 0 | L17: =SUMIFS(Lanc_BC1!$H:$H,Lanc_BC1!$A:$A,">="&L$5,Lanc_BC1!$A:$A,"<"&M$5,Lanc_BC1!$F:$F,"="&$B17) -> 0 | M17: =SUMIFS(Lanc_BC1!$H:$H,Lanc_BC1!$A:$A,">="&M$5,Lanc_BC1!$A:$A,"<"&N$5,Lanc_BC1!$F:$F,"="&$B17) -> 0 | N17: =SUMIFS(Lanc_BC1!$H:$H,Lanc_BC1!$A:$A,">="&N$5,Lanc_BC1!$A:$A,"<"&O$5,Lanc_BC1!$F:$F,"="&$B17) -> 0 | O17: =SUMIFS(#REF!,#REF!,">="&O$5,#REF!,"<"&P$5,#REF!,"="&$B17) ->  | P17: 0
B18: PIS | C18: =SUMIFS(Lanc_BC1!$H:$H,Lanc_BC1!$A:$A,">="&C$5,Lanc_BC1!$A:$A,"<"&D$5,Lanc_BC1!$F:$F,"="&$B18) -> 0 | D18: =SUMIFS(Lanc_BC1!$H:$H,Lanc_BC1!$A:$A,">="&D$5,Lanc_BC1!$A:$A,"<"&E$5,Lanc_BC1!$F:$F,"="&$B18) -> 0 | E18: =SUMIFS(Lanc_BC1!$H:$H,Lanc_BC1!$A:$A,">="&E$5,Lanc_BC1!$A:$A,"<"&F$5,Lanc_BC1!$F:$F,"="&$B18) -> 0 | F18: =SUMIFS(Lanc_BC1!$H:$H,Lanc_BC1!$A:$A,">="&F$5,Lanc_BC1!$A:$A,"<"&G$5,Lanc_BC1!$F:$F,"="&$B18) -> 0 | G18: =SUMIFS(Lanc_BC1!$H:$H,Lanc_BC1!$A:$A,">="&G$5,Lanc_BC1!$A:$A,"<"&H$5,Lanc_BC1!$F:$F,"="&$B18) -> 0 | H18: =SUMIFS(Lanc_BC1!$H:$H,Lanc_BC1!$A:$A,">="&H$5,Lanc_BC1!$A:$A,"<"&I$5,Lanc_BC1!$F:$F,"="&$B18) -> 0 | I18: =SUMIFS(Lanc_BC1!$H:$H,Lanc_BC1!$A:$A,">="&I$5,Lanc_BC1!$A:$A,"<"&J$5,Lanc_BC1!$F:$F,"="&$B18) -> 0 | J18: =SUMIFS(Lanc_BC1!$H:$H,Lanc_BC1!$A:$A,">="&J$5,Lanc_BC1!$A:$A,"<"&K$5,Lanc_BC1!$F:$F,"="&$B18) -> 0 | K18: =SUMIFS(Lanc_BC1!$H:$H,Lanc_BC1!$A:$A,">="&K$5,Lanc_BC1!$A:$A,"<"&L$5,Lanc_BC1!$F:$F,"="&$B18) -> 0 | L18: =SUMIFS(Lanc_BC1!$H:$H,Lanc_BC1!$A:$A,">="&L$5,Lanc_BC1!$A:$A,"<"&M$5,Lanc_BC1!$F:$F,"="&$B18) -> 0 | M18: =SUMIFS(Lanc_BC1!$H:$H,Lanc_BC1!$A:$A,">="&M$5,Lanc_BC1!$A:$A,"<"&N$5,Lanc_BC1!$F:$F,"="&$B18) -> 0 | N18: =SUMIFS(Lanc_BC1!$H:$H,Lanc_BC1!$A:$A,">="&N$5,Lanc_BC1!$A:$A,"<"&O$5,Lanc_BC1!$F:$F,"="&$B18) -> 0 | O18: =SUMIFS(#REF!,#REF!,">="&O$5,#REF!,"<"&P$5,#REF!,"="&$B18) ->  | P18: 0
B19: Parcelamentos de Impostos | C19: =SUMIFS(Lanc_BC1!$H:$H,Lanc_BC1!$A:$A,">="&C$5,Lanc_BC1!$A:$A,"<"&D$5,Lanc_BC1!$F:$F,"="&$B19) -> 0 | D19: =SUMIFS(Lanc_BC1!$H:$H,Lanc_BC1!$A:$A,">="&D$5,Lanc_BC1!$A:$A,"<"&E$5,Lanc_BC1!$F:$F,"="&$B19) -> 0 | E19: =SUMIFS(Lanc_BC1!$H:$H,Lanc_BC1!$A:$A,">="&E$5,Lanc_BC1!$A:$A,"<"&F$5,Lanc_BC1!$F:$F,"="&$B19) -> 0 | F19: =SUMIFS(Lanc_BC1!$H:$H,Lanc_BC1!$A:$A,">="&F$5,Lanc_BC1!$A:$A,"<"&G$5,Lanc_BC1!$F:$F,"="&$B19) -> 0 | G19: =SUMIFS(Lanc_BC1!$H:$H,Lanc_BC1!$A:$A,">="&G$5,Lanc_BC1!$A:$A,"<"&H$5,Lanc_BC1!$F:$F,"="&$B19) -> 0 | H19: =SUMIFS(Lanc_BC1!$H:$H,Lanc_BC1!$A:$A,">="&H$5,Lanc_BC1!$A:$A,"<"&I$5,Lanc_BC1!$F:$F,"="&$B19) -> 0 | I19: =SUMIFS(Lanc_BC1!$H:$H,Lanc_BC1!$A:$A,">="&I$5,Lanc_BC1!$A:$A,"<"&J$5,Lanc_BC1!$F:$F,"="&$B19) -> 0 | J19: =SUMIFS(Lanc_BC1!$H:$H,Lanc_BC1!$A:$A,">="&J$5,Lanc_BC1!$A:$A,"<"&K$5,Lanc_BC1!$F:$F,"="&$B19) -> 0 | K19: =SUMIFS(Lanc_BC1!$H:$H,Lanc_BC1!$A:$A,">="&K$5,Lanc_BC1!$A:$A,"<"&L$5,Lanc_BC1!$F:$F,"="&$B19) -> 0 | L19: =SUMIFS(Lanc_BC1!$H:$H,Lanc_BC1!$A:$A,">="&L$5,Lanc_BC1!$A:$A,"<"&M$5,Lanc_BC1!$F:$F,"="&$B19) -> 0 | M19: =SUMIFS(Lanc_BC1!$H:$H,Lanc_BC1!$A:$A,">="&M$5,Lanc_BC1!$A:$A,"<"&N$5,Lanc_BC1!$F:$F,"="&$B19) -> 0 | N19: =SUMIFS(Lanc_BC1!$H:$H,Lanc_BC1!$A:$A,">="&N$5,Lanc_BC1!$A:$A,"<"&O$5,Lanc_BC1!$F:$F,"="&$B19) -> 0 | O19: =SUMIFS(#REF!,#REF!,">="&O$5,#REF!,"<"&P$5,#REF!,"="&$B19) ->  | P19: 0
A20: X
A21: RECEITA LIQUIDA | C21: =C7-C12 -> 6840.47 | D21: 10545.37 | E21: 1246 | F21: 1.99 | G21: 0 | H21: 0 | I21: 0 | J21: 0 | K21: 0 | L21: 0 | M21: 0 | N21: 0 | P21: =P7-P12 -> 18633.83
A22: X
A23: CUSTOS OPERACIONAIS | C23: =SUM(C24:C31) -> 0 | D23: =SUM(D24:D31) -> 0 | E23: =SUM(E24:E31) -> 0 | F23: 0 | G23: 0 | H23: 0 | I23: 0 | J23: 0 | K23: 0 | L23: 0 | M23: 0 | N23: 0 | O23: =SUM(O24:O29) ->  | P23: =SUM(P24:P31) -> 0
A24: =IF(P24<>0,P24,"") ->  | B24: Fornecedor | C24: =SUMIFS(Lanc_BC1!$H:$H,Lanc_BC1!$A:$A,">="&C$5,Lanc_BC1!$A:$A,"<"&D$5,Lanc_BC1!$F:$F,"="&$B24) -> 0 | D24: =SUMIFS(Lanc_BC1!$H:$H,Lanc_BC1!$A:$A,">="&D$5,Lanc_BC1!$A:$A,"<"&E$5,Lanc_BC1!$F:$F,"="&$B24) -> 0 | E24: =SUMIFS(Lanc_BC1!$H:$H,Lanc_BC1!$A:$A,">="&E$5,Lanc_BC1!$A:$A,"<"&F$5,Lanc_BC1!$F:$F,"="&$B24) -> 0 | F24: =SUMIFS(Lanc_BC1!$H:$H,Lanc_BC1!$A:$A,">="&F$5,Lanc_BC1!$A:$A,"<"&G$5,Lanc_BC1!$F:$F,"="&$B24) -> 0 | G24: =SUMIFS(Lanc_BC1!$H:$H,Lanc_BC1!$A:$A,">="&G$5,Lanc_BC1!$A:$A,"<"&H$5,Lanc_BC1!$F:$F,"="&$B24) -> 0 | H24: =SUMIFS(Lanc_BC1!$H:$H,Lanc_BC1!$A:$A,">="&H$5,Lanc_BC1!$A:$A,"<"&I$5,Lanc_BC1!$F:$F,"="&$B24) -> 0 | I24: =SUMIFS(Lanc_BC1!$H:$H,Lanc_BC1!$A:$A,">="&I$5,Lanc_BC1!$A:$A,"<"&J$5,Lanc_BC1!$F:$F,"="&$B24) -> 0 | J24: =SUMIFS(Lanc_BC1!$H:$H,Lanc_BC1!$A:$A,">="&J$5,Lanc_BC1!$A:$A,"<"&K$5,Lanc_BC1!$F:$F,"="&$B24) -> 0 | K24: =SUMIFS(Lanc_BC1!$H:$H,Lanc_BC1!$A:$A,">="&K$5,Lanc_BC1!$A:$A,"<"&L$5,Lanc_BC1!$F:$F,"="&$B24) -> 0 | L24: =SUMIFS(Lanc_BC1!$H:$H,Lanc_BC1!$A:$A,">="&L$5,Lanc_BC1!$A:$A,"<"&M$5,Lanc_BC1!$F:$F,"="&$B24) -> 0 | M24: =SUMIFS(Lanc_BC1!$H:$H,Lanc_BC1!$A:$A,">="&M$5,Lanc_BC1!$A:$A,"<"&N$5,Lanc_BC1!$F:$F,"="&$B24) -> 0 | N24: =SUMIFS(Lanc_BC1!$H:$H,Lanc_BC1!$A:$A,">="&N$5,Lanc_BC1!$A:$A,"<"&O$5,Lanc_BC1!$F:$F,"="&$B24) -> 0 | O24: =SUMIFS(#REF!,#REF!,">="&O$5,#REF!,"<"&P$5,#REF!,"="&$B24) ->  | P24: =SUM(C24:N24) -> 0
B25: Fornecedor externo | C25: =SUMIFS(Lanc_BC1!$H:$H,Lanc_BC1!$A:$A,">="&C$5,Lanc_BC1!$A:$A,"<"&D$5,Lanc_BC1!$F:$F,"="&$B25) -> 0 | D25: =SUMIFS(Lanc_BC1!$H:$H,Lanc_BC1!$A:$A,">="&D$5,Lanc_BC1!$A:$A,"<"&E$5,Lanc_BC1!$F:$F,"="&$B25) -> 0 | E25: =SUMIFS(Lanc_BC1!$H:$H,Lanc_BC1!$A:$A,">="&E$5,Lanc_BC1!$A:$A,"<"&F$5,Lanc_BC1!$F:$F,"="&$B25) -> 0 | F25: =SUMIFS(Lanc_BC1!$H:$H,Lanc_BC1!$A:$A,">="&F$5,Lanc_BC1!$A:$A,"<"&G$5,Lanc_BC1!$F:$F,"="&$B25) -> 0 | G25: =SUMIFS(Lanc_BC1!$H:$H,Lanc_BC1!$A:$A,">="&G$5,Lanc_BC1!$A:$A,"<"&H$5,Lanc_BC1!$F:$F,"="&$B25) -> 0 | H25: =SUMIFS(Lanc_BC1!$H:$H,Lanc_BC1!$A:$A,">="&H$5,Lanc_BC1!$A:$A,"<"&I$5,Lanc_BC1!$F:$F,"="&$B25) -> 0 | I25: =SUMIFS(Lanc_BC1!$H:$H,Lanc_BC1!$A:$A,">="&I$5,Lanc_BC1!$A:$A,"<"&J$5,Lanc_BC1!$F:$F,"="&$B25) -> 0 | J25: =SUMIFS(Lanc_BC1!$H:$H,Lanc_BC1!$A:$A,">="&J$5,Lanc_BC1!$A:$A,"<"&K$5,Lanc_BC1!$F:$F,"="&$B25) -> 0 | K25: =SUMIFS(Lanc_BC1!$H:$H,Lanc_BC1!$A:$A,">="&K$5,Lanc_BC1!$A:$A,"<"&L$5,Lanc_BC1!$F:$F,"="&$B25) -> 0 | L25: =SUMIFS(Lanc_BC1!$H:$H,Lanc_BC1!$A:$A,">="&L$5,Lanc_BC1!$A:$A,"<"&M$5,Lanc_BC1!$F:$F,"="&$B25) -> 0 | M25: =SUMIFS(Lanc_BC1!$H:$H,Lanc_BC1!$A:$A,">="&M$5,Lanc_BC1!$A:$A,"<"&N$5,Lanc_BC1!$F:$F,"="&$B25) -> 0 | N25: =SUMIFS(Lanc_BC1!$H:$H,Lanc_BC1!$A:$A,">="&N$5,Lanc_BC1!$A:$A,"<"&O$5,Lanc_BC1!$F:$F,"="&$B25) -> 0 | O25: =SUMIFS(#REF!,#REF!,">="&O$5,#REF!,"<"&P$5,#REF!,"="&$B25) ->  | P25: 0
B26: Insumos de produção | C26: =SUMIFS(Lanc_BC1!$H:$H,Lanc_BC1!$A:$A,">="&C$5,Lanc_BC1!$A:$A,"<"&D$5,Lanc_BC1!$F:$F,"="&$B26) -> 0 | D26: =SUMIFS(Lanc_BC1!$H:$H,Lanc_BC1!$A:$A,">="&D$5,Lanc_BC1!$A:$A,"<"&E$5,Lanc_BC1!$F:$F,"="&$B26) -> 0 | E26: =SUMIFS(Lanc_BC1!$H:$H,Lanc_BC1!$A:$A,">="&E$5,Lanc_BC1!$A:$A,"<"&F$5,Lanc_BC1!$F:$F,"="&$B26) -> 0 | F26: =SUMIFS(Lanc_BC1!$H:$H,Lanc_BC1!$A:$A,">="&F$5,Lanc_BC1!$A:$A,"<"&G$5,Lanc_BC1!$F:$F,"="&$B26) -> 0 | G26: =SUMIFS(Lanc_BC1!$H:$H,Lanc_BC1!$A:$A,">="&G$5,Lanc_BC1!$A:$A,"<"&H$5,Lanc_BC1!$F:$F,"="&$B26) -> 0 | H26: =SUMIFS(Lanc_BC1!$H:$H,Lanc_BC1!$A:$A,">="&H$5,Lanc_BC1!$A:$A,"<"&I$5,Lanc_BC1!$F:$F,"="&$B26) -> 0 | I26: =SUMIFS(Lanc_BC1!$H:$H,Lanc_BC1!$A:$A,">="&I$5,Lanc_BC1!$A:$A,"<"&J$5,Lanc_BC1!$F:$F,"="&$B26) -> 0 | J26: =SUMIFS(Lanc_BC1!$H:$H,Lanc_BC1!$A:$A,">="&J$5,Lanc_BC1!$A:$A,"<"&K$5,Lanc_BC1!$F:$F,"="&$B26) -> 0 | K26: =SUMIFS(Lanc_BC1!$H:$H,Lanc_BC1!$A:$A,">="&K$5,Lanc_BC1!$A:$A,"<"&L$5,Lanc_BC1!$F:$F,"="&$B26) -> 0 | L26: =SUMIFS(Lanc_BC1!$H:$H,Lanc_BC1!$A:$A,">="&L$5,Lanc_BC1!$A:$A,"<"&M$5,Lanc_BC1!$F:$F,"="&$B26) -> 0 | M26: =SUMIFS(Lanc_BC1!$H:$H,Lanc_BC1!$A:$A,">="&M$5,Lanc_BC1!$A:$A,"<"&N$5,Lanc_BC1!$F:$F,"="&$B26) -> 0 | N26: =SUMIFS(Lanc_BC1!$H:$H,Lanc_BC1!$A:$A,">="&N$5,Lanc_BC1!$A:$A,"<"&O$5,Lanc_BC1!$F:$F,"="&$B26) -> 0 | O26: =SUMIFS(#REF!,#REF!,">="&O$5,#REF!,"<"&P$5,#REF!,"="&$B26) ->  | P26: 0
B27: Prestadores de serviços p/Operação | C27: =SUMIFS(Lanc_BC1!$H:$H,Lanc_BC1!$A:$A,">="&C$5,Lanc_BC1!$A:$A,"<"&D$5,Lanc_BC1!$F:$F,"="&$B27) -> 0 | D27: =SUMIFS(Lanc_BC1!$H:$H,Lanc_BC1!$A:$A,">="&D$5,Lanc_BC1!$A:$A,"<"&E$5,Lanc_BC1!$F:$F,"="&$B27) -> 0 | E27: =SUMIFS(Lanc_BC1!$H:$H,Lanc_BC1!$A:$A,">="&E$5,Lanc_BC1!$A:$A,"<"&F$5,Lanc_BC1!$F:$F,"="&$B27) -> 0 | F27: =SUMIFS(Lanc_BC1!$H:$H,Lanc_BC1!$A:$A,">="&F$5,Lanc_BC1!$A:$A,"<"&G$5,Lanc_BC1!$F:$F,"="&$B27) -> 0 | G27: =SUMIFS(Lanc_BC1!$H:$H,Lanc_BC1!$A:$A,">="&G$5,Lanc_BC1!$A:$A,"<"&H$5,Lanc_BC1!$F:$F,"="&$B27) -> 0 | H27: =SUMIFS(Lanc_BC1!$H:$H,Lanc_BC1!$A:$A,">="&H$5,Lanc_BC1!$A:$A,"<"&I$5,Lanc_BC1!$F:$F,"="&$B27) -> 0 | I27: =SUMIFS(Lanc_BC1!$H:$H,Lanc_BC1!$A:$A,">="&I$5,Lanc_BC1!$A:$A,"<"&J$5,Lanc_BC1!$F:$F,"="&$B27) -> 0 | J27: =SUMIFS(Lanc_BC1!$H:$H,Lanc_BC1!$A:$A,">="&J$5,Lanc_BC1!$A:$A,"<"&K$5,Lanc_BC1!$F:$F,"="&$B27) -> 0 | K27: =SUMIFS(Lanc_BC1!$H:$H,Lanc_BC1!$A:$A,">="&K$5,Lanc_BC1!$A:$A,"<"&L$5,Lanc_BC1!$F:$F,"="&$B27) -> 0 | L27: =SUMIFS(Lanc_BC1!$H:$H,Lanc_BC1!$A:$A,">="&L$5,Lanc_BC1!$A:$A,"<"&M$5,Lanc_BC1!$F:$F,"="&$B27) -> 0 | M27: =SUMIFS(Lanc_BC1!$H:$H,Lanc_BC1!$A:$A,">="&M$5,Lanc_BC1!$A:$A,"<"&N$5,Lanc_BC1!$F:$F,"="&$B27) -> 0 | N27: =SUMIFS(Lanc_BC1!$H:$H,Lanc_BC1!$A:$A,">="&N$5,Lanc_BC1!$A:$A,"<"&O$5,Lanc_BC1!$F:$F,"="&$B27) -> 0 | O27: =SUMIFS(#REF!,#REF!,">="&O$5,#REF!,"<"&P$5,#REF!,"="&$B27) ->  | P27: 0
B28: Variação cambial | C28: =SUMIFS(Lanc_BC1!$H:$H,Lanc_BC1!$A:$A,">="&C$5,Lanc_BC1!$A:$A,"<"&D$5,Lanc_BC1!$F:$F,"="&$B28) -> 0 | D28: =SUMIFS(Lanc_BC1!$H:$H,Lanc_BC1!$A:$A,">="&D$5,Lanc_BC1!$A:$A,"<"&E$5,Lanc_BC1!$F:$F,"="&$B28) -> 0 | E28: =SUMIFS(Lanc_BC1!$H:$H,Lanc_BC1!$A:$A,">="&E$5,Lanc_BC1!$A:$A,"<"&F$5,Lanc_BC1!$F:$F,"="&$B28) -> 0 | F28: =SUMIFS(Lanc_BC1!$H:$H,Lanc_BC1!$A:$A,">="&F$5,Lanc_BC1!$A:$A,"<"&G$5,Lanc_BC1!$F:$F,"="&$B28) -> 0 | G28: =SUMIFS(Lanc_BC1!$H:$H,Lanc_BC1!$A:$A,">="&G$5,Lanc_BC1!$A:$A,"<"&H$5,Lanc_BC1!$F:$F,"="&$B28) -> 0 | H28: =SUMIFS(Lanc_BC1!$H:$H,Lanc_BC1!$A:$A,">="&H$5,Lanc_BC1!$A:$A,"<"&I$5,Lanc_BC1!$F:$F,"="&$B28) -> 0 | I28: =SUMIFS(Lanc_BC1!$H:$H,Lanc_BC1!$A:$A,">="&I$5,Lanc_BC1!$A:$A,"<"&J$5,Lanc_BC1!$F:$F,"="&$B28) -> 0 | J28: =SUMIFS(Lanc_BC1!$H:$H,Lanc_BC1!$A:$A,">="&J$5,Lanc_BC1!$A:$A,"<"&K$5,Lanc_BC1!$F:$F,"="&$B28) -> 0 | K28: =SUMIFS(Lanc_BC1!$H:$H,Lanc_BC1!$A:$A,">="&K$5,Lanc_BC1!$A:$A,"<"&L$5,Lanc_BC1!$F:$F,"="&$B28) -> 0 | L28: =SUMIFS(Lanc_BC1!$H:$H,Lanc_BC1!$A:$A,">="&L$5,Lanc_BC1!$A:$A,"<"&M$5,Lanc_BC1!$F:$F,"="&$B28) -> 0 | M28: =SUMIFS(Lanc_BC1!$H:$H,Lanc_BC1!$A:$A,">="&M$5,Lanc_BC1!$A:$A,"<"&N$5,Lanc_BC1!$F:$F,"="&$B28) -> 0 | N28: =SUMIFS(Lanc_BC1!$H:$H,Lanc_BC1!$A:$A,">="&N$5,Lanc_BC1!$A:$A,"<"&O$5,Lanc_BC1!$F:$F,"="&$B28) -> 0 | O28: =SUMIFS(#REF!,#REF!,">="&O$5,#REF!,"<"&P$5,#REF!,"="&$B28) ->  | P28: 0
B29: Água p/Operação | C29: =SUMIFS(Lanc_BC1!$H:$H,Lanc_BC1!$A:$A,">="&C$5,Lanc_BC1!$A:$A,"<"&D$5,Lanc_BC1!$F:$F,"="&$B29) -> 0 | D29: =SUMIFS(Lanc_BC1!$H:$H,Lanc_BC1!$A:$A,">="&D$5,Lanc_BC1!$A:$A,"<"&E$5,Lanc_BC1!$F:$F,"="&$B29) -> 0 | E29: =SUMIFS(Lanc_BC1!$H:$H,Lanc_BC1!$A:$A,">="&E$5,Lanc_BC1!$A:$A,"<"&F$5,Lanc_BC1!$F:$F,"="&$B29) -> 0 | F29: =SUMIFS(Lanc_BC1!$H:$H,Lanc_BC1!$A:$A,">="&F$5,Lanc_BC1!$A:$A,"<"&G$5,Lanc_BC1!$F:$F,"="&$B29) -> 0 | G29: =SUMIFS(Lanc_BC1!$H:$H,Lanc_BC1!$A:$A,">="&G$5,Lanc_BC1!$A:$A,"<"&H$5,Lanc_BC1!$F:$F,"="&$B29) -> 0 | H29: =SUMIFS(Lanc_BC1!$H:$H,Lanc_BC1!$A:$A,">="&H$5,Lanc_BC1!$A:$A,"<"&I$5,Lanc_BC1!$F:$F,"="&$B29) -> 0 | I29: =SUMIFS(Lanc_BC1!$H:$H,Lanc_BC1!$A:$A,">="&I$5,Lanc_BC1!$A:$A,"<"&J$5,Lanc_BC1!$F:$F,"="&$B29) -> 0 | J29: =SUMIFS(Lanc_BC1!$H:$H,Lanc_BC1!$A:$A,">="&J$5,Lanc_BC1!$A:$A,"<"&K$5,Lanc_BC1!$F:$F,"="&$B29) -> 0 | K29: =SUMIFS(Lanc_BC1!$H:$H,Lanc_BC1!$A:$A,">="&K$5,Lanc_BC1!$A:$A,"<"&L$5,Lanc_BC1!$F:$F,"="&$B29) -> 0 | L29: =SUMIFS(Lanc_BC1!$H:$H,Lanc_BC1!$A:$A,">="&L$5,Lanc_BC1!$A:$A,"<"&M$5,Lanc_BC1!$F:$F,"="&$B29) -> 0 | M29: =SUMIFS(Lanc_BC1!$H:$H,Lanc_BC1!$A:$A,">="&M$5,Lanc_BC1!$A:$A,"<"&N$5,Lanc_BC1!$F:$F,"="&$B29) -> 0 | N29: =SUMIFS(Lanc_BC1!$H:$H,Lanc_BC1!$A:$A,">="&N$5,Lanc_BC1!$A:$A,"<"&O$5,Lanc_BC1!$F:$F,"="&$B29) -> 0 | O29: =SUMIFS(#REF!,#REF!,">="&O$5,#REF!,"<"&P$5,#REF!,"="&$B29) ->  | P29: 0
B30: Energia p/Operação | C30: =SUMIFS(Lanc_BC1!$H:$H,Lanc_BC1!$A:$A,">="&C$5,Lanc_BC1!$A:$A,"<"&D$5,Lanc_BC1!$F:$F,"="&$B30) -> 0 | D30: =SUMIFS(Lanc_BC1!$H:$H,Lanc_BC1!$A:$A,">="&D$5,Lanc_BC1!$A:$A,"<"&E$5,Lanc_BC1!$F:$F,"="&$B30) -> 0 | E30: =SUMIFS(Lanc_BC1!$H:$H,Lanc_BC1!$A:$A,">="&E$5,Lanc_BC1!$A:$A,"<"&F$5,Lanc_BC1!$F:$F,"="&$B30) -> 0 | F30: =SUMIFS(Lanc_BC1!$H:$H,Lanc_BC1!$A:$A,">="&F$5,Lanc_BC1!$A:$A,"<"&G$5,Lanc_BC1!$F:$F,"="&$B30) -> 0 | G30: =SUMIFS(Lanc_BC1!$H:$H,Lanc_BC1!$A:$A,">="&G$5,Lanc_BC1!$A:$A,"<"&H$5,Lanc_BC1!$F:$F,"="&$B30) -> 0 | H30: =SUMIFS(Lanc_BC1!$H:$H,Lanc_BC1!$A:$A,">="&H$5,Lanc_BC1!$A:$A,"<"&I$5,Lanc_BC1!$F:$F,"="&$B30) -> 0 | I30: =SUMIFS(Lanc_BC1!$H:$H,Lanc_BC1!$A:$A,">="&I$5,Lanc_BC1!$A:$A,"<"&J$5,Lanc_BC1!$F:$F,"="&$B30) -> 0 | J30: =SUMIFS(Lanc_BC1!$H:$H,Lanc_BC1!$A:$A,">="&J$5,Lanc_BC1!$A:$A,"<"&K$5,Lanc_BC1!$F:$F,"="&$B30) -> 0 | K30: =SUMIFS(Lanc_BC1!$H:$H,Lanc_BC1!$A:$A,">="&K$5,Lanc_BC1!$A:$A,"<"&L$5,Lanc_BC1!$F:$F,"="&$B30) -> 0 | L30: =SUMIFS(Lanc_BC1!$H:$H,Lanc_BC1!$A:$A,">="&L$5,Lanc_BC1!$A:$A,"<"&M$5,Lanc_BC1!$F:$F,"="&$B30) -> 0 | M30: =SUMIFS(Lanc_BC1!$H:$H,Lanc_BC1!$A:$A,">="&M$5,Lanc_BC1!$A:$A,"<"&N$5,Lanc_BC1!$F:$F,"="&$B30) -> 0 | N30: =SUMIFS(Lanc_BC1!$H:$H,Lanc_BC1!$A:$A,">="&N$5,Lanc_BC1!$A:$A,"<"&O$5,Lanc_BC1!$F:$F,"="&$B30) -> 0 | O30: =SUMIFS(#REF!,#REF!,">="&O$5,#REF!,"<"&P$5,#REF!,"="&$B30) ->  | P30: 0
B31: Manutenção p/Operação | C31: =SUMIFS(Lanc_BC1!$H:$H,Lanc_BC1!$A:$A,">="&C$5,Lanc_BC1!$A:$A,"<"&D$5,Lanc_BC1!$F:$F,"="&$B31) -> 0 | D31: =SUMIFS(Lanc_BC1!$H:$H,Lanc_BC1!$A:$A,">="&D$5,Lanc_BC1!$A:$A,"<"&E$5,Lanc_BC1!$F:$F,"="&$B31) -> 0 | E31: =SUMIFS(Lanc_BC1!$H:$H,Lanc_BC1!$A:$A,">="&E$5,Lanc_BC1!$A:$A,"<"&F$5,Lanc_BC1!$F:$F,"="&$B31) -> 0 | F31: =SUMIFS(Lanc_BC1!$H:$H,Lanc_BC1!$A:$A,">="&F$5,Lanc_BC1!$A:$A,"<"&G$5,Lanc_BC1!$F:$F,"="&$B31) -> 0 | G31: =SUMIFS(Lanc_BC1!$H:$H,Lanc_BC1!$A:$A,">="&G$5,Lanc_BC1!$A:$A,"<"&H$5,Lanc_BC1!$F:$F,"="&$B31) -> 0 | H31: =SUMIFS(Lanc_BC1!$H:$H,Lanc_BC1!$A:$A,">="&H$5,Lanc_BC1!$A:$A,"<"&I$5,Lanc_BC1!$F:$F,"="&$B31) -> 0 | I31: =SUMIFS(Lanc_BC1!$H:$H,Lanc_BC1!$A:$A,">="&I$5,Lanc_BC1!$A:$A,"<"&J$5,Lanc_BC1!$F:$F,"="&$B31) -> 0 | J31: =SUMIFS(Lanc_BC1!$H:$H,Lanc_BC1!$A:$A,">="&J$5,Lanc_BC1!$A:$A,"<"&K$5,Lanc_BC1!$F:$F,"="&$B31) -> 0 | K31: =SUMIFS(Lanc_BC1!$H:$H,Lanc_BC1!$A:$A,">="&K$5,Lanc_BC1!$A:$A,"<"&L$5,Lanc_BC1!$F:$F,"="&$B31) -> 0 | L31: =SUMIFS(Lanc_BC1!$H:$H,Lanc_BC1!$A:$A,">="&L$5,Lanc_BC1!$A:$A,"<"&M$5,Lanc_BC1!$F:$F,"="&$B31) -> 0 | M31: =SUMIFS(Lanc_BC1!$H:$H,Lanc_BC1!$A:$A,">="&M$5,Lanc_BC1!$A:$A,"<"&N$5,Lanc_BC1!$F:$F,"="&$B31) -> 0 | N31: =SUMIFS(Lanc_BC1!$H:$H,Lanc_BC1!$A:$A,">="&N$5,Lanc_BC1!$A:$A,"<"&O$5,Lanc_BC1!$F:$F,"="&$B31) -> 0 | O31: =SUMIFS(#REF!,#REF!,">="&O$5,#REF!,"<"&P$5,#REF!,"="&$B31) ->  | P31: 0
A32: X
A33: DESPESAS DE VENDAS | C33: =SUM(C34:C45) -> -9 | D33: =SUM(D34:D45) -> 0 | E33: 0 | F33: 0 | G33: 0 | H33: 0 | I33: 0 | J33: 0 | K33: 0 | L33: 0 | M33: 0 | N33: 0 | P33: =SUM(P34:P45) -> -9
A34: =IF(P34<>0,P34,"") ->  | B34: Ajuda de custo de vendas | C34: =SUMIFS(Lanc_BC1!$H:$H,Lanc_BC1!$A:$A,">="&C$5,Lanc_BC1!$A:$A,"<"&D$5,Lanc_BC1!$F:$F,"="&$B34) -> 0 | D34: =SUMIFS(Lanc_BC1!$H:$H,Lanc_BC1!$A:$A,">="&D$5,Lanc_BC1!$A:$A,"<"&E$5,Lanc_BC1!$F:$F,"="&$B34) -> 0 | E34: =SUMIFS(Lanc_BC1!$H:$H,Lanc_BC1!$A:$A,">="&E$5,Lanc_BC1!$A:$A,"<"&F$5,Lanc_BC1!$F:$F,"="&$B34) -> 0 | F34: =SUMIFS(Lanc_BC1!$H:$H,Lanc_BC1!$A:$A,">="&F$5,Lanc_BC1!$A:$A,"<"&G$5,Lanc_BC1!$F:$F,"="&$B34) -> 0 | G34: =SUMIFS(Lanc_BC1!$H:$H,Lanc_BC1!$A:$A,">="&G$5,Lanc_BC1!$A:$A,"<"&H$5,Lanc_BC1!$F:$F,"="&$B34) -> 0 | H34: =SUMIFS(Lanc_BC1!$H:$H,Lanc_BC1!$A:$A,">="&H$5,Lanc_BC1!$A:$A,"<"&I$5,Lanc_BC1!$F:$F,"="&$B34) -> 0 | I34: =SUMIFS(Lanc_BC1!$H:$H,Lanc_BC1!$A:$A,">="&I$5,Lanc_BC1!$A:$A,"<"&J$5,Lanc_BC1!$F:$F,"="&$B34) -> 0 | J34: =SUMIFS(Lanc_BC1!$H:$H,Lanc_BC1!$A:$A,">="&J$5,Lanc_BC1!$A:$A,"<"&K$5,Lanc_BC1!$F:$F,"="&$B34) -> 0 | K34: =SUMIFS(Lanc_BC1!$H:$H,Lanc_BC1!$A:$A,">="&K$5,Lanc_BC1!$A:$A,"<"&L$5,Lanc_BC1!$F:$F,"="&$B34) -> 0 | L34: =SUMIFS(Lanc_BC1!$H:$H,Lanc_BC1!$A:$A,">="&L$5,Lanc_BC1!$A:$A,"<"&M$5,Lanc_BC1!$F:$F,"="&$B34) -> 0 | M34: =SUMIFS(Lanc_BC1!$H:$H,Lanc_BC1!$A:$A,">="&M$5,Lanc_BC1!$A:$A,"<"&N$5,Lanc_BC1!$F:$F,"="&$B34) -> 0 | N34: =SUMIFS(Lanc_BC1!$H:$H,Lanc_BC1!$A:$A,">="&N$5,Lanc_BC1!$A:$A,"<"&O$5,Lanc_BC1!$F:$F,"="&$B34) -> 0 | O34: =SUMIFS(#REF!,#REF!,">="&O$5,#REF!,"<"&P$5,#REF!,"="&$B34) ->  | P34: =SUM(C34:N34) -> 0
B35: Brindes promocionais | C35: =SUMIFS(Lanc_BC1!$H:$H,Lanc_BC1!$A:$A,">="&C$5,Lanc_BC1!$A:$A,"<"&D$5,Lanc_BC1!$F:$F,"="&$B35) -> 0 | D35: =SUMIFS(Lanc_BC1!$H:$H,Lanc_BC1!$A:$A,">="&D$5,Lanc_BC1!$A:$A,"<"&E$5,Lanc_BC1!$F:$F,"="&$B35) -> 0 | E35: =SUMIFS(Lanc_BC1!$H:$H,Lanc_BC1!$A:$A,">="&E$5,Lanc_BC1!$A:$A,"<"&F$5,Lanc_BC1!$F:$F,"="&$B35) -> 0 | F35: =SUMIFS(Lanc_BC1!$H:$H,Lanc_BC1!$A:$A,">="&F$5,Lanc_BC1!$A:$A,"<"&G$5,Lanc_BC1!$F:$F,"="&$B35) -> 0 | G35: =SUMIFS(Lanc_BC1!$H:$H,Lanc_BC1!$A:$A,">="&G$5,Lanc_BC1!$A:$A,"<"&H$5,Lanc_BC1!$F:$F,"="&$B35) -> 0 | H35: =SUMIFS(Lanc_BC1!$H:$H,Lanc_BC1!$A:$A,">="&H$5,Lanc_BC1!$A:$A,"<"&I$5,Lanc_BC1!$F:$F,"="&$B35) -> 0 | I35: =SUMIFS(Lanc_BC1!$H:$H,Lanc_BC1!$A:$A,">="&I$5,Lanc_BC1!$A:$A,"<"&J$5,Lanc_BC1!$F:$F,"="&$B35) -> 0 | J35: =SUMIFS(Lanc_BC1!$H:$H,Lanc_BC1!$A:$A,">="&J$5,Lanc_BC1!$A:$A,"<"&K$5,Lanc_BC1!$F:$F,"="&$B35) -> 0 | K35: =SUMIFS(Lanc_BC1!$H:$H,Lanc_BC1!$A:$A,">="&K$5,Lanc_BC1!$A:$A,"<"&L$5,Lanc_BC1!$F:$F,"="&$B35) -> 0 | L35: =SUMIFS(Lanc_BC1!$H:$H,Lanc_BC1!$A:$A,">="&L$5,Lanc_BC1!$A:$A,"<"&M$5,Lanc_BC1!$F:$F,"="&$B35) -> 0 | M35: =SUMIFS(Lanc_BC1!$H:$H,Lanc_BC1!$A:$A,">="&M$5,Lanc_BC1!$A:$A,"<"&N$5,Lanc_BC1!$F:$F,"="&$B35) -> 0 | N35: =SUMIFS(Lanc_BC1!$H:$H,Lanc_BC1!$A:$A,">="&N$5,Lanc_BC1!$A:$A,"<"&O$5,Lanc_BC1!$F:$F,"="&$B35) -> 0 | O35: =SUMIFS(#REF!,#REF!,">="&O$5,#REF!,"<"&P$5,#REF!,"="&$B35) ->  | P35: 0
B36: Combustível e pedágio | C36: =SUMIFS(Lanc_BC1!$H:$H,Lanc_BC1!$A:$A,">="&C$5,Lanc_BC1!$A:$A,"<"&D$5,Lanc_BC1!$F:$F,"="&$B36) -> 0 | D36: =SUMIFS(Lanc_BC1!$H:$H,Lanc_BC1!$A:$A,">="&D$5,Lanc_BC1!$A:$A,"<"&E$5,Lanc_BC1!$F:$F,"="&$B36) -> 0 | E36: =SUMIFS(Lanc_BC1!$H:$H,Lanc_BC1!$A:$A,">="&E$5,Lanc_BC1!$A:$A,"<"&F$5,Lanc_BC1!$F:$F,"="&$B36) -> 0 | F36: =SUMIFS(Lanc_BC1!$H:$H,Lanc_BC1!$A:$A,">="&F$5,Lanc_BC1!$A:$A,"<"&G$5,Lanc_BC1!$F:$F,"="&$B36) -> 0 | G36: =SUMIFS(Lanc_BC1!$H:$H,Lanc_BC1!$A:$A,">="&G$5,Lanc_BC1!$A:$A,"<"&H$5,Lanc_BC1!$F:$F,"="&$B36) -> 0 | H36: =SUMIFS(Lanc_BC1!$H:$H,Lanc_BC1!$A:$A,">="&H$5,Lanc_BC1!$A:$A,"<"&I$5,Lanc_BC1!$F:$F,"="&$B36) -> 0 | I36: =SUMIFS(Lanc_BC1!$H:$H,Lanc_BC1!$A:$A,">="&I$5,Lanc_BC1!$A:$A,"<"&J$5,Lanc_BC1!$F:$F,"="&$B36) -> 0 | J36: =SUMIFS(Lanc_BC1!$H:$H,Lanc_BC1!$A:$A,">="&J$5,Lanc_BC1!$A:$A,"<"&K$5,Lanc_BC1!$F:$F,"="&$B36) -> 0 | K36: =SUMIFS(Lanc_BC1!$H:$H,Lanc_BC1!$A:$A,">="&K$5,Lanc_BC1!$A:$A,"<"&L$5,Lanc_BC1!$F:$F,"="&$B36) -> 0 | L36: =SUMIFS(Lanc_BC1!$H:$H,Lanc_BC1!$A:$A,">="&L$5,Lanc_BC1!$A:$A,"<"&M$5,Lanc_BC1!$F:$F,"="&$B36) -> 0 | M36: =SUMIFS(Lanc_BC1!$H:$H,Lanc_BC1!$A:$A,">="&M$5,Lanc_BC1!$A:$A,"<"&N$5,Lanc_BC1!$F:$F,"="&$B36) -> 0 | N36: =SUMIFS(Lanc_BC1!$H:$H,Lanc_BC1!$A:$A,">="&N$5,Lanc_BC1!$A:$A,"<"&O$5,Lanc_BC1!$F:$F,"="&$B36) -> 0 | O36: =SUMIFS(#REF!,#REF!,">="&O$5,#REF!,"<"&P$5,#REF!,"="&$B36) ->  | P36: 0
B37: Comissões sobre vendas | C37: =SUMIFS(Lanc_BC1!$H:$H,Lanc_BC1!$A:$A,">="&C$5,Lanc_BC1!$A:$A,"<"&D$5,Lanc_BC1!$F:$F,"="&$B37) -> 0 | D37: =SUMIFS(Lanc_BC1!$H:$H,Lanc_BC1!$A:$A,">="&D$5,Lanc_BC1!$A:$A,"<"&E$5,Lanc_BC1!$F:$F,"="&$B37) -> 0 | E37: =SUMIFS(Lanc_BC1!$H:$H,Lanc_BC1!$A:$A,">="&E$5,Lanc_BC1!$A:$A,"<"&F$5,Lanc_BC1!$F:$F,"="&$B37) -> 0 | F37: =SUMIFS(Lanc_BC1!$H:$H,Lanc_BC1!$A:$A,">="&F$5,Lanc_BC1!$A:$A,"<"&G$5,Lanc_BC1!$F:$F,"="&$B37) -> 0 | G37: =SUMIFS(Lanc_BC1!$H:$H,Lanc_BC1!$A:$A,">="&G$5,Lanc_BC1!$A:$A,"<"&H$5,Lanc_BC1!$F:$F,"="&$B37) -> 0 | H37: =SUMIFS(Lanc_BC1!$H:$H,Lanc_BC1!$A:$A,">="&H$5,Lanc_BC1!$A:$A,"<"&I$5,Lanc_BC1!$F:$F,"="&$B37) -> 0 | I37: =SUMIFS(Lanc_BC1!$H:$H,Lanc_BC1!$A:$A,">="&I$5,Lanc_BC1!$A:$A,"<"&J$5,Lanc_BC1!$F:$F,"="&$B37) -> 0 | J37: =SUMIFS(Lanc_BC1!$H:$H,Lanc_BC1!$A:$A,">="&J$5,Lanc_BC1!$A:$A,"<"&K$5,Lanc_BC1!$F:$F,"="&$B37) -> 0 | K37: =SUMIFS(Lanc_BC1!$H:$H,Lanc_BC1!$A:$A,">="&K$5,Lanc_BC1!$A:$A,"<"&L$5,Lanc_BC1!$F:$F,"="&$B37) -> 0 | L37: =SUMIFS(Lanc_BC1!$H:$H,Lanc_BC1!$A:$A,">="&L$5,Lanc_BC1!$A:$A,"<"&M$5,Lanc_BC1!$F:$F,"="&$B37) -> 0 | M37: =SUMIFS(Lanc_BC1!$H:$H,Lanc_BC1!$A:$A,">="&M$5,Lanc_BC1!$A:$A,"<"&N$5,Lanc_BC1!$F:$F,"="&$B37) -> 0 | N37: =SUMIFS(Lanc_BC1!$H:$H,Lanc_BC1!$A:$A,">="&N$5,Lanc_BC1!$A:$A,"<"&O$5,Lanc_BC1!$F:$F,"="&$B37) -> 0 | O37: =SUMIFS(#REF!,#REF!,">="&O$5,#REF!,"<"&P$5,#REF!,"="&$B37) ->  | P37: 0
B38: Cursos de vendas | C38: =SUMIFS(Lanc_BC1!$H:$H,Lanc_BC1!$A:$A,">="&C$5,Lanc_BC1!$A:$A,"<"&D$5,Lanc_BC1!$F:$F,"="&$B38) -> 0 | D38: =SUMIFS(Lanc_BC1!$H:$H,Lanc_BC1!$A:$A,">="&D$5,Lanc_BC1!$A:$A,"<"&E$5,Lanc_BC1!$F:$F,"="&$B38) -> 0 | E38: =SUMIFS(Lanc_BC1!$H:$H,Lanc_BC1!$A:$A,">="&E$5,Lanc_BC1!$A:$A,"<"&F$5,Lanc_BC1!$F:$F,"="&$B38) -> 0 | F38: =SUMIFS(Lanc_BC1!$H:$H,Lanc_BC1!$A:$A,">="&F$5,Lanc_BC1!$A:$A,"<"&G$5,Lanc_BC1!$F:$F,"="&$B38) -> 0 | G38: =SUMIFS(Lanc_BC1!$H:$H,Lanc_BC1!$A:$A,">="&G$5,Lanc_BC1!$A:$A,"<"&H$5,Lanc_BC1!$F:$F,"="&$B38) -> 0 | H38: =SUMIFS(Lanc_BC1!$H:$H,Lanc_BC1!$A:$A,">="&H$5,Lanc_BC1!$A:$A,"<"&I$5,Lanc_BC1!$F:$F,"="&$B38) -> 0 | I38: =SUMIFS(Lanc_BC1!$H:$H,Lanc_BC1!$A:$A,">="&I$5,Lanc_BC1!$A:$A,"<"&J$5,Lanc_BC1!$F:$F,"="&$B38) -> 0 | J38: =SUMIFS(Lanc_BC1!$H:$H,Lanc_BC1!$A:$A,">="&J$5,Lanc_BC1!$A:$A,"<"&K$5,Lanc_BC1!$F:$F,"="&$B38) -> 0 | K38: =SUMIFS(Lanc_BC1!$H:$H,Lanc_BC1!$A:$A,">="&K$5,Lanc_BC1!$A:$A,"<"&L$5,Lanc_BC1!$F:$F,"="&$B38) -> 0 | L38: =SUMIFS(Lanc_BC1!$H:$H,Lanc_BC1!$A:$A,">="&L$5,Lanc_BC1!$A:$A,"<"&M$5,Lanc_BC1!$F:$F,"="&$B38) -> 0 | M38: =SUMIFS(Lanc_BC1!$H:$H,Lanc_BC1!$A:$A,">="&M$5,Lanc_BC1!$A:$A,"<"&N$5,Lanc_BC1!$F:$F,"="&$B38) -> 0 | N38: =SUMIFS(Lanc_BC1!$H:$H,Lanc_BC1!$A:$A,">="&N$5,Lanc_BC1!$A:$A,"<"&O$5,Lanc_BC1!$F:$F,"="&$B38) -> 0 | O38: =SUMIFS(#REF!,#REF!,">="&O$5,#REF!,"<"&P$5,#REF!,"="&$B38) ->  | P38: 0
B39: Despesas c/ Processo de vendas | C39: =SUMIFS(Lanc_BC1!$H:$H,Lanc_BC1!$A:$A,">="&C$5,Lanc_BC1!$A:$A,"<"&D$5,Lanc_BC1!$F:$F,"="&$B39) -> 0 | D39: =SUMIFS(Lanc_BC1!$H:$H,Lanc_BC1!$A:$A,">="&D$5,Lanc_BC1!$A:$A,"<"&E$5,Lanc_BC1!$F:$F,"="&$B39) -> 0 | E39: =SUMIFS(Lanc_BC1!$H:$H,Lanc_BC1!$A:$A,">="&E$5,Lanc_BC1!$A:$A,"<"&F$5,Lanc_BC1!$F:$F,"="&$B39) -> 0 | F39: =SUMIFS(Lanc_BC1!$H:$H,Lanc_BC1!$A:$A,">="&F$5,Lanc_BC1!$A:$A,"<"&G$5,Lanc_BC1!$F:$F,"="&$B39) -> 0 | G39: =SUMIFS(Lanc_BC1!$H:$H,Lanc_BC1!$A:$A,">="&G$5,Lanc_BC1!$A:$A,"<"&H$5,Lanc_BC1!$F:$F,"="&$B39) -> 0 | H39: =SUMIFS(Lanc_BC1!$H:$H,Lanc_BC1!$A:$A,">="&H$5,Lanc_BC1!$A:$A,"<"&I$5,Lanc_BC1!$F:$F,"="&$B39) -> 0 | I39: =SUMIFS(Lanc_BC1!$H:$H,Lanc_BC1!$A:$A,">="&I$5,Lanc_BC1!$A:$A,"<"&J$5,Lanc_BC1!$F:$F,"="&$B39) -> 0 | J39: =SUMIFS(Lanc_BC1!$H:$H,Lanc_BC1!$A:$A,">="&J$5,Lanc_BC1!$A:$A,"<"&K$5,Lanc_BC1!$F:$F,"="&$B39) -> 0 | K39: =SUMIFS(Lanc_BC1!$H:$H,Lanc_BC1!$A:$A,">="&K$5,Lanc_BC1!$A:$A,"<"&L$5,Lanc_BC1!$F:$F,"="&$B39) -> 0 | L39: =SUMIFS(Lanc_BC1!$H:$H,Lanc_BC1!$A:$A,">="&L$5,Lanc_BC1!$A:$A,"<"&M$5,Lanc_BC1!$F:$F,"="&$B39) -> 0 | M39: =SUMIFS(Lanc_BC1!$H:$H,Lanc_BC1!$A:$A,">="&M$5,Lanc_BC1!$A:$A,"<"&N$5,Lanc_BC1!$F:$F,"="&$B39) -> 0 | N39: =SUMIFS(Lanc_BC1!$H:$H,Lanc_BC1!$A:$A,">="&N$5,Lanc_BC1!$A:$A,"<"&O$5,Lanc_BC1!$F:$F,"="&$B39) -> 0 | O39: =SUMIFS(#REF!,#REF!,">="&O$5,#REF!,"<"&P$5,#REF!,"="&$B39) ->  | P39: 0
B40: Despesas com viagens de vendas | C40: =SUMIFS(Lanc_BC1!$H:$H,Lanc_BC1!$A:$A,">="&C$5,Lanc_BC1!$A:$A,"<"&D$5,Lanc_BC1!$F:$F,"="&$B40) -> 0 | D40: =SUMIFS(Lanc_BC1!$H:$H,Lanc_BC1!$A:$A,">="&D$5,Lanc_BC1!$A:$A,"<"&E$5,Lanc_BC1!$F:$F,"="&$B40) -> 0 | E40: =SUMIFS(Lanc_BC1!$H:$H,Lanc_BC1!$A:$A,">="&E$5,Lanc_BC1!$A:$A,"<"&F$5,Lanc_BC1!$F:$F,"="&$B40) -> 0 | F40: =SUMIFS(Lanc_BC1!$H:$H,Lanc_BC1!$A:$A,">="&F$5,Lanc_BC1!$A:$A,"<"&G$5,Lanc_BC1!$F:$F,"="&$B40) -> 0 | G40: =SUMIFS(Lanc_BC1!$H:$H,Lanc_BC1!$A:$A,">="&G$5,Lanc_BC1!$A:$A,"<"&H$5,Lanc_BC1!$F:$F,"="&$B40) -> 0 | H40: =SUMIFS(Lanc_BC1!$H:$H,Lanc_BC1!$A:$A,">="&H$5,Lanc_BC1!$A:$A,"<"&I$5,Lanc_BC1!$F:$F,"="&$B40) -> 0 | I40: =SUMIFS(Lanc_BC1!$H:$H,Lanc_BC1!$A:$A,">="&I$5,Lanc_BC1!$A:$A,"<"&J$5,Lanc_BC1!$F:$F,"="&$B40) -> 0 | J40: =SUMIFS(Lanc_BC1!$H:$H,Lanc_BC1!$A:$A,">="&J$5,Lanc_BC1!$A:$A,"<"&K$5,Lanc_BC1!$F:$F,"="&$B40) -> 0 | K40: =SUMIFS(Lanc_BC1!$H:$H,Lanc_BC1!$A:$A,">="&K$5,Lanc_BC1!$A:$A,"<"&L$5,Lanc_BC1!$F:$F,"="&$B40) -> 0 | L40: =SUMIFS(Lanc_BC1!$H:$H,Lanc_BC1!$A:$A,">="&L$5,Lanc_BC1!$A:$A,"<"&M$5,Lanc_BC1!$F:$F,"="&$B40) -> 0 | M40: =SUMIFS(Lanc_BC1!$H:$H,Lanc_BC1!$A:$A,">="&M$5,Lanc_BC1!$A:$A,"<"&N$5,Lanc_BC1!$F:$F,"="&$B40) -> 0 | N40: =SUMIFS(Lanc_BC1!$H:$H,Lanc_BC1!$A:$A,">="&N$5,Lanc_BC1!$A:$A,"<"&O$5,Lanc_BC1!$F:$F,"="&$B40) -> 0 | O40: =SUMIFS(#REF!,#REF!,">="&O$5,#REF!,"<"&P$5,#REF!,"="&$B40) ->  | P40: 0
B41: Lanches e refeições | C41: =SUMIFS(Lanc_BC1!$H:$H,Lanc_BC1!$A:$A,">="&C$5,Lanc_BC1!$A:$A,"<"&D$5,Lanc_BC1!$F:$F,"="&$B41) -> 0 | D41: =SUMIFS(Lanc_BC1!$H:$H,Lanc_BC1!$A:$A,">="&D$5,Lanc_BC1!$A:$A,"<"&E$5,Lanc_BC1!$F:$F,"="&$B41) -> 0 | E41: =SUMIFS(Lanc_BC1!$H:$H,Lanc_BC1!$A:$A,">="&E$5,Lanc_BC1!$A:$A,"<"&F$5,Lanc_BC1!$F:$F,"="&$B41) -> 0 | F41: =SUMIFS(Lanc_BC1!$H:$H,Lanc_BC1!$A:$A,">="&F$5,Lanc_BC1!$A:$A,"<"&G$5,Lanc_BC1!$F:$F,"="&$B41) -> 0 | G41: =SUMIFS(Lanc_BC1!$H:$H,Lanc_BC1!$A:$A,">="&G$5,Lanc_BC1!$A:$A,"<"&H$5,Lanc_BC1!$F:$F,"="&$B41) -> 0 | H41: =SUMIFS(Lanc_BC1!$H:$H,Lanc_BC1!$A:$A,">="&H$5,Lanc_BC1!$A:$A,"<"&I$5,Lanc_BC1!$F:$F,"="&$B41) -> 0 | I41: =SUMIFS(Lanc_BC1!$H:$H,Lanc_BC1!$A:$A,">="&I$5,Lanc_BC1!$A:$A,"<"&J$5,Lanc_BC1!$F:$F,"="&$B41) -> 0 | J41: =SUMIFS(Lanc_BC1!$H:$H,Lanc_BC1!$A:$A,">="&J$5,Lanc_BC1!$A:$A,"<"&K$5,Lanc_BC1!$F:$F,"="&$B41) -> 0 | K41: =SUMIFS(Lanc_BC1!$H:$H,Lanc_BC1!$A:$A,">="&K$5,Lanc_BC1!$A:$A,"<"&L$5,Lanc_BC1!$F:$F,"="&$B41) -> 0 | L41: =SUMIFS(Lanc_BC1!$H:$H,Lanc_BC1!$A:$A,">="&L$5,Lanc_BC1!$A:$A,"<"&M$5,Lanc_BC1!$F:$F,"="&$B41) -> 0 | M41: =SUMIFS(Lanc_BC1!$H:$H,Lanc_BC1!$A:$A,">="&M$5,Lanc_BC1!$A:$A,"<"&N$5,Lanc_BC1!$F:$F,"="&$B41) -> 0 | N41: =SUMIFS(Lanc_BC1!$H:$H,Lanc_BC1!$A:$A,">="&N$5,Lanc_BC1!$A:$A,"<"&O$5,Lanc_BC1!$F:$F,"="&$B41) -> 0 | O41: =SUMIFS(#REF!,#REF!,">="&O$5,#REF!,"<"&P$5,#REF!,"="&$B41) ->  | P41: 0
A42: -9 | B42: Marketing e publicidade | C42: =SUMIFS(Lanc_BC1!$H:$H,Lanc_BC1!$A:$A,">="&C$5,Lanc_BC1!$A:$A,"<"&D$5,Lanc_BC1!$F:$F,"="&$B42) -> -9 | D42: =SUMIFS(Lanc_BC1!$H:$H,Lanc_BC1!$A:$A,">="&D$5,Lanc_BC1!$A:$A,"<"&E$5,Lanc_BC1!$F:$F,"="&$B42) -> 0 | E42: =SUMIFS(Lanc_BC1!$H:$H,Lanc_BC1!$A:$A,">="&E$5,Lanc_BC1!$A:$A,"<"&F$5,Lanc_BC1!$F:$F,"="&$B42) -> 0 | F42: =SUMIFS(Lanc_BC1!$H:$H,Lanc_BC1!$A:$A,">="&F$5,Lanc_BC1!$A:$A,"<"&G$5,Lanc_BC1!$F:$F,"="&$B42) -> 0 | G42: =SUMIFS(Lanc_BC1!$H:$H,Lanc_BC1!$A:$A,">="&G$5,Lanc_BC1!$A:$A,"<"&H$5,Lanc_BC1!$F:$F,"="&$B42) -> 0 | H42: =SUMIFS(Lanc_BC1!$H:$H,Lanc_BC1!$A:$A,">="&H$5,Lanc_BC1!$A:$A,"<"&I$5,Lanc_BC1!$F:$F,"="&$B42) -> 0 | I42: =SUMIFS(Lanc_BC1!$H:$H,Lanc_BC1!$A:$A,">="&I$5,Lanc_BC1!$A:$A,"<"&J$5,Lanc_BC1!$F:$F,"="&$B42) -> 0 | J42: =SUMIFS(Lanc_BC1!$H:$H,Lanc_BC1!$A:$A,">="&J$5,Lanc_BC1!$A:$A,"<"&K$5,Lanc_BC1!$F:$F,"="&$B42) -> 0 | K42: =SUMIFS(Lanc_BC1!$H:$H,Lanc_BC1!$A:$A,">="&K$5,Lanc_BC1!$A:$A,"<"&L$5,Lanc_BC1!$F:$F,"="&$B42) -> 0 | L42: =SUMIFS(Lanc_BC1!$H:$H,Lanc_BC1!$A:$A,">="&L$5,Lanc_BC1!$A:$A,"<"&M$5,Lanc_BC1!$F:$F,"="&$B42) -> 0 | M42: =SUMIFS(Lanc_BC1!$H:$H,Lanc_BC1!$A:$A,">="&M$5,Lanc_BC1!$A:$A,"<"&N$5,Lanc_BC1!$F:$F,"="&$B42) -> 0 | N42: =SUMIFS(Lanc_BC1!$H:$H,Lanc_BC1!$A:$A,">="&N$5,Lanc_BC1!$A:$A,"<"&O$5,Lanc_BC1!$F:$F,"="&$B42) -> 0 | O42: =SUMIFS(#REF!,#REF!,">="&O$5,#REF!,"<"&P$5,#REF!,"="&$B42) ->  | P42: -9
B43: Premiação e gratificações | C43: =SUMIFS(Lanc_BC1!$H:$H,Lanc_BC1!$A:$A,">="&C$5,Lanc_BC1!$A:$A,"<"&D$5,Lanc_BC1!$F:$F,"="&$B43) -> 0 | D43: =SUMIFS(Lanc_BC1!$H:$H,Lanc_BC1!$A:$A,">="&D$5,Lanc_BC1!$A:$A,"<"&E$5,Lanc_BC1!$F:$F,"="&$B43) -> 0 | E43: =SUMIFS(Lanc_BC1!$H:$H,Lanc_BC1!$A:$A,">="&E$5,Lanc_BC1!$A:$A,"<"&F$5,Lanc_BC1!$F:$F,"="&$B43) -> 0 | F43: =SUMIFS(Lanc_BC1!$H:$H,Lanc_BC1!$A:$A,">="&F$5,Lanc_BC1!$A:$A,"<"&G$5,Lanc_BC1!$F:$F,"="&$B43) -> 0 | G43: =SUMIFS(Lanc_BC1!$H:$H,Lanc_BC1!$A:$A,">="&G$5,Lanc_BC1!$A:$A,"<"&H$5,Lanc_BC1!$F:$F,"="&$B43) -> 0 | H43: =SUMIFS(Lanc_BC1!$H:$H,Lanc_BC1!$A:$A,">="&H$5,Lanc_BC1!$A:$A,"<"&I$5,Lanc_BC1!$F:$F,"="&$B43) -> 0 | I43: =SUMIFS(Lanc_BC1!$H:$H,Lanc_BC1!$A:$A,">="&I$5,Lanc_BC1!$A:$A,"<"&J$5,Lanc_BC1!$F:$F,"="&$B43) -> 0 | J43: =SUMIFS(Lanc_BC1!$H:$H,Lanc_BC1!$A:$A,">="&J$5,Lanc_BC1!$A:$A,"<"&K$5,Lanc_BC1!$F:$F,"="&$B43) -> 0 | K43: =SUMIFS(Lanc_BC1!$H:$H,Lanc_BC1!$A:$A,">="&K$5,Lanc_BC1!$A:$A,"<"&L$5,Lanc_BC1!$F:$F,"="&$B43) -> 0 | L43: =SUMIFS(Lanc_BC1!$H:$H,Lanc_BC1!$A:$A,">="&L$5,Lanc_BC1!$A:$A,"<"&M$5,Lanc_BC1!$F:$F,"="&$B43) -> 0 | M43: =SUMIFS(Lanc_BC1!$H:$H,Lanc_BC1!$A:$A,">="&M$5,Lanc_BC1!$A:$A,"<"&N$5,Lanc_BC1!$F:$F,"="&$B43) -> 0 | N43: =SUMIFS(Lanc_BC1!$H:$H,Lanc_BC1!$A:$A,">="&N$5,Lanc_BC1!$A:$A,"<"&O$5,Lanc_BC1!$F:$F,"="&$B43) -> 0 | O43: =SUMIFS(#REF!,#REF!,">="&O$5,#REF!,"<"&P$5,#REF!,"="&$B43) ->  | P43: 0
B44: Royaltes | C44: =SUMIFS(Lanc_BC1!$H:$H,Lanc_BC1!$A:$A,">="&C$5,Lanc_BC1!$A:$A,"<"&D$5,Lanc_BC1!$F:$F,"="&$B44) -> 0 | D44: =SUMIFS(Lanc_BC1!$H:$H,Lanc_BC1!$A:$A,">="&D$5,Lanc_BC1!$A:$A,"<"&E$5,Lanc_BC1!$F:$F,"="&$B44) -> 0 | E44: =SUMIFS(Lanc_BC1!$H:$H,Lanc_BC1!$A:$A,">="&E$5,Lanc_BC1!$A:$A,"<"&F$5,Lanc_BC1!$F:$F,"="&$B44) -> 0 | F44: =SUMIFS(Lanc_BC1!$H:$H,Lanc_BC1!$A:$A,">="&F$5,Lanc_BC1!$A:$A,"<"&G$5,Lanc_BC1!$F:$F,"="&$B44) -> 0 | G44: =SUMIFS(Lanc_BC1!$H:$H,Lanc_BC1!$A:$A,">="&G$5,Lanc_BC1!$A:$A,"<"&H$5,Lanc_BC1!$F:$F,"="&$B44) -> 0 | H44: =SUMIFS(Lanc_BC1!$H:$H,Lanc_BC1!$A:$A,">="&H$5,Lanc_BC1!$A:$A,"<"&I$5,Lanc_BC1!$F:$F,"="&$B44) -> 0 | I44: =SUMIFS(Lanc_BC1!$H:$H,Lanc_BC1!$A:$A,">="&I$5,Lanc_BC1!$A:$A,"<"&J$5,Lanc_BC1!$F:$F,"="&$B44) -> 0 | J44: =SUMIFS(Lanc_BC1!$H:$H,Lanc_BC1!$A:$A,">="&J$5,Lanc_BC1!$A:$A,"<"&K$5,Lanc_BC1!$F:$F,"="&$B44) -> 0 | K44: =SUMIFS(Lanc_BC1!$H:$H,Lanc_BC1!$A:$A,">="&K$5,Lanc_BC1!$A:$A,"<"&L$5,Lanc_BC1!$F:$F,"="&$B44) -> 0 | L44: =SUMIFS(Lanc_BC1!$H:$H,Lanc_BC1!$A:$A,">="&L$5,Lanc_BC1!$A:$A,"<"&M$5,Lanc_BC1!$F:$F,"="&$B44) -> 0 | M44: =SUMIFS(Lanc_BC1!$H:$H,Lanc_BC1!$A:$A,">="&M$5,Lanc_BC1!$A:$A,"<"&N$5,Lanc_BC1!$F:$F,"="&$B44) -> 0 | N44: =SUMIFS(Lanc_BC1!$H:$H,Lanc_BC1!$A:$A,">="&N$5,Lanc_BC1!$A:$A,"<"&O$5,Lanc_BC1!$F:$F,"="&$B44) -> 0 | O44: =SUMIFS(#REF!,#REF!,">="&O$5,#REF!,"<"&P$5,#REF!,"="&$B44) ->  | P44: 0
B45: Transportadora de vendas | C45: =SUMIFS(Lanc_BC1!$H:$H,Lanc_BC1!$A:$A,">="&C$5,Lanc_BC1!$A:$A,"<"&D$5,Lanc_BC1!$F:$F,"="&$B45) -> 0 | D45: =SUMIFS(Lanc_BC1!$H:$H,Lanc_BC1!$A:$A,">="&D$5,Lanc_BC1!$A:$A,"<"&E$5,Lanc_BC1!$F:$F,"="&$B45) -> 0 | E45: =SUMIFS(Lanc_BC1!$H:$H,Lanc_BC1!$A:$A,">="&E$5,Lanc_BC1!$A:$A,"<"&F$5,Lanc_BC1!$F:$F,"="&$B45) -> 0 | F45: =SUMIFS(Lanc_BC1!$H:$H,Lanc_BC1!$A:$A,">="&F$5,Lanc_BC1!$A:$A,"<"&G$5,Lanc_BC1!$F:$F,"="&$B45) -> 0 | G45: =SUMIFS(Lanc_BC1!$H:$H,Lanc_BC1!$A:$A,">="&G$5,Lanc_BC1!$A:$A,"<"&H$5,Lanc_BC1!$F:$F,"="&$B45) -> 0 | H45: =SUMIFS(Lanc_BC1!$H:$H,Lanc_BC1!$A:$A,">="&H$5,Lanc_BC1!$A:$A,"<"&I$5,Lanc_BC1!$F:$F,"="&$B45) -> 0 | I45: =SUMIFS(Lanc_BC1!$H:$H,Lanc_BC1!$A:$A,">="&I$5,Lanc_BC1!$A:$A,"<"&J$5,Lanc_BC1!$F:$F,"="&$B45) -> 0 | J45: =SUMIFS(Lanc_BC1!$H:$H,Lanc_BC1!$A:$A,">="&J$5,Lanc_BC1!$A:$A,"<"&K$5,Lanc_BC1!$F:$F,"="&$B45) -> 0 | K45: =SUMIFS(Lanc_BC1!$H:$H,Lanc_BC1!$A:$A,">="&K$5,Lanc_BC1!$A:$A,"<"&L$5,Lanc_BC1!$F:$F,"="&$B45) -> 0 | L45: =SUMIFS(Lanc_BC1!$H:$H,Lanc_BC1!$A:$A,">="&L$5,Lanc_BC1!$A:$A,"<"&M$5,Lanc_BC1!$F:$F,"="&$B45) -> 0 | M45: =SUMIFS(Lanc_BC1!$H:$H,Lanc_BC1!$A:$A,">="&M$5,Lanc_BC1!$A:$A,"<"&N$5,Lanc_BC1!$F:$F,"="&$B45) -> 0 | N45: =SUMIFS(Lanc_BC1!$H:$H,Lanc_BC1!$A:$A,">="&N$5,Lanc_BC1!$A:$A,"<"&O$5,Lanc_BC1!$F:$F,"="&$B45) -> 0 | O45: =SUMIFS(#REF!,#REF!,">="&O$5,#REF!,"<"&P$5,#REF!,"="&$B45) ->  | P45: 0
A46: X
A47: ADIANTAMENTO A FORNECEDORES | C47: =SUM(C48:C49) -> 0 | D47: 0 | E47: 0 | F47: 0 | G47: 0 | H47: 0 | I47: 0 | J47: 0 | K47: 0 | L47: 0 | M47: 0 | N47: 0 | P47: =SUM(P48:P49) -> 0
A48: =IF(P48<>0,P48,"") ->  | B48: Adiantamento a fornecedores | C48: =SUMIFS(Lanc_BC1!$H:$H,Lanc_BC1!$A:$A,">="&C$5,Lanc_BC1!$A:$A,"<"&D$5,Lanc_BC1!$F:$F,"="&$B48) -> 0 | D48: =SUMIFS(Lanc_BC1!$H:$H,Lanc_BC1!$A:$A,">="&D$5,Lanc_BC1!$A:$A,"<"&E$5,Lanc_BC1!$F:$F,"="&$B48) -> 0 | E48: =SUMIFS(Lanc_BC1!$H:$H,Lanc_BC1!$A:$A,">="&E$5,Lanc_BC1!$A:$A,"<"&F$5,Lanc_BC1!$F:$F,"="&$B48) -> 0 | F48: =SUMIFS(Lanc_BC1!$H:$H,Lanc_BC1!$A:$A,">="&F$5,Lanc_BC1!$A:$A,"<"&G$5,Lanc_BC1!$F:$F,"="&$B48) -> 0 | G48: =SUMIFS(Lanc_BC1!$H:$H,Lanc_BC1!$A:$A,">="&G$5,Lanc_BC1!$A:$A,"<"&H$5,Lanc_BC1!$F:$F,"="&$B48) -> 0 | H48: =SUMIFS(Lanc_BC1!$H:$H,Lanc_BC1!$A:$A,">="&H$5,Lanc_BC1!$A:$A,"<"&I$5,Lanc_BC1!$F:$F,"="&$B48) -> 0 | I48: =SUMIFS(Lanc_BC1!$H:$H,Lanc_BC1!$A:$A,">="&I$5,Lanc_BC1!$A:$A,"<"&J$5,Lanc_BC1!$F:$F,"="&$B48) -> 0 | J48: =SUMIFS(Lanc_BC1!$H:$H,Lanc_BC1!$A:$A,">="&J$5,Lanc_BC1!$A:$A,"<"&K$5,Lanc_BC1!$F:$F,"="&$B48) -> 0 | K48: =SUMIFS(Lanc_BC1!$H:$H,Lanc_BC1!$A:$A,">="&K$5,Lanc_BC1!$A:$A,"<"&L$5,Lanc_BC1!$F:$F,"="&$B48) -> 0 | L48: =SUMIFS(Lanc_BC1!$H:$H,Lanc_BC1!$A:$A,">="&L$5,Lanc_BC1!$A:$A,"<"&M$5,Lanc_BC1!$F:$F,"="&$B48) -> 0 | M48: =SUMIFS(Lanc_BC1!$H:$H,Lanc_BC1!$A:$A,">="&M$5,Lanc_BC1!$A:$A,"<"&N$5,Lanc_BC1!$F:$F,"="&$B48) -> 0 | N48: =SUMIFS(Lanc_BC1!$H:$H,Lanc_BC1!$A:$A,">="&N$5,Lanc_BC1!$A:$A,"<"&O$5,Lanc_BC1!$F:$F,"="&$B48) -> 0 | O48: =SUMIFS(#REF!,#REF!,">="&O$5,#REF!,"<"&P$5,#REF!,"="&$B48) ->  | P48: =SUM(C48:N48) -> 0
B49: Adiantamento de importação | C49: =SUMIFS(Lanc_BC1!$H:$H,Lanc_BC1!$A:$A,">="&C$5,Lanc_BC1!$A:$A,"<"&D$5,Lanc_BC1!$F:$F,"="&$B49) -> 0 | D49: =SUMIFS(Lanc_BC1!$H:$H,Lanc_BC1!$A:$A,">="&D$5,Lanc_BC1!$A:$A,"<"&E$5,Lanc_BC1!$F:$F,"="&$B49) -> 0 | E49: =SUMIFS(Lanc_BC1!$H:$H,Lanc_BC1!$A:$A,">="&E$5,Lanc_BC1!$A:$A,"<"&F$5,Lanc_BC1!$F:$F,"="&$B49) -> 0 | F49: =SUMIFS(Lanc_BC1!$H:$H,Lanc_BC1!$A:$A,">="&F$5,Lanc_BC1!$A:$A,"<"&G$5,Lanc_BC1!$F:$F,"="&$B49) -> 0 | G49: =SUMIFS(Lanc_BC1!$H:$H,Lanc_BC1!$A:$A,">="&G$5,Lanc_BC1!$A:$A,"<"&H$5,Lanc_BC1!$F:$F,"="&$B49) -> 0 | H49: =SUMIFS(Lanc_BC1!$H:$H,Lanc_BC1!$A:$A,">="&H$5,Lanc_BC1!$A:$A,"<"&I$5,Lanc_BC1!$F:$F,"="&$B49) -> 0 | I49: =SUMIFS(Lanc_BC1!$H:$H,Lanc_BC1!$A:$A,">="&I$5,Lanc_BC1!$A:$A,"<"&J$5,Lanc_BC1!$F:$F,"="&$B49) -> 0 | J49: =SUMIFS(Lanc_BC1!$H:$H,Lanc_BC1!$A:$A,">="&J$5,Lanc_BC1!$A:$A,"<"&K$5,Lanc_BC1!$F:$F,"="&$B49) -> 0 | K49: =SUMIFS(Lanc_BC1!$H:$H,Lanc_BC1!$A:$A,">="&K$5,Lanc_BC1!$A:$A,"<"&L$5,Lanc_BC1!$F:$F,"="&$B49) -> 0 | L49: =SUMIFS(Lanc_BC1!$H:$H,Lanc_BC1!$A:$A,">="&L$5,Lanc_BC1!$A:$A,"<"&M$5,Lanc_BC1!$F:$F,"="&$B49) -> 0 | M49: =SUMIFS(Lanc_BC1!$H:$H,Lanc_BC1!$A:$A,">="&M$5,Lanc_BC1!$A:$A,"<"&N$5,Lanc_BC1!$F:$F,"="&$B49) -> 0 | N49: =SUMIFS(Lanc_BC1!$H:$H,Lanc_BC1!$A:$A,">="&N$5,Lanc_BC1!$A:$A,"<"&O$5,Lanc_BC1!$F:$F,"="&$B49) -> 0 | O49: =SUMIFS(#REF!,#REF!,">="&O$5,#REF!,"<"&P$5,#REF!,"="&$B49) ->  | P49: 0
A50: X
A51: RESULTADO BRUTO | C51: =C21-C23-C33 -> 6849.47 | D51: 10545.37 | E51: 1246 | F51: 1.99 | G51: 0 | H51: 0 | I51: 0 | J51: 0 | K51: 0 | L51: 0 | M51: 0 | N51: 0 | P51: =P21-P23-P33 -> 18642.83
A52: X
A53: DESPESAS ADM. VARIÁVEIS | C53: =SUM(C54:C69) -> 0 | D53: 0 | E53: 0 | F53: 0 | G53: 0 | H53: 0 | I53: 0 | J53: 0 | K53: 0 | L53: 0 | M53: 0 | N53: 0 | P53: =SUM(P54:P69) -> 0
A54: =IF(P54<>0,P54,"") ->  | B54: Associações | C54: =SUMIFS(Lanc_BC1!$H:$H,Lanc_BC1!$A:$A,">="&C$5,Lanc_BC1!$A:$A,"<"&D$5,Lanc_BC1!$F:$F,"="&$B54) -> 0 | D54: =SUMIFS(Lanc_BC1!$H:$H,Lanc_BC1!$A:$A,">="&D$5,Lanc_BC1!$A:$A,"<"&E$5,Lanc_BC1!$F:$F,"="&$B54) -> 0 | E54: =SUMIFS(Lanc_BC1!$H:$H,Lanc_BC1!$A:$A,">="&E$5,Lanc_BC1!$A:$A,"<"&F$5,Lanc_BC1!$F:$F,"="&$B54) -> 0 | F54: =SUMIFS(Lanc_BC1!$H:$H,Lanc_BC1!$A:$A,">="&F$5,Lanc_BC1!$A:$A,"<"&G$5,Lanc_BC1!$F:$F,"="&$B54) -> 0 | G54: =SUMIFS(Lanc_BC1!$H:$H,Lanc_BC1!$A:$A,">="&G$5,Lanc_BC1!$A:$A,"<"&H$5,Lanc_BC1!$F:$F,"="&$B54) -> 0 | H54: =SUMIFS(Lanc_BC1!$H:$H,Lanc_BC1!$A:$A,">="&H$5,Lanc_BC1!$A:$A,"<"&I$5,Lanc_BC1!$F:$F,"="&$B54) -> 0 | I54: =SUMIFS(Lanc_BC1!$H:$H,Lanc_BC1!$A:$A,">="&I$5,Lanc_BC1!$A:$A,"<"&J$5,Lanc_BC1!$F:$F,"="&$B54) -> 0 | J54: =SUMIFS(Lanc_BC1!$H:$H,Lanc_BC1!$A:$A,">="&J$5,Lanc_BC1!$A:$A,"<"&K$5,Lanc_BC1!$F:$F,"="&$B54) -> 0 | K54: =SUMIFS(Lanc_BC1!$H:$H,Lanc_BC1!$A:$A,">="&K$5,Lanc_BC1!$A:$A,"<"&L$5,Lanc_BC1!$F:$F,"="&$B54) -> 0 | L54: =SUMIFS(Lanc_BC1!$H:$H,Lanc_BC1!$A:$A,">="&L$5,Lanc_BC1!$A:$A,"<"&M$5,Lanc_BC1!$F:$F,"="&$B54) -> 0 | M54: =SUMIFS(Lanc_BC1!$H:$H,Lanc_BC1!$A:$A,">="&M$5,Lanc_BC1!$A:$A,"<"&N$5,Lanc_BC1!$F:$F,"="&$B54) -> 0 | N54: =SUMIFS(Lanc_BC1!$H:$H,Lanc_BC1!$A:$A,">="&N$5,Lanc_BC1!$A:$A,"<"&O$5,Lanc_BC1!$F:$F,"="&$B54) -> 0 | O54: =SUMIFS(#REF!,#REF!,">="&O$5,#REF!,"<"&P$5,#REF!,"="&$B54) ->  | P54: =SUM(C54:N54) -> 0
B55: Cartório / Certidões / Consultas | C55: =SUMIFS(Lanc_BC1!$H:$H,Lanc_BC1!$A:$A,">="&C$5,Lanc_BC1!$A:$A,"<"&D$5,Lanc_BC1!$F:$F,"="&$B55) -> 0 | D55: =SUMIFS(Lanc_BC1!$H:$H,Lanc_BC1!$A:$A,">="&D$5,Lanc_BC1!$A:$A,"<"&E$5,Lanc_BC1!$F:$F,"="&$B55) -> 0 | E55: =SUMIFS(Lanc_BC1!$H:$H,Lanc_BC1!$A:$A,">="&E$5,Lanc_BC1!$A:$A,"<"&F$5,Lanc_BC1!$F:$F,"="&$B55) -> 0 | F55: =SUMIFS(Lanc_BC1!$H:$H,Lanc_BC1!$A:$A,">="&F$5,Lanc_BC1!$A:$A,"<"&G$5,Lanc_BC1!$F:$F,"="&$B55) -> 0 | G55: =SUMIFS(Lanc_BC1!$H:$H,Lanc_BC1!$A:$A,">="&G$5,Lanc_BC1!$A:$A,"<"&H$5,Lanc_BC1!$F:$F,"="&$B55) -> 0 | H55: =SUMIFS(Lanc_BC1!$H:$H,Lanc_BC1!$A:$A,">="&H$5,Lanc_BC1!$A:$A,"<"&I$5,Lanc_BC1!$F:$F,"="&$B55) -> 0 | I55: =SUMIFS(Lanc_BC1!$H:$H,Lanc_BC1!$A:$A,">="&I$5,Lanc_BC1!$A:$A,"<"&J$5,Lanc_BC1!$F:$F,"="&$B55) -> 0 | J55: =SUMIFS(Lanc_BC1!$H:$H,Lanc_BC1!$A:$A,">="&J$5,Lanc_BC1!$A:$A,"<"&K$5,Lanc_BC1!$F:$F,"="&$B55) -> 0 | K55: =SUMIFS(Lanc_BC1!$H:$H,Lanc_BC1!$A:$A,">="&K$5,Lanc_BC1!$A:$A,"<"&L$5,Lanc_BC1!$F:$F,"="&$B55) -> 0 | L55: =SUMIFS(Lanc_BC1!$H:$H,Lanc_BC1!$A:$A,">="&L$5,Lanc_BC1!$A:$A,"<"&M$5,Lanc_BC1!$F:$F,"="&$B55) -> 0 | M55: =SUMIFS(Lanc_BC1!$H:$H,Lanc_BC1!$A:$A,">="&M$5,Lanc_BC1!$A:$A,"<"&N$5,Lanc_BC1!$F:$F,"="&$B55) -> 0 | N55: =SUMIFS(Lanc_BC1!$H:$H,Lanc_BC1!$A:$A,">="&N$5,Lanc_BC1!$A:$A,"<"&O$5,Lanc_BC1!$F:$F,"="&$B55) -> 0 | O55: =SUMIFS(#REF!,#REF!,">="&O$5,#REF!,"<"&P$5,#REF!,"="&$B55) ->  | P55: 0
B56: Combustíveis e Lubrificantes | C56: =SUMIFS(Lanc_BC1!$H:$H,Lanc_BC1!$A:$A,">="&C$5,Lanc_BC1!$A:$A,"<"&D$5,Lanc_BC1!$F:$F,"="&$B56) -> 0 | D56: =SUMIFS(Lanc_BC1!$H:$H,Lanc_BC1!$A:$A,">="&D$5,Lanc_BC1!$A:$A,"<"&E$5,Lanc_BC1!$F:$F,"="&$B56) -> 0 | E56: =SUMIFS(Lanc_BC1!$H:$H,Lanc_BC1!$A:$A,">="&E$5,Lanc_BC1!$A:$A,"<"&F$5,Lanc_BC1!$F:$F,"="&$B56) -> 0 | F56: =SUMIFS(Lanc_BC1!$H:$H,Lanc_BC1!$A:$A,">="&F$5,Lanc_BC1!$A:$A,"<"&G$5,Lanc_BC1!$F:$F,"="&$B56) -> 0 | G56: =SUMIFS(Lanc_BC1!$H:$H,Lanc_BC1!$A:$A,">="&G$5,Lanc_BC1!$A:$A,"<"&H$5,Lanc_BC1!$F:$F,"="&$B56) -> 0 | H56: =SUMIFS(Lanc_BC1!$H:$H,Lanc_BC1!$A:$A,">="&H$5,Lanc_BC1!$A:$A,"<"&I$5,Lanc_BC1!$F:$F,"="&$B56) -> 0 | I56: =SUMIFS(Lanc_BC1!$H:$H,Lanc_BC1!$A:$A,">="&I$5,Lanc_BC1!$A:$A,"<"&J$5,Lanc_BC1!$F:$F,"="&$B56) -> 0 | J56: =SUMIFS(Lanc_BC1!$H:$H,Lanc_BC1!$A:$A,">="&J$5,Lanc_BC1!$A:$A,"<"&K$5,Lanc_BC1!$F:$F,"="&$B56) -> 0 | K56: =SUMIFS(Lanc_BC1!$H:$H,Lanc_BC1!$A:$A,">="&K$5,Lanc_BC1!$A:$A,"<"&L$5,Lanc_BC1!$F:$F,"="&$B56) -> 0 | L56: =SUMIFS(Lanc_BC1!$H:$H,Lanc_BC1!$A:$A,">="&L$5,Lanc_BC1!$A:$A,"<"&M$5,Lanc_BC1!$F:$F,"="&$B56) -> 0 | M56: =SUMIFS(Lanc_BC1!$H:$H,Lanc_BC1!$A:$A,">="&M$5,Lanc_BC1!$A:$A,"<"&N$5,Lanc_BC1!$F:$F,"="&$B56) -> 0 | N56: =SUMIFS(Lanc_BC1!$H:$H,Lanc_BC1!$A:$A,">="&N$5,Lanc_BC1!$A:$A,"<"&O$5,Lanc_BC1!$F:$F,"="&$B56) -> 0 | O56: =SUMIFS(#REF!,#REF!,">="&O$5,#REF!,"<"&P$5,#REF!,"="&$B56) ->  | P56: 0
B57: Confraternizações | C57: =SUMIFS(Lanc_BC1!$H:$H,Lanc_BC1!$A:$A,">="&C$5,Lanc_BC1!$A:$A,"<"&D$5,Lanc_BC1!$F:$F,"="&$B57) -> 0 | D57: =SUMIFS(Lanc_BC1!$H:$H,Lanc_BC1!$A:$A,">="&D$5,Lanc_BC1!$A:$A,"<"&E$5,Lanc_BC1!$F:$F,"="&$B57) -> 0 | E57: =SUMIFS(Lanc_BC1!$H:$H,Lanc_BC1!$A:$A,">="&E$5,Lanc_BC1!$A:$A,"<"&F$5,Lanc_BC1!$F:$F,"="&$B57) -> 0 | F57: =SUMIFS(Lanc_BC1!$H:$H,Lanc_BC1!$A:$A,">="&F$5,Lanc_BC1!$A:$A,"<"&G$5,Lanc_BC1!$F:$F,"="&$B57) -> 0 | G57: =SUMIFS(Lanc_BC1!$H:$H,Lanc_BC1!$A:$A,">="&G$5,Lanc_BC1!$A:$A,"<"&H$5,Lanc_BC1!$F:$F,"="&$B57) -> 0 | H57: =SUMIFS(Lanc_BC1!$H:$H,Lanc_BC1!$A:$A,">="&H$5,Lanc_BC1!$A:$A,"<"&I$5,Lanc_BC1!$F:$F,"="&$B57) -> 0 | I57: =SUMIFS(Lanc_BC1!$H:$H,Lanc_BC1!$A:$A,">="&I$5,Lanc_BC1!$A:$A,"<"&J$5,Lanc_BC1!$F:$F,"="&$B57) -> 0 | J57: =SUMIFS(Lanc_BC1!$H:$H,Lanc_BC1!$A:$A,">="&J$5,Lanc_BC1!$A:$A,"<"&K$5,Lanc_BC1!$F:$F,"="&$B57) -> 0 | K57: =SUMIFS(Lanc_BC1!$H:$H,Lanc_BC1!$A:$A,">="&K$5,Lanc_BC1!$A:$A,"<"&L$5,Lanc_BC1!$F:$F,"="&$B57) -> 0 | L57: =SUMIFS(Lanc_BC1!$H:$H,Lanc_BC1!$A:$A,">="&L$5,Lanc_BC1!$A:$A,"<"&M$5,Lanc_BC1!$F:$F,"="&$B57) -> 0 | M57: =SUMIFS(Lanc_BC1!$H:$H,Lanc_BC1!$A:$A,">="&M$5,Lanc_BC1!$A:$A,"<"&N$5,Lanc_BC1!$F:$F,"="&$B57) -> 0 | N57: =SUMIFS(Lanc_BC1!$H:$H,Lanc_BC1!$A:$A,">="&N$5,Lanc_BC1!$A:$A,"<"&O$5,Lanc_BC1!$F:$F,"="&$B57) -> 0 | O57: =SUMIFS(#REF!,#REF!,">="&O$5,#REF!,"<"&P$5,#REF!,"="&$B57) ->  | P57: 0
B58: Conservação e reparo de imóveis | C58: =SUMIFS(Lanc_BC1!$H:$H,Lanc_BC1!$A:$A,">="&C$5,Lanc_BC1!$A:$A,"<"&D$5,Lanc_BC1!$F:$F,"="&$B58) -> 0 | D58: =SUMIFS(Lanc_BC1!$H:$H,Lanc_BC1!$A:$A,">="&D$5,Lanc_BC1!$A:$A,"<"&E$5,Lanc_BC1!$F:$F,"="&$B58) -> 0 | E58: =SUMIFS(Lanc_BC1!$H:$H,Lanc_BC1!$A:$A,">="&E$5,Lanc_BC1!$A:$A,"<"&F$5,Lanc_BC1!$F:$F,"="&$B58) -> 0 | F58: =SUMIFS(Lanc_BC1!$H:$H,Lanc_BC1!$A:$A,">="&F$5,Lanc_BC1!$A:$A,"<"&G$5,Lanc_BC1!$F:$F,"="&$B58) -> 0 | G58: =SUMIFS(Lanc_BC1!$H:$H,Lanc_BC1!$A:$A,">="&G$5,Lanc_BC1!$A:$A,"<"&H$5,Lanc_BC1!$F:$F,"="&$B58) -> 0 | H58: =SUMIFS(Lanc_BC1!$H:$H,Lanc_BC1!$A:$A,">="&H$5,Lanc_BC1!$A:$A,"<"&I$5,Lanc_BC1!$F:$F,"="&$B58) -> 0 | I58: =SUMIFS(Lanc_BC1!$H:$H,Lanc_BC1!$A:$A,">="&I$5,Lanc_BC1!$A:$A,"<"&J$5,Lanc_BC1!$F:$F,"="&$B58) -> 0 | J58: =SUMIFS(Lanc_BC1!$H:$H,Lanc_BC1!$A:$A,">="&J$5,Lanc_BC1!$A:$A,"<"&K$5,Lanc_BC1!$F:$F,"="&$B58) -> 0 | K58: =SUMIFS(Lanc_BC1!$H:$H,Lanc_BC1!$A:$A,">="&K$5,Lanc_BC1!$A:$A,"<"&L$5,Lanc_BC1!$F:$F,"="&$B58) -> 0 | L58: =SUMIFS(Lanc_BC1!$H:$H,Lanc_BC1!$A:$A,">="&L$5,Lanc_BC1!$A:$A,"<"&M$5,Lanc_BC1!$F:$F,"="&$B58) -> 0 | M58: =SUMIFS(Lanc_BC1!$H:$H,Lanc_BC1!$A:$A,">="&M$5,Lanc_BC1!$A:$A,"<"&N$5,Lanc_BC1!$F:$F,"="&$B58) -> 0 | N58: =SUMIFS(Lanc_BC1!$H:$H,Lanc_BC1!$A:$A,">="&N$5,Lanc_BC1!$A:$A,"<"&O$5,Lanc_BC1!$F:$F,"="&$B58) -> 0 | O58: =SUMIFS(#REF!,#REF!,">="&O$5,#REF!,"<"&P$5,#REF!,"="&$B58) ->  | P58: 0
B59: Correios / Entregas Expressas | C59: =SUMIFS(Lanc_BC1!$H:$H,Lanc_BC1!$A:$A,">="&C$5,Lanc_BC1!$A:$A,"<"&D$5,Lanc_BC1!$F:$F,"="&$B59) -> 0 | D59: =SUMIFS(Lanc_BC1!$H:$H,Lanc_BC1!$A:$A,">="&D$5,Lanc_BC1!$A:$A,"<"&E$5,Lanc_BC1!$F:$F,"="&$B59) -> 0 | E59: =SUMIFS(Lanc_BC1!$H:$H,Lanc_BC1!$A:$A,">="&E$5,Lanc_BC1!$A:$A,"<"&F$5,Lanc_BC1!$F:$F,"="&$B59) -> 0 | F59: =SUMIFS(Lanc_BC1!$H:$H,Lanc_BC1!$A:$A,">="&F$5,Lanc_BC1!$A:$A,"<"&G$5,Lanc_BC1!$F:$F,"="&$B59) -> 0 | G59: =SUMIFS(Lanc_BC1!$H:$H,Lanc_BC1!$A:$A,">="&G$5,Lanc_BC1!$A:$A,"<"&H$5,Lanc_BC1!$F:$F,"="&$B59) -> 0 | H59: =SUMIFS(Lanc_BC1!$H:$H,Lanc_BC1!$A:$A,">="&H$5,Lanc_BC1!$A:$A,"<"&I$5,Lanc_BC1!$F:$F,"="&$B59) -> 0 | I59: =SUMIFS(Lanc_BC1!$H:$H,Lanc_BC1!$A:$A,">="&I$5,Lanc_BC1!$A:$A,"<"&J$5,Lanc_BC1!$F:$F,"="&$B59) -> 0 | J59: =SUMIFS(Lanc_BC1!$H:$H,Lanc_BC1!$A:$A,">="&J$5,Lanc_BC1!$A:$A,"<"&K$5,Lanc_BC1!$F:$F,"="&$B59) -> 0 | K59: =SUMIFS(Lanc_BC1!$H:$H,Lanc_BC1!$A:$A,">="&K$5,Lanc_BC1!$A:$A,"<"&L$5,Lanc_BC1!$F:$F,"="&$B59) -> 0 | L59: =SUMIFS(Lanc_BC1!$H:$H,Lanc_BC1!$A:$A,">="&L$5,Lanc_BC1!$A:$A,"<"&M$5,Lanc_BC1!$F:$F,"="&$B59) -> 0 | M59: =SUMIFS(Lanc_BC1!$H:$H,Lanc_BC1!$A:$A,">="&M$5,Lanc_BC1!$A:$A,"<"&N$5,Lanc_BC1!$F:$F,"="&$B59) -> 0 | N59: =SUMIFS(Lanc_BC1!$H:$H,Lanc_BC1!$A:$A,">="&N$5,Lanc_BC1!$A:$A,"<"&O$5,Lanc_BC1!$F:$F,"="&$B59) -> 0 | O59: =SUMIFS(#REF!,#REF!,">="&O$5,#REF!,"<"&P$5,#REF!,"="&$B59) ->  | P59: 0
B60: Despesas advocatícias | C60: =SUMIFS(Lanc_BC1!$H:$H,Lanc_BC1!$A:$A,">="&C$5,Lanc_BC1!$A:$A,"<"&D$5,Lanc_BC1!$F:$F,"="&$B60) -> 0 | D60: =SUMIFS(Lanc_BC1!$H:$H,Lanc_BC1!$A:$A,">="&D$5,Lanc_BC1!$A:$A,"<"&E$5,Lanc_BC1!$F:$F,"="&$B60) -> 0 | E60: =SUMIFS(Lanc_BC1!$H:$H,Lanc_BC1!$A:$A,">="&E$5,Lanc_BC1!$A:$A,"<"&F$5,Lanc_BC1!$F:$F,"="&$B60) -> 0 | F60: =SUMIFS(Lanc_BC1!$H:$H,Lanc_BC1!$A:$A,">="&F$5,Lanc_BC1!$A:$A,"<"&G$5,Lanc_BC1!$F:$F,"="&$B60) -> 0 | G60: =SUMIFS(Lanc_BC1!$H:$H,Lanc_BC1!$A:$A,">="&G$5,Lanc_BC1!$A:$A,"<"&H$5,Lanc_BC1!$F:$F,"="&$B60) -> 0 | H60: =SUMIFS(Lanc_BC1!$H:$H,Lanc_BC1!$A:$A,">="&H$5,Lanc_BC1!$A:$A,"<"&I$5,Lanc_BC1!$F:$F,"="&$B60) -> 0 | I60: =SUMIFS(Lanc_BC1!$H:$H,Lanc_BC1!$A:$A,">="&I$5,Lanc_BC1!$A:$A,"<"&J$5,Lanc_BC1!$F:$F,"="&$B60) -> 0 | J60: =SUMIFS(Lanc_BC1!$H:$H,Lanc_BC1!$A:$A,">="&J$5,Lanc_BC1!$A:$A,"<"&K$5,Lanc_BC1!$F:$F,"="&$B60) -> 0 | K60: =SUMIFS(Lanc_BC1!$H:$H,Lanc_BC1!$A:$A,">="&K$5,Lanc_BC1!$A:$A,"<"&L$5,Lanc_BC1!$F:$F,"="&$B60) -> 0 | L60: =SUMIFS(Lanc_BC1!$H:$H,Lanc_BC1!$A:$A,">="&L$5,Lanc_BC1!$A:$A,"<"&M$5,Lanc_BC1!$F:$F,"="&$B60) -> 0 | M60: =SUMIFS(Lanc_BC1!$H:$H,Lanc_BC1!$A:$A,">="&M$5,Lanc_BC1!$A:$A,"<"&N$5,Lanc_BC1!$F:$F,"="&$B60) -> 0 | N60: =SUMIFS(Lanc_BC1!$H:$H,Lanc_BC1!$A:$A,">="&N$5,Lanc_BC1!$A:$A,"<"&O$5,Lanc_BC1!$F:$F,"="&$B60) -> 0 | O60: =SUMIFS(#REF!,#REF!,">="&O$5,#REF!,"<"&P$5,#REF!,"="&$B60) ->  | P60: 0
B61: IPVA | C61: =SUMIFS(Lanc_BC1!$H:$H,Lanc_BC1!$A:$A,">="&C$5,Lanc_BC1!$A:$A,"<"&D$5,Lanc_BC1!$F:$F,"="&$B61) -> 0 | D61: =SUMIFS(Lanc_BC1!$H:$H,Lanc_BC1!$A:$A,">="&D$5,Lanc_BC1!$A:$A,"<"&E$5,Lanc_BC1!$F:$F,"="&$B61) -> 0 | E61: =SUMIFS(Lanc_BC1!$H:$H,Lanc_BC1!$A:$A,">="&E$5,Lanc_BC1!$A:$A,"<"&F$5,Lanc_BC1!$F:$F,"="&$B61) -> 0 | F61: =SUMIFS(Lanc_BC1!$H:$H,Lanc_BC1!$A:$A,">="&F$5,Lanc_BC1!$A:$A,"<"&G$5,Lanc_BC1!$F:$F,"="&$B61) -> 0 | G61: =SUMIFS(Lanc_BC1!$H:$H,Lanc_BC1!$A:$A,">="&G$5,Lanc_BC1!$A:$A,"<"&H$5,Lanc_BC1!$F:$F,"="&$B61) -> 0 | H61: =SUMIFS(Lanc_BC1!$H:$H,Lanc_BC1!$A:$A,">="&H$5,Lanc_BC1!$A:$A,"<"&I$5,Lanc_BC1!$F:$F,"="&$B61) -> 0 | I61: =SUMIFS(Lanc_BC1!$H:$H,Lanc_BC1!$A:$A,">="&I$5,Lanc_BC1!$A:$A,"<"&J$5,Lanc_BC1!$F:$F,"="&$B61) -> 0 | J61: =SUMIFS(Lanc_BC1!$H:$H,Lanc_BC1!$A:$A,">="&J$5,Lanc_BC1!$A:$A,"<"&K$5,Lanc_BC1!$F:$F,"="&$B61) -> 0 | K61: =SUMIFS(Lanc_BC1!$H:$H,Lanc_BC1!$A:$A,">="&K$5,Lanc_BC1!$A:$A,"<"&L$5,Lanc_BC1!$F:$F,"="&$B61) -> 0 | L61: =SUMIFS(Lanc_BC1!$H:$H,Lanc_BC1!$A:$A,">="&L$5,Lanc_BC1!$A:$A,"<"&M$5,Lanc_BC1!$F:$F,"="&$B61) -> 0 | M61: =SUMIFS(Lanc_BC1!$H:$H,Lanc_BC1!$A:$A,">="&M$5,Lanc_BC1!$A:$A,"<"&N$5,Lanc_BC1!$F:$F,"="&$B61) -> 0 | N61: =SUMIFS(Lanc_BC1!$H:$H,Lanc_BC1!$A:$A,">="&N$5,Lanc_BC1!$A:$A,"<"&O$5,Lanc_BC1!$F:$F,"="&$B61) -> 0 | O61: =SUMIFS(#REF!,#REF!,">="&O$5,#REF!,"<"&P$5,#REF!,"="&$B61) ->  | P61: 0
B62: Material de copa e cozinha | C62: =SUMIFS(Lanc_BC1!$H:$H,Lanc_BC1!$A:$A,">="&C$5,Lanc_BC1!$A:$A,"<"&D$5,Lanc_BC1!$F:$F,"="&$B62) -> 0 | D62: =SUMIFS(Lanc_BC1!$H:$H,Lanc_BC1!$A:$A,">="&D$5,Lanc_BC1!$A:$A,"<"&E$5,Lanc_BC1!$F:$F,"="&$B62) -> 0 | E62: =SUMIFS(Lanc_BC1!$H:$H,Lanc_BC1!$A:$A,">="&E$5,Lanc_BC1!$A:$A,"<"&F$5,Lanc_BC1!$F:$F,"="&$B62) -> 0 | F62: =SUMIFS(Lanc_BC1!$H:$H,Lanc_BC1!$A:$A,">="&F$5,Lanc_BC1!$A:$A,"<"&G$5,Lanc_BC1!$F:$F,"="&$B62) -> 0 | G62: =SUMIFS(Lanc_BC1!$H:$H,Lanc_BC1!$A:$A,">="&G$5,Lanc_BC1!$A:$A,"<"&H$5,Lanc_BC1!$F:$F,"="&$B62) -> 0 | H62: =SUMIFS(Lanc_BC1!$H:$H,Lanc_BC1!$A:$A,">="&H$5,Lanc_BC1!$A:$A,"<"&I$5,Lanc_BC1!$F:$F,"="&$B62) -> 0 | I62: =SUMIFS(Lanc_BC1!$H:$H,Lanc_BC1!$A:$A,">="&I$5,Lanc_BC1!$A:$A,"<"&J$5,Lanc_BC1!$F:$F,"="&$B62) -> 0 | J62: =SUMIFS(Lanc_BC1!$H:$H,Lanc_BC1!$A:$A,">="&J$5,Lanc_BC1!$A:$A,"<"&K$5,Lanc_BC1!$F:$F,"="&$B62) -> 0 | K62: =SUMIFS(Lanc_BC1!$H:$H,Lanc_BC1!$A:$A,">="&K$5,Lanc_BC1!$A:$A,"<"&L$5,Lanc_BC1!$F:$F,"="&$B62) -> 0 | L62: =SUMIFS(Lanc_BC1!$H:$H,Lanc_BC1!$A:$A,">="&L$5,Lanc_BC1!$A:$A,"<"&M$5,Lanc_BC1!$F:$F,"="&$B62) -> 0 | M62: =SUMIFS(Lanc_BC1!$H:$H,Lanc_BC1!$A:$A,">="&M$5,Lanc_BC1!$A:$A,"<"&N$5,Lanc_BC1!$F:$F,"="&$B62) -> 0 | N62: =SUMIFS(Lanc_BC1!$H:$H,Lanc_BC1!$A:$A,">="&N$5,Lanc_BC1!$A:$A,"<"&O$5,Lanc_BC1!$F:$F,"="&$B62) -> 0 | O62: =SUMIFS(#REF!,#REF!,">="&O$5,#REF!,"<"&P$5,#REF!,"="&$B62) ->  | P62: 0
B63: Material de escritório | C63: =SUMIFS(Lanc_BC1!$H:$H,Lanc_BC1!$A:$A,">="&C$5,Lanc_BC1!$A:$A,"<"&D$5,Lanc_BC1!$F:$F,"="&$B63) -> 0 | D63: =SUMIFS(Lanc_BC1!$H:$H,Lanc_BC1!$A:$A,">="&D$5,Lanc_BC1!$A:$A,"<"&E$5,Lanc_BC1!$F:$F,"="&$B63) -> 0 | E63: =SUMIFS(Lanc_BC1!$H:$H,Lanc_BC1!$A:$A,">="&E$5,Lanc_BC1!$A:$A,"<"&F$5,Lanc_BC1!$F:$F,"="&$B63) -> 0 | F63: =SUMIFS(Lanc_BC1!$H:$H,Lanc_BC1!$A:$A,">="&F$5,Lanc_BC1!$A:$A,"<"&G$5,Lanc_BC1!$F:$F,"="&$B63) -> 0 | G63: =SUMIFS(Lanc_BC1!$H:$H,Lanc_BC1!$A:$A,">="&G$5,Lanc_BC1!$A:$A,"<"&H$5,Lanc_BC1!$F:$F,"="&$B63) -> 0 | H63: =SUMIFS(Lanc_BC1!$H:$H,Lanc_BC1!$A:$A,">="&H$5,Lanc_BC1!$A:$A,"<"&I$5,Lanc_BC1!$F:$F,"="&$B63) -> 0 | I63: =SUMIFS(Lanc_BC1!$H:$H,Lanc_BC1!$A:$A,">="&I$5,Lanc_BC1!$A:$A,"<"&J$5,Lanc_BC1!$F:$F,"="&$B63) -> 0 | J63: =SUMIFS(Lanc_BC1!$H:$H,Lanc_BC1!$A:$A,">="&J$5,Lanc_BC1!$A:$A,"<"&K$5,Lanc_BC1!$F:$F,"="&$B63) -> 0 | K63: =SUMIFS(Lanc_BC1!$H:$H,Lanc_BC1!$A:$A,">="&K$5,Lanc_BC1!$A:$A,"<"&L$5,Lanc_BC1!$F:$F,"="&$B63) -> 0 | L63: =SUMIFS(Lanc_BC1!$H:$H,Lanc_BC1!$A:$A,">="&L$5,Lanc_BC1!$A:$A,"<"&M$5,Lanc_BC1!$F:$F,"="&$B63) -> 0 | M63: =SUMIFS(Lanc_BC1!$H:$H,Lanc_BC1!$A:$A,">="&M$5,Lanc_BC1!$A:$A,"<"&N$5,Lanc_BC1!$F:$F,"="&$B63) -> 0 | N63: =SUMIFS(Lanc_BC1!$H:$H,Lanc_BC1!$A:$A,">="&N$5,Lanc_BC1!$A:$A,"<"&O$5,Lanc_BC1!$F:$F,"="&$B63) -> 0 | O63: =SUMIFS(#REF!,#REF!,">="&O$5,#REF!,"<"&P$5,#REF!,"="&$B63) ->  | P63: 0
B64: Material de limpeza | C64: =SUMIFS(Lanc_BC1!$H:$H,Lanc_BC1!$A:$A,">="&C$5,Lanc_BC1!$A:$A,"<"&D$5,Lanc_BC1!$F:$F,"="&$B64) -> 0 | D64: =SUMIFS(Lanc_BC1!$H:$H,Lanc_BC1!$A:$A,">="&D$5,Lanc_BC1!$A:$A,"<"&E$5,Lanc_BC1!$F:$F,"="&$B64) -> 0 | E64: =SUMIFS(Lanc_BC1!$H:$H,Lanc_BC1!$A:$A,">="&E$5,Lanc_BC1!$A:$A,"<"&F$5,Lanc_BC1!$F:$F,"="&$B64) -> 0 | F64: =SUMIFS(Lanc_BC1!$H:$H,Lanc_BC1!$A:$A,">="&F$5,Lanc_BC1!$A:$A,"<"&G$5,Lanc_BC1!$F:$F,"="&$B64) -> 0 | G64: =SUMIFS(Lanc_BC1!$H:$H,Lanc_BC1!$A:$A,">="&G$5,Lanc_BC1!$A:$A,"<"&H$5,Lanc_BC1!$F:$F,"="&$B64) -> 0 | H64: =SUMIFS(Lanc_BC1!$H:$H,Lanc_BC1!$A:$A,">="&H$5,Lanc_BC1!$A:$A,"<"&I$5,Lanc_BC1!$F:$F,"="&$B64) -> 0 | I64: =SUMIFS(Lanc_BC1!$H:$H,Lanc_BC1!$A:$A,">="&I$5,Lanc_BC1!$A:$A,"<"&J$5,Lanc_BC1!$F:$F,"="&$B64) -> 0 | J64: =SUMIFS(Lanc_BC1!$H:$H,Lanc_BC1!$A:$A,">="&J$5,Lanc_BC1!$A:$A,"<"&K$5,Lanc_BC1!$F:$F,"="&$B64) -> 0 | K64: =SUMIFS(Lanc_BC1!$H:$H,Lanc_BC1!$A:$A,">="&K$5,Lanc_BC1!$A:$A,"<"&L$5,Lanc_BC1!$F:$F,"="&$B64) -> 0 | L64: =SUMIFS(Lanc_BC1!$H:$H,Lanc_BC1!$A:$A,">="&L$5,Lanc_BC1!$A:$A,"<"&M$5,Lanc_BC1!$F:$F,"="&$B64) -> 0 | M64: =SUMIFS(Lanc_BC1!$H:$H,Lanc_BC1!$A:$A,">="&M$5,Lanc_BC1!$A:$A,"<"&N$5,Lanc_BC1!$F:$F,"="&$B64) -> 0 | N64: =SUMIFS(Lanc_BC1!$H:$H,Lanc_BC1!$A:$A,">="&N$5,Lanc_BC1!$A:$A,"<"&O$5,Lanc_BC1!$F:$F,"="&$B64) -> 0 | O64: =SUMIFS(#REF!,#REF!,">="&O$5,#REF!,"<"&P$5,#REF!,"="&$B64) ->  | P64: 0
B65: Prestador de Serviços Administrativos | C65: =SUMIFS(Lanc_BC1!$H:$H,Lanc_BC1!$A:$A,">="&C$5,Lanc_BC1!$A:$A,"<"&D$5,Lanc_BC1!$F:$F,"="&$B65) -> 0 | D65: =SUMIFS(Lanc_BC1!$H:$H,Lanc_BC1!$A:$A,">="&D$5,Lanc_BC1!$A:$A,"<"&E$5,Lanc_BC1!$F:$F,"="&$B65) -> 0 | E65: =SUMIFS(Lanc_BC1!$H:$H,Lanc_BC1!$A:$A,">="&E$5,Lanc_BC1!$A:$A,"<"&F$5,Lanc_BC1!$F:$F,"="&$B65) -> 0 | F65: =SUMIFS(Lanc_BC1!$H:$H,Lanc_BC1!$A:$A,">="&F$5,Lanc_BC1!$A:$A,"<"&G$5,Lanc_BC1!$F:$F,"="&$B65) -> 0 | G65: =SUMIFS(Lanc_BC1!$H:$H,Lanc_BC1!$A:$A,">="&G$5,Lanc_BC1!$A:$A,"<"&H$5,Lanc_BC1!$F:$F,"="&$B65) -> 0 | H65: =SUMIFS(Lanc_BC1!$H:$H,Lanc_BC1!$A:$A,">="&H$5,Lanc_BC1!$A:$A,"<"&I$5,Lanc_BC1!$F:$F,"="&$B65) -> 0 | I65: =SUMIFS(Lanc_BC1!$H:$H,Lanc_BC1!$A:$A,">="&I$5,Lanc_BC1!$A:$A,"<"&J$5,Lanc_BC1!$F:$F,"="&$B65) -> 0 | J65: =SUMIFS(Lanc_BC1!$H:$H,Lanc_BC1!$A:$A,">="&J$5,Lanc_BC1!$A:$A,"<"&K$5,Lanc_BC1!$F:$F,"="&$B65) -> 0 | K65: =SUMIFS(Lanc_BC1!$H:$H,Lanc_BC1!$A:$A,">="&K$5,Lanc_BC1!$A:$A,"<"&L$5,Lanc_BC1!$F:$F,"="&$B65) -> 0 | L65: =SUMIFS(Lanc_BC1!$H:$H,Lanc_BC1!$A:$A,">="&L$5,Lanc_BC1!$A:$A,"<"&M$5,Lanc_BC1!$F:$F,"="&$B65) -> 0 | M65: =SUMIFS(Lanc_BC1!$H:$H,Lanc_BC1!$A:$A,">="&M$5,Lanc_BC1!$A:$A,"<"&N$5,Lanc_BC1!$F:$F,"="&$B65) -> 0 | N65: =SUMIFS(Lanc_BC1!$H:$H,Lanc_BC1!$A:$A,">="&N$5,Lanc_BC1!$A:$A,"<"&O$5,Lanc_BC1!$F:$F,"="&$B65) -> 0 | O65: =SUMIFS(#REF!,#REF!,">="&O$5,#REF!,"<"&P$5,#REF!,"="&$B65) ->  | P65: 0
B66: Seguros | C66: =SUMIFS(Lanc_BC1!$H:$H,Lanc_BC1!$A:$A,">="&C$5,Lanc_BC1!$A:$A,"<"&D$5,Lanc_BC1!$F:$F,"="&$B66) -> 0 | D66: =SUMIFS(Lanc_BC1!$H:$H,Lanc_BC1!$A:$A,">="&D$5,Lanc_BC1!$A:$A,"<"&E$5,Lanc_BC1!$F:$F,"="&$B66) -> 0 | E66: =SUMIFS(Lanc_BC1!$H:$H,Lanc_BC1!$A:$A,">="&E$5,Lanc_BC1!$A:$A,"<"&F$5,Lanc_BC1!$F:$F,"="&$B66) -> 0 | F66: =SUMIFS(Lanc_BC1!$H:$H,Lanc_BC1!$A:$A,">="&F$5,Lanc_BC1!$A:$A,"<"&G$5,Lanc_BC1!$F:$F,"="&$B66) -> 0 | G66: =SUMIFS(Lanc_BC1!$H:$H,Lanc_BC1!$A:$A,">="&G$5,Lanc_BC1!$A:$A,"<"&H$5,Lanc_BC1!$F:$F,"="&$B66) -> 0 | H66: =SUMIFS(Lanc_BC1!$H:$H,Lanc_BC1!$A:$A,">="&H$5,Lanc_BC1!$A:$A,"<"&I$5,Lanc_BC1!$F:$F,"="&$B66) -> 0 | I66: =SUMIFS(Lanc_BC1!$H:$H,Lanc_BC1!$A:$A,">="&I$5,Lanc_BC1!$A:$A,"<"&J$5,Lanc_BC1!$F:$F,"="&$B66) -> 0 | J66: =SUMIFS(Lanc_BC1!$H:$H,Lanc_BC1!$A:$A,">="&J$5,Lanc_BC1!$A:$A,"<"&K$5,Lanc_BC1!$F:$F,"="&$B66) -> 0 | K66: =SUMIFS(Lanc_BC1!$H:$H,Lanc_BC1!$A:$A,">="&K$5,Lanc_BC1!$A:$A,"<"&L$5,Lanc_BC1!$F:$F,"="&$B66) -> 0 | L66: =SUMIFS(Lanc_BC1!$H:$H,Lanc_BC1!$A:$A,">="&L$5,Lanc_BC1!$A:$A,"<"&M$5,Lanc_BC1!$F:$F,"="&$B66) -> 0 | M66: =SUMIFS(Lanc_BC1!$H:$H,Lanc_BC1!$A:$A,">="&M$5,Lanc_BC1!$A:$A,"<"&N$5,Lanc_BC1!$F:$F,"="&$B66) -> 0 | N66: =SUMIFS(Lanc_BC1!$H:$H,Lanc_BC1!$A:$A,">="&N$5,Lanc_BC1!$A:$A,"<"&O$5,Lanc_BC1!$F:$F,"="&$B66) -> 0 | O66: =SUMIFS(#REF!,#REF!,">="&O$5,#REF!,"<"&P$5,#REF!,"="&$B66) ->  | P66: 0
B67: Taxas Municipais | C67: =SUMIFS(Lanc_BC1!$H:$H,Lanc_BC1!$A:$A,">="&C$5,Lanc_BC1!$A:$A,"<"&D$5,Lanc_BC1!$F:$F,"="&$B67) -> 0 | D67: =SUMIFS(Lanc_BC1!$H:$H,Lanc_BC1!$A:$A,">="&D$5,Lanc_BC1!$A:$A,"<"&E$5,Lanc_BC1!$F:$F,"="&$B67) -> 0 | E67: =SUMIFS(Lanc_BC1!$H:$H,Lanc_BC1!$A:$A,">="&E$5,Lanc_BC1!$A:$A,"<"&F$5,Lanc_BC1!$F:$F,"="&$B67) -> 0 | F67: =SUMIFS(Lanc_BC1!$H:$H,Lanc_BC1!$A:$A,">="&F$5,Lanc_BC1!$A:$A,"<"&G$5,Lanc_BC1!$F:$F,"="&$B67) -> 0 | G67: =SUMIFS(Lanc_BC1!$H:$H,Lanc_BC1!$A:$A,">="&G$5,Lanc_BC1!$A:$A,"<"&H$5,Lanc_BC1!$F:$F,"="&$B67) -> 0 | H67: =SUMIFS(Lanc_BC1!$H:$H,Lanc_BC1!$A:$A,">="&H$5,Lanc_BC1!$A:$A,"<"&I$5,Lanc_BC1!$F:$F,"="&$B67) -> 0 | I67: =SUMIFS(Lanc_BC1!$H:$H,Lanc_BC1!$A:$A,">="&I$5,Lanc_BC1!$A:$A,"<"&J$5,Lanc_BC1!$F:$F,"="&$B67) -> 0 | J67: =SUMIFS(Lanc_BC1!$H:$H,Lanc_BC1!$A:$A,">="&J$5,Lanc_BC1!$A:$A,"<"&K$5,Lanc_BC1!$F:$F,"="&$B67) -> 0 | K67: =SUMIFS(Lanc_BC1!$H:$H,Lanc_BC1!$A:$A,">="&K$5,Lanc_BC1!$A:$A,"<"&L$5,Lanc_BC1!$F:$F,"="&$B67) -> 0 | L67: =SUMIFS(Lanc_BC1!$H:$H,Lanc_BC1!$A:$A,">="&L$5,Lanc_BC1!$A:$A,"<"&M$5,Lanc_BC1!$F:$F,"="&$B67) -> 0 | M67: =SUMIFS(Lanc_BC1!$H:$H,Lanc_BC1!$A:$A,">="&M$5,Lanc_BC1!$A:$A,"<"&N$5,Lanc_BC1!$F:$F,"="&$B67) -> 0 | N67: =SUMIFS(Lanc_BC1!$H:$H,Lanc_BC1!$A:$A,">="&N$5,Lanc_BC1!$A:$A,"<"&O$5,Lanc_BC1!$F:$F,"="&$B67) -> 0 | O67: =SUMIFS(#REF!,#REF!,">="&O$5,#REF!,"<"&P$5,#REF!,"="&$B67) ->  | P67: 0
B68: Taxas Estaduais | C68: =SUMIFS(Lanc_BC1!$H:$H,Lanc_BC1!$A:$A,">="&C$5,Lanc_BC1!$A:$A,"<"&D$5,Lanc_BC1!$F:$F,"="&$B68) -> 0 | D68: =SUMIFS(Lanc_BC1!$H:$H,Lanc_BC1!$A:$A,">="&D$5,Lanc_BC1!$A:$A,"<"&E$5,Lanc_BC1!$F:$F,"="&$B68) -> 0 | E68: =SUMIFS(Lanc_BC1!$H:$H,Lanc_BC1!$A:$A,">="&E$5,Lanc_BC1!$A:$A,"<"&F$5,Lanc_BC1!$F:$F,"="&$B68) -> 0 | F68: =SUMIFS(Lanc_BC1!$H:$H,Lanc_BC1!$A:$A,">="&F$5,Lanc_BC1!$A:$A,"<"&G$5,Lanc_BC1!$F:$F,"="&$B68) -> 0 | G68: =SUMIFS(Lanc_BC1!$H:$H,Lanc_BC1!$A:$A,">="&G$5,Lanc_BC1!$A:$A,"<"&H$5,Lanc_BC1!$F:$F,"="&$B68) -> 0 | H68: =SUMIFS(Lanc_BC1!$H:$H,Lanc_BC1!$A:$A,">="&H$5,Lanc_BC1!$A:$A,"<"&I$5,Lanc_BC1!$F:$F,"="&$B68) -> 0 | I68: =SUMIFS(Lanc_BC1!$H:$H,Lanc_BC1!$A:$A,">="&I$5,Lanc_BC1!$A:$A,"<"&J$5,Lanc_BC1!$F:$F,"="&$B68) -> 0 | J68: =SUMIFS(Lanc_BC1!$H:$H,Lanc_BC1!$A:$A,">="&J$5,Lanc_BC1!$A:$A,"<"&K$5,Lanc_BC1!$F:$F,"="&$B68) -> 0 | K68: =SUMIFS(Lanc_BC1!$H:$H,Lanc_BC1!$A:$A,">="&K$5,Lanc_BC1!$A:$A,"<"&L$5,Lanc_BC1!$F:$F,"="&$B68) -> 0 | L68: =SUMIFS(Lanc_BC1!$H:$H,Lanc_BC1!$A:$A,">="&L$5,Lanc_BC1!$A:$A,"<"&M$5,Lanc_BC1!$F:$F,"="&$B68) -> 0 | M68: =SUMIFS(Lanc_BC1!$H:$H,Lanc_BC1!$A:$A,">="&M$5,Lanc_BC1!$A:$A,"<"&N$5,Lanc_BC1!$F:$F,"="&$B68) -> 0 | N68: =SUMIFS(Lanc_BC1!$H:$H,Lanc_BC1!$A:$A,">="&N$5,Lanc_BC1!$A:$A,"<"&O$5,Lanc_BC1!$F:$F,"="&$B68) -> 0 | O68: =SUMIFS(#REF!,#REF!,">="&O$5,#REF!,"<"&P$5,#REF!,"="&$B68) ->  | P68: 0
B69: Taxas Federais | C69: =SUMIFS(Lanc_BC1!$H:$H,Lanc_BC1!$A:$A,">="&C$5,Lanc_BC1!$A:$A,"<"&D$5,Lanc_BC1!$F:$F,"="&$B69) -> 0 | D69: =SUMIFS(Lanc_BC1!$H:$H,Lanc_BC1!$A:$A,">="&D$5,Lanc_BC1!$A:$A,"<"&E$5,Lanc_BC1!$F:$F,"="&$B69) -> 0 | E69: =SUMIFS(Lanc_BC1!$H:$H,Lanc_BC1!$A:$A,">="&E$5,Lanc_BC1!$A:$A,"<"&F$5,Lanc_BC1!$F:$F,"="&$B69) -> 0 | F69: =SUMIFS(Lanc_BC1!$H:$H,Lanc_BC1!$A:$A,">="&F$5,Lanc_BC1!$A:$A,"<"&G$5,Lanc_BC1!$F:$F,"="&$B69) -> 0 | G69: =SUMIFS(Lanc_BC1!$H:$H,Lanc_BC1!$A:$A,">="&G$5,Lanc_BC1!$A:$A,"<"&H$5,Lanc_BC1!$F:$F,"="&$B69) -> 0 | H69: =SUMIFS(Lanc_BC1!$H:$H,Lanc_BC1!$A:$A,">="&H$5,Lanc_BC1!$A:$A,"<"&I$5,Lanc_BC1!$F:$F,"="&$B69) -> 0 | I69: =SUMIFS(Lanc_BC1!$H:$H,Lanc_BC1!$A:$A,">="&I$5,Lanc_BC1!$A:$A,"<"&J$5,Lanc_BC1!$F:$F,"="&$B69) -> 0 | J69: =SUMIFS(Lanc_BC1!$H:$H,Lanc_BC1!$A:$A,">="&J$5,Lanc_BC1!$A:$A,"<"&K$5,Lanc_BC1!$F:$F,"="&$B69) -> 0 | K69: =SUMIFS(Lanc_BC1!$H:$H,Lanc_BC1!$A:$A,">="&K$5,Lanc_BC1!$A:$A,"<"&L$5,Lanc_BC1!$F:$F,"="&$B69) -> 0 | L69: =SUMIFS(Lanc_BC1!$H:$H,Lanc_BC1!$A:$A,">="&L$5,Lanc_BC1!$A:$A,"<"&M$5,Lanc_BC1!$F:$F,"="&$B69) -> 0 | M69: =SUMIFS(Lanc_BC1!$H:$H,Lanc_BC1!$A:$A,">="&M$5,Lanc_BC1!$A:$A,"<"&N$5,Lanc_BC1!$F:$F,"="&$B69) -> 0 | N69: =SUMIFS(Lanc_BC1!$H:$H,Lanc_BC1!$A:$A,">="&N$5,Lanc_BC1!$A:$A,"<"&O$5,Lanc_BC1!$F:$F,"="&$B69) -> 0 | O69: =SUMIFS(#REF!,#REF!,">="&O$5,#REF!,"<"&P$5,#REF!,"="&$B69) ->  | P69: 0
A70: X
A71: DESPESAS ADM. FIXAS | C71: =SUM(C72:C81) -> -1.99 | D71: =SUM(D72:D81) -> 0 | E71: 0 | F71: 0 | G71: 0 | H71: 0 | I71: 0 | J71: 0 | K71: 0 | L71: 0 | M71: 0 | N71: 0 | P71: =SUM(P72:P81) -> -1.99
A72: =IF(P72<>0,P72,"") ->  | B72: Água | C72: =SUMIFS(Lanc_BC1!$H:$H,Lanc_BC1!$A:$A,">="&C$5,Lanc_BC1!$A:$A,"<"&D$5,Lanc_BC1!$F:$F,"="&$B72) -> 0 | D72: =SUMIFS(Lanc_BC1!$H:$H,Lanc_BC1!$A:$A,">="&D$5,Lanc_BC1!$A:$A,"<"&E$5,Lanc_BC1!$F:$F,"="&$B72) -> 0 | E72: =SUMIFS(Lanc_BC1!$H:$H,Lanc_BC1!$A:$A,">="&E$5,Lanc_BC1!$A:$A,"<"&F$5,Lanc_BC1!$F:$F,"="&$B72) -> 0 | F72: =SUMIFS(Lanc_BC1!$H:$H,Lanc_BC1!$A:$A,">="&F$5,Lanc_BC1!$A:$A,"<"&G$5,Lanc_BC1!$F:$F,"="&$B72) -> 0 | G72: =SUMIFS(Lanc_BC1!$H:$H,Lanc_BC1!$A:$A,">="&G$5,Lanc_BC1!$A:$A,"<"&H$5,Lanc_BC1!$F:$F,"="&$B72) -> 0 | H72: =SUMIFS(Lanc_BC1!$H:$H,Lanc_BC1!$A:$A,">="&H$5,Lanc_BC1!$A:$A,"<"&I$5,Lanc_BC1!$F:$F,"="&$B72) -> 0 | I72: =SUMIFS(Lanc_BC1!$H:$H,Lanc_BC1!$A:$A,">="&I$5,Lanc_BC1!$A:$A,"<"&J$5,Lanc_BC1!$F:$F,"="&$B72) -> 0 | J72: =SUMIFS(Lanc_BC1!$H:$H,Lanc_BC1!$A:$A,">="&J$5,Lanc_BC1!$A:$A,"<"&K$5,Lanc_BC1!$F:$F,"="&$B72) -> 0 | K72: =SUMIFS(Lanc_BC1!$H:$H,Lanc_BC1!$A:$A,">="&K$5,Lanc_BC1!$A:$A,"<"&L$5,Lanc_BC1!$F:$F,"="&$B72) -> 0 | L72: =SUMIFS(Lanc_BC1!$H:$H,Lanc_BC1!$A:$A,">="&L$5,Lanc_BC1!$A:$A,"<"&M$5,Lanc_BC1!$F:$F,"="&$B72) -> 0 | M72: =SUMIFS(Lanc_BC1!$H:$H,Lanc_BC1!$A:$A,">="&M$5,Lanc_BC1!$A:$A,"<"&N$5,Lanc_BC1!$F:$F,"="&$B72) -> 0 | N72: =SUMIFS(Lanc_BC1!$H:$H,Lanc_BC1!$A:$A,">="&N$5,Lanc_BC1!$A:$A,"<"&O$5,Lanc_BC1!$F:$F,"="&$B72) -> 0 | O72: =SUMIFS(#REF!,#REF!,">="&O$5,#REF!,"<"&P$5,#REF!,"="&$B72) ->  | P72: =SUM(C72:N72) -> 0
B73: Alugueis | C73: =SUMIFS(Lanc_BC1!$H:$H,Lanc_BC1!$A:$A,">="&C$5,Lanc_BC1!$A:$A,"<"&D$5,Lanc_BC1!$F:$F,"="&$B73) -> 0 | D73: =SUMIFS(Lanc_BC1!$H:$H,Lanc_BC1!$A:$A,">="&D$5,Lanc_BC1!$A:$A,"<"&E$5,Lanc_BC1!$F:$F,"="&$B73) -> 0 | E73: =SUMIFS(Lanc_BC1!$H:$H,Lanc_BC1!$A:$A,">="&E$5,Lanc_BC1!$A:$A,"<"&F$5,Lanc_BC1!$F:$F,"="&$B73) -> 0 | F73: =SUMIFS(Lanc_BC1!$H:$H,Lanc_BC1!$A:$A,">="&F$5,Lanc_BC1!$A:$A,"<"&G$5,Lanc_BC1!$F:$F,"="&$B73) -> 0 | G73: =SUMIFS(Lanc_BC1!$H:$H,Lanc_BC1!$A:$A,">="&G$5,Lanc_BC1!$A:$A,"<"&H$5,Lanc_BC1!$F:$F,"="&$B73) -> 0 | H73: =SUMIFS(Lanc_BC1!$H:$H,Lanc_BC1!$A:$A,">="&H$5,Lanc_BC1!$A:$A,"<"&I$5,Lanc_BC1!$F:$F,"="&$B73) -> 0 | I73: =SUMIFS(Lanc_BC1!$H:$H,Lanc_BC1!$A:$A,">="&I$5,Lanc_BC1!$A:$A,"<"&J$5,Lanc_BC1!$F:$F,"="&$B73) -> 0 | J73: =SUMIFS(Lanc_BC1!$H:$H,Lanc_BC1!$A:$A,">="&J$5,Lanc_BC1!$A:$A,"<"&K$5,Lanc_BC1!$F:$F,"="&$B73) -> 0 | K73: =SUMIFS(Lanc_BC1!$H:$H,Lanc_BC1!$A:$A,">="&K$5,Lanc_BC1!$A:$A,"<"&L$5,Lanc_BC1!$F:$F,"="&$B73) -> 0 | L73: =SUMIFS(Lanc_BC1!$H:$H,Lanc_BC1!$A:$A,">="&L$5,Lanc_BC1!$A:$A,"<"&M$5,Lanc_BC1!$F:$F,"="&$B73) -> 0 | M73: =SUMIFS(Lanc_BC1!$H:$H,Lanc_BC1!$A:$A,">="&M$5,Lanc_BC1!$A:$A,"<"&N$5,Lanc_BC1!$F:$F,"="&$B73) -> 0 | N73: =SUMIFS(Lanc_BC1!$H:$H,Lanc_BC1!$A:$A,">="&N$5,Lanc_BC1!$A:$A,"<"&O$5,Lanc_BC1!$F:$F,"="&$B73) -> 0 | O73: =SUMIFS(#REF!,#REF!,">="&O$5,#REF!,"<"&P$5,#REF!,"="&$B73) ->  | P73: 0
B74: Condomínio | C74: =SUMIFS(Lanc_BC1!$H:$H,Lanc_BC1!$A:$A,">="&C$5,Lanc_BC1!$A:$A,"<"&D$5,Lanc_BC1!$F:$F,"="&$B74) -> 0 | D74: =SUMIFS(Lanc_BC1!$H:$H,Lanc_BC1!$A:$A,">="&D$5,Lanc_BC1!$A:$A,"<"&E$5,Lanc_BC1!$F:$F,"="&$B74) -> 0 | E74: =SUMIFS(Lanc_BC1!$H:$H,Lanc_BC1!$A:$A,">="&E$5,Lanc_BC1!$A:$A,"<"&F$5,Lanc_BC1!$F:$F,"="&$B74) -> 0 | F74: =SUMIFS(Lanc_BC1!$H:$H,Lanc_BC1!$A:$A,">="&F$5,Lanc_BC1!$A:$A,"<"&G$5,Lanc_BC1!$F:$F,"="&$B74) -> 0 | G74: =SUMIFS(Lanc_BC1!$H:$H,Lanc_BC1!$A:$A,">="&G$5,Lanc_BC1!$A:$A,"<"&H$5,Lanc_BC1!$F:$F,"="&$B74) -> 0 | H74: =SUMIFS(Lanc_BC1!$H:$H,Lanc_BC1!$A:$A,">="&H$5,Lanc_BC1!$A:$A,"<"&I$5,Lanc_BC1!$F:$F,"="&$B74) -> 0 | I74: =SUMIFS(Lanc_BC1!$H:$H,Lanc_BC1!$A:$A,">="&I$5,Lanc_BC1!$A:$A,"<"&J$5,Lanc_BC1!$F:$F,"="&$B74) -> 0 | J74: =SUMIFS(Lanc_BC1!$H:$H,Lanc_BC1!$A:$A,">="&J$5,Lanc_BC1!$A:$A,"<"&K$5,Lanc_BC1!$F:$F,"="&$B74) -> 0 | K74: =SUMIFS(Lanc_BC1!$H:$H,Lanc_BC1!$A:$A,">="&K$5,Lanc_BC1!$A:$A,"<"&L$5,Lanc_BC1!$F:$F,"="&$B74) -> 0 | L74: =SUMIFS(Lanc_BC1!$H:$H,Lanc_BC1!$A:$A,">="&L$5,Lanc_BC1!$A:$A,"<"&M$5,Lanc_BC1!$F:$F,"="&$B74) -> 0 | M74: =SUMIFS(Lanc_BC1!$H:$H,Lanc_BC1!$A:$A,">="&M$5,Lanc_BC1!$A:$A,"<"&N$5,Lanc_BC1!$F:$F,"="&$B74) -> 0 | N74: =SUMIFS(Lanc_BC1!$H:$H,Lanc_BC1!$A:$A,">="&N$5,Lanc_BC1!$A:$A,"<"&O$5,Lanc_BC1!$F:$F,"="&$B74) -> 0 | O74: =SUMIFS(#REF!,#REF!,">="&O$5,#REF!,"<"&P$5,#REF!,"="&$B74) ->  | P74: 0
A75: -1.99 | B75: Contabilidade | C75: =SUMIFS(Lanc_BC1!$H:$H,Lanc_BC1!$A:$A,">="&C$5,Lanc_BC1!$A:$A,"<"&D$5,Lanc_BC1!$F:$F,"="&$B75) -> -1.99 | D75: =SUMIFS(Lanc_BC1!$H:$H,Lanc_BC1!$A:$A,">="&D$5,Lanc_BC1!$A:$A,"<"&E$5,Lanc_BC1!$F:$F,"="&$B75) -> 0 | E75: =SUMIFS(Lanc_BC1!$H:$H,Lanc_BC1!$A:$A,">="&E$5,Lanc_BC1!$A:$A,"<"&F$5,Lanc_BC1!$F:$F,"="&$B75) -> 0 | F75: =SUMIFS(Lanc_BC1!$H:$H,Lanc_BC1!$A:$A,">="&F$5,Lanc_BC1!$A:$A,"<"&G$5,Lanc_BC1!$F:$F,"="&$B75) -> 0 | G75: =SUMIFS(Lanc_BC1!$H:$H,Lanc_BC1!$A:$A,">="&G$5,Lanc_BC1!$A:$A,"<"&H$5,Lanc_BC1!$F:$F,"="&$B75) -> 0 | H75: =SUMIFS(Lanc_BC1!$H:$H,Lanc_BC1!$A:$A,">="&H$5,Lanc_BC1!$A:$A,"<"&I$5,Lanc_BC1!$F:$F,"="&$B75) -> 0 | I75: =SUMIFS(Lanc_BC1!$H:$H,Lanc_BC1!$A:$A,">="&I$5,Lanc_BC1!$A:$A,"<"&J$5,Lanc_BC1!$F:$F,"="&$B75) -> 0 | J75: =SUMIFS(Lanc_BC1!$H:$H,Lanc_BC1!$A:$A,">="&J$5,Lanc_BC1!$A:$A,"<"&K$5,Lanc_BC1!$F:$F,"="&$B75) -> 0 | K75: =SUMIFS(Lanc_BC1!$H:$H,Lanc_BC1!$A:$A,">="&K$5,Lanc_BC1!$A:$A,"<"&L$5,Lanc_BC1!$F:$F,"="&$B75) -> 0 | L75: =SUMIFS(Lanc_BC1!$H:$H,Lanc_BC1!$A:$A,">="&L$5,Lanc_BC1!$A:$A,"<"&M$5,Lanc_BC1!$F:$F,"="&$B75) -> 0 | M75: =SUMIFS(Lanc_BC1!$H:$H,Lanc_BC1!$A:$A,">="&M$5,Lanc_BC1!$A:$A,"<"&N$5,Lanc_BC1!$F:$F,"="&$B75) -> 0 | N75: =SUMIFS(Lanc_BC1!$H:$H,Lanc_BC1!$A:$A,">="&N$5,Lanc_BC1!$A:$A,"<"&O$5,Lanc_BC1!$F:$F,"="&$B75) -> 0 | O75: =SUMIFS(#REF!,#REF!,">="&O$5,#REF!,"<"&P$5,#REF!,"="&$B75) ->  | P75: -1.99
B76: Energia elétrica | C76: =SUMIFS(Lanc_BC1!$H:$H,Lanc_BC1!$A:$A,">="&C$5,Lanc_BC1!$A:$A,"<"&D$5,Lanc_BC1!$F:$F,"="&$B76) -> 0 | D76: =SUMIFS(Lanc_BC1!$H:$H,Lanc_BC1!$A:$A,">="&D$5,Lanc_BC1!$A:$A,"<"&E$5,Lanc_BC1!$F:$F,"="&$B76) -> 0 | E76: =SUMIFS(Lanc_BC1!$H:$H,Lanc_BC1!$A:$A,">="&E$5,Lanc_BC1!$A:$A,"<"&F$5,Lanc_BC1!$F:$F,"="&$B76) -> 0 | F76: =SUMIFS(Lanc_BC1!$H:$H,Lanc_BC1!$A:$A,">="&F$5,Lanc_BC1!$A:$A,"<"&G$5,Lanc_BC1!$F:$F,"="&$B76) -> 0 | G76: =SUMIFS(Lanc_BC1!$H:$H,Lanc_BC1!$A:$A,">="&G$5,Lanc_BC1!$A:$A,"<"&H$5,Lanc_BC1!$F:$F,"="&$B76) -> 0 | H76: =SUMIFS(Lanc_BC1!$H:$H,Lanc_BC1!$A:$A,">="&H$5,Lanc_BC1!$A:$A,"<"&I$5,Lanc_BC1!$F:$F,"="&$B76) -> 0 | I76: =SUMIFS(Lanc_BC1!$H:$H,Lanc_BC1!$A:$A,">="&I$5,Lanc_BC1!$A:$A,"<"&J$5,Lanc_BC1!$F:$F,"="&$B76) -> 0 | J76: =SUMIFS(Lanc_BC1!$H:$H,Lanc_BC1!$A:$A,">="&J$5,Lanc_BC1!$A:$A,"<"&K$5,Lanc_BC1!$F:$F,"="&$B76) -> 0 | K76: =SUMIFS(Lanc_BC1!$H:$H,Lanc_BC1!$A:$A,">="&K$5,Lanc_BC1!$A:$A,"<"&L$5,Lanc_BC1!$F:$F,"="&$B76) -> 0 | L76: =SUMIFS(Lanc_BC1!$H:$H,Lanc_BC1!$A:$A,">="&L$5,Lanc_BC1!$A:$A,"<"&M$5,Lanc_BC1!$F:$F,"="&$B76) -> 0 | M76: =SUMIFS(Lanc_BC1!$H:$H,Lanc_BC1!$A:$A,">="&M$5,Lanc_BC1!$A:$A,"<"&N$5,Lanc_BC1!$F:$F,"="&$B76) -> 0 | N76: =SUMIFS(Lanc_BC1!$H:$H,Lanc_BC1!$A:$A,">="&N$5,Lanc_BC1!$A:$A,"<"&O$5,Lanc_BC1!$F:$F,"="&$B76) -> 0 | O76: =SUMIFS(#REF!,#REF!,">="&O$5,#REF!,"<"&P$5,#REF!,"="&$B76) ->  | P76: 0
B77: Internet | C77: =SUMIFS(Lanc_BC1!$H:$H,Lanc_BC1!$A:$A,">="&C$5,Lanc_BC1!$A:$A,"<"&D$5,Lanc_BC1!$F:$F,"="&$B77) -> 0 | D77: =SUMIFS(Lanc_BC1!$H:$H,Lanc_BC1!$A:$A,">="&D$5,Lanc_BC1!$A:$A,"<"&E$5,Lanc_BC1!$F:$F,"="&$B77) -> 0 | E77: =SUMIFS(Lanc_BC1!$H:$H,Lanc_BC1!$A:$A,">="&E$5,Lanc_BC1!$A:$A,"<"&F$5,Lanc_BC1!$F:$F,"="&$B77) -> 0 | F77: =SUMIFS(Lanc_BC1!$H:$H,Lanc_BC1!$A:$A,">="&F$5,Lanc_BC1!$A:$A,"<"&G$5,Lanc_BC1!$F:$F,"="&$B77) -> 0 | G77: =SUMIFS(Lanc_BC1!$H:$H,Lanc_BC1!$A:$A,">="&G$5,Lanc_BC1!$A:$A,"<"&H$5,Lanc_BC1!$F:$F,"="&$B77) -> 0 | H77: =SUMIFS(Lanc_BC1!$H:$H,Lanc_BC1!$A:$A,">="&H$5,Lanc_BC1!$A:$A,"<"&I$5,Lanc_BC1!$F:$F,"="&$B77) -> 0 | I77: =SUMIFS(Lanc_BC1!$H:$H,Lanc_BC1!$A:$A,">="&I$5,Lanc_BC1!$A:$A,"<"&J$5,Lanc_BC1!$F:$F,"="&$B77) -> 0 | J77: =SUMIFS(Lanc_BC1!$H:$H,Lanc_BC1!$A:$A,">="&J$5,Lanc_BC1!$A:$A,"<"&K$5,Lanc_BC1!$F:$F,"="&$B77) -> 0 | K77: =SUMIFS(Lanc_BC1!$H:$H,Lanc_BC1!$A:$A,">="&K$5,Lanc_BC1!$A:$A,"<"&L$5,Lanc_BC1!$F:$F,"="&$B77) -> 0 | L77: =SUMIFS(Lanc_BC1!$H:$H,Lanc_BC1!$A:$A,">="&L$5,Lanc_BC1!$A:$A,"<"&M$5,Lanc_BC1!$F:$F,"="&$B77) -> 0 | M77: =SUMIFS(Lanc_BC1!$H:$H,Lanc_BC1!$A:$A,">="&M$5,Lanc_BC1!$A:$A,"<"&N$5,Lanc_BC1!$F:$F,"="&$B77) -> 0 | N77: =SUMIFS(Lanc_BC1!$H:$H,Lanc_BC1!$A:$A,">="&N$5,Lanc_BC1!$A:$A,"<"&O$5,Lanc_BC1!$F:$F,"="&$B77) -> 0 | O77: =SUMIFS(#REF!,#REF!,">="&O$5,#REF!,"<"&P$5,#REF!,"="&$B77) ->  | P77: 0
B78: Licenças de Software | C78: =SUMIFS(Lanc_BC1!$H:$H,Lanc_BC1!$A:$A,">="&C$5,Lanc_BC1!$A:$A,"<"&D$5,Lanc_BC1!$F:$F,"="&$B78) -> 0 | D78: =SUMIFS(Lanc_BC1!$H:$H,Lanc_BC1!$A:$A,">="&D$5,Lanc_BC1!$A:$A,"<"&E$5,Lanc_BC1!$F:$F,"="&$B78) -> 0 | E78: =SUMIFS(Lanc_BC1!$H:$H,Lanc_BC1!$A:$A,">="&E$5,Lanc_BC1!$A:$A,"<"&F$5,Lanc_BC1!$F:$F,"="&$B78) -> 0 | F78: =SUMIFS(Lanc_BC1!$H:$H,Lanc_BC1!$A:$A,">="&F$5,Lanc_BC1!$A:$A,"<"&G$5,Lanc_BC1!$F:$F,"="&$B78) -> 0 | G78: =SUMIFS(Lanc_BC1!$H:$H,Lanc_BC1!$A:$A,">="&G$5,Lanc_BC1!$A:$A,"<"&H$5,Lanc_BC1!$F:$F,"="&$B78) -> 0 | H78: =SUMIFS(Lanc_BC1!$H:$H,Lanc_BC1!$A:$A,">="&H$5,Lanc_BC1!$A:$A,"<"&I$5,Lanc_BC1!$F:$F,"="&$B78) -> 0 | I78: =SUMIFS(Lanc_BC1!$H:$H,Lanc_BC1!$A:$A,">="&I$5,Lanc_BC1!$A:$A,"<"&J$5,Lanc_BC1!$F:$F,"="&$B78) -> 0 | J78: =SUMIFS(Lanc_BC1!$H:$H,Lanc_BC1!$A:$A,">="&J$5,Lanc_BC1!$A:$A,"<"&K$5,Lanc_BC1!$F:$F,"="&$B78) -> 0 | K78: =SUMIFS(Lanc_BC1!$H:$H,Lanc_BC1!$A:$A,">="&K$5,Lanc_BC1!$A:$A,"<"&L$5,Lanc_BC1!$F:$F,"="&$B78) -> 0 | L78: =SUMIFS(Lanc_BC1!$H:$H,Lanc_BC1!$A:$A,">="&L$5,Lanc_BC1!$A:$A,"<"&M$5,Lanc_BC1!$F:$F,"="&$B78) -> 0 | M78: =SUMIFS(Lanc_BC1!$H:$H,Lanc_BC1!$A:$A,">="&M$5,Lanc_BC1!$A:$A,"<"&N$5,Lanc_BC1!$F:$F,"="&$B78) -> 0 | N78: =SUMIFS(Lanc_BC1!$H:$H,Lanc_BC1!$A:$A,">="&N$5,Lanc_BC1!$A:$A,"<"&O$5,Lanc_BC1!$F:$F,"="&$B78) -> 0 | O78: =SUMIFS(#REF!,#REF!,">="&O$5,#REF!,"<"&P$5,#REF!,"="&$B78) ->  | P78: 0
B79: Manutenção de TI | C79: =SUMIFS(Lanc_BC1!$H:$H,Lanc_BC1!$A:$A,">="&C$5,Lanc_BC1!$A:$A,"<"&D$5,Lanc_BC1!$F:$F,"="&$B79) -> 0 | D79: =SUMIFS(Lanc_BC1!$H:$H,Lanc_BC1!$A:$A,">="&D$5,Lanc_BC1!$A:$A,"<"&E$5,Lanc_BC1!$F:$F,"="&$B79) -> 0 | E79: =SUMIFS(Lanc_BC1!$H:$H,Lanc_BC1!$A:$A,">="&E$5,Lanc_BC1!$A:$A,"<"&F$5,Lanc_BC1!$F:$F,"="&$B79) -> 0 | F79: =SUMIFS(Lanc_BC1!$H:$H,Lanc_BC1!$A:$A,">="&F$5,Lanc_BC1!$A:$A,"<"&G$5,Lanc_BC1!$F:$F,"="&$B79) -> 0 | G79: =SUMIFS(Lanc_BC1!$H:$H,Lanc_BC1!$A:$A,">="&G$5,Lanc_BC1!$A:$A,"<"&H$5,Lanc_BC1!$F:$F,"="&$B79) -> 0 | H79: =SUMIFS(Lanc_BC1!$H:$H,Lanc_BC1!$A:$A,">="&H$5,Lanc_BC1!$A:$A,"<"&I$5,Lanc_BC1!$F:$F,"="&$B79) -> 0 | I79: =SUMIFS(Lanc_BC1!$H:$H,Lanc_BC1!$A:$A,">="&I$5,Lanc_BC1!$A:$A,"<"&J$5,Lanc_BC1!$F:$F,"="&$B79) -> 0 | J79: =SUMIFS(Lanc_BC1!$H:$H,Lanc_BC1!$A:$A,">="&J$5,Lanc_BC1!$A:$A,"<"&K$5,Lanc_BC1!$F:$F,"="&$B79) -> 0 | K79: =SUMIFS(Lanc_BC1!$H:$H,Lanc_BC1!$A:$A,">="&K$5,Lanc_BC1!$A:$A,"<"&L$5,Lanc_BC1!$F:$F,"="&$B79) -> 0 | L79: =SUMIFS(Lanc_BC1!$H:$H,Lanc_BC1!$A:$A,">="&L$5,Lanc_BC1!$A:$A,"<"&M$5,Lanc_BC1!$F:$F,"="&$B79) -> 0 | M79: =SUMIFS(Lanc_BC1!$H:$H,Lanc_BC1!$A:$A,">="&M$5,Lanc_BC1!$A:$A,"<"&N$5,Lanc_BC1!$F:$F,"="&$B79) -> 0 | N79: =SUMIFS(Lanc_BC1!$H:$H,Lanc_BC1!$A:$A,">="&N$5,Lanc_BC1!$A:$A,"<"&O$5,Lanc_BC1!$F:$F,"="&$B79) -> 0 | O79: =SUMIFS(#REF!,#REF!,">="&O$5,#REF!,"<"&P$5,#REF!,"="&$B79) ->  | P79: 0
B80: Taxa - IPTU | C80: =SUMIFS(Lanc_BC1!$H:$H,Lanc_BC1!$A:$A,">="&C$5,Lanc_BC1!$A:$A,"<"&D$5,Lanc_BC1!$F:$F,"="&$B80) -> 0 | D80: =SUMIFS(Lanc_BC1!$H:$H,Lanc_BC1!$A:$A,">="&D$5,Lanc_BC1!$A:$A,"<"&E$5,Lanc_BC1!$F:$F,"="&$B80) -> 0 | E80: =SUMIFS(Lanc_BC1!$H:$H,Lanc_BC1!$A:$A,">="&E$5,Lanc_BC1!$A:$A,"<"&F$5,Lanc_BC1!$F:$F,"="&$B80) -> 0 | F80: =SUMIFS(Lanc_BC1!$H:$H,Lanc_BC1!$A:$A,">="&F$5,Lanc_BC1!$A:$A,"<"&G$5,Lanc_BC1!$F:$F,"="&$B80) -> 0 | G80: =SUMIFS(Lanc_BC1!$H:$H,Lanc_BC1!$A:$A,">="&G$5,Lanc_BC1!$A:$A,"<"&H$5,Lanc_BC1!$F:$F,"="&$B80) -> 0 | H80: =SUMIFS(Lanc_BC1!$H:$H,Lanc_BC1!$A:$A,">="&H$5,Lanc_BC1!$A:$A,"<"&I$5,Lanc_BC1!$F:$F,"="&$B80) -> 0 | I80: =SUMIFS(Lanc_BC1!$H:$H,Lanc_BC1!$A:$A,">="&I$5,Lanc_BC1!$A:$A,"<"&J$5,Lanc_BC1!$F:$F,"="&$B80) -> 0 | J80: =SUMIFS(Lanc_BC1!$H:$H,Lanc_BC1!$A:$A,">="&J$5,Lanc_BC1!$A:$A,"<"&K$5,Lanc_BC1!$F:$F,"="&$B80) -> 0 | K80: =SUMIFS(Lanc_BC1!$H:$H,Lanc_BC1!$A:$A,">="&K$5,Lanc_BC1!$A:$A,"<"&L$5,Lanc_BC1!$F:$F,"="&$B80) -> 0 | L80: =SUMIFS(Lanc_BC1!$H:$H,Lanc_BC1!$A:$A,">="&L$5,Lanc_BC1!$A:$A,"<"&M$5,Lanc_BC1!$F:$F,"="&$B80) -> 0 | M80: =SUMIFS(Lanc_BC1!$H:$H,Lanc_BC1!$A:$A,">="&M$5,Lanc_BC1!$A:$A,"<"&N$5,Lanc_BC1!$F:$F,"="&$B80) -> 0 | N80: =SUMIFS(Lanc_BC1!$H:$H,Lanc_BC1!$A:$A,">="&N$5,Lanc_BC1!$A:$A,"<"&O$5,Lanc_BC1!$F:$F,"="&$B80) -> 0 | O80: =SUMIFS(#REF!,#REF!,">="&O$5,#REF!,"<"&P$5,#REF!,"="&$B80) ->  | P80: 0
B81: Telefone | C81: =SUMIFS(Lanc_BC1!$H:$H,Lanc_BC1!$A:$A,">="&C$5,Lanc_BC1!$A:$A,"<"&D$5,Lanc_BC1!$F:$F,"="&$B81) -> 0 | D81: =SUMIFS(Lanc_BC1!$H:$H,Lanc_BC1!$A:$A,">="&D$5,Lanc_BC1!$A:$A,"<"&E$5,Lanc_BC1!$F:$F,"="&$B81) -> 0 | E81: =SUMIFS(Lanc_BC1!$H:$H,Lanc_BC1!$A:$A,">="&E$5,Lanc_BC1!$A:$A,"<"&F$5,Lanc_BC1!$F:$F,"="&$B81) -> 0 | F81: =SUMIFS(Lanc_BC1!$H:$H,Lanc_BC1!$A:$A,">="&F$5,Lanc_BC1!$A:$A,"<"&G$5,Lanc_BC1!$F:$F,"="&$B81) -> 0 | G81: =SUMIFS(Lanc_BC1!$H:$H,Lanc_BC1!$A:$A,">="&G$5,Lanc_BC1!$A:$A,"<"&H$5,Lanc_BC1!$F:$F,"="&$B81) -> 0 | H81: =SUMIFS(Lanc_BC1!$H:$H,Lanc_BC1!$A:$A,">="&H$5,Lanc_BC1!$A:$A,"<"&I$5,Lanc_BC1!$F:$F,"="&$B81) -> 0 | I81: =SUMIFS(Lanc_BC1!$H:$H,Lanc_BC1!$A:$A,">="&I$5,Lanc_BC1!$A:$A,"<"&J$5,Lanc_BC1!$F:$F,"="&$B81) -> 0 | J81: =SUMIFS(Lanc_BC1!$H:$H,Lanc_BC1!$A:$A,">="&J$5,Lanc_BC1!$A:$A,"<"&K$5,Lanc_BC1!$F:$F,"="&$B81) -> 0 | K81: =SUMIFS(Lanc_BC1!$H:$H,Lanc_BC1!$A:$A,">="&K$5,Lanc_BC1!$A:$A,"<"&L$5,Lanc_BC1!$F:$F,"="&$B81) -> 0 | L81: =SUMIFS(Lanc_BC1!$H:$H,Lanc_BC1!$A:$A,">="&L$5,Lanc_BC1!$A:$A,"<"&M$5,Lanc_BC1!$F:$F,"="&$B81) -> 0 | M81: =SUMIFS(Lanc_BC1!$H:$H,Lanc_BC1!$A:$A,">="&M$5,Lanc_BC1!$A:$A,"<"&N$5,Lanc_BC1!$F:$F,"="&$B81) -> 0 | N81: =SUMIFS(Lanc_BC1!$H:$H,Lanc_BC1!$A:$A,">="&N$5,Lanc_BC1!$A:$A,"<"&O$5,Lanc_BC1!$F:$F,"="&$B81) -> 0 | O81: =SUMIFS(#REF!,#REF!,">="&O$5,#REF!,"<"&P$5,#REF!,"="&$B81) ->  | P81: 0
A82: X
A83: DESPESAS COM PESSOAL | C83: =SUM(C84:C102) -> 0 | D83: =SUM(D84:D102) -> 0 | E83: 0 | F83: 0 | G83: 0 | H83: 0 | I83: 0 | J83: 0 | K83: 0 | L83: 0 | M83: 0 | N83: 0 | O83: =SUM(O84:O101) ->  | P83: =SUM(P84:P102) -> 0
A84: =IF(P84<>0,P84,"") ->  | B84: 13º Salário | C84: =SUMIFS(Lanc_BC1!$H:$H,Lanc_BC1!$A:$A,">="&C$5,Lanc_BC1!$A:$A,"<"&D$5,Lanc_BC1!$F:$F,"="&$B84) -> 0 | D84: =SUMIFS(Lanc_BC1!$H:$H,Lanc_BC1!$A:$A,">="&D$5,Lanc_BC1!$A:$A,"<"&E$5,Lanc_BC1!$F:$F,"="&$B84) -> 0 | E84: =SUMIFS(Lanc_BC1!$H:$H,Lanc_BC1!$A:$A,">="&E$5,Lanc_BC1!$A:$A,"<"&F$5,Lanc_BC1!$F:$F,"="&$B84) -> 0 | F84: =SUMIFS(Lanc_BC1!$H:$H,Lanc_BC1!$A:$A,">="&F$5,Lanc_BC1!$A:$A,"<"&G$5,Lanc_BC1!$F:$F,"="&$B84) -> 0 | G84: =SUMIFS(Lanc_BC1!$H:$H,Lanc_BC1!$A:$A,">="&G$5,Lanc_BC1!$A:$A,"<"&H$5,Lanc_BC1!$F:$F,"="&$B84) -> 0 | H84: =SUMIFS(Lanc_BC1!$H:$H,Lanc_BC1!$A:$A,">="&H$5,Lanc_BC1!$A:$A,"<"&I$5,Lanc_BC1!$F:$F,"="&$B84) -> 0 | I84: =SUMIFS(Lanc_BC1!$H:$H,Lanc_BC1!$A:$A,">="&I$5,Lanc_BC1!$A:$A,"<"&J$5,Lanc_BC1!$F:$F,"="&$B84) -> 0 | J84: =SUMIFS(Lanc_BC1!$H:$H,Lanc_BC1!$A:$A,">="&J$5,Lanc_BC1!$A:$A,"<"&K$5,Lanc_BC1!$F:$F,"="&$B84) -> 0 | K84: =SUMIFS(Lanc_BC1!$H:$H,Lanc_BC1!$A:$A,">="&K$5,Lanc_BC1!$A:$A,"<"&L$5,Lanc_BC1!$F:$F,"="&$B84) -> 0 | L84: =SUMIFS(Lanc_BC1!$H:$H,Lanc_BC1!$A:$A,">="&L$5,Lanc_BC1!$A:$A,"<"&M$5,Lanc_BC1!$F:$F,"="&$B84) -> 0 | M84: =SUMIFS(Lanc_BC1!$H:$H,Lanc_BC1!$A:$A,">="&M$5,Lanc_BC1!$A:$A,"<"&N$5,Lanc_BC1!$F:$F,"="&$B84) -> 0 | N84: =SUMIFS(Lanc_BC1!$H:$H,Lanc_BC1!$A:$A,">="&N$5,Lanc_BC1!$A:$A,"<"&O$5,Lanc_BC1!$F:$F,"="&$B84) -> 0 | O84: =SUMIFS(#REF!,#REF!,">="&O$5,#REF!,"<"&P$5,#REF!,"="&$B84) ->  | P84: =SUM(C84:N84) -> 0
B85: Adiantamento de 13º salário | C85: =SUMIFS(Lanc_BC1!$H:$H,Lanc_BC1!$A:$A,">="&C$5,Lanc_BC1!$A:$A,"<"&D$5,Lanc_BC1!$F:$F,"="&$B85) -> 0 | D85: =SUMIFS(Lanc_BC1!$H:$H,Lanc_BC1!$A:$A,">="&D$5,Lanc_BC1!$A:$A,"<"&E$5,Lanc_BC1!$F:$F,"="&$B85) -> 0 | E85: =SUMIFS(Lanc_BC1!$H:$H,Lanc_BC1!$A:$A,">="&E$5,Lanc_BC1!$A:$A,"<"&F$5,Lanc_BC1!$F:$F,"="&$B85) -> 0 | F85: =SUMIFS(Lanc_BC1!$H:$H,Lanc_BC1!$A:$A,">="&F$5,Lanc_BC1!$A:$A,"<"&G$5,Lanc_BC1!$F:$F,"="&$B85) -> 0 | G85: =SUMIFS(Lanc_BC1!$H:$H,Lanc_BC1!$A:$A,">="&G$5,Lanc_BC1!$A:$A,"<"&H$5,Lanc_BC1!$F:$F,"="&$B85) -> 0 | H85: =SUMIFS(Lanc_BC1!$H:$H,Lanc_BC1!$A:$A,">="&H$5,Lanc_BC1!$A:$A,"<"&I$5,Lanc_BC1!$F:$F,"="&$B85) -> 0 | I85: =SUMIFS(Lanc_BC1!$H:$H,Lanc_BC1!$A:$A,">="&I$5,Lanc_BC1!$A:$A,"<"&J$5,Lanc_BC1!$F:$F,"="&$B85) -> 0 | J85: =SUMIFS(Lanc_BC1!$H:$H,Lanc_BC1!$A:$A,">="&J$5,Lanc_BC1!$A:$A,"<"&K$5,Lanc_BC1!$F:$F,"="&$B85) -> 0 | K85: =SUMIFS(Lanc_BC1!$H:$H,Lanc_BC1!$A:$A,">="&K$5,Lanc_BC1!$A:$A,"<"&L$5,Lanc_BC1!$F:$F,"="&$B85) -> 0 | L85: =SUMIFS(Lanc_BC1!$H:$H,Lanc_BC1!$A:$A,">="&L$5,Lanc_BC1!$A:$A,"<"&M$5,Lanc_BC1!$F:$F,"="&$B85) -> 0 | M85: =SUMIFS(Lanc_BC1!$H:$H,Lanc_BC1!$A:$A,">="&M$5,Lanc_BC1!$A:$A,"<"&N$5,Lanc_BC1!$F:$F,"="&$B85) -> 0 | N85: =SUMIFS(Lanc_BC1!$H:$H,Lanc_BC1!$A:$A,">="&N$5,Lanc_BC1!$A:$A,"<"&O$5,Lanc_BC1!$F:$F,"="&$B85) -> 0 | O85: =SUMIFS(#REF!,#REF!,">="&O$5,#REF!,"<"&P$5,#REF!,"="&$B85) ->  | P85: 0
B86: Adiantamento de salário | C86: =SUMIFS(Lanc_BC1!$H:$H,Lanc_BC1!$A:$A,">="&C$5,Lanc_BC1!$A:$A,"<"&D$5,Lanc_BC1!$F:$F,"="&$B86) -> 0 | D86: =SUMIFS(Lanc_BC1!$H:$H,Lanc_BC1!$A:$A,">="&D$5,Lanc_BC1!$A:$A,"<"&E$5,Lanc_BC1!$F:$F,"="&$B86) -> 0 | E86: =SUMIFS(Lanc_BC1!$H:$H,Lanc_BC1!$A:$A,">="&E$5,Lanc_BC1!$A:$A,"<"&F$5,Lanc_BC1!$F:$F,"="&$B86) -> 0 | F86: =SUMIFS(Lanc_BC1!$H:$H,Lanc_BC1!$A:$A,">="&F$5,Lanc_BC1!$A:$A,"<"&G$5,Lanc_BC1!$F:$F,"="&$B86) -> 0 | G86: =SUMIFS(Lanc_BC1!$H:$H,Lanc_BC1!$A:$A,">="&G$5,Lanc_BC1!$A:$A,"<"&H$5,Lanc_BC1!$F:$F,"="&$B86) -> 0 | H86: =SUMIFS(Lanc_BC1!$H:$H,Lanc_BC1!$A:$A,">="&H$5,Lanc_BC1!$A:$A,"<"&I$5,Lanc_BC1!$F:$F,"="&$B86) -> 0 | I86: =SUMIFS(Lanc_BC1!$H:$H,Lanc_BC1!$A:$A,">="&I$5,Lanc_BC1!$A:$A,"<"&J$5,Lanc_BC1!$F:$F,"="&$B86) -> 0 | J86: =SUMIFS(Lanc_BC1!$H:$H,Lanc_BC1!$A:$A,">="&J$5,Lanc_BC1!$A:$A,"<"&K$5,Lanc_BC1!$F:$F,"="&$B86) -> 0 | K86: =SUMIFS(Lanc_BC1!$H:$H,Lanc_BC1!$A:$A,">="&K$5,Lanc_BC1!$A:$A,"<"&L$5,Lanc_BC1!$F:$F,"="&$B86) -> 0 | L86: =SUMIFS(Lanc_BC1!$H:$H,Lanc_BC1!$A:$A,">="&L$5,Lanc_BC1!$A:$A,"<"&M$5,Lanc_BC1!$F:$F,"="&$B86) -> 0 | M86: =SUMIFS(Lanc_BC1!$H:$H,Lanc_BC1!$A:$A,">="&M$5,Lanc_BC1!$A:$A,"<"&N$5,Lanc_BC1!$F:$F,"="&$B86) -> 0 | N86: =SUMIFS(Lanc_BC1!$H:$H,Lanc_BC1!$A:$A,">="&N$5,Lanc_BC1!$A:$A,"<"&O$5,Lanc_BC1!$F:$F,"="&$B86) -> 0 | O86: =SUMIFS(#REF!,#REF!,">="&O$5,#REF!,"<"&P$5,#REF!,"="&$B86) ->  | P86: 0
B87: Ajuda de custo - Funcionário | C87: =SUMIFS(Lanc_BC1!$H:$H,Lanc_BC1!$A:$A,">="&C$5,Lanc_BC1!$A:$A,"<"&D$5,Lanc_BC1!$F:$F,"="&$B87) -> 0 | D87: =SUMIFS(Lanc_BC1!$H:$H,Lanc_BC1!$A:$A,">="&D$5,Lanc_BC1!$A:$A,"<"&E$5,Lanc_BC1!$F:$F,"="&$B87) -> 0 | E87: =SUMIFS(Lanc_BC1!$H:$H,Lanc_BC1!$A:$A,">="&E$5,Lanc_BC1!$A:$A,"<"&F$5,Lanc_BC1!$F:$F,"="&$B87) -> 0 | F87: =SUMIFS(Lanc_BC1!$H:$H,Lanc_BC1!$A:$A,">="&F$5,Lanc_BC1!$A:$A,"<"&G$5,Lanc_BC1!$F:$F,"="&$B87) -> 0 | G87: =SUMIFS(Lanc_BC1!$H:$H,Lanc_BC1!$A:$A,">="&G$5,Lanc_BC1!$A:$A,"<"&H$5,Lanc_BC1!$F:$F,"="&$B87) -> 0 | H87: =SUMIFS(Lanc_BC1!$H:$H,Lanc_BC1!$A:$A,">="&H$5,Lanc_BC1!$A:$A,"<"&I$5,Lanc_BC1!$F:$F,"="&$B87) -> 0 | I87: =SUMIFS(Lanc_BC1!$H:$H,Lanc_BC1!$A:$A,">="&I$5,Lanc_BC1!$A:$A,"<"&J$5,Lanc_BC1!$F:$F,"="&$B87) -> 0 | J87: =SUMIFS(Lanc_BC1!$H:$H,Lanc_BC1!$A:$A,">="&J$5,Lanc_BC1!$A:$A,"<"&K$5,Lanc_BC1!$F:$F,"="&$B87) -> 0 | K87: =SUMIFS(Lanc_BC1!$H:$H,Lanc_BC1!$A:$A,">="&K$5,Lanc_BC1!$A:$A,"<"&L$5,Lanc_BC1!$F:$F,"="&$B87) -> 0 | L87: =SUMIFS(Lanc_BC1!$H:$H,Lanc_BC1!$A:$A,">="&L$5,Lanc_BC1!$A:$A,"<"&M$5,Lanc_BC1!$F:$F,"="&$B87) -> 0 | M87: =SUMIFS(Lanc_BC1!$H:$H,Lanc_BC1!$A:$A,">="&M$5,Lanc_BC1!$A:$A,"<"&N$5,Lanc_BC1!$F:$F,"="&$B87) -> 0 | N87: =SUMIFS(Lanc_BC1!$H:$H,Lanc_BC1!$A:$A,">="&N$5,Lanc_BC1!$A:$A,"<"&O$5,Lanc_BC1!$F:$F,"="&$B87) -> 0 | O87: =SUMIFS(#REF!,#REF!,">="&O$5,#REF!,"<"&P$5,#REF!,"="&$B87) ->  | P87: 0
B88: Assistência médica/odontológica | C88: =SUMIFS(Lanc_BC1!$H:$H,Lanc_BC1!$A:$A,">="&C$5,Lanc_BC1!$A:$A,"<"&D$5,Lanc_BC1!$F:$F,"="&$B88) -> 0 | D88: =SUMIFS(Lanc_BC1!$H:$H,Lanc_BC1!$A:$A,">="&D$5,Lanc_BC1!$A:$A,"<"&E$5,Lanc_BC1!$F:$F,"="&$B88) -> 0 | E88: =SUMIFS(Lanc_BC1!$H:$H,Lanc_BC1!$A:$A,">="&E$5,Lanc_BC1!$A:$A,"<"&F$5,Lanc_BC1!$F:$F,"="&$B88) -> 0 | F88: =SUMIFS(Lanc_BC1!$H:$H,Lanc_BC1!$A:$A,">="&F$5,Lanc_BC1!$A:$A,"<"&G$5,Lanc_BC1!$F:$F,"="&$B88) -> 0 | G88: =SUMIFS(Lanc_BC1!$H:$H,Lanc_BC1!$A:$A,">="&G$5,Lanc_BC1!$A:$A,"<"&H$5,Lanc_BC1!$F:$F,"="&$B88) -> 0 | H88: =SUMIFS(Lanc_BC1!$H:$H,Lanc_BC1!$A:$A,">="&H$5,Lanc_BC1!$A:$A,"<"&I$5,Lanc_BC1!$F:$F,"="&$B88) -> 0 | I88: =SUMIFS(Lanc_BC1!$H:$H,Lanc_BC1!$A:$A,">="&I$5,Lanc_BC1!$A:$A,"<"&J$5,Lanc_BC1!$F:$F,"="&$B88) -> 0 | J88: =SUMIFS(Lanc_BC1!$H:$H,Lanc_BC1!$A:$A,">="&J$5,Lanc_BC1!$A:$A,"<"&K$5,Lanc_BC1!$F:$F,"="&$B88) -> 0 | K88: =SUMIFS(Lanc_BC1!$H:$H,Lanc_BC1!$A:$A,">="&K$5,Lanc_BC1!$A:$A,"<"&L$5,Lanc_BC1!$F:$F,"="&$B88) -> 0 | L88: =SUMIFS(Lanc_BC1!$H:$H,Lanc_BC1!$A:$A,">="&L$5,Lanc_BC1!$A:$A,"<"&M$5,Lanc_BC1!$F:$F,"="&$B88) -> 0 | M88: =SUMIFS(Lanc_BC1!$H:$H,Lanc_BC1!$A:$A,">="&M$5,Lanc_BC1!$A:$A,"<"&N$5,Lanc_BC1!$F:$F,"="&$B88) -> 0 | N88: =SUMIFS(Lanc_BC1!$H:$H,Lanc_BC1!$A:$A,">="&N$5,Lanc_BC1!$A:$A,"<"&O$5,Lanc_BC1!$F:$F,"="&$B88) -> 0 | O88: =SUMIFS(#REF!,#REF!,">="&O$5,#REF!,"<"&P$5,#REF!,"="&$B88) ->  | P88: 0
B89: Contribuição sindical | C89: =SUMIFS(Lanc_BC1!$H:$H,Lanc_BC1!$A:$A,">="&C$5,Lanc_BC1!$A:$A,"<"&D$5,Lanc_BC1!$F:$F,"="&$B89) -> 0 | D89: =SUMIFS(Lanc_BC1!$H:$H,Lanc_BC1!$A:$A,">="&D$5,Lanc_BC1!$A:$A,"<"&E$5,Lanc_BC1!$F:$F,"="&$B89) -> 0 | E89: =SUMIFS(Lanc_BC1!$H:$H,Lanc_BC1!$A:$A,">="&E$5,Lanc_BC1!$A:$A,"<"&F$5,Lanc_BC1!$F:$F,"="&$B89) -> 0 | F89: =SUMIFS(Lanc_BC1!$H:$H,Lanc_BC1!$A:$A,">="&F$5,Lanc_BC1!$A:$A,"<"&G$5,Lanc_BC1!$F:$F,"="&$B89) -> 0 | G89: =SUMIFS(Lanc_BC1!$H:$H,Lanc_BC1!$A:$A,">="&G$5,Lanc_BC1!$A:$A,"<"&H$5,Lanc_BC1!$F:$F,"="&$B89) -> 0 | H89: =SUMIFS(Lanc_BC1!$H:$H,Lanc_BC1!$A:$A,">="&H$5,Lanc_BC1!$A:$A,"<"&I$5,Lanc_BC1!$F:$F,"="&$B89) -> 0 | I89: =SUMIFS(Lanc_BC1!$H:$H,Lanc_BC1!$A:$A,">="&I$5,Lanc_BC1!$A:$A,"<"&J$5,Lanc_BC1!$F:$F,"="&$B89) -> 0 | J89: =SUMIFS(Lanc_BC1!$H:$H,Lanc_BC1!$A:$A,">="&J$5,Lanc_BC1!$A:$A,"<"&K$5,Lanc_BC1!$F:$F,"="&$B89) -> 0 | K89: =SUMIFS(Lanc_BC1!$H:$H,Lanc_BC1!$A:$A,">="&K$5,Lanc_BC1!$A:$A,"<"&L$5,Lanc_BC1!$F:$F,"="&$B89) -> 0 | L89: =SUMIFS(Lanc_BC1!$H:$H,Lanc_BC1!$A:$A,">="&L$5,Lanc_BC1!$A:$A,"<"&M$5,Lanc_BC1!$F:$F,"="&$B89) -> 0 | M89: =SUMIFS(Lanc_BC1!$H:$H,Lanc_BC1!$A:$A,">="&M$5,Lanc_BC1!$A:$A,"<"&N$5,Lanc_BC1!$F:$F,"="&$B89) -> 0 | N89: =SUMIFS(Lanc_BC1!$H:$H,Lanc_BC1!$A:$A,">="&N$5,Lanc_BC1!$A:$A,"<"&O$5,Lanc_BC1!$F:$F,"="&$B89) -> 0 | O89: =SUMIFS(#REF!,#REF!,">="&O$5,#REF!,"<"&P$5,#REF!,"="&$B89) ->  | P89: 0
B90: Cursos e treinamentos | C90: =SUMIFS(Lanc_BC1!$H:$H,Lanc_BC1!$A:$A,">="&C$5,Lanc_BC1!$A:$A,"<"&D$5,Lanc_BC1!$F:$F,"="&$B90) -> 0 | D90: =SUMIFS(Lanc_BC1!$H:$H,Lanc_BC1!$A:$A,">="&D$5,Lanc_BC1!$A:$A,"<"&E$5,Lanc_BC1!$F:$F,"="&$B90) -> 0 | E90: =SUMIFS(Lanc_BC1!$H:$H,Lanc_BC1!$A:$A,">="&E$5,Lanc_BC1!$A:$A,"<"&F$5,Lanc_BC1!$F:$F,"="&$B90) -> 0 | F90: =SUMIFS(Lanc_BC1!$H:$H,Lanc_BC1!$A:$A,">="&F$5,Lanc_BC1!$A:$A,"<"&G$5,Lanc_BC1!$F:$F,"="&$B90) -> 0 | G90: =SUMIFS(Lanc_BC1!$H:$H,Lanc_BC1!$A:$A,">="&G$5,Lanc_BC1!$A:$A,"<"&H$5,Lanc_BC1!$F:$F,"="&$B90) -> 0 | H90: =SUMIFS(Lanc_BC1!$H:$H,Lanc_BC1!$A:$A,">="&H$5,Lanc_BC1!$A:$A,"<"&I$5,Lanc_BC1!$F:$F,"="&$B90) -> 0 | I90: =SUMIFS(Lanc_BC1!$H:$H,Lanc_BC1!$A:$A,">="&I$5,Lanc_BC1!$A:$A,"<"&J$5,Lanc_BC1!$F:$F,"="&$B90) -> 0 | J90: =SUMIFS(Lanc_BC1!$H:$H,Lanc_BC1!$A:$A,">="&J$5,Lanc_BC1!$A:$A,"<"&K$5,Lanc_BC1!$F:$F,"="&$B90) -> 0 | K90: =SUMIFS(Lanc_BC1!$H:$H,Lanc_BC1!$A:$A,">="&K$5,Lanc_BC1!$A:$A,"<"&L$5,Lanc_BC1!$F:$F,"="&$B90) -> 0 | L90: =SUMIFS(Lanc_BC1!$H:$H,Lanc_BC1!$A:$A,">="&L$5,Lanc_BC1!$A:$A,"<"&M$5,Lanc_BC1!$F:$F,"="&$B90) -> 0 | M90: =SUMIFS(Lanc_BC1!$H:$H,Lanc_BC1!$A:$A,">="&M$5,Lanc_BC1!$A:$A,"<"&N$5,Lanc_BC1!$F:$F,"="&$B90) -> 0 | N90: =SUMIFS(Lanc_BC1!$H:$H,Lanc_BC1!$A:$A,">="&N$5,Lanc_BC1!$A:$A,"<"&O$5,Lanc_BC1!$F:$F,"="&$B90) -> 0 | O90: =SUMIFS(#REF!,#REF!,">="&O$5,#REF!,"<"&P$5,#REF!,"="&$B90) ->  | P90: 0
B91: Exames admissionais/demissionais | C91: =SUMIFS(Lanc_BC1!$H:$H,Lanc_BC1!$A:$A,">="&C$5,Lanc_BC1!$A:$A,"<"&D$5,Lanc_BC1!$F:$F,"="&$B91) -> 0 | D91: =SUMIFS(Lanc_BC1!$H:$H,Lanc_BC1!$A:$A,">="&D$5,Lanc_BC1!$A:$A,"<"&E$5,Lanc_BC1!$F:$F,"="&$B91) -> 0 | E91: =SUMIFS(Lanc_BC1!$H:$H,Lanc_BC1!$A:$A,">="&E$5,Lanc_BC1!$A:$A,"<"&F$5,Lanc_BC1!$F:$F,"="&$B91) -> 0 | F91: =SUMIFS(Lanc_BC1!$H:$H,Lanc_BC1!$A:$A,">="&F$5,Lanc_BC1!$A:$A,"<"&G$5,Lanc_BC1!$F:$F,"="&$B91) -> 0 | G91: =SUMIFS(Lanc_BC1!$H:$H,Lanc_BC1!$A:$A,">="&G$5,Lanc_BC1!$A:$A,"<"&H$5,Lanc_BC1!$F:$F,"="&$B91) -> 0 | H91: =SUMIFS(Lanc_BC1!$H:$H,Lanc_BC1!$A:$A,">="&H$5,Lanc_BC1!$A:$A,"<"&I$5,Lanc_BC1!$F:$F,"="&$B91) -> 0 | I91: =SUMIFS(Lanc_BC1!$H:$H,Lanc_BC1!$A:$A,">="&I$5,Lanc_BC1!$A:$A,"<"&J$5,Lanc_BC1!$F:$F,"="&$B91) -> 0 | J91: =SUMIFS(Lanc_BC1!$H:$H,Lanc_BC1!$A:$A,">="&J$5,Lanc_BC1!$A:$A,"<"&K$5,Lanc_BC1!$F:$F,"="&$B91) -> 0 | K91: =SUMIFS(Lanc_BC1!$H:$H,Lanc_BC1!$A:$A,">="&K$5,Lanc_BC1!$A:$A,"<"&L$5,Lanc_BC1!$F:$F,"="&$B91) -> 0 | L91: =SUMIFS(Lanc_BC1!$H:$H,Lanc_BC1!$A:$A,">="&L$5,Lanc_BC1!$A:$A,"<"&M$5,Lanc_BC1!$F:$F,"="&$B91) -> 0 | M91: =SUMIFS(Lanc_BC1!$H:$H,Lanc_BC1!$A:$A,">="&M$5,Lanc_BC1!$A:$A,"<"&N$5,Lanc_BC1!$F:$F,"="&$B91) -> 0 | N91: =SUMIFS(Lanc_BC1!$H:$H,Lanc_BC1!$A:$A,">="&N$5,Lanc_BC1!$A:$A,"<"&O$5,Lanc_BC1!$F:$F,"="&$B91) -> 0 | O91: =SUMIFS(#REF!,#REF!,">="&O$5,#REF!,"<"&P$5,#REF!,"="&$B91) ->  | P91: 0
B92: Férias | C92: =SUMIFS(Lanc_BC1!$H:$H,Lanc_BC1!$A:$A,">="&C$5,Lanc_BC1!$A:$A,"<"&D$5,Lanc_BC1!$F:$F,"="&$B92) -> 0 | D92: =SUMIFS(Lanc_BC1!$H:$H,Lanc_BC1!$A:$A,">="&D$5,Lanc_BC1!$A:$A,"<"&E$5,Lanc_BC1!$F:$F,"="&$B92) -> 0 | E92: =SUMIFS(Lanc_BC1!$H:$H,Lanc_BC1!$A:$A,">="&E$5,Lanc_BC1!$A:$A,"<"&F$5,Lanc_BC1!$F:$F,"="&$B92) -> 0 | F92: =SUMIFS(Lanc_BC1!$H:$H,Lanc_BC1!$A:$A,">="&F$5,Lanc_BC1!$A:$A,"<"&G$5,Lanc_BC1!$F:$F,"="&$B92) -> 0 | G92: =SUMIFS(Lanc_BC1!$H:$H,Lanc_BC1!$A:$A,">="&G$5,Lanc_BC1!$A:$A,"<"&H$5,Lanc_BC1!$F:$F,"="&$B92) -> 0 | H92: =SUMIFS(Lanc_BC1!$H:$H,Lanc_BC1!$A:$A,">="&H$5,Lanc_BC1!$A:$A,"<"&I$5,Lanc_BC1!$F:$F,"="&$B92) -> 0 | I92: =SUMIFS(Lanc_BC1!$H:$H,Lanc_BC1!$A:$A,">="&I$5,Lanc_BC1!$A:$A,"<"&J$5,Lanc_BC1!$F:$F,"="&$B92) -> 0 | J92: =SUMIFS(Lanc_BC1!$H:$H,Lanc_BC1!$A:$A,">="&J$5,Lanc_BC1!$A:$A,"<"&K$5,Lanc_BC1!$F:$F,"="&$B92) -> 0 | K92: =SUMIFS(Lanc_BC1!$H:$H,Lanc_BC1!$A:$A,">="&K$5,Lanc_BC1!$A:$A,"<"&L$5,Lanc_BC1!$F:$F,"="&$B92) -> 0 | L92: =SUMIFS(Lanc_BC1!$H:$H,Lanc_BC1!$A:$A,">="&L$5,Lanc_BC1!$A:$A,"<"&M$5,Lanc_BC1!$F:$F,"="&$B92) -> 0 | M92: =SUMIFS(Lanc_BC1!$H:$H,Lanc_BC1!$A:$A,">="&M$5,Lanc_BC1!$A:$A,"<"&N$5,Lanc_BC1!$F:$F,"="&$B92) -> 0 | N92: =SUMIFS(Lanc_BC1!$H:$H,Lanc_BC1!$A:$A,">="&N$5,Lanc_BC1!$A:$A,"<"&O$5,Lanc_BC1!$F:$F,"="&$B92) -> 0 | O92: =SUMIFS(#REF!,#REF!,">="&O$5,#REF!,"<"&P$5,#REF!,"="&$B92) ->  | P92: 0
B93: FGTS / GRF | C93: =SUMIFS(Lanc_BC1!$H:$H,Lanc_BC1!$A:$A,">="&C$5,Lanc_BC1!$A:$A,"<"&D$5,Lanc_BC1!$F:$F,"="&$B93) -> 0 | D93: =SUMIFS(Lanc_BC1!$H:$H,Lanc_BC1!$A:$A,">="&D$5,Lanc_BC1!$A:$A,"<"&E$5,Lanc_BC1!$F:$F,"="&$B93) -> 0 | E93: =SUMIFS(Lanc_BC1!$H:$H,Lanc_BC1!$A:$A,">="&E$5,Lanc_BC1!$A:$A,"<"&F$5,Lanc_BC1!$F:$F,"="&$B93) -> 0 | F93: =SUMIFS(Lanc_BC1!$H:$H,Lanc_BC1!$A:$A,">="&F$5,Lanc_BC1!$A:$A,"<"&G$5,Lanc_BC1!$F:$F,"="&$B93) -> 0 | G93: =SUMIFS(Lanc_BC1!$H:$H,Lanc_BC1!$A:$A,">="&G$5,Lanc_BC1!$A:$A,"<"&H$5,Lanc_BC1!$F:$F,"="&$B93) -> 0 | H93: =SUMIFS(Lanc_BC1!$H:$H,Lanc_BC1!$A:$A,">="&H$5,Lanc_BC1!$A:$A,"<"&I$5,Lanc_BC1!$F:$F,"="&$B93) -> 0 | I93: =SUMIFS(Lanc_BC1!$H:$H,Lanc_BC1!$A:$A,">="&I$5,Lanc_BC1!$A:$A,"<"&J$5,Lanc_BC1!$F:$F,"="&$B93) -> 0 | J93: =SUMIFS(Lanc_BC1!$H:$H,Lanc_BC1!$A:$A,">="&J$5,Lanc_BC1!$A:$A,"<"&K$5,Lanc_BC1!$F:$F,"="&$B93) -> 0 | K93: =SUMIFS(Lanc_BC1!$H:$H,Lanc_BC1!$A:$A,">="&K$5,Lanc_BC1!$A:$A,"<"&L$5,Lanc_BC1!$F:$F,"="&$B93) -> 0 | L93: =SUMIFS(Lanc_BC1!$H:$H,Lanc_BC1!$A:$A,">="&L$5,Lanc_BC1!$A:$A,"<"&M$5,Lanc_BC1!$F:$F,"="&$B93) -> 0 | M93: =SUMIFS(Lanc_BC1!$H:$H,Lanc_BC1!$A:$A,">="&M$5,Lanc_BC1!$A:$A,"<"&N$5,Lanc_BC1!$F:$F,"="&$B93) -> 0 | N93: =SUMIFS(Lanc_BC1!$H:$H,Lanc_BC1!$A:$A,">="&N$5,Lanc_BC1!$A:$A,"<"&O$5,Lanc_BC1!$F:$F,"="&$B93) -> 0 | O93: =SUMIFS(#REF!,#REF!,">="&O$5,#REF!,"<"&P$5,#REF!,"="&$B93) ->  | P93: 0
B94: Horas Extras | C94: =SUMIFS(Lanc_BC1!$H:$H,Lanc_BC1!$A:$A,">="&C$5,Lanc_BC1!$A:$A,"<"&D$5,Lanc_BC1!$F:$F,"="&$B94) -> 0 | D94: =SUMIFS(Lanc_BC1!$H:$H,Lanc_BC1!$A:$A,">="&D$5,Lanc_BC1!$A:$A,"<"&E$5,Lanc_BC1!$F:$F,"="&$B94) -> 0 | E94: =SUMIFS(Lanc_BC1!$H:$H,Lanc_BC1!$A:$A,">="&E$5,Lanc_BC1!$A:$A,"<"&F$5,Lanc_BC1!$F:$F,"="&$B94) -> 0 | F94: =SUMIFS(Lanc_BC1!$H:$H,Lanc_BC1!$A:$A,">="&F$5,Lanc_BC1!$A:$A,"<"&G$5,Lanc_BC1!$F:$F,"="&$B94) -> 0 | G94: =SUMIFS(Lanc_BC1!$H:$H,Lanc_BC1!$A:$A,">="&G$5,Lanc_BC1!$A:$A,"<"&H$5,Lanc_BC1!$F:$F,"="&$B94) -> 0 | H94: =SUMIFS(Lanc_BC1!$H:$H,Lanc_BC1!$A:$A,">="&H$5,Lanc_BC1!$A:$A,"<"&I$5,Lanc_BC1!$F:$F,"="&$B94) -> 0 | I94: =SUMIFS(Lanc_BC1!$H:$H,Lanc_BC1!$A:$A,">="&I$5,Lanc_BC1!$A:$A,"<"&J$5,Lanc_BC1!$F:$F,"="&$B94) -> 0 | J94: =SUMIFS(Lanc_BC1!$H:$H,Lanc_BC1!$A:$A,">="&J$5,Lanc_BC1!$A:$A,"<"&K$5,Lanc_BC1!$F:$F,"="&$B94) -> 0 | K94: =SUMIFS(Lanc_BC1!$H:$H,Lanc_BC1!$A:$A,">="&K$5,Lanc_BC1!$A:$A,"<"&L$5,Lanc_BC1!$F:$F,"="&$B94) -> 0 | L94: =SUMIFS(Lanc_BC1!$H:$H,Lanc_BC1!$A:$A,">="&L$5,Lanc_BC1!$A:$A,"<"&M$5,Lanc_BC1!$F:$F,"="&$B94) -> 0 | M94: =SUMIFS(Lanc_BC1!$H:$H,Lanc_BC1!$A:$A,">="&M$5,Lanc_BC1!$A:$A,"<"&N$5,Lanc_BC1!$F:$F,"="&$B94) -> 0 | N94: =SUMIFS(Lanc_BC1!$H:$H,Lanc_BC1!$A:$A,">="&N$5,Lanc_BC1!$A:$A,"<"&O$5,Lanc_BC1!$F:$F,"="&$B94) -> 0 | O94: =SUMIFS(#REF!,#REF!,">="&O$5,#REF!,"<"&P$5,#REF!,"="&$B94) ->  | P94: 0
B95: INSS / GPS | C95: =SUMIFS(Lanc_BC1!$H:$H,Lanc_BC1!$A:$A,">="&C$5,Lanc_BC1!$A:$A,"<"&D$5,Lanc_BC1!$F:$F,"="&$B95) -> 0 | D95: =SUMIFS(Lanc_BC1!$H:$H,Lanc_BC1!$A:$A,">="&D$5,Lanc_BC1!$A:$A,"<"&E$5,Lanc_BC1!$F:$F,"="&$B95) -> 0 | E95: =SUMIFS(Lanc_BC1!$H:$H,Lanc_BC1!$A:$A,">="&E$5,Lanc_BC1!$A:$A,"<"&F$5,Lanc_BC1!$F:$F,"="&$B95) -> 0 | F95: =SUMIFS(Lanc_BC1!$H:$H,Lanc_BC1!$A:$A,">="&F$5,Lanc_BC1!$A:$A,"<"&G$5,Lanc_BC1!$F:$F,"="&$B95) -> 0 | G95: =SUMIFS(Lanc_BC1!$H:$H,Lanc_BC1!$A:$A,">="&G$5,Lanc_BC1!$A:$A,"<"&H$5,Lanc_BC1!$F:$F,"="&$B95) -> 0 | H95: =SUMIFS(Lanc_BC1!$H:$H,Lanc_BC1!$A:$A,">="&H$5,Lanc_BC1!$A:$A,"<"&I$5,Lanc_BC1!$F:$F,"="&$B95) -> 0 | I95: =SUMIFS(Lanc_BC1!$H:$H,Lanc_BC1!$A:$A,">="&I$5,Lanc_BC1!$A:$A,"<"&J$5,Lanc_BC1!$F:$F,"="&$B95) -> 0 | J95: =SUMIFS(Lanc_BC1!$H:$H,Lanc_BC1!$A:$A,">="&J$5,Lanc_BC1!$A:$A,"<"&K$5,Lanc_BC1!$F:$F,"="&$B95) -> 0 | K95: =SUMIFS(Lanc_BC1!$H:$H,Lanc_BC1!$A:$A,">="&K$5,Lanc_BC1!$A:$A,"<"&L$5,Lanc_BC1!$F:$F,"="&$B95) -> 0 | L95: =SUMIFS(Lanc_BC1!$H:$H,Lanc_BC1!$A:$A,">="&L$5,Lanc_BC1!$A:$A,"<"&M$5,Lanc_BC1!$F:$F,"="&$B95) -> 0 | M95: =SUMIFS(Lanc_BC1!$H:$H,Lanc_BC1!$A:$A,">="&M$5,Lanc_BC1!$A:$A,"<"&N$5,Lanc_BC1!$F:$F,"="&$B95) -> 0 | N95: =SUMIFS(Lanc_BC1!$H:$H,Lanc_BC1!$A:$A,">="&N$5,Lanc_BC1!$A:$A,"<"&O$5,Lanc_BC1!$F:$F,"="&$B95) -> 0 | O95: =SUMIFS(#REF!,#REF!,">="&O$5,#REF!,"<"&P$5,#REF!,"="&$B95) ->  | P95: 0
B96: IRRF s/ folha | C96: =SUMIFS(Lanc_BC1!$H:$H,Lanc_BC1!$A:$A,">="&C$5,Lanc_BC1!$A:$A,"<"&D$5,Lanc_BC1!$F:$F,"="&$B96) -> 0 | D96: =SUMIFS(Lanc_BC1!$H:$H,Lanc_BC1!$A:$A,">="&D$5,Lanc_BC1!$A:$A,"<"&E$5,Lanc_BC1!$F:$F,"="&$B96) -> 0 | E96: =SUMIFS(Lanc_BC1!$H:$H,Lanc_BC1!$A:$A,">="&E$5,Lanc_BC1!$A:$A,"<"&F$5,Lanc_BC1!$F:$F,"="&$B96) -> 0 | F96: =SUMIFS(Lanc_BC1!$H:$H,Lanc_BC1!$A:$A,">="&F$5,Lanc_BC1!$A:$A,"<"&G$5,Lanc_BC1!$F:$F,"="&$B96) -> 0 | G96: =SUMIFS(Lanc_BC1!$H:$H,Lanc_BC1!$A:$A,">="&G$5,Lanc_BC1!$A:$A,"<"&H$5,Lanc_BC1!$F:$F,"="&$B96) -> 0 | H96: =SUMIFS(Lanc_BC1!$H:$H,Lanc_BC1!$A:$A,">="&H$5,Lanc_BC1!$A:$A,"<"&I$5,Lanc_BC1!$F:$F,"="&$B96) -> 0 | I96: =SUMIFS(Lanc_BC1!$H:$H,Lanc_BC1!$A:$A,">="&I$5,Lanc_BC1!$A:$A,"<"&J$5,Lanc_BC1!$F:$F,"="&$B96) -> 0 | J96: =SUMIFS(Lanc_BC1!$H:$H,Lanc_BC1!$A:$A,">="&J$5,Lanc_BC1!$A:$A,"<"&K$5,Lanc_BC1!$F:$F,"="&$B96) -> 0 | K96: =SUMIFS(Lanc_BC1!$H:$H,Lanc_BC1!$A:$A,">="&K$5,Lanc_BC1!$A:$A,"<"&L$5,Lanc_BC1!$F:$F,"="&$B96) -> 0 | L96: =SUMIFS(Lanc_BC1!$H:$H,Lanc_BC1!$A:$A,">="&L$5,Lanc_BC1!$A:$A,"<"&M$5,Lanc_BC1!$F:$F,"="&$B96) -> 0 | M96: =SUMIFS(Lanc_BC1!$H:$H,Lanc_BC1!$A:$A,">="&M$5,Lanc_BC1!$A:$A,"<"&N$5,Lanc_BC1!$F:$F,"="&$B96) -> 0 | N96: =SUMIFS(Lanc_BC1!$H:$H,Lanc_BC1!$A:$A,">="&N$5,Lanc_BC1!$A:$A,"<"&O$5,Lanc_BC1!$F:$F,"="&$B96) -> 0 | O96: =SUMIFS(#REF!,#REF!,">="&O$5,#REF!,"<"&P$5,#REF!,"="&$B96) ->  | P96: 0
B97: Material de Segurança | C97: =SUMIFS(Lanc_BC1!$H:$H,Lanc_BC1!$A:$A,">="&C$5,Lanc_BC1!$A:$A,"<"&D$5,Lanc_BC1!$F:$F,"="&$B97) -> 0 | D97: =SUMIFS(Lanc_BC1!$H:$H,Lanc_BC1!$A:$A,">="&D$5,Lanc_BC1!$A:$A,"<"&E$5,Lanc_BC1!$F:$F,"="&$B97) -> 0 | E97: =SUMIFS(Lanc_BC1!$H:$H,Lanc_BC1!$A:$A,">="&E$5,Lanc_BC1!$A:$A,"<"&F$5,Lanc_BC1!$F:$F,"="&$B97) -> 0 | F97: =SUMIFS(Lanc_BC1!$H:$H,Lanc_BC1!$A:$A,">="&F$5,Lanc_BC1!$A:$A,"<"&G$5,Lanc_BC1!$F:$F,"="&$B97) -> 0 | G97: =SUMIFS(Lanc_BC1!$H:$H,Lanc_BC1!$A:$A,">="&G$5,Lanc_BC1!$A:$A,"<"&H$5,Lanc_BC1!$F:$F,"="&$B97) -> 0 | H97: =SUMIFS(Lanc_BC1!$H:$H,Lanc_BC1!$A:$A,">="&H$5,Lanc_BC1!$A:$A,"<"&I$5,Lanc_BC1!$F:$F,"="&$B97) -> 0 | I97: =SUMIFS(Lanc_BC1!$H:$H,Lanc_BC1!$A:$A,">="&I$5,Lanc_BC1!$A:$A,"<"&J$5,Lanc_BC1!$F:$F,"="&$B97) -> 0 | J97: =SUMIFS(Lanc_BC1!$H:$H,Lanc_BC1!$A:$A,">="&J$5,Lanc_BC1!$A:$A,"<"&K$5,Lanc_BC1!$F:$F,"="&$B97) -> 0 | K97: =SUMIFS(Lanc_BC1!$H:$H,Lanc_BC1!$A:$A,">="&K$5,Lanc_BC1!$A:$A,"<"&L$5,Lanc_BC1!$F:$F,"="&$B97) -> 0 | L97: =SUMIFS(Lanc_BC1!$H:$H,Lanc_BC1!$A:$A,">="&L$5,Lanc_BC1!$A:$A,"<"&M$5,Lanc_BC1!$F:$F,"="&$B97) -> 0 | M97: =SUMIFS(Lanc_BC1!$H:$H,Lanc_BC1!$A:$A,">="&M$5,Lanc_BC1!$A:$A,"<"&N$5,Lanc_BC1!$F:$F,"="&$B97) -> 0 | N97: =SUMIFS(Lanc_BC1!$H:$H,Lanc_BC1!$A:$A,">="&N$5,Lanc_BC1!$A:$A,"<"&O$5,Lanc_BC1!$F:$F,"="&$B97) -> 0 | O97: =SUMIFS(#REF!,#REF!,">="&O$5,#REF!,"<"&P$5,#REF!,"="&$B97) ->  | P97: 0
B98: Pensão alimenticia | C98: =SUMIFS(Lanc_BC1!$H:$H,Lanc_BC1!$A:$A,">="&C$5,Lanc_BC1!$A:$A,"<"&D$5,Lanc_BC1!$F:$F,"="&$B98) -> 0 | D98: =SUMIFS(Lanc_BC1!$H:$H,Lanc_BC1!$A:$A,">="&D$5,Lanc_BC1!$A:$A,"<"&E$5,Lanc_BC1!$F:$F,"="&$B98) -> 0 | E98: =SUMIFS(Lanc_BC1!$H:$H,Lanc_BC1!$A:$A,">="&E$5,Lanc_BC1!$A:$A,"<"&F$5,Lanc_BC1!$F:$F,"="&$B98) -> 0 | F98: =SUMIFS(Lanc_BC1!$H:$H,Lanc_BC1!$A:$A,">="&F$5,Lanc_BC1!$A:$A,"<"&G$5,Lanc_BC1!$F:$F,"="&$B98) -> 0 | G98: =SUMIFS(Lanc_BC1!$H:$H,Lanc_BC1!$A:$A,">="&G$5,Lanc_BC1!$A:$A,"<"&H$5,Lanc_BC1!$F:$F,"="&$B98) -> 0 | H98: =SUMIFS(Lanc_BC1!$H:$H,Lanc_BC1!$A:$A,">="&H$5,Lanc_BC1!$A:$A,"<"&I$5,Lanc_BC1!$F:$F,"="&$B98) -> 0 | I98: =SUMIFS(Lanc_BC1!$H:$H,Lanc_BC1!$A:$A,">="&I$5,Lanc_BC1!$A:$A,"<"&J$5,Lanc_BC1!$F:$F,"="&$B98) -> 0 | J98: =SUMIFS(Lanc_BC1!$H:$H,Lanc_BC1!$A:$A,">="&J$5,Lanc_BC1!$A:$A,"<"&K$5,Lanc_BC1!$F:$F,"="&$B98) -> 0 | K98: =SUMIFS(Lanc_BC1!$H:$H,Lanc_BC1!$A:$A,">="&K$5,Lanc_BC1!$A:$A,"<"&L$5,Lanc_BC1!$F:$F,"="&$B98) -> 0 | L98: =SUMIFS(Lanc_BC1!$H:$H,Lanc_BC1!$A:$A,">="&L$5,Lanc_BC1!$A:$A,"<"&M$5,Lanc_BC1!$F:$F,"="&$B98) -> 0 | M98: =SUMIFS(Lanc_BC1!$H:$H,Lanc_BC1!$A:$A,">="&M$5,Lanc_BC1!$A:$A,"<"&N$5,Lanc_BC1!$F:$F,"="&$B98) -> 0 | N98: =SUMIFS(Lanc_BC1!$H:$H,Lanc_BC1!$A:$A,">="&N$5,Lanc_BC1!$A:$A,"<"&O$5,Lanc_BC1!$F:$F,"="&$B98) -> 0 | O98: =SUMIFS(#REF!,#REF!,">="&O$5,#REF!,"<"&P$5,#REF!,"="&$B98) ->  | P98: 0
B99: Rescisão | C99: =SUMIFS(Lanc_BC1!$H:$H,Lanc_BC1!$A:$A,">="&C$5,Lanc_BC1!$A:$A,"<"&D$5,Lanc_BC1!$F:$F,"="&$B99) -> 0 | D99: =SUMIFS(Lanc_BC1!$H:$H,Lanc_BC1!$A:$A,">="&D$5,Lanc_BC1!$A:$A,"<"&E$5,Lanc_BC1!$F:$F,"="&$B99) -> 0 | E99: =SUMIFS(Lanc_BC1!$H:$H,Lanc_BC1!$A:$A,">="&E$5,Lanc_BC1!$A:$A,"<"&F$5,Lanc_BC1!$F:$F,"="&$B99) -> 0 | F99: =SUMIFS(Lanc_BC1!$H:$H,Lanc_BC1!$A:$A,">="&F$5,Lanc_BC1!$A:$A,"<"&G$5,Lanc_BC1!$F:$F,"="&$B99) -> 0 | G99: =SUMIFS(Lanc_BC1!$H:$H,Lanc_BC1!$A:$A,">="&G$5,Lanc_BC1!$A:$A,"<"&H$5,Lanc_BC1!$F:$F,"="&$B99) -> 0 | H99: =SUMIFS(Lanc_BC1!$H:$H,Lanc_BC1!$A:$A,">="&H$5,Lanc_BC1!$A:$A,"<"&I$5,Lanc_BC1!$F:$F,"="&$B99) -> 0 | I99: =SUMIFS(Lanc_BC1!$H:$H,Lanc_BC1!$A:$A,">="&I$5,Lanc_BC1!$A:$A,"<"&J$5,Lanc_BC1!$F:$F,"="&$B99) -> 0 | J99: =SUMIFS(Lanc_BC1!$H:$H,Lanc_BC1!$A:$A,">="&J$5,Lanc_BC1!$A:$A,"<"&K$5,Lanc_BC1!$F:$F,"="&$B99) -> 0 | K99: =SUMIFS(Lanc_BC1!$H:$H,Lanc_BC1!$A:$A,">="&K$5,Lanc_BC1!$A:$A,"<"&L$5,Lanc_BC1!$F:$F,"="&$B99) -> 0 | L99: =SUMIFS(Lanc_BC1!$H:$H,Lanc_BC1!$A:$A,">="&L$5,Lanc_BC1!$A:$A,"<"&M$5,Lanc_BC1!$F:$F,"="&$B99) -> 0 | M99: =SUMIFS(Lanc_BC1!$H:$H,Lanc_BC1!$A:$A,">="&M$5,Lanc_BC1!$A:$A,"<"&N$5,Lanc_BC1!$F:$F,"="&$B99) -> 0 | N99: =SUMIFS(Lanc_BC1!$H:$H,Lanc_BC1!$A:$A,">="&N$5,Lanc_BC1!$A:$A,"<"&O$5,Lanc_BC1!$F:$F,"="&$B99) -> 0 | O99: =SUMIFS(#REF!,#REF!,">="&O$5,#REF!,"<"&P$5,#REF!,"="&$B99) ->  | P99: 0
B100: Salários | C100: =SUMIFS(Lanc_BC1!$H:$H,Lanc_BC1!$A:$A,">="&C$5,Lanc_BC1!$A:$A,"<"&D$5,Lanc_BC1!$F:$F,"="&$B100) -> 0 | D100: =SUMIFS(Lanc_BC1!$H:$H,Lanc_BC1!$A:$A,">="&D$5,Lanc_BC1!$A:$A,"<"&E$5,Lanc_BC1!$F:$F,"="&$B100) -> 0 | E100: =SUMIFS(Lanc_BC1!$H:$H,Lanc_BC1!$A:$A,">="&E$5,Lanc_BC1!$A:$A,"<"&F$5,Lanc_BC1!$F:$F,"="&$B100) -> 0 | F100: =SUMIFS(Lanc_BC1!$H:$H,Lanc_BC1!$A:$A,">="&F$5,Lanc_BC1!$A:$A,"<"&G$5,Lanc_BC1!$F:$F,"="&$B100) -> 0 | G100: =SUMIFS(Lanc_BC1!$H:$H,Lanc_BC1!$A:$A,">="&G$5,Lanc_BC1!$A:$A,"<"&H$5,Lanc_BC1!$F:$F,"="&$B100) -> 0 | H100: =SUMIFS(Lanc_BC1!$H:$H,Lanc_BC1!$A:$A,">="&H$5,Lanc_BC1!$A:$A,"<"&I$5,Lanc_BC1!$F:$F,"="&$B100) -> 0 | I100: =SUMIFS(Lanc_BC1!$H:$H,Lanc_BC1!$A:$A,">="&I$5,Lanc_BC1!$A:$A,"<"&J$5,Lanc_BC1!$F:$F,"="&$B100) -> 0 | J100: =SUMIFS(Lanc_BC1!$H:$H,Lanc_BC1!$A:$A,">="&J$5,Lanc_BC1!$A:$A,"<"&K$5,Lanc_BC1!$F:$F,"="&$B100) -> 0 | K100: =SUMIFS(Lanc_BC1!$H:$H,Lanc_BC1!$A:$A,">="&K$5,Lanc_BC1!$A:$A,"<"&L$5,Lanc_BC1!$F:$F,"="&$B100) -> 0 | L100: =SUMIFS(Lanc_BC1!$H:$H,Lanc_BC1!$A:$A,">="&L$5,Lanc_BC1!$A:$A,"<"&M$5,Lanc_BC1!$F:$F,"="&$B100) -> 0 | M100: =SUMIFS(Lanc_BC1!$H:$H,Lanc_BC1!$A:$A,">="&M$5,Lanc_BC1!$A:$A,"<"&N$5,Lanc_BC1!$F:$F,"="&$B100) -> 0 | N100: =SUMIFS(Lanc_BC1!$H:$H,Lanc_BC1!$A:$A,">="&N$5,Lanc_BC1!$A:$A,"<"&O$5,Lanc_BC1!$F:$F,"="&$B100) -> 0 | O100: =SUMIFS(#REF!,#REF!,">="&O$5,#REF!,"<"&P$5,#REF!,"="&$B100) ->  | P100: 0
B101: Vale alimentação/refeição | C101: =SUMIFS(Lanc_BC1!$H:$H,Lanc_BC1!$A:$A,">="&C$5,Lanc_BC1!$A:$A,"<"&D$5,Lanc_BC1!$F:$F,"="&$B101) -> 0 | D101: =SUMIFS(Lanc_BC1!$H:$H,Lanc_BC1!$A:$A,">="&D$5,Lanc_BC1!$A:$A,"<"&E$5,Lanc_BC1!$F:$F,"="&$B101) -> 0 | E101: =SUMIFS(Lanc_BC1!$H:$H,Lanc_BC1!$A:$A,">="&E$5,Lanc_BC1!$A:$A,"<"&F$5,Lanc_BC1!$F:$F,"="&$B101) -> 0 | F101: =SUMIFS(Lanc_BC1!$H:$H,Lanc_BC1!$A:$A,">="&F$5,Lanc_BC1!$A:$A,"<"&G$5,Lanc_BC1!$F:$F,"="&$B101) -> 0 | G101: =SUMIFS(Lanc_BC1!$H:$H,Lanc_BC1!$A:$A,">="&G$5,Lanc_BC1!$A:$A,"<"&H$5,Lanc_BC1!$F:$F,"="&$B101) -> 0 | H101: =SUMIFS(Lanc_BC1!$H:$H,Lanc_BC1!$A:$A,">="&H$5,Lanc_BC1!$A:$A,"<"&I$5,Lanc_BC1!$F:$F,"="&$B101) -> 0 | I101: =SUMIFS(Lanc_BC1!$H:$H,Lanc_BC1!$A:$A,">="&I$5,Lanc_BC1!$A:$A,"<"&J$5,Lanc_BC1!$F:$F,"="&$B101) -> 0 | J101: =SUMIFS(Lanc_BC1!$H:$H,Lanc_BC1!$A:$A,">="&J$5,Lanc_BC1!$A:$A,"<"&K$5,Lanc_BC1!$F:$F,"="&$B101) -> 0 | K101: =SUMIFS(Lanc_BC1!$H:$H,Lanc_BC1!$A:$A,">="&K$5,Lanc_BC1!$A:$A,"<"&L$5,Lanc_BC1!$F:$F,"="&$B101) -> 0 | L101: =SUMIFS(Lanc_BC1!$H:$H,Lanc_BC1!$A:$A,">="&L$5,Lanc_BC1!$A:$A,"<"&M$5,Lanc_BC1!$F:$F,"="&$B101) -> 0 | M101: =SUMIFS(Lanc_BC1!$H:$H,Lanc_BC1!$A:$A,">="&M$5,Lanc_BC1!$A:$A,"<"&N$5,Lanc_BC1!$F:$F,"="&$B101) -> 0 | N101: =SUMIFS(Lanc_BC1!$H:$H,Lanc_BC1!$A:$A,">="&N$5,Lanc_BC1!$A:$A,"<"&O$5,Lanc_BC1!$F:$F,"="&$B101) -> 0 | O101: =SUMIFS(#REF!,#REF!,">="&O$5,#REF!,"<"&P$5,#REF!,"="&$B101) ->  | P101: 0
B102: Vale transporte | C102: =SUMIFS(Lanc_BC1!$H:$H,Lanc_BC1!$A:$A,">="&C$5,Lanc_BC1!$A:$A,"<"&D$5,Lanc_BC1!$F:$F,"="&$B102) -> 0 | D102: =SUMIFS(Lanc_BC1!$H:$H,Lanc_BC1!$A:$A,">="&D$5,Lanc_BC1!$A:$A,"<"&E$5,Lanc_BC1!$F:$F,"="&$B102) -> 0 | E102: =SUMIFS(Lanc_BC1!$H:$H,Lanc_BC1!$A:$A,">="&E$5,Lanc_BC1!$A:$A,"<"&F$5,Lanc_BC1!$F:$F,"="&$B102) -> 0 | F102: =SUMIFS(Lanc_BC1!$H:$H,Lanc_BC1!$A:$A,">="&F$5,Lanc_BC1!$A:$A,"<"&G$5,Lanc_BC1!$F:$F,"="&$B102) -> 0 | G102: =SUMIFS(Lanc_BC1!$H:$H,Lanc_BC1!$A:$A,">="&G$5,Lanc_BC1!$A:$A,"<"&H$5,Lanc_BC1!$F:$F,"="&$B102) -> 0 | H102: =SUMIFS(Lanc_BC1!$H:$H,Lanc_BC1!$A:$A,">="&H$5,Lanc_BC1!$A:$A,"<"&I$5,Lanc_BC1!$F:$F,"="&$B102) -> 0 | I102: =SUMIFS(Lanc_BC1!$H:$H,Lanc_BC1!$A:$A,">="&I$5,Lanc_BC1!$A:$A,"<"&J$5,Lanc_BC1!$F:$F,"="&$B102) -> 0 | J102: =SUMIFS(Lanc_BC1!$H:$H,Lanc_BC1!$A:$A,">="&J$5,Lanc_BC1!$A:$A,"<"&K$5,Lanc_BC1!$F:$F,"="&$B102) -> 0 | K102: =SUMIFS(Lanc_BC1!$H:$H,Lanc_BC1!$A:$A,">="&K$5,Lanc_BC1!$A:$A,"<"&L$5,Lanc_BC1!$F:$F,"="&$B102) -> 0 | L102: =SUMIFS(Lanc_BC1!$H:$H,Lanc_BC1!$A:$A,">="&L$5,Lanc_BC1!$A:$A,"<"&M$5,Lanc_BC1!$F:$F,"="&$B102) -> 0 | M102: =SUMIFS(Lanc_BC1!$H:$H,Lanc_BC1!$A:$A,">="&M$5,Lanc_BC1!$A:$A,"<"&N$5,Lanc_BC1!$F:$F,"="&$B102) -> 0 | N102: =SUMIFS(Lanc_BC1!$H:$H,Lanc_BC1!$A:$A,">="&N$5,Lanc_BC1!$A:$A,"<"&O$5,Lanc_BC1!$F:$F,"="&$B102) -> 0 | O102: =SUMIFS(#REF!,#REF!,">="&O$5,#REF!,"<"&P$5,#REF!,"="&$B102) ->  | P102: 0
A103: X
A104: DESPESAS FINANCEIRAS | C104: =SUM(C105:C109) -> 0 | D104: 0 | E104: -317 | F104: 1.99 | G104: 0 | H104: 0 | I104: 0 | J104: 0 | K104: 0 | L104: 0 | M104: 0 | N104: 0 | P104: =SUM(P105:P109) -> -315.01
A105: =IF(P105<>0,P105,"") -> -315.01 | B105: Despesas bancárias | C105: =SUMIFS(Lanc_BC1!$H:$H,Lanc_BC1!$A:$A,">="&C$5,Lanc_BC1!$A:$A,"<"&D$5,Lanc_BC1!$F:$F,"="&$B105) -> 0 | D105: =SUMIFS(Lanc_BC1!$H:$H,Lanc_BC1!$A:$A,">="&D$5,Lanc_BC1!$A:$A,"<"&E$5,Lanc_BC1!$F:$F,"="&$B105) -> 0 | E105: =SUMIFS(Lanc_BC1!$H:$H,Lanc_BC1!$A:$A,">="&E$5,Lanc_BC1!$A:$A,"<"&F$5,Lanc_BC1!$F:$F,"="&$B105) -> -317 | F105: =SUMIFS(Lanc_BC1!$H:$H,Lanc_BC1!$A:$A,">="&F$5,Lanc_BC1!$A:$A,"<"&G$5,Lanc_BC1!$F:$F,"="&$B105) -> 1.99 | G105: =SUMIFS(Lanc_BC1!$H:$H,Lanc_BC1!$A:$A,">="&G$5,Lanc_BC1!$A:$A,"<"&H$5,Lanc_BC1!$F:$F,"="&$B105) -> 0 | H105: =SUMIFS(Lanc_BC1!$H:$H,Lanc_BC1!$A:$A,">="&H$5,Lanc_BC1!$A:$A,"<"&I$5,Lanc_BC1!$F:$F,"="&$B105) -> 0 | I105: =SUMIFS(Lanc_BC1!$H:$H,Lanc_BC1!$A:$A,">="&I$5,Lanc_BC1!$A:$A,"<"&J$5,Lanc_BC1!$F:$F,"="&$B105) -> 0 | J105: =SUMIFS(Lanc_BC1!$H:$H,Lanc_BC1!$A:$A,">="&J$5,Lanc_BC1!$A:$A,"<"&K$5,Lanc_BC1!$F:$F,"="&$B105) -> 0 | K105: =SUMIFS(Lanc_BC1!$H:$H,Lanc_BC1!$A:$A,">="&K$5,Lanc_BC1!$A:$A,"<"&L$5,Lanc_BC1!$F:$F,"="&$B105) -> 0 | L105: =SUMIFS(Lanc_BC1!$H:$H,Lanc_BC1!$A:$A,">="&L$5,Lanc_BC1!$A:$A,"<"&M$5,Lanc_BC1!$F:$F,"="&$B105) -> 0 | M105: =SUMIFS(Lanc_BC1!$H:$H,Lanc_BC1!$A:$A,">="&M$5,Lanc_BC1!$A:$A,"<"&N$5,Lanc_BC1!$F:$F,"="&$B105) -> 0 | N105: =SUMIFS(Lanc_BC1!$H:$H,Lanc_BC1!$A:$A,">="&N$5,Lanc_BC1!$A:$A,"<"&O$5,Lanc_BC1!$F:$F,"="&$B105) -> 0 | O105: =SUMIFS(#REF!,#REF!,">="&O$5,#REF!,"<"&P$5,#REF!,"="&$B105) ->  | P105: =SUM(C105:N105) -> -315.01
B106: Imposto - IOF | C106: =SUMIFS(Lanc_BC1!$H:$H,Lanc_BC1!$A:$A,">="&C$5,Lanc_BC1!$A:$A,"<"&D$5,Lanc_BC1!$F:$F,"="&$B106) -> 0 | D106: =SUMIFS(Lanc_BC1!$H:$H,Lanc_BC1!$A:$A,">="&D$5,Lanc_BC1!$A:$A,"<"&E$5,Lanc_BC1!$F:$F,"="&$B106) -> 0 | E106: =SUMIFS(Lanc_BC1!$H:$H,Lanc_BC1!$A:$A,">="&E$5,Lanc_BC1!$A:$A,"<"&F$5,Lanc_BC1!$F:$F,"="&$B106) -> 0 | F106: =SUMIFS(Lanc_BC1!$H:$H,Lanc_BC1!$A:$A,">="&F$5,Lanc_BC1!$A:$A,"<"&G$5,Lanc_BC1!$F:$F,"="&$B106) -> 0 | G106: =SUMIFS(Lanc_BC1!$H:$H,Lanc_BC1!$A:$A,">="&G$5,Lanc_BC1!$A:$A,"<"&H$5,Lanc_BC1!$F:$F,"="&$B106) -> 0 | H106: =SUMIFS(Lanc_BC1!$H:$H,Lanc_BC1!$A:$A,">="&H$5,Lanc_BC1!$A:$A,"<"&I$5,Lanc_BC1!$F:$F,"="&$B106) -> 0 | I106: =SUMIFS(Lanc_BC1!$H:$H,Lanc_BC1!$A:$A,">="&I$5,Lanc_BC1!$A:$A,"<"&J$5,Lanc_BC1!$F:$F,"="&$B106) -> 0 | J106: =SUMIFS(Lanc_BC1!$H:$H,Lanc_BC1!$A:$A,">="&J$5,Lanc_BC1!$A:$A,"<"&K$5,Lanc_BC1!$F:$F,"="&$B106) -> 0 | K106: =SUMIFS(Lanc_BC1!$H:$H,Lanc_BC1!$A:$A,">="&K$5,Lanc_BC1!$A:$A,"<"&L$5,Lanc_BC1!$F:$F,"="&$B106) -> 0 | L106: =SUMIFS(Lanc_BC1!$H:$H,Lanc_BC1!$A:$A,">="&L$5,Lanc_BC1!$A:$A,"<"&M$5,Lanc_BC1!$F:$F,"="&$B106) -> 0 | M106: =SUMIFS(Lanc_BC1!$H:$H,Lanc_BC1!$A:$A,">="&M$5,Lanc_BC1!$A:$A,"<"&N$5,Lanc_BC1!$F:$F,"="&$B106) -> 0 | N106: =SUMIFS(Lanc_BC1!$H:$H,Lanc_BC1!$A:$A,">="&N$5,Lanc_BC1!$A:$A,"<"&O$5,Lanc_BC1!$F:$F,"="&$B106) -> 0 | O106: =SUMIFS(#REF!,#REF!,">="&O$5,#REF!,"<"&P$5,#REF!,"="&$B106) ->  | P106: 0
B107: Juros | C107: =SUMIFS(Lanc_BC1!$H:$H,Lanc_BC1!$A:$A,">="&C$5,Lanc_BC1!$A:$A,"<"&D$5,Lanc_BC1!$F:$F,"="&$B107) -> 0 | D107: =SUMIFS(Lanc_BC1!$H:$H,Lanc_BC1!$A:$A,">="&D$5,Lanc_BC1!$A:$A,"<"&E$5,Lanc_BC1!$F:$F,"="&$B107) -> 0 | E107: =SUMIFS(Lanc_BC1!$H:$H,Lanc_BC1!$A:$A,">="&E$5,Lanc_BC1!$A:$A,"<"&F$5,Lanc_BC1!$F:$F,"="&$B107) -> 0 | F107: =SUMIFS(Lanc_BC1!$H:$H,Lanc_BC1!$A:$A,">="&F$5,Lanc_BC1!$A:$A,"<"&G$5,Lanc_BC1!$F:$F,"="&$B107) -> 0 | G107: =SUMIFS(Lanc_BC1!$H:$H,Lanc_BC1!$A:$A,">="&G$5,Lanc_BC1!$A:$A,"<"&H$5,Lanc_BC1!$F:$F,"="&$B107) -> 0 | H107: =SUMIFS(Lanc_BC1!$H:$H,Lanc_BC1!$A:$A,">="&H$5,Lanc_BC1!$A:$A,"<"&I$5,Lanc_BC1!$F:$F,"="&$B107) -> 0 | I107: =SUMIFS(Lanc_BC1!$H:$H,Lanc_BC1!$A:$A,">="&I$5,Lanc_BC1!$A:$A,"<"&J$5,Lanc_BC1!$F:$F,"="&$B107) -> 0 | J107: =SUMIFS(Lanc_BC1!$H:$H,Lanc_BC1!$A:$A,">="&J$5,Lanc_BC1!$A:$A,"<"&K$5,Lanc_BC1!$F:$F,"="&$B107) -> 0 | K107: =SUMIFS(Lanc_BC1!$H:$H,Lanc_BC1!$A:$A,">="&K$5,Lanc_BC1!$A:$A,"<"&L$5,Lanc_BC1!$F:$F,"="&$B107) -> 0 | L107: =SUMIFS(Lanc_BC1!$H:$H,Lanc_BC1!$A:$A,">="&L$5,Lanc_BC1!$A:$A,"<"&M$5,Lanc_BC1!$F:$F,"="&$B107) -> 0 | M107: =SUMIFS(Lanc_BC1!$H:$H,Lanc_BC1!$A:$A,">="&M$5,Lanc_BC1!$A:$A,"<"&N$5,Lanc_BC1!$F:$F,"="&$B107) -> 0 | N107: =SUMIFS(Lanc_BC1!$H:$H,Lanc_BC1!$A:$A,">="&N$5,Lanc_BC1!$A:$A,"<"&O$5,Lanc_BC1!$F:$F,"="&$B107) -> 0 | O107: =SUMIFS(#REF!,#REF!,">="&O$5,#REF!,"<"&P$5,#REF!,"="&$B107) ->  | P107: 0
B108: Juros de duplicatas | C108: =SUMIFS(Lanc_BC1!$H:$H,Lanc_BC1!$A:$A,">="&C$5,Lanc_BC1!$A:$A,"<"&D$5,Lanc_BC1!$F:$F,"="&$B108) -> 0 | D108: =SUMIFS(Lanc_BC1!$H:$H,Lanc_BC1!$A:$A,">="&D$5,Lanc_BC1!$A:$A,"<"&E$5,Lanc_BC1!$F:$F,"="&$B108) -> 0 | E108: =SUMIFS(Lanc_BC1!$H:$H,Lanc_BC1!$A:$A,">="&E$5,Lanc_BC1!$A:$A,"<"&F$5,Lanc_BC1!$F:$F,"="&$B108) -> 0 | F108: =SUMIFS(Lanc_BC1!$H:$H,Lanc_BC1!$A:$A,">="&F$5,Lanc_BC1!$A:$A,"<"&G$5,Lanc_BC1!$F:$F,"="&$B108) -> 0 | G108: =SUMIFS(Lanc_BC1!$H:$H,Lanc_BC1!$A:$A,">="&G$5,Lanc_BC1!$A:$A,"<"&H$5,Lanc_BC1!$F:$F,"="&$B108) -> 0 | H108: =SUMIFS(Lanc_BC1!$H:$H,Lanc_BC1!$A:$A,">="&H$5,Lanc_BC1!$A:$A,"<"&I$5,Lanc_BC1!$F:$F,"="&$B108) -> 0 | I108: =SUMIFS(Lanc_BC1!$H:$H,Lanc_BC1!$A:$A,">="&I$5,Lanc_BC1!$A:$A,"<"&J$5,Lanc_BC1!$F:$F,"="&$B108) -> 0 | J108: =SUMIFS(Lanc_BC1!$H:$H,Lanc_BC1!$A:$A,">="&J$5,Lanc_BC1!$A:$A,"<"&K$5,Lanc_BC1!$F:$F,"="&$B108) -> 0 | K108: =SUMIFS(Lanc_BC1!$H:$H,Lanc_BC1!$A:$A,">="&K$5,Lanc_BC1!$A:$A,"<"&L$5,Lanc_BC1!$F:$F,"="&$B108) -> 0 | L108: =SUMIFS(Lanc_BC1!$H:$H,Lanc_BC1!$A:$A,">="&L$5,Lanc_BC1!$A:$A,"<"&M$5,Lanc_BC1!$F:$F,"="&$B108) -> 0 | M108: =SUMIFS(Lanc_BC1!$H:$H,Lanc_BC1!$A:$A,">="&M$5,Lanc_BC1!$A:$A,"<"&N$5,Lanc_BC1!$F:$F,"="&$B108) -> 0 | N108: =SUMIFS(Lanc_BC1!$H:$H,Lanc_BC1!$A:$A,">="&N$5,Lanc_BC1!$A:$A,"<"&O$5,Lanc_BC1!$F:$F,"="&$B108) -> 0 | O108: =SUMIFS(#REF!,#REF!,">="&O$5,#REF!,"<"&P$5,#REF!,"="&$B108) ->  | P108: 0
B109: Tarifa cartão crédito/débito | C109: =SUMIFS(Lanc_BC1!$H:$H,Lanc_BC1!$A:$A,">="&C$5,Lanc_BC1!$A:$A,"<"&D$5,Lanc_BC1!$F:$F,"="&$B109) -> 0 | D109: =SUMIFS(Lanc_BC1!$H:$H,Lanc_BC1!$A:$A,">="&D$5,Lanc_BC1!$A:$A,"<"&E$5,Lanc_BC1!$F:$F,"="&$B109) -> 0 | E109: =SUMIFS(Lanc_BC1!$H:$H,Lanc_BC1!$A:$A,">="&E$5,Lanc_BC1!$A:$A,"<"&F$5,Lanc_BC1!$F:$F,"="&$B109) -> 0 | F109: =SUMIFS(Lanc_BC1!$H:$H,Lanc_BC1!$A:$A,">="&F$5,Lanc_BC1!$A:$A,"<"&G$5,Lanc_BC1!$F:$F,"="&$B109) -> 0 | G109: =SUMIFS(Lanc_BC1!$H:$H,Lanc_BC1!$A:$A,">="&G$5,Lanc_BC1!$A:$A,"<"&H$5,Lanc_BC1!$F:$F,"="&$B109) -> 0 | H109: =SUMIFS(Lanc_BC1!$H:$H,Lanc_BC1!$A:$A,">="&H$5,Lanc_BC1!$A:$A,"<"&I$5,Lanc_BC1!$F:$F,"="&$B109) -> 0 | I109: =SUMIFS(Lanc_BC1!$H:$H,Lanc_BC1!$A:$A,">="&I$5,Lanc_BC1!$A:$A,"<"&J$5,Lanc_BC1!$F:$F,"="&$B109) -> 0 | J109: =SUMIFS(Lanc_BC1!$H:$H,Lanc_BC1!$A:$A,">="&J$5,Lanc_BC1!$A:$A,"<"&K$5,Lanc_BC1!$F:$F,"="&$B109) -> 0 | K109: =SUMIFS(Lanc_BC1!$H:$H,Lanc_BC1!$A:$A,">="&K$5,Lanc_BC1!$A:$A,"<"&L$5,Lanc_BC1!$F:$F,"="&$B109) -> 0 | L109: =SUMIFS(Lanc_BC1!$H:$H,Lanc_BC1!$A:$A,">="&L$5,Lanc_BC1!$A:$A,"<"&M$5,Lanc_BC1!$F:$F,"="&$B109) -> 0 | M109: =SUMIFS(Lanc_BC1!$H:$H,Lanc_BC1!$A:$A,">="&M$5,Lanc_BC1!$A:$A,"<"&N$5,Lanc_BC1!$F:$F,"="&$B109) -> 0 | N109: =SUMIFS(Lanc_BC1!$H:$H,Lanc_BC1!$A:$A,">="&N$5,Lanc_BC1!$A:$A,"<"&O$5,Lanc_BC1!$F:$F,"="&$B109) -> 0 | O109: =SUMIFS(#REF!,#REF!,">="&O$5,#REF!,"<"&P$5,#REF!,"="&$B109) ->  | P109: 0
A110: X
A111: DESPESAS DE GESTÃO | C111: =SUM(C112:C112) -> 0 | D111: -2492 | E111: -1255 | F111: -1554 | G111: 0 | H111: 0 | I111: 0 | J111: 0 | K111: 0 | L111: 0 | M111: 0 | N111: 0 | P111: -5301
A112: =IF(P112<>0,P112,"") -> -5301 | B112: Pro-labore | C112: =SUMIFS(Lanc_BC1!$H:$H,Lanc_BC1!$A:$A,">="&C$5,Lanc_BC1!$A:$A,"<"&D$5,Lanc_BC1!$F:$F,"="&$B112) -> 0 | D112: =SUMIFS(Lanc_BC1!$H:$H,Lanc_BC1!$A:$A,">="&D$5,Lanc_BC1!$A:$A,"<"&E$5,Lanc_BC1!$F:$F,"="&$B112) -> -2492 | E112: =SUMIFS(Lanc_BC1!$H:$H,Lanc_BC1!$A:$A,">="&E$5,Lanc_BC1!$A:$A,"<"&F$5,Lanc_BC1!$F:$F,"="&$B112) -> -1255 | F112: =SUMIFS(Lanc_BC1!$H:$H,Lanc_BC1!$A:$A,">="&F$5,Lanc_BC1!$A:$A,"<"&G$5,Lanc_BC1!$F:$F,"="&$B112) -> -1554 | G112: =SUMIFS(Lanc_BC1!$H:$H,Lanc_BC1!$A:$A,">="&G$5,Lanc_BC1!$A:$A,"<"&H$5,Lanc_BC1!$F:$F,"="&$B112) -> 0 | H112: =SUMIFS(Lanc_BC1!$H:$H,Lanc_BC1!$A:$A,">="&H$5,Lanc_BC1!$A:$A,"<"&I$5,Lanc_BC1!$F:$F,"="&$B112) -> 0 | I112: =SUMIFS(Lanc_BC1!$H:$H,Lanc_BC1!$A:$A,">="&I$5,Lanc_BC1!$A:$A,"<"&J$5,Lanc_BC1!$F:$F,"="&$B112) -> 0 | J112: =SUMIFS(Lanc_BC1!$H:$H,Lanc_BC1!$A:$A,">="&J$5,Lanc_BC1!$A:$A,"<"&K$5,Lanc_BC1!$F:$F,"="&$B112) -> 0 | K112: =SUMIFS(Lanc_BC1!$H:$H,Lanc_BC1!$A:$A,">="&K$5,Lanc_BC1!$A:$A,"<"&L$5,Lanc_BC1!$F:$F,"="&$B112) -> 0 | L112: =SUMIFS(Lanc_BC1!$H:$H,Lanc_BC1!$A:$A,">="&L$5,Lanc_BC1!$A:$A,"<"&M$5,Lanc_BC1!$F:$F,"="&$B112) -> 0 | M112: =SUMIFS(Lanc_BC1!$H:$H,Lanc_BC1!$A:$A,">="&M$5,Lanc_BC1!$A:$A,"<"&N$5,Lanc_BC1!$F:$F,"="&$B112) -> 0 | N112: =SUMIFS(Lanc_BC1!$H:$H,Lanc_BC1!$A:$A,">="&N$5,Lanc_BC1!$A:$A,"<"&O$5,Lanc_BC1!$F:$F,"="&$B112) -> 0 | O112: =SUMIFS(#REF!,#REF!,">="&O$5,#REF!,"<"&P$5,#REF!,"="&$B112) ->  | P112: =SUM(C112:N112) -> -5301
A113: X
A114: RESULTADO LIQ. ANTES DAS OPER. FINANCEIRAS | C114: =C51-C53-C71-C83-C104-C111 -> 6851.46 | D114: =D51-D53-D71-D83-D104-D111 -> 13037.37 | E114: =E51-E53-E71-E83-E104-E111 -> 2818 | F114: =F51-F53-F71-F83-F104-F111 -> 1554 | G114: 0 | H114: 0 | I114: 0 | J114: 0 | K114: 0 | L114: 0 | M114: 0 | N114: 0 | O114: =O51-O53-O71-O83-O104-O111-#REF!-#REF! ->  | P114: =P51-P53-P71-P83-P104-P111 -> 24260.83
A115: X
A116: OUTRAS RECEITAS | C116: =SUM(C117:C117) -> 0 | D116: =SUM(D117:D117) -> 0 | E116: 0 | F116: 0 | G116: 0 | H116: 0 | I116: 0 | J116: 0 | K116: 0 | L116: 0 | M116: 0 | N116: 0 | O116: =SUM(O117:O120) ->  | P116: 0
A117: =IF(P117<>0,P117,"") ->  | B117: Outras Receitas | C117: =SUMIFS(Lanc_BC1!$H:$H,Lanc_BC1!$A:$A,">="&C$5,Lanc_BC1!$A:$A,"<"&D$5,Lanc_BC1!$F:$F,"="&$B117) -> 0 | D117: =SUMIFS(Lanc_BC1!$H:$H,Lanc_BC1!$A:$A,">="&D$5,Lanc_BC1!$A:$A,"<"&E$5,Lanc_BC1!$F:$F,"="&$B117) -> 0 | E117: =SUMIFS(Lanc_BC1!$H:$H,Lanc_BC1!$A:$A,">="&E$5,Lanc_BC1!$A:$A,"<"&F$5,Lanc_BC1!$F:$F,"="&$B117) -> 0 | F117: =SUMIFS(Lanc_BC1!$H:$H,Lanc_BC1!$A:$A,">="&F$5,Lanc_BC1!$A:$A,"<"&G$5,Lanc_BC1!$F:$F,"="&$B117) -> 0 | G117: =SUMIFS(Lanc_BC1!$H:$H,Lanc_BC1!$A:$A,">="&G$5,Lanc_BC1!$A:$A,"<"&H$5,Lanc_BC1!$F:$F,"="&$B117) -> 0 | H117: =SUMIFS(Lanc_BC1!$H:$H,Lanc_BC1!$A:$A,">="&H$5,Lanc_BC1!$A:$A,"<"&I$5,Lanc_BC1!$F:$F,"="&$B117) -> 0 | I117: =SUMIFS(Lanc_BC1!$H:$H,Lanc_BC1!$A:$A,">="&I$5,Lanc_BC1!$A:$A,"<"&J$5,Lanc_BC1!$F:$F,"="&$B117) -> 0 | J117: =SUMIFS(Lanc_BC1!$H:$H,Lanc_BC1!$A:$A,">="&J$5,Lanc_BC1!$A:$A,"<"&K$5,Lanc_BC1!$F:$F,"="&$B117) -> 0 | K117: =SUMIFS(Lanc_BC1!$H:$H,Lanc_BC1!$A:$A,">="&K$5,Lanc_BC1!$A:$A,"<"&L$5,Lanc_BC1!$F:$F,"="&$B117) -> 0 | L117: =SUMIFS(Lanc_BC1!$H:$H,Lanc_BC1!$A:$A,">="&L$5,Lanc_BC1!$A:$A,"<"&M$5,Lanc_BC1!$F:$F,"="&$B117) -> 0 | M117: =SUMIFS(Lanc_BC1!$H:$H,Lanc_BC1!$A:$A,">="&M$5,Lanc_BC1!$A:$A,"<"&N$5,Lanc_BC1!$F:$F,"="&$B117) -> 0 | N117: =SUMIFS(Lanc_BC1!$H:$H,Lanc_BC1!$A:$A,">="&N$5,Lanc_BC1!$A:$A,"<"&O$5,Lanc_BC1!$F:$F,"="&$B117) -> 0 | O117: =SUMIFS(#REF!,#REF!,">="&O$5,#REF!,"<"&P$5,#REF!,"="&$B117) ->  | P117: =SUM(C117:N117) -> 0
A118: X | O118: =SUMIFS(#REF!,#REF!,">="&O$5,#REF!,"<"&P$5,#REF!,"="&$B118) -> 
A119: RECEITAS FINANCEIRAS | C119: =SUM(C120:C130) -> 2179.57 | D119: 6551.57 | E119: -2818 | F119: -1554 | G119: 0 | H119: 0 | I119: 0 | J119: 0 | K119: 0 | L119: 0 | M119: 0 | N119: 0 | O119: =SUMIFS(#REF!,#REF!,">="&O$5,#REF!,"<"&P$5,#REF!,"="&$B119) ->  | P119: =SUM(P120:P130) -> 4359.14
A120: =IF(P120<>0,P120,"") ->  | B120: Descontos obtidos | C120: =SUMIFS(Lanc_BC1!$H:$H,Lanc_BC1!$A:$A,">="&C$5,Lanc_BC1!$A:$A,"<"&D$5,Lanc_BC1!$F:$F,"="&$B120) -> 0 | D120: =SUMIFS(Lanc_BC1!$H:$H,Lanc_BC1!$A:$A,">="&D$5,Lanc_BC1!$A:$A,"<"&E$5,Lanc_BC1!$F:$F,"="&$B120) -> 0 | E120: =SUMIFS(Lanc_BC1!$H:$H,Lanc_BC1!$A:$A,">="&E$5,Lanc_BC1!$A:$A,"<"&F$5,Lanc_BC1!$F:$F,"="&$B120) -> 0 | F120: =SUMIFS(Lanc_BC1!$H:$H,Lanc_BC1!$A:$A,">="&F$5,Lanc_BC1!$A:$A,"<"&G$5,Lanc_BC1!$F:$F,"="&$B120) -> 0 | G120: =SUMIFS(Lanc_BC1!$H:$H,Lanc_BC1!$A:$A,">="&G$5,Lanc_BC1!$A:$A,"<"&H$5,Lanc_BC1!$F:$F,"="&$B120) -> 0 | H120: =SUMIFS(Lanc_BC1!$H:$H,Lanc_BC1!$A:$A,">="&H$5,Lanc_BC1!$A:$A,"<"&I$5,Lanc_BC1!$F:$F,"="&$B120) -> 0 | I120: =SUMIFS(Lanc_BC1!$H:$H,Lanc_BC1!$A:$A,">="&I$5,Lanc_BC1!$A:$A,"<"&J$5,Lanc_BC1!$F:$F,"="&$B120) -> 0 | J120: =SUMIFS(Lanc_BC1!$H:$H,Lanc_BC1!$A:$A,">="&J$5,Lanc_BC1!$A:$A,"<"&K$5,Lanc_BC1!$F:$F,"="&$B120) -> 0 | K120: =SUMIFS(Lanc_BC1!$H:$H,Lanc_BC1!$A:$A,">="&K$5,Lanc_BC1!$A:$A,"<"&L$5,Lanc_BC1!$F:$F,"="&$B120) -> 0 | L120: =SUMIFS(Lanc_BC1!$H:$H,Lanc_BC1!$A:$A,">="&L$5,Lanc_BC1!$A:$A,"<"&M$5,Lanc_BC1!$F:$F,"="&$B120) -> 0 | M120: =SUMIFS(Lanc_BC1!$H:$H,Lanc_BC1!$A:$A,">="&M$5,Lanc_BC1!$A:$A,"<"&N$5,Lanc_BC1!$F:$F,"="&$B120) -> 0 | N120: =SUMIFS(Lanc_BC1!$H:$H,Lanc_BC1!$A:$A,">="&N$5,Lanc_BC1!$A:$A,"<"&O$5,Lanc_BC1!$F:$F,"="&$B120) -> 0 | O120: =SUMIFS(#REF!,#REF!,">="&O$5,#REF!,"<"&P$5,#REF!,"="&$B120) ->  | P120: =SUM(C120:N120) -> 0
B121: Juros recebidos | C121: =SUMIFS(Lanc_BC1!$H:$H,Lanc_BC1!$A:$A,">="&C$5,Lanc_BC1!$A:$A,"<"&D$5,Lanc_BC1!$F:$F,"="&$B121) -> 0 | D121: =SUMIFS(Lanc_BC1!$H:$H,Lanc_BC1!$A:$A,">="&D$5,Lanc_BC1!$A:$A,"<"&E$5,Lanc_BC1!$F:$F,"="&$B121) -> 0 | E121: =SUMIFS(Lanc_BC1!$H:$H,Lanc_BC1!$A:$A,">="&E$5,Lanc_BC1!$A:$A,"<"&F$5,Lanc_BC1!$F:$F,"="&$B121) -> 0 | F121: =SUMIFS(Lanc_BC1!$H:$H,Lanc_BC1!$A:$A,">="&F$5,Lanc_BC1!$A:$A,"<"&G$5,Lanc_BC1!$F:$F,"="&$B121) -> 0 | G121: =SUMIFS(Lanc_BC1!$H:$H,Lanc_BC1!$A:$A,">="&G$5,Lanc_BC1!$A:$A,"<"&H$5,Lanc_BC1!$F:$F,"="&$B121) -> 0 | H121: =SUMIFS(Lanc_BC1!$H:$H,Lanc_BC1!$A:$A,">="&H$5,Lanc_BC1!$A:$A,"<"&I$5,Lanc_BC1!$F:$F,"="&$B121) -> 0 | I121: =SUMIFS(Lanc_BC1!$H:$H,Lanc_BC1!$A:$A,">="&I$5,Lanc_BC1!$A:$A,"<"&J$5,Lanc_BC1!$F:$F,"="&$B121) -> 0 | J121: =SUMIFS(Lanc_BC1!$H:$H,Lanc_BC1!$A:$A,">="&J$5,Lanc_BC1!$A:$A,"<"&K$5,Lanc_BC1!$F:$F,"="&$B121) -> 0 | K121: =SUMIFS(Lanc_BC1!$H:$H,Lanc_BC1!$A:$A,">="&K$5,Lanc_BC1!$A:$A,"<"&L$5,Lanc_BC1!$F:$F,"="&$B121) -> 0 | L121: =SUMIFS(Lanc_BC1!$H:$H,Lanc_BC1!$A:$A,">="&L$5,Lanc_BC1!$A:$A,"<"&M$5,Lanc_BC1!$F:$F,"="&$B121) -> 0 | M121: =SUMIFS(Lanc_BC1!$H:$H,Lanc_BC1!$A:$A,">="&M$5,Lanc_BC1!$A:$A,"<"&N$5,Lanc_BC1!$F:$F,"="&$B121) -> 0 | N121: =SUMIFS(Lanc_BC1!$H:$H,Lanc_BC1!$A:$A,">="&N$5,Lanc_BC1!$A:$A,"<"&O$5,Lanc_BC1!$F:$F,"="&$B121) -> 0 | O121: =SUMIFS(#REF!,#REF!,">="&O$5,#REF!,"<"&P$5,#REF!,"="&$B121) ->  | P121: 0
B122: =OFFSET(Informações!C7,0,0,'DRE Sintetico'!A16,1) -> Caixinha | C122: =SUMIFS(Lanc_BC1!$H:$H,Lanc_BC1!$A:$A,">="&C$5,Lanc_BC1!$A:$A,"<"&D$5,Lanc_BC1!$G:$G,"="&$B122) -> 0 | D122: =SUMIFS(Lanc_BC1!$H:$H,Lanc_BC1!$A:$A,">="&D$5,Lanc_BC1!$A:$A,"<"&E$5,Lanc_BC1!$G:$G,"="&$B122) -> 0 | E122: =SUMIFS(Lanc_BC1!$H:$H,Lanc_BC1!$A:$A,">="&E$5,Lanc_BC1!$A:$A,"<"&F$5,Lanc_BC1!$G:$G,"="&$B122) -> 0 | F122: =SUMIFS(Lanc_BC1!$H:$H,Lanc_BC1!$A:$A,">="&F$5,Lanc_BC1!$A:$A,"<"&G$5,Lanc_BC1!$G:$G,"="&$B122) -> 0 | G122: =SUMIFS(Lanc_BC1!$H:$H,Lanc_BC1!$A:$A,">="&G$5,Lanc_BC1!$A:$A,"<"&H$5,Lanc_BC1!$G:$G,"="&$B122) -> 0 | H122: =SUMIFS(Lanc_BC1!$H:$H,Lanc_BC1!$A:$A,">="&H$5,Lanc_BC1!$A:$A,"<"&I$5,Lanc_BC1!$G:$G,"="&$B122) -> 0 | I122: =SUMIFS(Lanc_BC1!$H:$H,Lanc_BC1!$A:$A,">="&I$5,Lanc_BC1!$A:$A,"<"&J$5,Lanc_BC1!$G:$G,"="&$B122) -> 0 | J122: =SUMIFS(Lanc_BC1!$H:$H,Lanc_BC1!$A:$A,">="&J$5,Lanc_BC1!$A:$A,"<"&K$5,Lanc_BC1!$G:$G,"="&$B122) -> 0 | K122: =SUMIFS(Lanc_BC1!$H:$H,Lanc_BC1!$A:$A,">="&K$5,Lanc_BC1!$A:$A,"<"&L$5,Lanc_BC1!$G:$G,"="&$B122) -> 0 | L122: =SUMIFS(Lanc_BC1!$H:$H,Lanc_BC1!$A:$A,">="&L$5,Lanc_BC1!$A:$A,"<"&M$5,Lanc_BC1!$G:$G,"="&$B122) -> 0 | M122: =SUMIFS(Lanc_BC1!$H:$H,Lanc_BC1!$A:$A,">="&M$5,Lanc_BC1!$A:$A,"<"&N$5,Lanc_BC1!$G:$G,"="&$B122) -> 0 | N122: =SUMIFS(Lanc_BC1!$H:$H,Lanc_BC1!$A:$A,">="&N$5,Lanc_BC1!$A:$A,"<"&O$5,Lanc_BC1!$G:$G,"="&$B122) -> 0 | O122: =SUMIFS(#REF!,#REF!,">="&O$5,#REF!,"<"&P$5,#REF!,"="&$B122) ->  | P122: 0
A123: 12128.04 | B123: Inter | C123: =SUMIFS(Lanc_BC1!$H:$H,Lanc_BC1!$A:$A,">="&C$5,Lanc_BC1!$A:$A,"<"&D$5,Lanc_BC1!$G:$G,"="&$B123) -> 2179.57 | D123: =SUMIFS(Lanc_BC1!$H:$H,Lanc_BC1!$A:$A,">="&D$5,Lanc_BC1!$A:$A,"<"&E$5,Lanc_BC1!$G:$G,"="&$B123) -> 9948.47 | E123: =SUMIFS(Lanc_BC1!$H:$H,Lanc_BC1!$A:$A,">="&E$5,Lanc_BC1!$A:$A,"<"&F$5,Lanc_BC1!$G:$G,"="&$B123) -> 0 | F123: =SUMIFS(Lanc_BC1!$H:$H,Lanc_BC1!$A:$A,">="&F$5,Lanc_BC1!$A:$A,"<"&G$5,Lanc_BC1!$G:$G,"="&$B123) -> 0 | G123: =SUMIFS(Lanc_BC1!$H:$H,Lanc_BC1!$A:$A,">="&G$5,Lanc_BC1!$A:$A,"<"&H$5,Lanc_BC1!$G:$G,"="&$B123) -> 0 | H123: =SUMIFS(Lanc_BC1!$H:$H,Lanc_BC1!$A:$A,">="&H$5,Lanc_BC1!$A:$A,"<"&I$5,Lanc_BC1!$G:$G,"="&$B123) -> 0 | I123: =SUMIFS(Lanc_BC1!$H:$H,Lanc_BC1!$A:$A,">="&I$5,Lanc_BC1!$A:$A,"<"&J$5,Lanc_BC1!$G:$G,"="&$B123) -> 0 | J123: =SUMIFS(Lanc_BC1!$H:$H,Lanc_BC1!$A:$A,">="&J$5,Lanc_BC1!$A:$A,"<"&K$5,Lanc_BC1!$G:$G,"="&$B123) -> 0 | K123: =SUMIFS(Lanc_BC1!$H:$H,Lanc_BC1!$A:$A,">="&K$5,Lanc_BC1!$A:$A,"<"&L$5,Lanc_BC1!$G:$G,"="&$B123) -> 0 | L123: =SUMIFS(Lanc_BC1!$H:$H,Lanc_BC1!$A:$A,">="&L$5,Lanc_BC1!$A:$A,"<"&M$5,Lanc_BC1!$G:$G,"="&$B123) -> 0 | M123: =SUMIFS(Lanc_BC1!$H:$H,Lanc_BC1!$A:$A,">="&M$5,Lanc_BC1!$A:$A,"<"&N$5,Lanc_BC1!$G:$G,"="&$B123) -> 0 | N123: =SUMIFS(Lanc_BC1!$H:$H,Lanc_BC1!$A:$A,">="&N$5,Lanc_BC1!$A:$A,"<"&O$5,Lanc_BC1!$G:$G,"="&$B123) -> 0 | O123: =SUMIFS(#REF!,#REF!,">="&O$5,#REF!,"<"&P$5,#REF!,"="&$B123) ->  | P123: 12128.04
B124: Bradesco | C124: =SUMIFS(Lanc_BC1!$H:$H,Lanc_BC1!$A:$A,">="&C$5,Lanc_BC1!$A:$A,"<"&D$5,Lanc_BC1!$G:$G,"="&$B124) -> 0 | D124: =SUMIFS(Lanc_BC1!$H:$H,Lanc_BC1!$A:$A,">="&D$5,Lanc_BC1!$A:$A,"<"&E$5,Lanc_BC1!$G:$G,"="&$B124) -> -3396.9 | E124: =SUMIFS(Lanc_BC1!$H:$H,Lanc_BC1!$A:$A,">="&E$5,Lanc_BC1!$A:$A,"<"&F$5,Lanc_BC1!$G:$G,"="&$B124) -> -2818 | F124: =SUMIFS(Lanc_BC1!$H:$H,Lanc_BC1!$A:$A,">="&F$5,Lanc_BC1!$A:$A,"<"&G$5,Lanc_BC1!$G:$G,"="&$B124) -> -1554 | G124: =SUMIFS(Lanc_BC1!$H:$H,Lanc_BC1!$A:$A,">="&G$5,Lanc_BC1!$A:$A,"<"&H$5,Lanc_BC1!$G:$G,"="&$B124) -> 0 | H124: =SUMIFS(Lanc_BC1!$H:$H,Lanc_BC1!$A:$A,">="&H$5,Lanc_BC1!$A:$A,"<"&I$5,Lanc_BC1!$G:$G,"="&$B124) -> 0 | I124: =SUMIFS(Lanc_BC1!$H:$H,Lanc_BC1!$A:$A,">="&I$5,Lanc_BC1!$A:$A,"<"&J$5,Lanc_BC1!$G:$G,"="&$B124) -> 0 | J124: =SUMIFS(Lanc_BC1!$H:$H,Lanc_BC1!$A:$A,">="&J$5,Lanc_BC1!$A:$A,"<"&K$5,Lanc_BC1!$G:$G,"="&$B124) -> 0 | K124: =SUMIFS(Lanc_BC1!$H:$H,Lanc_BC1!$A:$A,">="&K$5,Lanc_BC1!$A:$A,"<"&L$5,Lanc_BC1!$G:$G,"="&$B124) -> 0 | L124: =SUMIFS(Lanc_BC1!$H:$H,Lanc_BC1!$A:$A,">="&L$5,Lanc_BC1!$A:$A,"<"&M$5,Lanc_BC1!$G:$G,"="&$B124) -> 0 | M124: =SUMIFS(Lanc_BC1!$H:$H,Lanc_BC1!$A:$A,">="&M$5,Lanc_BC1!$A:$A,"<"&N$5,Lanc_BC1!$G:$G,"="&$B124) -> 0 | N124: =SUMIFS(Lanc_BC1!$H:$H,Lanc_BC1!$A:$A,">="&N$5,Lanc_BC1!$A:$A,"<"&O$5,Lanc_BC1!$G:$G,"="&$B124) -> 0 | O124: =SUMIFS(#REF!,#REF!,">="&O$5,#REF!,"<"&P$5,#REF!,"="&$B124) ->  | P124: =SUM(C124:N124) -> -7768.9
B125: Itau | C125: =SUMIFS(Lanc_BC1!$H:$H,Lanc_BC1!$A:$A,">="&C$5,Lanc_BC1!$A:$A,"<"&D$5,Lanc_BC1!$G:$G,"="&$B125) -> 0 | D125: =SUMIFS(Lanc_BC1!$H:$H,Lanc_BC1!$A:$A,">="&D$5,Lanc_BC1!$A:$A,"<"&E$5,Lanc_BC1!$G:$G,"="&$B125) -> 0 | E125: =SUMIFS(Lanc_BC1!$H:$H,Lanc_BC1!$A:$A,">="&E$5,Lanc_BC1!$A:$A,"<"&F$5,Lanc_BC1!$G:$G,"="&$B125) -> 0 | F125: =SUMIFS(Lanc_BC1!$H:$H,Lanc_BC1!$A:$A,">="&F$5,Lanc_BC1!$A:$A,"<"&G$5,Lanc_BC1!$G:$G,"="&$B125) -> 0 | G125: =SUMIFS(Lanc_BC1!$H:$H,Lanc_BC1!$A:$A,">="&G$5,Lanc_BC1!$A:$A,"<"&H$5,Lanc_BC1!$G:$G,"="&$B125) -> 0 | H125: =SUMIFS(Lanc_BC1!$H:$H,Lanc_BC1!$A:$A,">="&H$5,Lanc_BC1!$A:$A,"<"&I$5,Lanc_BC1!$G:$G,"="&$B125) -> 0 | I125: =SUMIFS(Lanc_BC1!$H:$H,Lanc_BC1!$A:$A,">="&I$5,Lanc_BC1!$A:$A,"<"&J$5,Lanc_BC1!$G:$G,"="&$B125) -> 0 | J125: =SUMIFS(Lanc_BC1!$H:$H,Lanc_BC1!$A:$A,">="&J$5,Lanc_BC1!$A:$A,"<"&K$5,Lanc_BC1!$G:$G,"="&$B125) -> 0 | K125: =SUMIFS(Lanc_BC1!$H:$H,Lanc_BC1!$A:$A,">="&K$5,Lanc_BC1!$A:$A,"<"&L$5,Lanc_BC1!$G:$G,"="&$B125) -> 0 | L125: =SUMIFS(Lanc_BC1!$H:$H,Lanc_BC1!$A:$A,">="&L$5,Lanc_BC1!$A:$A,"<"&M$5,Lanc_BC1!$G:$G,"="&$B125) -> 0 | M125: =SUMIFS(Lanc_BC1!$H:$H,Lanc_BC1!$A:$A,">="&M$5,Lanc_BC1!$A:$A,"<"&N$5,Lanc_BC1!$G:$G,"="&$B125) -> 0 | N125: =SUMIFS(Lanc_BC1!$H:$H,Lanc_BC1!$A:$A,">="&N$5,Lanc_BC1!$A:$A,"<"&O$5,Lanc_BC1!$G:$G,"="&$B125) -> 0 | O125: =SUMIFS(#REF!,#REF!,">="&O$5,#REF!,"<"&P$5,#REF!,"="&$B125) ->  | P125: 0
C126: =SUMIFS(Lanc_BC1!$H:$H,Lanc_BC1!$A:$A,">="&C$5,Lanc_BC1!$A:$A,"<"&D$5,Lanc_BC1!$G:$G,"="&$B126) -> 0 | D126: =SUMIFS(Lanc_BC1!$H:$H,Lanc_BC1!$A:$A,">="&D$5,Lanc_BC1!$A:$A,"<"&E$5,Lanc_BC1!$G:$G,"="&$B126) -> 0 | E126: =SUMIFS(Lanc_BC1!$H:$H,Lanc_BC1!$A:$A,">="&E$5,Lanc_BC1!$A:$A,"<"&F$5,Lanc_BC1!$G:$G,"="&$B126) -> 0 | F126: =SUMIFS(Lanc_BC1!$H:$H,Lanc_BC1!$A:$A,">="&F$5,Lanc_BC1!$A:$A,"<"&G$5,Lanc_BC1!$G:$G,"="&$B126) -> 0 | G126: =SUMIFS(Lanc_BC1!$H:$H,Lanc_BC1!$A:$A,">="&G$5,Lanc_BC1!$A:$A,"<"&H$5,Lanc_BC1!$G:$G,"="&$B126) -> 0 | H126: =SUMIFS(Lanc_BC1!$H:$H,Lanc_BC1!$A:$A,">="&H$5,Lanc_BC1!$A:$A,"<"&I$5,Lanc_BC1!$G:$G,"="&$B126) -> 0 | I126: =SUMIFS(Lanc_BC1!$H:$H,Lanc_BC1!$A:$A,">="&I$5,Lanc_BC1!$A:$A,"<"&J$5,Lanc_BC1!$G:$G,"="&$B126) -> 0 | J126: =SUMIFS(Lanc_BC1!$H:$H,Lanc_BC1!$A:$A,">="&J$5,Lanc_BC1!$A:$A,"<"&K$5,Lanc_BC1!$G:$G,"="&$B126) -> 0 | K126: =SUMIFS(Lanc_BC1!$H:$H,Lanc_BC1!$A:$A,">="&K$5,Lanc_BC1!$A:$A,"<"&L$5,Lanc_BC1!$G:$G,"="&$B126) -> 0 | L126: =SUMIFS(Lanc_BC1!$H:$H,Lanc_BC1!$A:$A,">="&L$5,Lanc_BC1!$A:$A,"<"&M$5,Lanc_BC1!$G:$G,"="&$B126) -> 0 | M126: =SUMIFS(Lanc_BC1!$H:$H,Lanc_BC1!$A:$A,">="&M$5,Lanc_BC1!$A:$A,"<"&N$5,Lanc_BC1!$G:$G,"="&$B126) -> 0 | N126: =SUMIFS(Lanc_BC1!$H:$H,Lanc_BC1!$A:$A,">="&N$5,Lanc_BC1!$A:$A,"<"&O$5,Lanc_BC1!$G:$G,"="&$B126) -> 0 | O126: =SUMIFS(#REF!,#REF!,">="&O$5,#REF!,"<"&P$5,#REF!,"="&$B126) ->  | P126: 0
C127: =SUMIFS(Lanc_BC1!$H:$H,Lanc_BC1!$A:$A,">="&C$5,Lanc_BC1!$A:$A,"<"&D$5,Lanc_BC1!$G:$G,"="&$B127) -> 0 | D127: =SUMIFS(Lanc_BC1!$H:$H,Lanc_BC1!$A:$A,">="&D$5,Lanc_BC1!$A:$A,"<"&E$5,Lanc_BC1!$G:$G,"="&$B127) -> 0 | E127: =SUMIFS(Lanc_BC1!$H:$H,Lanc_BC1!$A:$A,">="&E$5,Lanc_BC1!$A:$A,"<"&F$5,Lanc_BC1!$G:$G,"="&$B127) -> 0 | F127: =SUMIFS(Lanc_BC1!$H:$H,Lanc_BC1!$A:$A,">="&F$5,Lanc_BC1!$A:$A,"<"&G$5,Lanc_BC1!$G:$G,"="&$B127) -> 0 | G127: =SUMIFS(Lanc_BC1!$H:$H,Lanc_BC1!$A:$A,">="&G$5,Lanc_BC1!$A:$A,"<"&H$5,Lanc_BC1!$G:$G,"="&$B127) -> 0 | H127: =SUMIFS(Lanc_BC1!$H:$H,Lanc_BC1!$A:$A,">="&H$5,Lanc_BC1!$A:$A,"<"&I$5,Lanc_BC1!$G:$G,"="&$B127) -> 0 | I127: =SUMIFS(Lanc_BC1!$H:$H,Lanc_BC1!$A:$A,">="&I$5,Lanc_BC1!$A:$A,"<"&J$5,Lanc_BC1!$G:$G,"="&$B127) -> 0 | J127: =SUMIFS(Lanc_BC1!$H:$H,Lanc_BC1!$A:$A,">="&J$5,Lanc_BC1!$A:$A,"<"&K$5,Lanc_BC1!$G:$G,"="&$B127) -> 0 | K127: =SUMIFS(Lanc_BC1!$H:$H,Lanc_BC1!$A:$A,">="&K$5,Lanc_BC1!$A:$A,"<"&L$5,Lanc_BC1!$G:$G,"="&$B127) -> 0 | L127: =SUMIFS(Lanc_BC1!$H:$H,Lanc_BC1!$A:$A,">="&L$5,Lanc_BC1!$A:$A,"<"&M$5,Lanc_BC1!$G:$G,"="&$B127) -> 0 | M127: =SUMIFS(Lanc_BC1!$H:$H,Lanc_BC1!$A:$A,">="&M$5,Lanc_BC1!$A:$A,"<"&N$5,Lanc_BC1!$G:$G,"="&$B127) -> 0 | N127: =SUMIFS(Lanc_BC1!$H:$H,Lanc_BC1!$A:$A,">="&N$5,Lanc_BC1!$A:$A,"<"&O$5,Lanc_BC1!$G:$G,"="&$B127) -> 0 | O127: =SUMIFS(#REF!,#REF!,">="&O$5,#REF!,"<"&P$5,#REF!,"="&$B127) ->  | P127: 0
C128: =SUMIFS(Lanc_BC1!$H:$H,Lanc_BC1!$A:$A,">="&C$5,Lanc_BC1!$A:$A,"<"&D$5,Lanc_BC1!$G:$G,"="&$B128) -> 0 | D128: =SUMIFS(Lanc_BC1!$H:$H,Lanc_BC1!$A:$A,">="&D$5,Lanc_BC1!$A:$A,"<"&E$5,Lanc_BC1!$G:$G,"="&$B128) -> 0 | E128: =SUMIFS(Lanc_BC1!$H:$H,Lanc_BC1!$A:$A,">="&E$5,Lanc_BC1!$A:$A,"<"&F$5,Lanc_BC1!$G:$G,"="&$B128) -> 0 | F128: =SUMIFS(Lanc_BC1!$H:$H,Lanc_BC1!$A:$A,">="&F$5,Lanc_BC1!$A:$A,"<"&G$5,Lanc_BC1!$G:$G,"="&$B128) -> 0 | G128: =SUMIFS(Lanc_BC1!$H:$H,Lanc_BC1!$A:$A,">="&G$5,Lanc_BC1!$A:$A,"<"&H$5,Lanc_BC1!$G:$G,"="&$B128) -> 0 | H128: =SUMIFS(Lanc_BC1!$H:$H,Lanc_BC1!$A:$A,">="&H$5,Lanc_BC1!$A:$A,"<"&I$5,Lanc_BC1!$G:$G,"="&$B128) -> 0 | I128: =SUMIFS(Lanc_BC1!$H:$H,Lanc_BC1!$A:$A,">="&I$5,Lanc_BC1!$A:$A,"<"&J$5,Lanc_BC1!$G:$G,"="&$B128) -> 0 | J128: =SUMIFS(Lanc_BC1!$H:$H,Lanc_BC1!$A:$A,">="&J$5,Lanc_BC1!$A:$A,"<"&K$5,Lanc_BC1!$G:$G,"="&$B128) -> 0 | K128: =SUMIFS(Lanc_BC1!$H:$H,Lanc_BC1!$A:$A,">="&K$5,Lanc_BC1!$A:$A,"<"&L$5,Lanc_BC1!$G:$G,"="&$B128) -> 0 | L128: =SUMIFS(Lanc_BC1!$H:$H,Lanc_BC1!$A:$A,">="&L$5,Lanc_BC1!$A:$A,"<"&M$5,Lanc_BC1!$G:$G,"="&$B128) -> 0 | M128: =SUMIFS(Lanc_BC1!$H:$H,Lanc_BC1!$A:$A,">="&M$5,Lanc_BC1!$A:$A,"<"&N$5,Lanc_BC1!$G:$G,"="&$B128) -> 0 | N128: =SUMIFS(Lanc_BC1!$H:$H,Lanc_BC1!$A:$A,">="&N$5,Lanc_BC1!$A:$A,"<"&O$5,Lanc_BC1!$G:$G,"="&$B128) -> 0 | O128: =SUMIFS(#REF!,#REF!,">="&O$5,#REF!,"<"&P$5,#REF!,"="&$B128) ->  | P128: 0
C129: =SUMIFS(Lanc_BC1!$H:$H,Lanc_BC1!$A:$A,">="&C$5,Lanc_BC1!$A:$A,"<"&D$5,Lanc_BC1!$G:$G,"="&$B129) -> 0 | D129: =SUMIFS(Lanc_BC1!$H:$H,Lanc_BC1!$A:$A,">="&D$5,Lanc_BC1!$A:$A,"<"&E$5,Lanc_BC1!$G:$G,"="&$B129) -> 0 | E129: =SUMIFS(Lanc_BC1!$H:$H,Lanc_BC1!$A:$A,">="&E$5,Lanc_BC1!$A:$A,"<"&F$5,Lanc_BC1!$G:$G,"="&$B129) -> 0 | F129: =SUMIFS(Lanc_BC1!$H:$H,Lanc_BC1!$A:$A,">="&F$5,Lanc_BC1!$A:$A,"<"&G$5,Lanc_BC1!$G:$G,"="&$B129) -> 0 | G129: =SUMIFS(Lanc_BC1!$H:$H,Lanc_BC1!$A:$A,">="&G$5,Lanc_BC1!$A:$A,"<"&H$5,Lanc_BC1!$G:$G,"="&$B129) -> 0 | H129: =SUMIFS(Lanc_BC1!$H:$H,Lanc_BC1!$A:$A,">="&H$5,Lanc_BC1!$A:$A,"<"&I$5,Lanc_BC1!$G:$G,"="&$B129) -> 0 | I129: =SUMIFS(Lanc_BC1!$H:$H,Lanc_BC1!$A:$A,">="&I$5,Lanc_BC1!$A:$A,"<"&J$5,Lanc_BC1!$G:$G,"="&$B129) -> 0 | J129: =SUMIFS(Lanc_BC1!$H:$H,Lanc_BC1!$A:$A,">="&J$5,Lanc_BC1!$A:$A,"<"&K$5,Lanc_BC1!$G:$G,"="&$B129) -> 0 | K129: =SUMIFS(Lanc_BC1!$H:$H,Lanc_BC1!$A:$A,">="&K$5,Lanc_BC1!$A:$A,"<"&L$5,Lanc_BC1!$G:$G,"="&$B129) -> 0 | L129: =SUMIFS(Lanc_BC1!$H:$H,Lanc_BC1!$A:$A,">="&L$5,Lanc_BC1!$A:$A,"<"&M$5,Lanc_BC1!$G:$G,"="&$B129) -> 0 | M129: =SUMIFS(Lanc_BC1!$H:$H,Lanc_BC1!$A:$A,">="&M$5,Lanc_BC1!$A:$A,"<"&N$5,Lanc_BC1!$G:$G,"="&$B129) -> 0 | N129: =SUMIFS(Lanc_BC1!$H:$H,Lanc_BC1!$A:$A,">="&N$5,Lanc_BC1!$A:$A,"<"&O$5,Lanc_BC1!$G:$G,"="&$B129) -> 0 | O129: =SUMIFS(#REF!,#REF!,">="&O$5,#REF!,"<"&P$5,#REF!,"="&$B129) ->  | P129: 0
C130: =SUMIFS(Lanc_BC1!$H:$H,Lanc_BC1!$A:$A,">="&C$5,Lanc_BC1!$A:$A,"<"&D$5,Lanc_BC1!$G:$G,"="&$B130) -> 0 | D130: =SUMIFS(Lanc_BC1!$H:$H,Lanc_BC1!$A:$A,">="&D$5,Lanc_BC1!$A:$A,"<"&E$5,Lanc_BC1!$G:$G,"="&$B130) -> 0 | E130: =SUMIFS(Lanc_BC1!$H:$H,Lanc_BC1!$A:$A,">="&E$5,Lanc_BC1!$A:$A,"<"&F$5,Lanc_BC1!$G:$G,"="&$B130) -> 0 | F130: =SUMIFS(Lanc_BC1!$H:$H,Lanc_BC1!$A:$A,">="&F$5,Lanc_BC1!$A:$A,"<"&G$5,Lanc_BC1!$G:$G,"="&$B130) -> 0 | G130: =SUMIFS(Lanc_BC1!$H:$H,Lanc_BC1!$A:$A,">="&G$5,Lanc_BC1!$A:$A,"<"&H$5,Lanc_BC1!$G:$G,"="&$B130) -> 0 | H130: =SUMIFS(Lanc_BC1!$H:$H,Lanc_BC1!$A:$A,">="&H$5,Lanc_BC1!$A:$A,"<"&I$5,Lanc_BC1!$G:$G,"="&$B130) -> 0 | I130: =SUMIFS(Lanc_BC1!$H:$H,Lanc_BC1!$A:$A,">="&I$5,Lanc_BC1!$A:$A,"<"&J$5,Lanc_BC1!$G:$G,"="&$B130) -> 0 | J130: =SUMIFS(Lanc_BC1!$H:$H,Lanc_BC1!$A:$A,">="&J$5,Lanc_BC1!$A:$A,"<"&K$5,Lanc_BC1!$G:$G,"="&$B130) -> 0 | K130: =SUMIFS(Lanc_BC1!$H:$H,Lanc_BC1!$A:$A,">="&K$5,Lanc_BC1!$A:$A,"<"&L$5,Lanc_BC1!$G:$G,"="&$B130) -> 0 | L130: =SUMIFS(Lanc_BC1!$H:$H,Lanc_BC1!$A:$A,">="&L$5,Lanc_BC1!$A:$A,"<"&M$5,Lanc_BC1!$G:$G,"="&$B130) -> 0 | M130: =SUMIFS(Lanc_BC1!$H:$H,Lanc_BC1!$A:$A,">="&M$5,Lanc_BC1!$A:$A,"<"&N$5,Lanc_BC1!$G:$G,"="&$B130) -> 0 | N130: =SUMIFS(Lanc_BC1!$H:$H,Lanc_BC1!$A:$A,">="&N$5,Lanc_BC1!$A:$A,"<"&O$5,Lanc_BC1!$G:$G,"="&$B130) -> 0 | O130: =SUMIFS(#REF!,#REF!,">="&O$5,#REF!,"<"&P$5,#REF!,"="&$B130) ->  | P130: 0
A131: X
A132: RESULTADO LIQ. ANTES DOS IMPOSTOS | C132: =C114+C116+C119 -> 9031.03 | D132: 19588.94 | E132: 0 | F132: 0 | G132: 0 | H132: 0 | I132: 0 | J132: 0 | K132: 0 | L132: 0 | M132: 0 | N132: 0 | O132: =O64-O66-O84-O96-O117-O129-#REF!-#REF! ->  | P132: =P114+P116+P119 -> 28619.97
A133: X
A134: CSLL E IRPJ | C134: =SUM(C135:C136) -> 0 | D134: =SUM(D135:D136) -> 0 | E134: =SUM(E135:E136) -> 0 | F134: 0 | G134: 0 | H134: 0 | I134: 0 | J134: 0 | K134: 0 | L134: 0 | M134: 0 | N134: 0 | P134: =SUM(P135:P136) -> 0
A135: =IF(P135<>0,P135,"") ->  | B135: CSLL | C135: =SUMIFS(Lanc_BC1!$H:$H,Lanc_BC1!$A:$A,">="&C$5,Lanc_BC1!$A:$A,"<"&D$5,Lanc_BC1!$F:$F,"="&$B135) -> 0 | D135: =SUMIFS(Lanc_BC1!$H:$H,Lanc_BC1!$A:$A,">="&D$5,Lanc_BC1!$A:$A,"<"&E$5,Lanc_BC1!$F:$F,"="&$B135) -> 0 | E135: =SUMIFS(Lanc_BC1!$H:$H,Lanc_BC1!$A:$A,">="&E$5,Lanc_BC1!$A:$A,"<"&F$5,Lanc_BC1!$F:$F,"="&$B135) -> 0 | F135: =SUMIFS(Lanc_BC1!$H:$H,Lanc_BC1!$A:$A,">="&F$5,Lanc_BC1!$A:$A,"<"&G$5,Lanc_BC1!$F:$F,"="&$B135) -> 0 | G135: =SUMIFS(Lanc_BC1!$H:$H,Lanc_BC1!$A:$A,">="&G$5,Lanc_BC1!$A:$A,"<"&H$5,Lanc_BC1!$F:$F,"="&$B135) -> 0 | H135: =SUMIFS(Lanc_BC1!$H:$H,Lanc_BC1!$A:$A,">="&H$5,Lanc_BC1!$A:$A,"<"&I$5,Lanc_BC1!$F:$F,"="&$B135) -> 0 | I135: =SUMIFS(Lanc_BC1!$H:$H,Lanc_BC1!$A:$A,">="&I$5,Lanc_BC1!$A:$A,"<"&J$5,Lanc_BC1!$F:$F,"="&$B135) -> 0 | J135: =SUMIFS(Lanc_BC1!$H:$H,Lanc_BC1!$A:$A,">="&J$5,Lanc_BC1!$A:$A,"<"&K$5,Lanc_BC1!$F:$F,"="&$B135) -> 0 | K135: =SUMIFS(Lanc_BC1!$H:$H,Lanc_BC1!$A:$A,">="&K$5,Lanc_BC1!$A:$A,"<"&L$5,Lanc_BC1!$F:$F,"="&$B135) -> 0 | L135: =SUMIFS(Lanc_BC1!$H:$H,Lanc_BC1!$A:$A,">="&L$5,Lanc_BC1!$A:$A,"<"&M$5,Lanc_BC1!$F:$F,"="&$B135) -> 0 | M135: =SUMIFS(Lanc_BC1!$H:$H,Lanc_BC1!$A:$A,">="&M$5,Lanc_BC1!$A:$A,"<"&N$5,Lanc_BC1!$F:$F,"="&$B135) -> 0 | N135: =SUMIFS(Lanc_BC1!$H:$H,Lanc_BC1!$A:$A,">="&N$5,Lanc_BC1!$A:$A,"<"&O$5,Lanc_BC1!$F:$F,"="&$B135) -> 0 | O135: =SUMIFS(#REF!,#REF!,">="&O$5,#REF!,"<"&P$5,#REF!,"="&$B135) ->  | P135: =SUM(C135:N135) -> 0
B136: IRPJ | C136: =SUMIFS(Lanc_BC1!$H:$H,Lanc_BC1!$A:$A,">="&C$5,Lanc_BC1!$A:$A,"<"&D$5,Lanc_BC1!$F:$F,"="&$B136) -> 0 | D136: =SUMIFS(Lanc_BC1!$H:$H,Lanc_BC1!$A:$A,">="&D$5,Lanc_BC1!$A:$A,"<"&E$5,Lanc_BC1!$F:$F,"="&$B136) -> 0 | E136: =SUMIFS(Lanc_BC1!$H:$H,Lanc_BC1!$A:$A,">="&E$5,Lanc_BC1!$A:$A,"<"&F$5,Lanc_BC1!$F:$F,"="&$B136) -> 0 | F136: =SUMIFS(Lanc_BC1!$H:$H,Lanc_BC1!$A:$A,">="&F$5,Lanc_BC1!$A:$A,"<"&G$5,Lanc_BC1!$F:$F,"="&$B136) -> 0 | G136: =SUMIFS(Lanc_BC1!$H:$H,Lanc_BC1!$A:$A,">="&G$5,Lanc_BC1!$A:$A,"<"&H$5,Lanc_BC1!$F:$F,"="&$B136) -> 0 | H136: =SUMIFS(Lanc_BC1!$H:$H,Lanc_BC1!$A:$A,">="&H$5,Lanc_BC1!$A:$A,"<"&I$5,Lanc_BC1!$F:$F,"="&$B136) -> 0 | I136: =SUMIFS(Lanc_BC1!$H:$H,Lanc_BC1!$A:$A,">="&I$5,Lanc_BC1!$A:$A,"<"&J$5,Lanc_BC1!$F:$F,"="&$B136) -> 0 | J136: =SUMIFS(Lanc_BC1!$H:$H,Lanc_BC1!$A:$A,">="&J$5,Lanc_BC1!$A:$A,"<"&K$5,Lanc_BC1!$F:$F,"="&$B136) -> 0 | K136: =SUMIFS(Lanc_BC1!$H:$H,Lanc_BC1!$A:$A,">="&K$5,Lanc_BC1!$A:$A,"<"&L$5,Lanc_BC1!$F:$F,"="&$B136) -> 0 | L136: =SUMIFS(Lanc_BC1!$H:$H,Lanc_BC1!$A:$A,">="&L$5,Lanc_BC1!$A:$A,"<"&M$5,Lanc_BC1!$F:$F,"="&$B136) -> 0 | M136: =SUMIFS(Lanc_BC1!$H:$H,Lanc_BC1!$A:$A,">="&M$5,Lanc_BC1!$A:$A,"<"&N$5,Lanc_BC1!$F:$F,"="&$B136) -> 0 | N136: =SUMIFS(Lanc_BC1!$H:$H,Lanc_BC1!$A:$A,">="&N$5,Lanc_BC1!$A:$A,"<"&O$5,Lanc_BC1!$F:$F,"="&$B136) -> 0 | O136: =SUMIFS(#REF!,#REF!,">="&O$5,#REF!,"<"&P$5,#REF!,"="&$B136) ->  | P136: 0
A137: X
A138: RESULTADO ANTES DAS PARTICIPAÇÕES | C138: =C132-C134 -> 9031.03 | D138: =D132-D134 -> 19588.94 | E138: 0 | F138: 0 | G138: 0 | H138: 0 | I138: 0 | J138: 0 | K138: 0 | L138: 0 | M138: 0 | N138: 0 | O138: =O70-O72-O90-O102-O123-O135-#REF!-#REF! ->  | P138: =P132-P134 -> 28619.97
A139: X
A140: DISTRIBUIÇÃO DE LUCROS | C140: =SUM(C141:C142) -> 0 | D140: =SUM(D141:D142) -> 0 | E140: =SUM(E141:E142) -> 0 | F140: =SUM(F141:F142) -> 0 | G140: =SUM(G141:G142) -> 0 | H140: 0 | I140: 0 | J140: 0 | K140: 0 | L140: 0 | M140: 0 | N140: 0 | P140: =SUM(P141:P142) -> 0
A141: =IF(P141<>0,P141,"") ->  | B141: Distribuição de lucros | C141: =SUMIFS(Lanc_BC1!$H:$H,Lanc_BC1!$A:$A,">="&C$5,Lanc_BC1!$A:$A,"<"&D$5,Lanc_BC1!$F:$F,"="&$B141) -> 0 | D141: =SUMIFS(Lanc_BC1!$H:$H,Lanc_BC1!$A:$A,">="&D$5,Lanc_BC1!$A:$A,"<"&E$5,Lanc_BC1!$F:$F,"="&$B141) -> 0 | E141: =SUMIFS(Lanc_BC1!$H:$H,Lanc_BC1!$A:$A,">="&E$5,Lanc_BC1!$A:$A,"<"&F$5,Lanc_BC1!$F:$F,"="&$B141) -> 0 | F141: =SUMIFS(Lanc_BC1!$H:$H,Lanc_BC1!$A:$A,">="&F$5,Lanc_BC1!$A:$A,"<"&G$5,Lanc_BC1!$F:$F,"="&$B141) -> 0 | G141: =SUMIFS(Lanc_BC1!$H:$H,Lanc_BC1!$A:$A,">="&G$5,Lanc_BC1!$A:$A,"<"&H$5,Lanc_BC1!$F:$F,"="&$B141) -> 0 | H141: =SUMIFS(Lanc_BC1!$H:$H,Lanc_BC1!$A:$A,">="&H$5,Lanc_BC1!$A:$A,"<"&I$5,Lanc_BC1!$F:$F,"="&$B141) -> 0 | I141: =SUMIFS(Lanc_BC1!$H:$H,Lanc_BC1!$A:$A,">="&I$5,Lanc_BC1!$A:$A,"<"&J$5,Lanc_BC1!$F:$F,"="&$B141) -> 0 | J141: =SUMIFS(Lanc_BC1!$H:$H,Lanc_BC1!$A:$A,">="&J$5,Lanc_BC1!$A:$A,"<"&K$5,Lanc_BC1!$F:$F,"="&$B141) -> 0 | K141: =SUMIFS(Lanc_BC1!$H:$H,Lanc_BC1!$A:$A,">="&K$5,Lanc_BC1!$A:$A,"<"&L$5,Lanc_BC1!$F:$F,"="&$B141) -> 0 | L141: =SUMIFS(Lanc_BC1!$H:$H,Lanc_BC1!$A:$A,">="&L$5,Lanc_BC1!$A:$A,"<"&M$5,Lanc_BC1!$F:$F,"="&$B141) -> 0 | M141: =SUMIFS(Lanc_BC1!$H:$H,Lanc_BC1!$A:$A,">="&M$5,Lanc_BC1!$A:$A,"<"&N$5,Lanc_BC1!$F:$F,"="&$B141) -> 0 | N141: =SUMIFS(Lanc_BC1!$H:$H,Lanc_BC1!$A:$A,">="&N$5,Lanc_BC1!$A:$A,"<"&O$5,Lanc_BC1!$F:$F,"="&$B141) -> 0 | O141: =SUMIFS(#REF!,#REF!,">="&O$5,#REF!,"<"&P$5,#REF!,"="&$B141) ->  | P141: =SUM(C141:N141) -> 0
B142: Despesas de sócios | C142: =SUMIFS(Lanc_BC1!$H:$H,Lanc_BC1!$A:$A,">="&C$5,Lanc_BC1!$A:$A,"<"&D$5,Lanc_BC1!$F:$F,"="&$B142) -> 0 | D142: =SUMIFS(Lanc_BC1!$H:$H,Lanc_BC1!$A:$A,">="&D$5,Lanc_BC1!$A:$A,"<"&E$5,Lanc_BC1!$F:$F,"="&$B142) -> 0 | E142: =SUMIFS(Lanc_BC1!$H:$H,Lanc_BC1!$A:$A,">="&E$5,Lanc_BC1!$A:$A,"<"&F$5,Lanc_BC1!$F:$F,"="&$B142) -> 0 | F142: =SUMIFS(Lanc_BC1!$H:$H,Lanc_BC1!$A:$A,">="&F$5,Lanc_BC1!$A:$A,"<"&G$5,Lanc_BC1!$F:$F,"="&$B142) -> 0 | G142: =SUMIFS(Lanc_BC1!$H:$H,Lanc_BC1!$A:$A,">="&G$5,Lanc_BC1!$A:$A,"<"&H$5,Lanc_BC1!$F:$F,"="&$B142) -> 0 | H142: =SUMIFS(Lanc_BC1!$H:$H,Lanc_BC1!$A:$A,">="&H$5,Lanc_BC1!$A:$A,"<"&I$5,Lanc_BC1!$F:$F,"="&$B142) -> 0 | I142: =SUMIFS(Lanc_BC1!$H:$H,Lanc_BC1!$A:$A,">="&I$5,Lanc_BC1!$A:$A,"<"&J$5,Lanc_BC1!$F:$F,"="&$B142) -> 0 | J142: =SUMIFS(Lanc_BC1!$H:$H,Lanc_BC1!$A:$A,">="&J$5,Lanc_BC1!$A:$A,"<"&K$5,Lanc_BC1!$F:$F,"="&$B142) -> 0 | K142: =SUMIFS(Lanc_BC1!$H:$H,Lanc_BC1!$A:$A,">="&K$5,Lanc_BC1!$A:$A,"<"&L$5,Lanc_BC1!$F:$F,"="&$B142) -> 0 | L142: =SUMIFS(Lanc_BC1!$H:$H,Lanc_BC1!$A:$A,">="&L$5,Lanc_BC1!$A:$A,"<"&M$5,Lanc_BC1!$F:$F,"="&$B142) -> 0 | M142: =SUMIFS(Lanc_BC1!$H:$H,Lanc_BC1!$A:$A,">="&M$5,Lanc_BC1!$A:$A,"<"&N$5,Lanc_BC1!$F:$F,"="&$B142) -> 0 | N142: =SUMIFS(Lanc_BC1!$H:$H,Lanc_BC1!$A:$A,">="&N$5,Lanc_BC1!$A:$A,"<"&O$5,Lanc_BC1!$F:$F,"="&$B142) -> 0 | O142: =SUMIFS(#REF!,#REF!,">="&O$5,#REF!,"<"&P$5,#REF!,"="&$B142) ->  | P142: 0
A143: X
A144: RESULTADO LIQUIDO | C144: =C138-C140 -> 9031.03 | D144: =D138-D140 -> 19588.94 | E144: 0 | F144: 0 | G144: 0 | H144: 0 | I144: 0 | J144: 0 | K144: 0 | L144: 0 | M144: 0 | N144: 0 | O144: =O114-O116-O122 ->  | P144: =P138-P140 -> 28619.97
A145: RESULTADO ACUMULADO | C145: =C144 -> 9031.03 | D145: =C145+D144 -> 28619.97 | E145: =D145+E144 -> 28619.97 | F145: 28619.97 | G145: 28619.97 | H145: 28619.97 | I145: 28619.97 | J145: =IF(J144=0,0,I145+J144) -> 0 | K145: =IF(K144=0,0,J145+K144) -> 0 | L145: 0 | M145: 0 | N145: 0
A146: X
A147: EMPRÉSTIMOS A RECEBER | C147: =SUM(C148:C148) -> 0 | D147: 0 | E147: 0 | F147: 0 | G147: 0 | H147: 0 | I147: 0 | J147: 0 | K147: 0 | L147: 0 | M147: 0 | N147: 0 | O147: 0 | P147: 0
A148: =IF(P148<>0,P148,"") ->  | B148: Empréstimo a Receber | C148: =SUMIFS(Lanc_BC1!$H:$H,Lanc_BC1!$A:$A,">="&C$5,Lanc_BC1!$A:$A,"<"&D$5,Lanc_BC1!$F:$F,"="&$B148) -> 0 | D148: =SUMIFS(Lanc_BC1!$H:$H,Lanc_BC1!$A:$A,">="&D$5,Lanc_BC1!$A:$A,"<"&E$5,Lanc_BC1!$F:$F,"="&$B148) -> 0 | E148: =SUMIFS(Lanc_BC1!$H:$H,Lanc_BC1!$A:$A,">="&E$5,Lanc_BC1!$A:$A,"<"&F$5,Lanc_BC1!$F:$F,"="&$B148) -> 0 | F148: =SUMIFS(Lanc_BC1!$H:$H,Lanc_BC1!$A:$A,">="&F$5,Lanc_BC1!$A:$A,"<"&G$5,Lanc_BC1!$F:$F,"="&$B148) -> 0 | G148: =SUMIFS(Lanc_BC1!$H:$H,Lanc_BC1!$A:$A,">="&G$5,Lanc_BC1!$A:$A,"<"&H$5,Lanc_BC1!$F:$F,"="&$B148) -> 0 | H148: =SUMIFS(Lanc_BC1!$H:$H,Lanc_BC1!$A:$A,">="&H$5,Lanc_BC1!$A:$A,"<"&I$5,Lanc_BC1!$F:$F,"="&$B148) -> 0 | I148: =SUMIFS(Lanc_BC1!$H:$H,Lanc_BC1!$A:$A,">="&I$5,Lanc_BC1!$A:$A,"<"&J$5,Lanc_BC1!$F:$F,"="&$B148) -> 0 | J148: =SUMIFS(Lanc_BC1!$H:$H,Lanc_BC1!$A:$A,">="&J$5,Lanc_BC1!$A:$A,"<"&K$5,Lanc_BC1!$F:$F,"="&$B148) -> 0 | K148: =SUMIFS(Lanc_BC1!$H:$H,Lanc_BC1!$A:$A,">="&K$5,Lanc_BC1!$A:$A,"<"&L$5,Lanc_BC1!$F:$F,"="&$B148) -> 0 | L148: =SUMIFS(Lanc_BC1!$H:$H,Lanc_BC1!$A:$A,">="&L$5,Lanc_BC1!$A:$A,"<"&M$5,Lanc_BC1!$F:$F,"="&$B148) -> 0 | M148: =SUMIFS(Lanc_BC1!$H:$H,Lanc_BC1!$A:$A,">="&M$5,Lanc_BC1!$A:$A,"<"&N$5,Lanc_BC1!$F:$F,"="&$B148) -> 0 | N148: =SUMIFS(Lanc_BC1!$H:$H,Lanc_BC1!$A:$A,">="&N$5,Lanc_BC1!$A:$A,"<"&O$5,Lanc_BC1!$F:$F,"="&$B148) -> 0 | O148: =SUMIFS(#REF!,#REF!,">="&O$5,#REF!,"<"&P$5,#REF!,"="&$B148) ->  | P148: =SUM(C148:N148) -> 0
A149: X
A150: EMPRÉSTIMOS A PAGAR | C150: =SUM(C151:C152) -> 0 | D150: =SUM(D151:D152) -> 0 | E150: 0 | F150: 0 | G150: 0 | H150: 0 | I150: 0 | J150: 0 | K150: 0 | L150: 0 | M150: 0 | N150: 0 | P150: =SUM(P151:P152) -> 0
A151: =IF(P151<>0,P151,"") ->  | B151: Empréstimos bancários | C151: =SUMIFS(Lanc_BC1!$H:$H,Lanc_BC1!$A:$A,">="&C$5,Lanc_BC1!$A:$A,"<"&D$5,Lanc_BC1!$F:$F,"="&$B151) -> 0 | D151: =SUMIFS(Lanc_BC1!$H:$H,Lanc_BC1!$A:$A,">="&D$5,Lanc_BC1!$A:$A,"<"&E$5,Lanc_BC1!$F:$F,"="&$B151) -> 0 | E151: =SUMIFS(Lanc_BC1!$H:$H,Lanc_BC1!$A:$A,">="&E$5,Lanc_BC1!$A:$A,"<"&F$5,Lanc_BC1!$F:$F,"="&$B151) -> 0 | F151: =SUMIFS(Lanc_BC1!$H:$H,Lanc_BC1!$A:$A,">="&F$5,Lanc_BC1!$A:$A,"<"&G$5,Lanc_BC1!$F:$F,"="&$B151) -> 0 | G151: =SUMIFS(Lanc_BC1!$H:$H,Lanc_BC1!$A:$A,">="&G$5,Lanc_BC1!$A:$A,"<"&H$5,Lanc_BC1!$F:$F,"="&$B151) -> 0 | H151: =SUMIFS(Lanc_BC1!$H:$H,Lanc_BC1!$A:$A,">="&H$5,Lanc_BC1!$A:$A,"<"&I$5,Lanc_BC1!$F:$F,"="&$B151) -> 0 | I151: =SUMIFS(Lanc_BC1!$H:$H,Lanc_BC1!$A:$A,">="&I$5,Lanc_BC1!$A:$A,"<"&J$5,Lanc_BC1!$F:$F,"="&$B151) -> 0 | J151: =SUMIFS(Lanc_BC1!$H:$H,Lanc_BC1!$A:$A,">="&J$5,Lanc_BC1!$A:$A,"<"&K$5,Lanc_BC1!$F:$F,"="&$B151) -> 0 | K151: =SUMIFS(Lanc_BC1!$H:$H,Lanc_BC1!$A:$A,">="&K$5,Lanc_BC1!$A:$A,"<"&L$5,Lanc_BC1!$F:$F,"="&$B151) -> 0 | L151: =SUMIFS(Lanc_BC1!$H:$H,Lanc_BC1!$A:$A,">="&L$5,Lanc_BC1!$A:$A,"<"&M$5,Lanc_BC1!$F:$F,"="&$B151) -> 0 | M151: =SUMIFS(Lanc_BC1!$H:$H,Lanc_BC1!$A:$A,">="&M$5,Lanc_BC1!$A:$A,"<"&N$5,Lanc_BC1!$F:$F,"="&$B151) -> 0 | N151: =SUMIFS(Lanc_BC1!$H:$H,Lanc_BC1!$A:$A,">="&N$5,Lanc_BC1!$A:$A,"<"&O$5,Lanc_BC1!$F:$F,"="&$B151) -> 0 | O151: =SUMIFS(#REF!,#REF!,">="&O$5,#REF!,"<"&P$5,#REF!,"="&$B151) ->  | P151: =SUM(C151:N151) -> 0
B152: Empréstimos a pagar | C152: =SUMIFS(Lanc_BC1!$H:$H,Lanc_BC1!$A:$A,">="&C$5,Lanc_BC1!$A:$A,"<"&D$5,Lanc_BC1!$F:$F,"="&$B152) -> 0 | D152: =SUMIFS(Lanc_BC1!$H:$H,Lanc_BC1!$A:$A,">="&D$5,Lanc_BC1!$A:$A,"<"&E$5,Lanc_BC1!$F:$F,"="&$B152) -> 0 | E152: =SUMIFS(Lanc_BC1!$H:$H,Lanc_BC1!$A:$A,">="&E$5,Lanc_BC1!$A:$A,"<"&F$5,Lanc_BC1!$F:$F,"="&$B152) -> 0 | F152: =SUMIFS(Lanc_BC1!$H:$H,Lanc_BC1!$A:$A,">="&F$5,Lanc_BC1!$A:$A,"<"&G$5,Lanc_BC1!$F:$F,"="&$B152) -> 0 | G152: =SUMIFS(Lanc_BC1!$H:$H,Lanc_BC1!$A:$A,">="&G$5,Lanc_BC1!$A:$A,"<"&H$5,Lanc_BC1!$F:$F,"="&$B152) -> 0 | H152: =SUMIFS(Lanc_BC1!$H:$H,Lanc_BC1!$A:$A,">="&H$5,Lanc_BC1!$A:$A,"<"&I$5,Lanc_BC1!$F:$F,"="&$B152) -> 0 | I152: =SUMIFS(Lanc_BC1!$H:$H,Lanc_BC1!$A:$A,">="&I$5,Lanc_BC1!$A:$A,"<"&J$5,Lanc_BC1!$F:$F,"="&$B152) -> 0 | J152: =SUMIFS(Lanc_BC1!$H:$H,Lanc_BC1!$A:$A,">="&J$5,Lanc_BC1!$A:$A,"<"&K$5,Lanc_BC1!$F:$F,"="&$B152) -> 0 | K152: =SUMIFS(Lanc_BC1!$H:$H,Lanc_BC1!$A:$A,">="&K$5,Lanc_BC1!$A:$A,"<"&L$5,Lanc_BC1!$F:$F,"="&$B152) -> 0 | L152: =SUMIFS(Lanc_BC1!$H:$H,Lanc_BC1!$A:$A,">="&L$5,Lanc_BC1!$A:$A,"<"&M$5,Lanc_BC1!$F:$F,"="&$B152) -> 0 | M152: =SUMIFS(Lanc_BC1!$H:$H,Lanc_BC1!$A:$A,">="&M$5,Lanc_BC1!$A:$A,"<"&N$5,Lanc_BC1!$F:$F,"="&$B152) -> 0 | N152: =SUMIFS(Lanc_BC1!$H:$H,Lanc_BC1!$A:$A,">="&N$5,Lanc_BC1!$A:$A,"<"&O$5,Lanc_BC1!$F:$F,"="&$B152) -> 0 | O152: =SUMIFS(#REF!,#REF!,">="&O$5,#REF!,"<"&P$5,#REF!,"="&$B152) ->  | P152: 0
A153: X
A154: INVESTIMENTOS | C154: =SUM(C155:C156) -> 0 | D154: =SUM(D155:D156) -> 0 | E154: 0 | F154: 0 | G154: 0 | H154: 0 | I154: 0 | J154: 0 | K154: 0 | L154: 0 | M154: 0 | N154: 0 | O154: =SUM(O155:O155) ->  | P154: =SUM(P155:P156) -> 0
A155: =IF(P155<>0,P155,"") ->  | B155: Capital Social | C155: =SUMIFS(Lanc_BC1!$H:$H,Lanc_BC1!$A:$A,">="&C$5,Lanc_BC1!$A:$A,"<"&D$5,Lanc_BC1!$F:$F,"="&$B155) -> 0 | D155: =SUMIFS(Lanc_BC1!$H:$H,Lanc_BC1!$A:$A,">="&D$5,Lanc_BC1!$A:$A,"<"&E$5,Lanc_BC1!$F:$F,"="&$B155) -> 0 | E155: =SUMIFS(Lanc_BC1!$H:$H,Lanc_BC1!$A:$A,">="&E$5,Lanc_BC1!$A:$A,"<"&F$5,Lanc_BC1!$F:$F,"="&$B155) -> 0 | F155: =SUMIFS(Lanc_BC1!$H:$H,Lanc_BC1!$A:$A,">="&F$5,Lanc_BC1!$A:$A,"<"&G$5,Lanc_BC1!$F:$F,"="&$B155) -> 0 | G155: =SUMIFS(Lanc_BC1!$H:$H,Lanc_BC1!$A:$A,">="&G$5,Lanc_BC1!$A:$A,"<"&H$5,Lanc_BC1!$F:$F,"="&$B155) -> 0 | H155: =SUMIFS(Lanc_BC1!$H:$H,Lanc_BC1!$A:$A,">="&H$5,Lanc_BC1!$A:$A,"<"&I$5,Lanc_BC1!$F:$F,"="&$B155) -> 0 | I155: =SUMIFS(Lanc_BC1!$H:$H,Lanc_BC1!$A:$A,">="&I$5,Lanc_BC1!$A:$A,"<"&J$5,Lanc_BC1!$F:$F,"="&$B155) -> 0 | J155: =SUMIFS(Lanc_BC1!$H:$H,Lanc_BC1!$A:$A,">="&J$5,Lanc_BC1!$A:$A,"<"&K$5,Lanc_BC1!$F:$F,"="&$B155) -> 0 | K155: =SUMIFS(Lanc_BC1!$H:$H,Lanc_BC1!$A:$A,">="&K$5,Lanc_BC1!$A:$A,"<"&L$5,Lanc_BC1!$F:$F,"="&$B155) -> 0 | L155: =SUMIFS(Lanc_BC1!$H:$H,Lanc_BC1!$A:$A,">="&L$5,Lanc_BC1!$A:$A,"<"&M$5,Lanc_BC1!$F:$F,"="&$B155) -> 0 | M155: =SUMIFS(Lanc_BC1!$H:$H,Lanc_BC1!$A:$A,">="&M$5,Lanc_BC1!$A:$A,"<"&N$5,Lanc_BC1!$F:$F,"="&$B155) -> 0 | N155: =SUMIFS(Lanc_BC1!$H:$H,Lanc_BC1!$A:$A,">="&N$5,Lanc_BC1!$A:$A,"<"&O$5,Lanc_BC1!$F:$F,"="&$B155) -> 0 | O155: =SUMIFS(#REF!,#REF!,">="&O$5,#REF!,"<"&P$5,#REF!,"="&$B155) ->  | P155: =SUM(C155:N155) -> 0
B156: Consorcios | C156: =SUMIFS(Lanc_BC1!$H:$H,Lanc_BC1!$A:$A,">="&C$5,Lanc_BC1!$A:$A,"<"&D$5,Lanc_BC1!$F:$F,"="&$B156) -> 0 | D156: =SUMIFS(Lanc_BC1!$H:$H,Lanc_BC1!$A:$A,">="&D$5,Lanc_BC1!$A:$A,"<"&E$5,Lanc_BC1!$F:$F,"="&$B156) -> 0 | E156: =SUMIFS(Lanc_BC1!$H:$H,Lanc_BC1!$A:$A,">="&E$5,Lanc_BC1!$A:$A,"<"&F$5,Lanc_BC1!$F:$F,"="&$B156) -> 0 | F156: =SUMIFS(Lanc_BC1!$H:$H,Lanc_BC1!$A:$A,">="&F$5,Lanc_BC1!$A:$A,"<"&G$5,Lanc_BC1!$F:$F,"="&$B156) -> 0 | G156: =SUMIFS(Lanc_BC1!$H:$H,Lanc_BC1!$A:$A,">="&G$5,Lanc_BC1!$A:$A,"<"&H$5,Lanc_BC1!$F:$F,"="&$B156) -> 0 | H156: =SUMIFS(Lanc_BC1!$H:$H,Lanc_BC1!$A:$A,">="&H$5,Lanc_BC1!$A:$A,"<"&I$5,Lanc_BC1!$F:$F,"="&$B156) -> 0 | I156: =SUMIFS(Lanc_BC1!$H:$H,Lanc_BC1!$A:$A,">="&I$5,Lanc_BC1!$A:$A,"<"&J$5,Lanc_BC1!$F:$F,"="&$B156) -> 0 | J156: =SUMIFS(Lanc_BC1!$H:$H,Lanc_BC1!$A:$A,">="&J$5,Lanc_BC1!$A:$A,"<"&K$5,Lanc_BC1!$F:$F,"="&$B156) -> 0 | K156: =SUMIFS(Lanc_BC1!$H:$H,Lanc_BC1!$A:$A,">="&K$5,Lanc_BC1!$A:$A,"<"&L$5,Lanc_BC1!$F:$F,"="&$B156) -> 0 | L156: =SUMIFS(Lanc_BC1!$H:$H,Lanc_BC1!$A:$A,">="&L$5,Lanc_BC1!$A:$A,"<"&M$5,Lanc_BC1!$F:$F,"="&$B156) -> 0 | M156: =SUMIFS(Lanc_BC1!$H:$H,Lanc_BC1!$A:$A,">="&M$5,Lanc_BC1!$A:$A,"<"&N$5,Lanc_BC1!$F:$F,"="&$B156) -> 0 | N156: =SUMIFS(Lanc_BC1!$H:$H,Lanc_BC1!$A:$A,">="&N$5,Lanc_BC1!$A:$A,"<"&O$5,Lanc_BC1!$F:$F,"="&$B156) -> 0 | O156: =SUMIFS(#REF!,#REF!,">="&O$5,#REF!,"<"&P$5,#REF!,"="&$B156) ->  | P156: 0
A157: X
A158: IMOBILIZADO | C158: =SUM(C159:C162) -> 0 | D158: =SUM(D159:D162) -> 0 | E158: 0 | F158: 0 | G158: 0 | H158: 0 | I158: 0 | J158: 0 | K158: 0 | L158: 0 | M158: 0 | N158: 0 | P158: =SUM(P159:P162) -> 0
A159: =IF(P159<>0,P159,"") ->  | B159: Computadores e periféricos | C159: =SUMIFS(Lanc_BC1!$H:$H,Lanc_BC1!$A:$A,">="&C$5,Lanc_BC1!$A:$A,"<"&D$5,Lanc_BC1!$F:$F,"="&$B159) -> 0 | D159: =SUMIFS(Lanc_BC1!$H:$H,Lanc_BC1!$A:$A,">="&D$5,Lanc_BC1!$A:$A,"<"&E$5,Lanc_BC1!$F:$F,"="&$B159) -> 0 | E159: =SUMIFS(Lanc_BC1!$H:$H,Lanc_BC1!$A:$A,">="&E$5,Lanc_BC1!$A:$A,"<"&F$5,Lanc_BC1!$F:$F,"="&$B159) -> 0 | F159: =SUMIFS(Lanc_BC1!$H:$H,Lanc_BC1!$A:$A,">="&F$5,Lanc_BC1!$A:$A,"<"&G$5,Lanc_BC1!$F:$F,"="&$B159) -> 0 | G159: =SUMIFS(Lanc_BC1!$H:$H,Lanc_BC1!$A:$A,">="&G$5,Lanc_BC1!$A:$A,"<"&H$5,Lanc_BC1!$F:$F,"="&$B159) -> 0 | H159: =SUMIFS(Lanc_BC1!$H:$H,Lanc_BC1!$A:$A,">="&H$5,Lanc_BC1!$A:$A,"<"&I$5,Lanc_BC1!$F:$F,"="&$B159) -> 0 | I159: =SUMIFS(Lanc_BC1!$H:$H,Lanc_BC1!$A:$A,">="&I$5,Lanc_BC1!$A:$A,"<"&J$5,Lanc_BC1!$F:$F,"="&$B159) -> 0 | J159: =SUMIFS(Lanc_BC1!$H:$H,Lanc_BC1!$A:$A,">="&J$5,Lanc_BC1!$A:$A,"<"&K$5,Lanc_BC1!$F:$F,"="&$B159) -> 0 | K159: =SUMIFS(Lanc_BC1!$H:$H,Lanc_BC1!$A:$A,">="&K$5,Lanc_BC1!$A:$A,"<"&L$5,Lanc_BC1!$F:$F,"="&$B159) -> 0 | L159: =SUMIFS(Lanc_BC1!$H:$H,Lanc_BC1!$A:$A,">="&L$5,Lanc_BC1!$A:$A,"<"&M$5,Lanc_BC1!$F:$F,"="&$B159) -> 0 | M159: =SUMIFS(Lanc_BC1!$H:$H,Lanc_BC1!$A:$A,">="&M$5,Lanc_BC1!$A:$A,"<"&N$5,Lanc_BC1!$F:$F,"="&$B159) -> 0 | N159: =SUMIFS(Lanc_BC1!$H:$H,Lanc_BC1!$A:$A,">="&N$5,Lanc_BC1!$A:$A,"<"&O$5,Lanc_BC1!$F:$F,"="&$B159) -> 0 | O159: =SUMIFS(#REF!,#REF!,">="&O$5,#REF!,"<"&P$5,#REF!,"="&$B159) ->  | P159: =SUM(C159:N159) -> 0
B160: Máquinas e equipamentos | C160: =SUMIFS(Lanc_BC1!$H:$H,Lanc_BC1!$A:$A,">="&C$5,Lanc_BC1!$A:$A,"<"&D$5,Lanc_BC1!$F:$F,"="&$B160) -> 0 | D160: =SUMIFS(Lanc_BC1!$H:$H,Lanc_BC1!$A:$A,">="&D$5,Lanc_BC1!$A:$A,"<"&E$5,Lanc_BC1!$F:$F,"="&$B160) -> 0 | E160: =SUMIFS(Lanc_BC1!$H:$H,Lanc_BC1!$A:$A,">="&E$5,Lanc_BC1!$A:$A,"<"&F$5,Lanc_BC1!$F:$F,"="&$B160) -> 0 | F160: =SUMIFS(Lanc_BC1!$H:$H,Lanc_BC1!$A:$A,">="&F$5,Lanc_BC1!$A:$A,"<"&G$5,Lanc_BC1!$F:$F,"="&$B160) -> 0 | G160: =SUMIFS(Lanc_BC1!$H:$H,Lanc_BC1!$A:$A,">="&G$5,Lanc_BC1!$A:$A,"<"&H$5,Lanc_BC1!$F:$F,"="&$B160) -> 0 | H160: =SUMIFS(Lanc_BC1!$H:$H,Lanc_BC1!$A:$A,">="&H$5,Lanc_BC1!$A:$A,"<"&I$5,Lanc_BC1!$F:$F,"="&$B160) -> 0 | I160: =SUMIFS(Lanc_BC1!$H:$H,Lanc_BC1!$A:$A,">="&I$5,Lanc_BC1!$A:$A,"<"&J$5,Lanc_BC1!$F:$F,"="&$B160) -> 0 | J160: =SUMIFS(Lanc_BC1!$H:$H,Lanc_BC1!$A:$A,">="&J$5,Lanc_BC1!$A:$A,"<"&K$5,Lanc_BC1!$F:$F,"="&$B160) -> 0 | K160: =SUMIFS(Lanc_BC1!$H:$H,Lanc_BC1!$A:$A,">="&K$5,Lanc_BC1!$A:$A,"<"&L$5,Lanc_BC1!$F:$F,"="&$B160) -> 0 | L160: =SUMIFS(Lanc_BC1!$H:$H,Lanc_BC1!$A:$A,">="&L$5,Lanc_BC1!$A:$A,"<"&M$5,Lanc_BC1!$F:$F,"="&$B160) -> 0 | M160: =SUMIFS(Lanc_BC1!$H:$H,Lanc_BC1!$A:$A,">="&M$5,Lanc_BC1!$A:$A,"<"&N$5,Lanc_BC1!$F:$F,"="&$B160) -> 0 | N160: =SUMIFS(Lanc_BC1!$H:$H,Lanc_BC1!$A:$A,">="&N$5,Lanc_BC1!$A:$A,"<"&O$5,Lanc_BC1!$F:$F,"="&$B160) -> 0 | O160: =SUMIFS(#REF!,#REF!,">="&O$5,#REF!,"<"&P$5,#REF!,"="&$B160) ->  | P160: 0
B161: Móveis e utensílios | C161: =SUMIFS(Lanc_BC1!$H:$H,Lanc_BC1!$A:$A,">="&C$5,Lanc_BC1!$A:$A,"<"&D$5,Lanc_BC1!$F:$F,"="&$B161) -> 0 | D161: =SUMIFS(Lanc_BC1!$H:$H,Lanc_BC1!$A:$A,">="&D$5,Lanc_BC1!$A:$A,"<"&E$5,Lanc_BC1!$F:$F,"="&$B161) -> 0 | E161: =SUMIFS(Lanc_BC1!$H:$H,Lanc_BC1!$A:$A,">="&E$5,Lanc_BC1!$A:$A,"<"&F$5,Lanc_BC1!$F:$F,"="&$B161) -> 0 | F161: =SUMIFS(Lanc_BC1!$H:$H,Lanc_BC1!$A:$A,">="&F$5,Lanc_BC1!$A:$A,"<"&G$5,Lanc_BC1!$F:$F,"="&$B161) -> 0 | G161: =SUMIFS(Lanc_BC1!$H:$H,Lanc_BC1!$A:$A,">="&G$5,Lanc_BC1!$A:$A,"<"&H$5,Lanc_BC1!$F:$F,"="&$B161) -> 0 | H161: =SUMIFS(Lanc_BC1!$H:$H,Lanc_BC1!$A:$A,">="&H$5,Lanc_BC1!$A:$A,"<"&I$5,Lanc_BC1!$F:$F,"="&$B161) -> 0 | I161: =SUMIFS(Lanc_BC1!$H:$H,Lanc_BC1!$A:$A,">="&I$5,Lanc_BC1!$A:$A,"<"&J$5,Lanc_BC1!$F:$F,"="&$B161) -> 0 | J161: =SUMIFS(Lanc_BC1!$H:$H,Lanc_BC1!$A:$A,">="&J$5,Lanc_BC1!$A:$A,"<"&K$5,Lanc_BC1!$F:$F,"="&$B161) -> 0 | K161: =SUMIFS(Lanc_BC1!$H:$H,Lanc_BC1!$A:$A,">="&K$5,Lanc_BC1!$A:$A,"<"&L$5,Lanc_BC1!$F:$F,"="&$B161) -> 0 | L161: =SUMIFS(Lanc_BC1!$H:$H,Lanc_BC1!$A:$A,">="&L$5,Lanc_BC1!$A:$A,"<"&M$5,Lanc_BC1!$F:$F,"="&$B161) -> 0 | M161: =SUMIFS(Lanc_BC1!$H:$H,Lanc_BC1!$A:$A,">="&M$5,Lanc_BC1!$A:$A,"<"&N$5,Lanc_BC1!$F:$F,"="&$B161) -> 0 | N161: =SUMIFS(Lanc_BC1!$H:$H,Lanc_BC1!$A:$A,">="&N$5,Lanc_BC1!$A:$A,"<"&O$5,Lanc_BC1!$F:$F,"="&$B161) -> 0 | O161: =SUMIFS(#REF!,#REF!,">="&O$5,#REF!,"<"&P$5,#REF!,"="&$B161) ->  | P161: 0
B162: Veículos | C162: =SUMIFS(Lanc_BC1!$H:$H,Lanc_BC1!$A:$A,">="&C$5,Lanc_BC1!$A:$A,"<"&D$5,Lanc_BC1!$F:$F,"="&$B162) -> 0 | D162: =SUMIFS(Lanc_BC1!$H:$H,Lanc_BC1!$A:$A,">="&D$5,Lanc_BC1!$A:$A,"<"&E$5,Lanc_BC1!$F:$F,"="&$B162) -> 0 | E162: =SUMIFS(Lanc_BC1!$H:$H,Lanc_BC1!$A:$A,">="&E$5,Lanc_BC1!$A:$A,"<"&F$5,Lanc_BC1!$F:$F,"="&$B162) -> 0 | F162: =SUMIFS(Lanc_BC1!$H:$H,Lanc_BC1!$A:$A,">="&F$5,Lanc_BC1!$A:$A,"<"&G$5,Lanc_BC1!$F:$F,"="&$B162) -> 0 | G162: =SUMIFS(Lanc_BC1!$H:$H,Lanc_BC1!$A:$A,">="&G$5,Lanc_BC1!$A:$A,"<"&H$5,Lanc_BC1!$F:$F,"="&$B162) -> 0 | H162: =SUMIFS(Lanc_BC1!$H:$H,Lanc_BC1!$A:$A,">="&H$5,Lanc_BC1!$A:$A,"<"&I$5,Lanc_BC1!$F:$F,"="&$B162) -> 0 | I162: =SUMIFS(Lanc_BC1!$H:$H,Lanc_BC1!$A:$A,">="&I$5,Lanc_BC1!$A:$A,"<"&J$5,Lanc_BC1!$F:$F,"="&$B162) -> 0 | J162: =SUMIFS(Lanc_BC1!$H:$H,Lanc_BC1!$A:$A,">="&J$5,Lanc_BC1!$A:$A,"<"&K$5,Lanc_BC1!$F:$F,"="&$B162) -> 0 | K162: =SUMIFS(Lanc_BC1!$H:$H,Lanc_BC1!$A:$A,">="&K$5,Lanc_BC1!$A:$A,"<"&L$5,Lanc_BC1!$F:$F,"="&$B162) -> 0 | L162: =SUMIFS(Lanc_BC1!$H:$H,Lanc_BC1!$A:$A,">="&L$5,Lanc_BC1!$A:$A,"<"&M$5,Lanc_BC1!$F:$F,"="&$B162) -> 0 | M162: =SUMIFS(Lanc_BC1!$H:$H,Lanc_BC1!$A:$A,">="&M$5,Lanc_BC1!$A:$A,"<"&N$5,Lanc_BC1!$F:$F,"="&$B162) -> 0 | N162: =SUMIFS(Lanc_BC1!$H:$H,Lanc_BC1!$A:$A,">="&N$5,Lanc_BC1!$A:$A,"<"&O$5,Lanc_BC1!$F:$F,"="&$B162) -> 0 | O162: =SUMIFS(#REF!,#REF!,">="&O$5,#REF!,"<"&P$5,#REF!,"="&$B162) ->  | P162: 0
A163: X
A164: REPASSES | C164: =SUM(C165:C165) -> -4651.9 | D164: 0 | E164: 0 | F164: 0 | G164: 0 | H164: 0 | I164: 0 | J164: 0 | K164: 0 | L164: 0 | M164: 0 | N164: 0 | P164: -4651.9
A165: =IF(P165<>0,P165,"") -> -4651.9 | B165: Repasses | C165: =SUMIFS(Lanc_BC1!$H:$H,Lanc_BC1!$A:$A,">="&C$5,Lanc_BC1!$A:$A,"<"&D$5,Lanc_BC1!$F:$F,"="&$B165) -> -4651.9 | D165: =SUMIFS(Lanc_BC1!$H:$H,Lanc_BC1!$A:$A,">="&D$5,Lanc_BC1!$A:$A,"<"&E$5,Lanc_BC1!$F:$F,"="&$B165) -> 0 | E165: =SUMIFS(Lanc_BC1!$H:$H,Lanc_BC1!$A:$A,">="&E$5,Lanc_BC1!$A:$A,"<"&F$5,Lanc_BC1!$F:$F,"="&$B165) -> 0 | F165: =SUMIFS(Lanc_BC1!$H:$H,Lanc_BC1!$A:$A,">="&F$5,Lanc_BC1!$A:$A,"<"&G$5,Lanc_BC1!$F:$F,"="&$B165) -> 0 | G165: =SUMIFS(Lanc_BC1!$H:$H,Lanc_BC1!$A:$A,">="&G$5,Lanc_BC1!$A:$A,"<"&H$5,Lanc_BC1!$F:$F,"="&$B165) -> 0 | H165: =SUMIFS(Lanc_BC1!$H:$H,Lanc_BC1!$A:$A,">="&H$5,Lanc_BC1!$A:$A,"<"&I$5,Lanc_BC1!$F:$F,"="&$B165) -> 0 | I165: =SUMIFS(Lanc_BC1!$H:$H,Lanc_BC1!$A:$A,">="&I$5,Lanc_BC1!$A:$A,"<"&J$5,Lanc_BC1!$F:$F,"="&$B165) -> 0 | J165: =SUMIFS(Lanc_BC1!$H:$H,Lanc_BC1!$A:$A,">="&J$5,Lanc_BC1!$A:$A,"<"&K$5,Lanc_BC1!$F:$F,"="&$B165) -> 0 | K165: =SUMIFS(Lanc_BC1!$H:$H,Lanc_BC1!$A:$A,">="&K$5,Lanc_BC1!$A:$A,"<"&L$5,Lanc_BC1!$F:$F,"="&$B165) -> 0 | L165: =SUMIFS(Lanc_BC1!$H:$H,Lanc_BC1!$A:$A,">="&L$5,Lanc_BC1!$A:$A,"<"&M$5,Lanc_BC1!$F:$F,"="&$B165) -> 0 | M165: =SUMIFS(Lanc_BC1!$H:$H,Lanc_BC1!$A:$A,">="&M$5,Lanc_BC1!$A:$A,"<"&N$5,Lanc_BC1!$F:$F,"="&$B165) -> 0 | N165: =SUMIFS(Lanc_BC1!$H:$H,Lanc_BC1!$A:$A,">="&N$5,Lanc_BC1!$A:$A,"<"&O$5,Lanc_BC1!$F:$F,"="&$B165) -> 0 | O165: =SUMIFS(#REF!,#REF!,">="&O$5,#REF!,"<"&P$5,#REF!,"="&$B165) ->  | P165: =SUM(C165:N165) -> -4651.9

Sheet BaseDados (hidden)
A2: Data Pgto | B2: Fornecedor/Cliente | C2: Nº Doc | D2: Descrição | E2: Categoria | F2: Banco | G2: Valor Pago Recebido | H2: Valor Juros | I2: Valor Desconto | J2: Valor Original
A3: 2022-01-03 | B3: Fernando Barrozo da S. Cardoso | E3: Locação | F3: INTER | G3: 9948.47 | H3: 0 | I3: 0 | J3: =G3-H3+I3 -> 9948.47
A4: 2022-01-03 | B4: Fernando Barrozo da S. Cardoso | E4: Locação | F4: INTER | G4: 9948.47 | H4: 0 | I4: 0 | J4: =G4-H4+I4 -> 9948.47
A5: 2022-01-03 | B5: Fernando Barrozo da S. Cardoso | E5: Locação | F5: INTER | G5: 9948.47 | H5: 0 | I5: 0 | J5: 9948.47
A6: 2022-01-03 | B6: Fernando Barrozo da S. Cardoso | E6: Locação | F6: INTER | G6: 9948.47 | H6: 0 | I6: 0 | J6: 9948.47
A7: 2022-01-03 | B7: Fernando Barrozo da S. Cardoso | E7: Locação | F7: INTER | G7: 9948.47 | H7: 0 | I7: 0 | J7: 9948.47
A8: 2022-01-03 | B8: Fernando Barrozo da S. Cardoso | E8: Locação | F8: INTER | G8: 9948.47 | H8: 0 | I8: 0 | J8: 9948.47
A9: 2022-01-03 | B9: Fernando Barrozo da S. Cardoso | E9: Locação | F9: INTER | G9: 9948.47 | H9: 0 | I9: 0 | J9: 9948.47
A10: 2022-01-03 | B10: Fernando Barrozo da S. Cardoso | E10: Locação | F10: INTER | G10: 9948.47 | H10: 0 | I10: 0 | J10: 9948.47
A11: 2022-01-03 | B11: Fernando Barrozo da S. Cardoso | E11: Locação | F11: INTER | G11: 9948.47 | H11: 0 | I11: 0 | J11: 9948.47
A12: 2022-01-03 | B12: Fernando Barrozo da S. Cardoso | E12: Locação | F12: INTER | G12: 9948.47 | H12: 0 | I12: 0 | J12: 9948.47
A13: 2022-01-03 | B13: Fernando Barrozo da S. Cardoso | E13: Locação | F13: INTER | G13: 9948.47 | H13: 0 | I13: 0 | J13: 9948.47
A14: 2022-01-03 | B14: Fernando Barrozo da S. Cardoso | E14: Locação | F14: INTER | G14: 9948.47 | H14: 0 | I14: 0 | J14: 9948.47
A15: 2022-01-03 | B15: Fernando Barrozo da S. Cardoso | E15: Locação | F15: INTER | G15: 9948.47 | H15: 0 | I15: 0 | J15: 9948.47
A16: 2022-01-03 | B16: Fernando Barrozo da S. Cardoso | E16: Locação | F16: INTER | G16: 9948.47 | H16: 0 | I16: 0 | J16: 9948.47
A17: 2022-01-03 | B17: Fernando Barrozo da S. Cardoso | E17: Locação | F17: INTER | G17: 9948.47 | H17: 0 | I17: 0 | J17: 9948.47
A18: 2022-01-03 | B18: Fernando Barrozo da S. Cardoso | E18: Locação | F18: INTER | G18: 9948.47 | H18: 0 | I18: 0 | J18: 9948.47
A19: 2022-01-03 | B19: Fernando Barrozo da S. Cardoso | E19: Locação | F19: INTER | G19: 9948.47 | H19: 0 | I19: 0 | J19: 9948.47
A20: 2022-01-03 | B20: Fernando Barrozo da S. Cardoso | E20: Locação | F20: INTER | G20: 9948.47 | H20: 0 | I20: 0 | J20: 9948.47
A21: 2022-01-03 | B21: Fernando Barrozo da S. Cardoso | E21: Locação | F21: INTER | G21: 9948.47 | H21: 0 | I21: 0 | J21: 9948.47
A22: 2022-01-03 | B22: Fernando Barrozo da S. Cardoso | E22: Locação | F22: INTER | G22: 9948.47 | H22: 0 | I22: 0 | J22: 9948.47
A23: 2022-01-03 | B23: Fernando Barrozo da S. Cardoso | E23: Locação | F23: INTER | G23: 9948.47 | H23: 0 | I23: 0 | J23: 9948.47
A24: 2022-01-03 | B24: Fernando Barrozo da S. Cardoso | E24: Locação | F24: INTER | G24: 9948.47 | H24: 0 | I24: 0 | J24: 9948.47
A25: 2022-01-03 | B25: Fernando Barrozo da S. Cardoso | E25: Locação | F25: INTER | G25: 9948.47 | H25: 0 | I25: 0 | J25: 9948.47
A26: 2022-01-03 | B26: Fernando Barrozo da S. Cardoso | E26: Locação | F26: INTER | G26: 9948.47 | H26: 0 | I26: 0 | J26: 9948.47
A27: 2022-01-03 | B27: Fernando Barrozo da S. Cardoso | E27: Locação | F27: INTER | G27: 9948.47 | H27: 0 | I27: 0 | J27: 9948.47
A28: 2022-01-03 | B28: Fernando Barrozo da S. Cardoso | E28: Locação | F28: INTER | G28: 9948.47 | H28: 0 | I28: 0 | J28: 9948.47
A29: 2022-01-03 | B29: Fernando Barrozo da S. Cardoso | E29: Locação | F29: INTER | G29: 9948.47 | H29: 0 | I29: 0 | J29: 9948.47
A30: 2022-01-03 | B30: Fernando Barrozo da S. Cardoso | E30: Locação | F30: INTER | G30: 9948.47 | H30: 0 | I30: 0 | J30: 9948.47
A31: 2022-01-03 | B31: Fernando Barrozo da S. Cardoso | E31: Locação | F31: INTER | G31: 9948.47 | H31: 0 | I31: 0 | J31: 9948.47
A32: 2022-01-03 | B32: Fernando Barrozo da S. Cardoso | E32: Locação | F32: INTER | G32: 9948.47 | H32: 0 | I32: 0 | J32: 9948.47
A33: 2022-01-03 | B33: Fernando Barrozo da S. Cardoso | E33: Locação | F33: INTER | G33: 9948.47 | H33: 0 | I33: 0 | J33: 9948.47
A34: 2022-01-03 | B34: Fernando Barrozo da S. Cardoso | E34: Locação | F34: INTER | G34: 9948.47 | H34: 0 | I34: 0 | J34: 9948.47
A35: 2022-01-03 | B35: Fernando Barrozo da S. Cardoso | E35: Locação | F35: INTER | G35: 9948.47 | H35: 0 | I35: 0 | J35: 9948.47
A36: 2022-01-03 | B36: Fernando Barrozo da S. Cardoso | E36: Locação | F36: INTER | G36: 9948.47 | H36: 0 | I36: 0 | J36: 9948.47
A37: 2022-01-03 | B37: Fernando Barrozo da S. Cardoso | E37: Locação | F37: INTER | G37: 9948.47 | H37: 0 | I37: 0 | J37: 9948.47
A38: 2022-01-03 | B38: Fernando Barrozo da S. Cardoso | E38: Locação | F38: INTER | G38: 9948.47 | H38: 0 | I38: 0 | J38: 9948.47
A39: 2022-01-03 | B39: Fernando Barrozo da S. Cardoso | E39: Locação | F39: INTER | G39: 9948.47 | H39: 0 | I39: 0 | J39: 9948.47
A40: 2022-01-03 | B40: Fernando Barrozo da S. Cardoso | E40: Locação | F40: INTER | G40: 9948.47 | H40: 0 | I40: 0 | J40: 9948.47
